Workbook

Sheet Legende

Sheet Berechnung Streckenabschnitt
A3: StreckenabschnittID | B3: GutartID | C3: FahrzeugartID | D3: NeigungsID | E3: TransportabschnittartID | F3: KraftstoffartID | G3: reale Transportentfernung [km] | H3: reales Frachtgewicht [t] | I3: spez. Verbrauch [l /tkm] | J3: Korrekturfaktor | K3: Energieverbrauch [l] | L3: Energie- Umrechnungsfaktor TTW [MJ/l] | M3: Energie- Umrechnungsfaktor WTW [MJ/l] | N3: CO2- Umrechnungsfaktor TTW [kg CO2/l] | O3: CO2- Umrechnungsfaktor WTW [ kg CO2/l] | P3: CO2-Äquivalente- Umrechnungsfaktor TTW [kg CO2e/l] | Q3: CO2-Äquivalente- Umrechnungsfaktor WTW [kg CO2e/l] | R3: Energieverbrauch TTW [MJ] | S3: Energieverbrauch WTW [MJ] | T3: CO2 TTW [kg] | U3: CO2 WTW [kg] | V3: CO2-Äquivalente TTW [kg] | W3: CO2-Äquivalente WTW [kg]
B4: Durchschnittsgut | C4: großer LKW | D4: mittlere Längsneigung | E4: Außerorts | F4: Diesel mit 6% Beimischung von Biodiesel | G4: 506 | H4: =IF(G4 = "", "", VLOOKUP(INDEX(FahrzeugartID,MATCH('Berechnung Streckenabschnitt'!C4,Fahrzeugart!$B$2:$B$5,0))&"_"&INDEX(GutartID,MATCH('Berechnung Streckenabschnitt'!B4,Gutart!$B$2:$B$4,0)),Frachtgewichte!$C$2:$D$13,2,FALSE)) -> 7.2 | I4: =IF(G4 = "", "", VLOOKUP(INDEX(LängsneigungsartID,MATCH('Berechnung Streckenabschnitt'!D4,Längsneigungsart!$B$2:$B$3,0))&"_"&INDEX(GutartID,MATCH('Berechnung Streckenabschnitt'!B4,Gutart!$B$2:$B$4,0))&"_"&INDEX(FahrzeugartID,MATCH('Berechnung Streckenabschnitt'!C4,Fahrzeugart!$B$2:$B$5,0)),Energieverbrauch!$D$2:$E$25,2,FALSE)) -> 0.036 | J4: =IF(G4 = "", "", IF(E4="Innerorts",VLOOKUP(INDEX(FahrzeugartID,MATCH('Berechnung Streckenabschnitt'!C4,Fahrzeugart!$B$2:$B$5,0)),Korrekturfaktoren!$A$2:$B$5,2,FALSE),1)) -> 1 | K4: =IF(G4 = "", "", PRODUCT(J4,H4,G4,I4)) -> 131.1552 | L4: =IF(G4 = "", "", VLOOKUP(INDEX(Kraftstoffart!$A$2:$A$7, MATCH('Berechnung Streckenabschnitt'!F4,Kraftstoffart!$B$2:$B$7,0)),Energieverbrauch_Kennzahlen!$B$2:$C$7,2,FALSE)) -> 35.7 | M4: =IF(G4 = "", "", VLOOKUP(INDEX(Kraftstoffart!$A$2:$A$7, MATCH('Berechnung Streckenabschnitt'!F4,Kraftstoffart!$B$2:$B$7,0)),Energieverbrauch_Kennzahlen!$B$8:$C$13,2,FALSE)) -> 44.4 | N4: =IF(G4 = "", "", VLOOKUP(INDEX(Kraftstoffart!$A$2:$A$7, MATCH('Berechnung Streckenabschnitt'!F4,Kraftstoffart!$B$2:$B$7,0)),Kohlendioxid_Kennzahlen!$B$2:$C$7,2,FALSE)) -> 2.46 | O4: =IF(G4 = "", "", VLOOKUP(INDEX(Kraftstoffart!$A$2:$A$7, MATCH('Berechnung Streckenabschnitt'!F4,Kraftstoffart!$B$2:$B$7,0)),Kohlendioxid_Kennzahlen!$B$8:$C$13,2,FALSE)) -> 3.02 | P4: =IF(G4 = "", "", VLOOKUP(INDEX(Kraftstoffart!$A$2:$A$7, MATCH('Berechnung Streckenabschnitt'!F4,Kraftstoffart!$B$2:$B$7,0)),Treibhausgas_Kennzahlen!$B$2:$C$7,2,FALSE)) -> 2.5 | Q4: =IF(G4 = "", "", VLOOKUP(INDEX(Kraftstoffart!$A$2:$A$7, MATCH('Berechnung Streckenabschnitt'!F4,Kraftstoffart!$B$2:$B$7,0)),Treibhausgas_Kennzahlen!$B$8:$C$13,2,FALSE)) -> 3.16 | R4: =IF(G4 = "", "", PRODUCT(K4,L4)) -> 4682.24064 | S4: =IF(I4 = "", "", PRODUCT(K4,M4)) -> 5823.29088 | T4: =IF(J4 = "", "", PRODUCT(K4,N4)) -> 322.641792 | U4: =IF(H4 = "", "", PRODUCT(K4,O4)) -> 396.088704 | V4: =IF(K4 = "", "", PRODUCT(K4,P4)) -> 327.888 | W4: =IF(L4 = "", "", PRODUCT(K4,Q4)) -> 414.450432
A5: 1: Fiktiver Hauptlauf | B5: Durchschnittsgut | C5: großer LKW | D5: mittlere Längsneigung | E5: Außerorts | F5: Diesel konventionell | G5: 503 | H5: =IF(G5 = "", "", VLOOKUP(INDEX(FahrzeugartID,MATCH('Berechnung Streckenabschnitt'!C5,Fahrzeugart!$B$2:$B$5,0))&"_"&INDEX(GutartID,MATCH('Berechnung Streckenabschnitt'!B5,Gutart!$B$2:$B$4,0)),Frachtgewichte!$C$2:$D$13,2,FALSE)) -> 7.2 | I5: =IF(G5 = "", "", VLOOKUP(INDEX(LängsneigungsartID,MATCH('Berechnung Streckenabschnitt'!D5,Längsneigungsart!$B$2:$B$3,0))&"_"&INDEX(GutartID,MATCH('Berechnung Streckenabschnitt'!B5,Gutart!$B$2:$B$4,0))&"_"&INDEX(FahrzeugartID,MATCH('Berechnung Streckenabschnitt'!C5,Fahrzeugart!$B$2:$B$5,0)),Energieverbrauch!$D$2:$E$25,2,FALSE)) -> 0.036 | J5: =IF(G5 = "", "", IF(E5="Innerorts",VLOOKUP(INDEX(FahrzeugartID,MATCH('Berechnung Streckenabschnitt'!C5,Fahrzeugart!$B$2:$B$5,0)),Korrekturfaktoren!$A$2:$B$5,2,FALSE),1)) -> 1 | K5: 130.3776 | L5: =IF(G5 = "", "", VLOOKUP(INDEX(Kraftstoffart!$A$2:$A$7, MATCH('Berechnung Streckenabschnitt'!F5,Kraftstoffart!$B$2:$B$7,0)),Energieverbrauch_Kennzahlen!$B$2:$C$7,2,FALSE)) -> 35.9 | M5: =IF(G5 = "", "", VLOOKUP(INDEX(Kraftstoffart!$A$2:$A$7, MATCH('Berechnung Streckenabschnitt'!F5,Kraftstoffart!$B$2:$B$7,0)),Energieverbrauch_Kennzahlen!$B$8:$C$13,2,FALSE)) -> 42.7 | N5: =IF(G5 = "", "", VLOOKUP(INDEX(Kraftstoffart!$A$2:$A$7, MATCH('Berechnung Streckenabschnitt'!F5,Kraftstoffart!$B$2:$B$7,0)),Kohlendioxid_Kennzahlen!$B$2:$C$7,2,FALSE)) -> 2.63 | O5: =IF(G5 = "", "", VLOOKUP(INDEX(Kraftstoffart!$A$2:$A$7, MATCH('Berechnung Streckenabschnitt'!F5,Kraftstoffart!$B$2:$B$7,0)),Kohlendioxid_Kennzahlen!$B$8:$C$13,2,FALSE)) -> 3.19 | P5: =IF(G5 = "", "", VLOOKUP(INDEX(Kraftstoffart!$A$2:$A$7, MATCH('Berechnung Streckenabschnitt'!F5,Kraftstoffart!$B$2:$B$7,0)),Treibhausgas_Kennzahlen!$B$2:$C$7,2,FALSE)) -> 2.67 | Q5: =IF(G5 = "", "", VLOOKUP(INDEX(Kraftstoffart!$A$2:$A$7, MATCH('Berechnung Streckenabschnitt'!F5,Kraftstoffart!$B$2:$B$7,0)),Treibhausgas_Kennzahlen!$B$8:$C$13,2,FALSE)) -> 3.24 | R5: =IF(G5 = "", "", PRODUCT(K5,L5)) -> 4680.55584 | S5: 5567.12352 | T5: =IF(J5 = "", "", PRODUCT(K5,N5)) -> 342.893088 | U5: 415.904544 | V5: =IF(K5 = "", "", PRODUCT(K5,P5)) -> 348.108192 | W5: =IF(L5 = "", "", PRODUCT(K5,Q5)) -> 422.423424
H6: =IF(G6 = "", "", VLOOKUP(INDEX(FahrzeugartID,MATCH('Berechnung Streckenabschnitt'!C6,Fahrzeugart!$B$2:$B$5,0))&"_"&INDEX(GutartID,MATCH('Berechnung Streckenabschnitt'!B6,Gutart!$B$2:$B$4,0)),Frachtgewichte!$C$2:$D$13,2,FALSE)) ->  | I6: =IF(G6 = "", "", VLOOKUP(INDEX(LängsneigungsartID,MATCH('Berechnung Streckenabschnitt'!D6,Längsneigungsart!$B$2:$B$3,0))&"_"&INDEX(GutartID,MATCH('Berechnung Streckenabschnitt'!B6,Gutart!$B$2:$B$4,0))&"_"&INDEX(FahrzeugartID,MATCH('Berechnung Streckenabschnitt'!C6,Fahrzeugart!$B$2:$B$5,0)),Energieverbrauch!$D$2:$E$25,2,FALSE)) ->  | J6: =IF(G6 = "", "", IF(E6="Innerorts",VLOOKUP(INDEX(FahrzeugartID,MATCH('Berechnung Streckenabschnitt'!C6,Fahrzeugart!$B$2:$B$5,0)),Korrekturfaktoren!$A$2:$B$5,2,FALSE),1)) ->  | L6: =IF(G6 = "", "", VLOOKUP(INDEX(Kraftstoffart!$A$2:$A$7, MATCH('Berechnung Streckenabschnitt'!F6,Kraftstoffart!$B$2:$B$7,0)),Energieverbrauch_Kennzahlen!$B$2:$C$7,2,FALSE)) ->  | M6: =IF(G6 = "", "", VLOOKUP(INDEX(Kraftstoffart!$A$2:$A$7, MATCH('Berechnung Streckenabschnitt'!F6,Kraftstoffart!$B$2:$B$7,0)),Energieverbrauch_Kennzahlen!$B$8:$C$13,2,FALSE)) ->  | N6: =IF(G6 = "", "", VLOOKUP(INDEX(Kraftstoffart!$A$2:$A$7, MATCH('Berechnung Streckenabschnitt'!F6,Kraftstoffart!$B$2:$B$7,0)),Kohlendioxid_Kennzahlen!$B$2:$C$7,2,FALSE)) ->  | O6: =IF(G6 = "", "", VLOOKUP(INDEX(Kraftstoffart!$A$2:$A$7, MATCH('Berechnung Streckenabschnitt'!F6,Kraftstoffart!$B$2:$B$7,0)),Kohlendioxid_Kennzahlen!$B$8:$C$13,2,FALSE)) ->  | P6: =IF(G6 = "", "", VLOOKUP(INDEX(Kraftstoffart!$A$2:$A$7, MATCH('Berechnung Streckenabschnitt'!F6,Kraftstoffart!$B$2:$B$7,0)),Treibhausgas_Kennzahlen!$B$2:$C$7,2,FALSE)) ->  | Q6: =IF(G6 = "", "", VLOOKUP(INDEX(Kraftstoffart!$A$2:$A$7, MATCH('Berechnung Streckenabschnitt'!F6,Kraftstoffart!$B$2:$B$7,0)),Treibhausgas_Kennzahlen!$B$8:$C$13,2,FALSE)) -> 
H7: =IF(G7 = "", "", VLOOKUP(INDEX(FahrzeugartID,MATCH('Berechnung Streckenabschnitt'!C7,Fahrzeugart!$B$2:$B$5,0))&"_"&INDEX(GutartID,MATCH('Berechnung Streckenabschnitt'!B7,Gutart!$B$2:$B$4,0)),Frachtgewichte!$C$2:$D$13,2,FALSE)) ->  | I7: =IF(G7 = "", "", VLOOKUP(INDEX(LängsneigungsartID,MATCH('Berechnung Streckenabschnitt'!D7,Längsneigungsart!$B$2:$B$3,0))&"_"&INDEX(GutartID,MATCH('Berechnung Streckenabschnitt'!B7,Gutart!$B$2:$B$4,0))&"_"&INDEX(FahrzeugartID,MATCH('Berechnung Streckenabschnitt'!C7,Fahrzeugart!$B$2:$B$5,0)),Energieverbrauch!$D$2:$E$25,2,FALSE)) ->  | J7: =IF(G7 = "", "", IF(E7="Innerorts",VLOOKUP(INDEX(FahrzeugartID,MATCH('Berechnung Streckenabschnitt'!C7,Fahrzeugart!$B$2:$B$5,0)),Korrekturfaktoren!$A$2:$B$5,2,FALSE),1)) ->  | L7: =IF(G7 = "", "", VLOOKUP(INDEX(Kraftstoffart!$A$2:$A$7, MATCH('Berechnung Streckenabschnitt'!F7,Kraftstoffart!$B$2:$B$7,0)),Energieverbrauch_Kennzahlen!$B$2:$C$7,2,FALSE)) ->  | M7: =IF(G7 = "", "", VLOOKUP(INDEX(Kraftstoffart!$A$2:$A$7, MATCH('Berechnung Streckenabschnitt'!F7,Kraftstoffart!$B$2:$B$7,0)),Energieverbrauch_Kennzahlen!$B$8:$C$13,2,FALSE)) ->  | N7: =IF(G7 = "", "", VLOOKUP(INDEX(Kraftstoffart!$A$2:$A$7, MATCH('Berechnung Streckenabschnitt'!F7,Kraftstoffart!$B$2:$B$7,0)),Kohlendioxid_Kennzahlen!$B$2:$C$7,2,FALSE)) ->  | O7: =IF(G7 = "", "", VLOOKUP(INDEX(Kraftstoffart!$A$2:$A$7, MATCH('Berechnung Streckenabschnitt'!F7,Kraftstoffart!$B$2:$B$7,0)),Kohlendioxid_Kennzahlen!$B$8:$C$13,2,FALSE)) ->  | P7: =IF(G7 = "", "", VLOOKUP(INDEX(Kraftstoffart!$A$2:$A$7, MATCH('Berechnung Streckenabschnitt'!F7,Kraftstoffart!$B$2:$B$7,0)),Treibhausgas_Kennzahlen!$B$2:$C$7,2,FALSE)) ->  | Q7: =IF(G7 = "", "", VLOOKUP(INDEX(Kraftstoffart!$A$2:$A$7, MATCH('Berechnung Streckenabschnitt'!F7,Kraftstoffart!$B$2:$B$7,0)),Treibhausgas_Kennzahlen!$B$8:$C$13,2,FALSE)) -> 
H8: =IF(G8 = "", "", VLOOKUP(INDEX(FahrzeugartID,MATCH('Berechnung Streckenabschnitt'!C8,Fahrzeugart!$B$2:$B$5,0))&"_"&INDEX(GutartID,MATCH('Berechnung Streckenabschnitt'!B8,Gutart!$B$2:$B$4,0)),Frachtgewichte!$C$2:$D$13,2,FALSE)) ->  | I8: =IF(G8 = "", "", VLOOKUP(INDEX(LängsneigungsartID,MATCH('Berechnung Streckenabschnitt'!D8,Längsneigungsart!$B$2:$B$3,0))&"_"&INDEX(GutartID,MATCH('Berechnung Streckenabschnitt'!B8,Gutart!$B$2:$B$4,0))&"_"&INDEX(FahrzeugartID,MATCH('Berechnung Streckenabschnitt'!C8,Fahrzeugart!$B$2:$B$5,0)),Energieverbrauch!$D$2:$E$25,2,FALSE)) ->  | J8: =IF(G8 = "", "", IF(E8="Innerorts",VLOOKUP(INDEX(FahrzeugartID,MATCH('Berechnung Streckenabschnitt'!C8,Fahrzeugart!$B$2:$B$5,0)),Korrekturfaktoren!$A$2:$B$5,2,FALSE),1)) ->  | L8: =IF(G8 = "", "", VLOOKUP(INDEX(Kraftstoffart!$A$2:$A$7, MATCH('Berechnung Streckenabschnitt'!F8,Kraftstoffart!$B$2:$B$7,0)),Energieverbrauch_Kennzahlen!$B$2:$C$7,2,FALSE)) ->  | M8: =IF(G8 = "", "", VLOOKUP(INDEX(Kraftstoffart!$A$2:$A$7, MATCH('Berechnung Streckenabschnitt'!F8,Kraftstoffart!$B$2:$B$7,0)),Energieverbrauch_Kennzahlen!$B$8:$C$13,2,FALSE)) ->  | N8: =IF(G8 = "", "", VLOOKUP(INDEX(Kraftstoffart!$A$2:$A$7, MATCH('Berechnung Streckenabschnitt'!F8,Kraftstoffart!$B$2:$B$7,0)),Kohlendioxid_Kennzahlen!$B$2:$C$7,2,FALSE)) ->  | O8: =IF(G8 = "", "", VLOOKUP(INDEX(Kraftstoffart!$A$2:$A$7, MATCH('Berechnung Streckenabschnitt'!F8,Kraftstoffart!$B$2:$B$7,0)),Kohlendioxid_Kennzahlen!$B$8:$C$13,2,FALSE)) ->  | P8: =IF(G8 = "", "", VLOOKUP(INDEX(Kraftstoffart!$A$2:$A$7, MATCH('Berechnung Streckenabschnitt'!F8,Kraftstoffart!$B$2:$B$7,0)),Treibhausgas_Kennzahlen!$B$2:$C$7,2,FALSE)) ->  | Q8: =IF(G8 = "", "", VLOOKUP(INDEX(Kraftstoffart!$A$2:$A$7, MATCH('Berechnung Streckenabschnitt'!F8,Kraftstoffart!$B$2:$B$7,0)),Treibhausgas_Kennzahlen!$B$8:$C$13,2,FALSE)) -> 
H9: =IF(G9 = "", "", VLOOKUP(INDEX(FahrzeugartID,MATCH('Berechnung Streckenabschnitt'!C9,Fahrzeugart!$B$2:$B$5,0))&"_"&INDEX(GutartID,MATCH('Berechnung Streckenabschnitt'!B9,Gutart!$B$2:$B$4,0)),Frachtgewichte!$C$2:$D$13,2,FALSE)) ->  | I9: =IF(G9 = "", "", VLOOKUP(INDEX(LängsneigungsartID,MATCH('Berechnung Streckenabschnitt'!D9,Längsneigungsart!$B$2:$B$3,0))&"_"&INDEX(GutartID,MATCH('Berechnung Streckenabschnitt'!B9,Gutart!$B$2:$B$4,0))&"_"&INDEX(FahrzeugartID,MATCH('Berechnung Streckenabschnitt'!C9,Fahrzeugart!$B$2:$B$5,0)),Energieverbrauch!$D$2:$E$25,2,FALSE)) ->  | J9: =IF(G9 = "", "", IF(E9="Innerorts",VLOOKUP(INDEX(FahrzeugartID,MATCH('Berechnung Streckenabschnitt'!C9,Fahrzeugart!$B$2:$B$5,0)),Korrekturfaktoren!$A$2:$B$5,2,FALSE),1)) ->  | L9: =IF(G9 = "", "", VLOOKUP(INDEX(Kraftstoffart!$A$2:$A$7, MATCH('Berechnung Streckenabschnitt'!F9,Kraftstoffart!$B$2:$B$7,0)),Energieverbrauch_Kennzahlen!$B$2:$C$7,2,FALSE)) ->  | M9: =IF(G9 = "", "", VLOOKUP(INDEX(Kraftstoffart!$A$2:$A$7, MATCH('Berechnung Streckenabschnitt'!F9,Kraftstoffart!$B$2:$B$7,0)),Energieverbrauch_Kennzahlen!$B$8:$C$13,2,FALSE)) ->  | N9: =IF(G9 = "", "", VLOOKUP(INDEX(Kraftstoffart!$A$2:$A$7, MATCH('Berechnung Streckenabschnitt'!F9,Kraftstoffart!$B$2:$B$7,0)),Kohlendioxid_Kennzahlen!$B$2:$C$7,2,FALSE)) ->  | O9: =IF(G9 = "", "", VLOOKUP(INDEX(Kraftstoffart!$A$2:$A$7, MATCH('Berechnung Streckenabschnitt'!F9,Kraftstoffart!$B$2:$B$7,0)),Kohlendioxid_Kennzahlen!$B$8:$C$13,2,FALSE)) ->  | P9: =IF(G9 = "", "", VLOOKUP(INDEX(Kraftstoffart!$A$2:$A$7, MATCH('Berechnung Streckenabschnitt'!F9,Kraftstoffart!$B$2:$B$7,0)),Treibhausgas_Kennzahlen!$B$2:$C$7,2,FALSE)) ->  | Q9: =IF(G9 = "", "", VLOOKUP(INDEX(Kraftstoffart!$A$2:$A$7, MATCH('Berechnung Streckenabschnitt'!F9,Kraftstoffart!$B$2:$B$7,0)),Treibhausgas_Kennzahlen!$B$8:$C$13,2,FALSE)) -> 
H10: =IF(G10 = "", "", VLOOKUP(INDEX(FahrzeugartID,MATCH('Berechnung Streckenabschnitt'!C10,Fahrzeugart!$B$2:$B$5,0))&"_"&INDEX(GutartID,MATCH('Berechnung Streckenabschnitt'!B10,Gutart!$B$2:$B$4,0)),Frachtgewichte!$C$2:$D$13,2,FALSE)) ->  | I10: =IF(G10 = "", "", VLOOKUP(INDEX(LängsneigungsartID,MATCH('Berechnung Streckenabschnitt'!D10,Längsneigungsart!$B$2:$B$3,0))&"_"&INDEX(GutartID,MATCH('Berechnung Streckenabschnitt'!B10,Gutart!$B$2:$B$4,0))&"_"&INDEX(FahrzeugartID,MATCH('Berechnung Streckenabschnitt'!C10,Fahrzeugart!$B$2:$B$5,0)),Energieverbrauch!$D$2:$E$25,2,FALSE)) ->  | J10: =IF(G10 = "", "", IF(E10="Innerorts",VLOOKUP(INDEX(FahrzeugartID,MATCH('Berechnung Streckenabschnitt'!C10,Fahrzeugart!$B$2:$B$5,0)),Korrekturfaktoren!$A$2:$B$5,2,FALSE),1)) ->  | L10: =IF(G10 = "", "", VLOOKUP(INDEX(Kraftstoffart!$A$2:$A$7, MATCH('Berechnung Streckenabschnitt'!F10,Kraftstoffart!$B$2:$B$7,0)),Energieverbrauch_Kennzahlen!$B$2:$C$7,2,FALSE)) ->  | M10: =IF(G10 = "", "", VLOOKUP(INDEX(Kraftstoffart!$A$2:$A$7, MATCH('Berechnung Streckenabschnitt'!F10,Kraftstoffart!$B$2:$B$7,0)),Energieverbrauch_Kennzahlen!$B$8:$C$13,2,FALSE)) ->  | N10: =IF(G10 = "", "", VLOOKUP(INDEX(Kraftstoffart!$A$2:$A$7, MATCH('Berechnung Streckenabschnitt'!F10,Kraftstoffart!$B$2:$B$7,0)),Kohlendioxid_Kennzahlen!$B$2:$C$7,2,FALSE)) ->  | O10: =IF(G10 = "", "", VLOOKUP(INDEX(Kraftstoffart!$A$2:$A$7, MATCH('Berechnung Streckenabschnitt'!F10,Kraftstoffart!$B$2:$B$7,0)),Kohlendioxid_Kennzahlen!$B$8:$C$13,2,FALSE)) ->  | P10: =IF(G10 = "", "", VLOOKUP(INDEX(Kraftstoffart!$A$2:$A$7, MATCH('Berechnung Streckenabschnitt'!F10,Kraftstoffart!$B$2:$B$7,0)),Treibhausgas_Kennzahlen!$B$2:$C$7,2,FALSE)) ->  | Q10: =IF(G10 = "", "", VLOOKUP(INDEX(Kraftstoffart!$A$2:$A$7, MATCH('Berechnung Streckenabschnitt'!F10,Kraftstoffart!$B$2:$B$7,0)),Treibhausgas_Kennzahlen!$B$8:$C$13,2,FALSE)) -> 
H11: =IF(G11 = "", "", VLOOKUP(INDEX(FahrzeugartID,MATCH('Berechnung Streckenabschnitt'!C11,Fahrzeugart!$B$2:$B$5,0))&"_"&INDEX(GutartID,MATCH('Berechnung Streckenabschnitt'!B11,Gutart!$B$2:$B$4,0)),Frachtgewichte!$C$2:$D$13,2,FALSE)) ->  | I11: =IF(G11 = "", "", VLOOKUP(INDEX(LängsneigungsartID,MATCH('Berechnung Streckenabschnitt'!D11,Längsneigungsart!$B$2:$B$3,0))&"_"&INDEX(GutartID,MATCH('Berechnung Streckenabschnitt'!B11,Gutart!$B$2:$B$4,0))&"_"&INDEX(FahrzeugartID,MATCH('Berechnung Streckenabschnitt'!C11,Fahrzeugart!$B$2:$B$5,0)),Energieverbrauch!$D$2:$E$25,2,FALSE)) ->  | J11: =IF(G11 = "", "", IF(E11="Innerorts",VLOOKUP(INDEX(FahrzeugartID,MATCH('Berechnung Streckenabschnitt'!C11,Fahrzeugart!$B$2:$B$5,0)),Korrekturfaktoren!$A$2:$B$5,2,FALSE),1)) ->  | L11: =IF(G11 = "", "", VLOOKUP(INDEX(Kraftstoffart!$A$2:$A$7, MATCH('Berechnung Streckenabschnitt'!F11,Kraftstoffart!$B$2:$B$7,0)),Energieverbrauch_Kennzahlen!$B$2:$C$7,2,FALSE)) ->  | M11: =IF(G11 = "", "", VLOOKUP(INDEX(Kraftstoffart!$A$2:$A$7, MATCH('Berechnung Streckenabschnitt'!F11,Kraftstoffart!$B$2:$B$7,0)),Energieverbrauch_Kennzahlen!$B$8:$C$13,2,FALSE)) ->  | N11: =IF(G11 = "", "", VLOOKUP(INDEX(Kraftstoffart!$A$2:$A$7, MATCH('Berechnung Streckenabschnitt'!F11,Kraftstoffart!$B$2:$B$7,0)),Kohlendioxid_Kennzahlen!$B$2:$C$7,2,FALSE)) ->  | O11: =IF(G11 = "", "", VLOOKUP(INDEX(Kraftstoffart!$A$2:$A$7, MATCH('Berechnung Streckenabschnitt'!F11,Kraftstoffart!$B$2:$B$7,0)),Kohlendioxid_Kennzahlen!$B$8:$C$13,2,FALSE)) ->  | P11: =IF(G11 = "", "", VLOOKUP(INDEX(Kraftstoffart!$A$2:$A$7, MATCH('Berechnung Streckenabschnitt'!F11,Kraftstoffart!$B$2:$B$7,0)),Treibhausgas_Kennzahlen!$B$2:$C$7,2,FALSE)) ->  | Q11: =IF(G11 = "", "", VLOOKUP(INDEX(Kraftstoffart!$A$2:$A$7, MATCH('Berechnung Streckenabschnitt'!F11,Kraftstoffart!$B$2:$B$7,0)),Treibhausgas_Kennzahlen!$B$8:$C$13,2,FALSE)) -> 
H12: =IF(G12 = "", "", VLOOKUP(INDEX(FahrzeugartID,MATCH('Berechnung Streckenabschnitt'!C12,Fahrzeugart!$B$2:$B$5,0))&"_"&INDEX(GutartID,MATCH('Berechnung Streckenabschnitt'!B12,Gutart!$B$2:$B$4,0)),Frachtgewichte!$C$2:$D$13,2,FALSE)) ->  | I12: =IF(G12 = "", "", VLOOKUP(INDEX(LängsneigungsartID,MATCH('Berechnung Streckenabschnitt'!D12,Längsneigungsart!$B$2:$B$3,0))&"_"&INDEX(GutartID,MATCH('Berechnung Streckenabschnitt'!B12,Gutart!$B$2:$B$4,0))&"_"&INDEX(FahrzeugartID,MATCH('Berechnung Streckenabschnitt'!C12,Fahrzeugart!$B$2:$B$5,0)),Energieverbrauch!$D$2:$E$25,2,FALSE)) ->  | J12: =IF(G12 = "", "", IF(E12="Innerorts",VLOOKUP(INDEX(FahrzeugartID,MATCH('Berechnung Streckenabschnitt'!C12,Fahrzeugart!$B$2:$B$5,0)),Korrekturfaktoren!$A$2:$B$5,2,FALSE),1)) ->  | L12: =IF(G12 = "", "", VLOOKUP(INDEX(Kraftstoffart!$A$2:$A$7, MATCH('Berechnung Streckenabschnitt'!F12,Kraftstoffart!$B$2:$B$7,0)),Energieverbrauch_Kennzahlen!$B$2:$C$7,2,FALSE)) ->  | M12: =IF(G12 = "", "", VLOOKUP(INDEX(Kraftstoffart!$A$2:$A$7, MATCH('Berechnung Streckenabschnitt'!F12,Kraftstoffart!$B$2:$B$7,0)),Energieverbrauch_Kennzahlen!$B$8:$C$13,2,FALSE)) ->  | N12: =IF(G12 = "", "", VLOOKUP(INDEX(Kraftstoffart!$A$2:$A$7, MATCH('Berechnung Streckenabschnitt'!F12,Kraftstoffart!$B$2:$B$7,0)),Kohlendioxid_Kennzahlen!$B$2:$C$7,2,FALSE)) ->  | O12: =IF(G12 = "", "", VLOOKUP(INDEX(Kraftstoffart!$A$2:$A$7, MATCH('Berechnung Streckenabschnitt'!F12,Kraftstoffart!$B$2:$B$7,0)),Kohlendioxid_Kennzahlen!$B$8:$C$13,2,FALSE)) ->  | P12: =IF(G12 = "", "", VLOOKUP(INDEX(Kraftstoffart!$A$2:$A$7, MATCH('Berechnung Streckenabschnitt'!F12,Kraftstoffart!$B$2:$B$7,0)),Treibhausgas_Kennzahlen!$B$2:$C$7,2,FALSE)) ->  | Q12: =IF(G12 = "", "", VLOOKUP(INDEX(Kraftstoffart!$A$2:$A$7, MATCH('Berechnung Streckenabschnitt'!F12,Kraftstoffart!$B$2:$B$7,0)),Treibhausgas_Kennzahlen!$B$8:$C$13,2,FALSE)) -> 
H13: =IF(G13 = "", "", VLOOKUP(INDEX(FahrzeugartID,MATCH('Berechnung Streckenabschnitt'!C13,Fahrzeugart!$B$2:$B$5,0))&"_"&INDEX(GutartID,MATCH('Berechnung Streckenabschnitt'!B13,Gutart!$B$2:$B$4,0)),Frachtgewichte!$C$2:$D$13,2,FALSE)) ->  | I13: =IF(G13 = "", "", VLOOKUP(INDEX(LängsneigungsartID,MATCH('Berechnung Streckenabschnitt'!D13,Längsneigungsart!$B$2:$B$3,0))&"_"&INDEX(GutartID,MATCH('Berechnung Streckenabschnitt'!B13,Gutart!$B$2:$B$4,0))&"_"&INDEX(FahrzeugartID,MATCH('Berechnung Streckenabschnitt'!C13,Fahrzeugart!$B$2:$B$5,0)),Energieverbrauch!$D$2:$E$25,2,FALSE)) ->  | J13: =IF(G13 = "", "", IF(E13="Innerorts",VLOOKUP(INDEX(FahrzeugartID,MATCH('Berechnung Streckenabschnitt'!C13,Fahrzeugart!$B$2:$B$5,0)),Korrekturfaktoren!$A$2:$B$5,2,FALSE),1)) ->  | L13: =IF(G13 = "", "", VLOOKUP(INDEX(Kraftstoffart!$A$2:$A$7, MATCH('Berechnung Streckenabschnitt'!F13,Kraftstoffart!$B$2:$B$7,0)),Energieverbrauch_Kennzahlen!$B$2:$C$7,2,FALSE)) ->  | M13: =IF(G13 = "", "", VLOOKUP(INDEX(Kraftstoffart!$A$2:$A$7, MATCH('Berechnung Streckenabschnitt'!F13,Kraftstoffart!$B$2:$B$7,0)),Energieverbrauch_Kennzahlen!$B$8:$C$13,2,FALSE)) ->  | N13: =IF(G13 = "", "", VLOOKUP(INDEX(Kraftstoffart!$A$2:$A$7, MATCH('Berechnung Streckenabschnitt'!F13,Kraftstoffart!$B$2:$B$7,0)),Kohlendioxid_Kennzahlen!$B$2:$C$7,2,FALSE)) ->  | O13: =IF(G13 = "", "", VLOOKUP(INDEX(Kraftstoffart!$A$2:$A$7, MATCH('Berechnung Streckenabschnitt'!F13,Kraftstoffart!$B$2:$B$7,0)),Kohlendioxid_Kennzahlen!$B$8:$C$13,2,FALSE)) ->  | P13: =IF(G13 = "", "", VLOOKUP(INDEX(Kraftstoffart!$A$2:$A$7, MATCH('Berechnung Streckenabschnitt'!F13,Kraftstoffart!$B$2:$B$7,0)),Treibhausgas_Kennzahlen!$B$2:$C$7,2,FALSE)) ->  | Q13: =IF(G13 = "", "", VLOOKUP(INDEX(Kraftstoffart!$A$2:$A$7, MATCH('Berechnung Streckenabschnitt'!F13,Kraftstoffart!$B$2:$B$7,0)),Treibhausgas_Kennzahlen!$B$8:$C$13,2,FALSE)) -> 
H14: =IF(G14 = "", "", VLOOKUP(INDEX(FahrzeugartID,MATCH('Berechnung Streckenabschnitt'!C14,Fahrzeugart!$B$2:$B$5,0))&"_"&INDEX(GutartID,MATCH('Berechnung Streckenabschnitt'!B14,Gutart!$B$2:$B$4,0)),Frachtgewichte!$C$2:$D$13,2,FALSE)) ->  | I14: =IF(G14 = "", "", VLOOKUP(INDEX(LängsneigungsartID,MATCH('Berechnung Streckenabschnitt'!D14,Längsneigungsart!$B$2:$B$3,0))&"_"&INDEX(GutartID,MATCH('Berechnung Streckenabschnitt'!B14,Gutart!$B$2:$B$4,0))&"_"&INDEX(FahrzeugartID,MATCH('Berechnung Streckenabschnitt'!C14,Fahrzeugart!$B$2:$B$5,0)),Energieverbrauch!$D$2:$E$25,2,FALSE)) ->  | J14: =IF(G14 = "", "", IF(E14="Innerorts",VLOOKUP(INDEX(FahrzeugartID,MATCH('Berechnung Streckenabschnitt'!C14,Fahrzeugart!$B$2:$B$5,0)),Korrekturfaktoren!$A$2:$B$5,2,FALSE),1)) ->  | L14: =IF(G14 = "", "", VLOOKUP(INDEX(Kraftstoffart!$A$2:$A$7, MATCH('Berechnung Streckenabschnitt'!F14,Kraftstoffart!$B$2:$B$7,0)),Energieverbrauch_Kennzahlen!$B$2:$C$7,2,FALSE)) ->  | M14: =IF(G14 = "", "", VLOOKUP(INDEX(Kraftstoffart!$A$2:$A$7, MATCH('Berechnung Streckenabschnitt'!F14,Kraftstoffart!$B$2:$B$7,0)),Energieverbrauch_Kennzahlen!$B$8:$C$13,2,FALSE)) ->  | N14: =IF(G14 = "", "", VLOOKUP(INDEX(Kraftstoffart!$A$2:$A$7, MATCH('Berechnung Streckenabschnitt'!F14,Kraftstoffart!$B$2:$B$7,0)),Kohlendioxid_Kennzahlen!$B$2:$C$7,2,FALSE)) ->  | O14: =IF(G14 = "", "", VLOOKUP(INDEX(Kraftstoffart!$A$2:$A$7, MATCH('Berechnung Streckenabschnitt'!F14,Kraftstoffart!$B$2:$B$7,0)),Kohlendioxid_Kennzahlen!$B$8:$C$13,2,FALSE)) ->  | P14: =IF(G14 = "", "", VLOOKUP(INDEX(Kraftstoffart!$A$2:$A$7, MATCH('Berechnung Streckenabschnitt'!F14,Kraftstoffart!$B$2:$B$7,0)),Treibhausgas_Kennzahlen!$B$2:$C$7,2,FALSE)) ->  | Q14: =IF(G14 = "", "", VLOOKUP(INDEX(Kraftstoffart!$A$2:$A$7, MATCH('Berechnung Streckenabschnitt'!F14,Kraftstoffart!$B$2:$B$7,0)),Treibhausgas_Kennzahlen!$B$8:$C$13,2,FALSE)) -> 
H15: =IF(G15 = "", "", VLOOKUP(INDEX(FahrzeugartID,MATCH('Berechnung Streckenabschnitt'!C15,Fahrzeugart!$B$2:$B$5,0))&"_"&INDEX(GutartID,MATCH('Berechnung Streckenabschnitt'!B15,Gutart!$B$2:$B$4,0)),Frachtgewichte!$C$2:$D$13,2,FALSE)) ->  | I15: =IF(G15 = "", "", VLOOKUP(INDEX(LängsneigungsartID,MATCH('Berechnung Streckenabschnitt'!D15,Längsneigungsart!$B$2:$B$3,0))&"_"&INDEX(GutartID,MATCH('Berechnung Streckenabschnitt'!B15,Gutart!$B$2:$B$4,0))&"_"&INDEX(FahrzeugartID,MATCH('Berechnung Streckenabschnitt'!C15,Fahrzeugart!$B$2:$B$5,0)),Energieverbrauch!$D$2:$E$25,2,FALSE)) ->  | J15: =IF(G15 = "", "", IF(E24="Innerorts",VLOOKUP(INDEX(FahrzeugartID,MATCH('Berechnung Streckenabschnitt'!C15,Fahrzeugart!$B$2:$B$5,0)),Korrekturfaktoren!$A$2:$B$5,2,FALSE),1)) ->  | L15: =IF(G15 = "", "", VLOOKUP(INDEX(Kraftstoffart!$A$2:$A$7, MATCH('Berechnung Streckenabschnitt'!F15,Kraftstoffart!$B$2:$B$7,0)),Energieverbrauch_Kennzahlen!$B$2:$C$7,2,FALSE)) ->  | M15: =IF(G15 = "", "", VLOOKUP(INDEX(Kraftstoffart!$A$2:$A$7, MATCH('Berechnung Streckenabschnitt'!F15,Kraftstoffart!$B$2:$B$7,0)),Energieverbrauch_Kennzahlen!$B$8:$C$13,2,FALSE)) ->  | N15: =IF(G15 = "", "", VLOOKUP(INDEX(Kraftstoffart!$A$2:$A$7, MATCH('Berechnung Streckenabschnitt'!F15,Kraftstoffart!$B$2:$B$7,0)),Kohlendioxid_Kennzahlen!$B$2:$C$7,2,FALSE)) ->  | O15: =IF(G15 = "", "", VLOOKUP(INDEX(Kraftstoffart!$A$2:$A$7, MATCH('Berechnung Streckenabschnitt'!F15,Kraftstoffart!$B$2:$B$7,0)),Kohlendioxid_Kennzahlen!$B$8:$C$13,2,FALSE)) ->  | P15: =IF(G15 = "", "", VLOOKUP(INDEX(Kraftstoffart!$A$2:$A$7, MATCH('Berechnung Streckenabschnitt'!F15,Kraftstoffart!$B$2:$B$7,0)),Treibhausgas_Kennzahlen!$B$2:$C$7,2,FALSE)) ->  | Q15: =IF(G15 = "", "", VLOOKUP(INDEX(Kraftstoffart!$A$2:$A$7, MATCH('Berechnung Streckenabschnitt'!F15,Kraftstoffart!$B$2:$B$7,0)),Treibhausgas_Kennzahlen!$B$8:$C$13,2,FALSE)) -> 
H16: =IF(G16 = "", "", VLOOKUP(INDEX(FahrzeugartID,MATCH('Berechnung Streckenabschnitt'!C16,Fahrzeugart!$B$2:$B$5,0))&"_"&INDEX(GutartID,MATCH('Berechnung Streckenabschnitt'!B16,Gutart!$B$2:$B$4,0)),Frachtgewichte!$C$2:$D$13,2,FALSE)) ->  | I16: =IF(G16 = "", "", VLOOKUP(INDEX(LängsneigungsartID,MATCH('Berechnung Streckenabschnitt'!D16,Längsneigungsart!$B$2:$B$3,0))&"_"&INDEX(GutartID,MATCH('Berechnung Streckenabschnitt'!B16,Gutart!$B$2:$B$4,0))&"_"&INDEX(FahrzeugartID,MATCH('Berechnung Streckenabschnitt'!C16,Fahrzeugart!$B$2:$B$5,0)),Energieverbrauch!$D$2:$E$25,2,FALSE)) ->  | J16: =IF(G16 = "", "", IF(E16="Innerorts",VLOOKUP(INDEX(FahrzeugartID,MATCH('Berechnung Streckenabschnitt'!C16,Fahrzeugart!$B$2:$B$5,0)),Korrekturfaktoren!$A$2:$B$5,2,FALSE),1)) ->  | L16: =IF(G16 = "", "", VLOOKUP(INDEX(Kraftstoffart!$A$2:$A$7, MATCH('Berechnung Streckenabschnitt'!F16,Kraftstoffart!$B$2:$B$7,0)),Energieverbrauch_Kennzahlen!$B$2:$C$7,2,FALSE)) ->  | M16: =IF(G16 = "", "", VLOOKUP(INDEX(Kraftstoffart!$A$2:$A$7, MATCH('Berechnung Streckenabschnitt'!F16,Kraftstoffart!$B$2:$B$7,0)),Energieverbrauch_Kennzahlen!$B$8:$C$13,2,FALSE)) ->  | N16: =IF(G16 = "", "", VLOOKUP(INDEX(Kraftstoffart!$A$2:$A$7, MATCH('Berechnung Streckenabschnitt'!F16,Kraftstoffart!$B$2:$B$7,0)),Kohlendioxid_Kennzahlen!$B$2:$C$7,2,FALSE)) ->  | O16: =IF(G16 = "", "", VLOOKUP(INDEX(Kraftstoffart!$A$2:$A$7, MATCH('Berechnung Streckenabschnitt'!F16,Kraftstoffart!$B$2:$B$7,0)),Kohlendioxid_Kennzahlen!$B$8:$C$13,2,FALSE)) ->  | P16: =IF(G16 = "", "", VLOOKUP(INDEX(Kraftstoffart!$A$2:$A$7, MATCH('Berechnung Streckenabschnitt'!F16,Kraftstoffart!$B$2:$B$7,0)),Treibhausgas_Kennzahlen!$B$2:$C$7,2,FALSE)) ->  | Q16: =IF(G16 = "", "", VLOOKUP(INDEX(Kraftstoffart!$A$2:$A$7, MATCH('Berechnung Streckenabschnitt'!F16,Kraftstoffart!$B$2:$B$7,0)),Treibhausgas_Kennzahlen!$B$8:$C$13,2,FALSE)) -> 
H17: =IF(G17 = "", "", VLOOKUP(INDEX(FahrzeugartID,MATCH('Berechnung Streckenabschnitt'!C17,Fahrzeugart!$B$2:$B$5,0))&"_"&INDEX(GutartID,MATCH('Berechnung Streckenabschnitt'!B17,Gutart!$B$2:$B$4,0)),Frachtgewichte!$C$2:$D$13,2,FALSE)) ->  | I17: =IF(G17 = "", "", VLOOKUP(INDEX(LängsneigungsartID,MATCH('Berechnung Streckenabschnitt'!D17,Längsneigungsart!$B$2:$B$3,0))&"_"&INDEX(GutartID,MATCH('Berechnung Streckenabschnitt'!B17,Gutart!$B$2:$B$4,0))&"_"&INDEX(FahrzeugartID,MATCH('Berechnung Streckenabschnitt'!C17,Fahrzeugart!$B$2:$B$5,0)),Energieverbrauch!$D$2:$E$25,2,FALSE)) ->  | J17: =IF(G17 = "", "", IF(E17="Innerorts",VLOOKUP(INDEX(FahrzeugartID,MATCH('Berechnung Streckenabschnitt'!C17,Fahrzeugart!$B$2:$B$5,0)),Korrekturfaktoren!$A$2:$B$5,2,FALSE),1)) ->  | L17: =IF(G17 = "", "", VLOOKUP(INDEX(Kraftstoffart!$A$2:$A$7, MATCH('Berechnung Streckenabschnitt'!F17,Kraftstoffart!$B$2:$B$7,0)),Energieverbrauch_Kennzahlen!$B$2:$C$7,2,FALSE)) ->  | M17: =IF(G17 = "", "", VLOOKUP(INDEX(Kraftstoffart!$A$2:$A$7, MATCH('Berechnung Streckenabschnitt'!F17,Kraftstoffart!$B$2:$B$7,0)),Energieverbrauch_Kennzahlen!$B$8:$C$13,2,FALSE)) ->  | N17: =IF(G17 = "", "", VLOOKUP(INDEX(Kraftstoffart!$A$2:$A$7, MATCH('Berechnung Streckenabschnitt'!F17,Kraftstoffart!$B$2:$B$7,0)),Kohlendioxid_Kennzahlen!$B$2:$C$7,2,FALSE)) ->  | O17: =IF(G17 = "", "", VLOOKUP(INDEX(Kraftstoffart!$A$2:$A$7, MATCH('Berechnung Streckenabschnitt'!F17,Kraftstoffart!$B$2:$B$7,0)),Kohlendioxid_Kennzahlen!$B$8:$C$13,2,FALSE)) ->  | P17: =IF(G17 = "", "", VLOOKUP(INDEX(Kraftstoffart!$A$2:$A$7, MATCH('Berechnung Streckenabschnitt'!F17,Kraftstoffart!$B$2:$B$7,0)),Treibhausgas_Kennzahlen!$B$2:$C$7,2,FALSE)) ->  | Q17: =IF(G17 = "", "", VLOOKUP(INDEX(Kraftstoffart!$A$2:$A$7, MATCH('Berechnung Streckenabschnitt'!F17,Kraftstoffart!$B$2:$B$7,0)),Treibhausgas_Kennzahlen!$B$8:$C$13,2,FALSE)) -> 
H18: =IF(G18 = "", "", VLOOKUP(INDEX(FahrzeugartID,MATCH('Berechnung Streckenabschnitt'!C18,Fahrzeugart!$B$2:$B$5,0))&"_"&INDEX(GutartID,MATCH('Berechnung Streckenabschnitt'!B18,Gutart!$B$2:$B$4,0)),Frachtgewichte!$C$2:$D$13,2,FALSE)) ->  | I18: =IF(G18 = "", "", VLOOKUP(INDEX(LängsneigungsartID,MATCH('Berechnung Streckenabschnitt'!D18,Längsneigungsart!$B$2:$B$3,0))&"_"&INDEX(GutartID,MATCH('Berechnung Streckenabschnitt'!B18,Gutart!$B$2:$B$4,0))&"_"&INDEX(FahrzeugartID,MATCH('Berechnung Streckenabschnitt'!C18,Fahrzeugart!$B$2:$B$5,0)),Energieverbrauch!$D$2:$E$25,2,FALSE)) ->  | J18: =IF(G18 = "", "", IF(E18="Innerorts",VLOOKUP(INDEX(FahrzeugartID,MATCH('Berechnung Streckenabschnitt'!C18,Fahrzeugart!$B$2:$B$5,0)),Korrekturfaktoren!$A$2:$B$5,2,FALSE),1)) ->  | L18: =IF(G18 = "", "", VLOOKUP(INDEX(Kraftstoffart!$A$2:$A$7, MATCH('Berechnung Streckenabschnitt'!F18,Kraftstoffart!$B$2:$B$7,0)),Energieverbrauch_Kennzahlen!$B$2:$C$7,2,FALSE)) ->  | M18: =IF(G18 = "", "", VLOOKUP(INDEX(Kraftstoffart!$A$2:$A$7, MATCH('Berechnung Streckenabschnitt'!F18,Kraftstoffart!$B$2:$B$7,0)),Energieverbrauch_Kennzahlen!$B$8:$C$13,2,FALSE)) ->  | N18: =IF(G18 = "", "", VLOOKUP(INDEX(Kraftstoffart!$A$2:$A$7, MATCH('Berechnung Streckenabschnitt'!F18,Kraftstoffart!$B$2:$B$7,0)),Kohlendioxid_Kennzahlen!$B$2:$C$7,2,FALSE)) ->  | O18: =IF(G18 = "", "", VLOOKUP(INDEX(Kraftstoffart!$A$2:$A$7, MATCH('Berechnung Streckenabschnitt'!F18,Kraftstoffart!$B$2:$B$7,0)),Kohlendioxid_Kennzahlen!$B$8:$C$13,2,FALSE)) ->  | P18: =IF(G18 = "", "", VLOOKUP(INDEX(Kraftstoffart!$A$2:$A$7, MATCH('Berechnung Streckenabschnitt'!F18,Kraftstoffart!$B$2:$B$7,0)),Treibhausgas_Kennzahlen!$B$2:$C$7,2,FALSE)) ->  | Q18: =IF(G18 = "", "", VLOOKUP(INDEX(Kraftstoffart!$A$2:$A$7, MATCH('Berechnung Streckenabschnitt'!F18,Kraftstoffart!$B$2:$B$7,0)),Treibhausgas_Kennzahlen!$B$8:$C$13,2,FALSE)) -> 
H19: =IF(G19 = "", "", VLOOKUP(INDEX(FahrzeugartID,MATCH('Berechnung Streckenabschnitt'!C19,Fahrzeugart!$B$2:$B$5,0))&"_"&INDEX(GutartID,MATCH('Berechnung Streckenabschnitt'!B19,Gutart!$B$2:$B$4,0)),Frachtgewichte!$C$2:$D$13,2,FALSE)) ->  | I19: =IF(G19 = "", "", VLOOKUP(INDEX(LängsneigungsartID,MATCH('Berechnung Streckenabschnitt'!D19,Längsneigungsart!$B$2:$B$3,0))&"_"&INDEX(GutartID,MATCH('Berechnung Streckenabschnitt'!B19,Gutart!$B$2:$B$4,0))&"_"&INDEX(FahrzeugartID,MATCH('Berechnung Streckenabschnitt'!C19,Fahrzeugart!$B$2:$B$5,0)),Energieverbrauch!$D$2:$E$25,2,FALSE)) ->  | J19: =IF(G19 = "", "", IF(E19="Innerorts",VLOOKUP(INDEX(FahrzeugartID,MATCH('Berechnung Streckenabschnitt'!C19,Fahrzeugart!$B$2:$B$5,0)),Korrekturfaktoren!$A$2:$B$5,2,FALSE),1)) ->  | L19: =IF(G19 = "", "", VLOOKUP(INDEX(Kraftstoffart!$A$2:$A$7, MATCH('Berechnung Streckenabschnitt'!F19,Kraftstoffart!$B$2:$B$7,0)),Energieverbrauch_Kennzahlen!$B$2:$C$7,2,FALSE)) ->  | M19: =IF(G19 = "", "", VLOOKUP(INDEX(Kraftstoffart!$A$2:$A$7, MATCH('Berechnung Streckenabschnitt'!F19,Kraftstoffart!$B$2:$B$7,0)),Energieverbrauch_Kennzahlen!$B$8:$C$13,2,FALSE)) ->  | N19: =IF(G19 = "", "", VLOOKUP(INDEX(Kraftstoffart!$A$2:$A$7, MATCH('Berechnung Streckenabschnitt'!F19,Kraftstoffart!$B$2:$B$7,0)),Kohlendioxid_Kennzahlen!$B$2:$C$7,2,FALSE)) ->  | O19: =IF(G19 = "", "", VLOOKUP(INDEX(Kraftstoffart!$A$2:$A$7, MATCH('Berechnung Streckenabschnitt'!F19,Kraftstoffart!$B$2:$B$7,0)),Kohlendioxid_Kennzahlen!$B$8:$C$13,2,FALSE)) ->  | P19: =IF(G19 = "", "", VLOOKUP(INDEX(Kraftstoffart!$A$2:$A$7, MATCH('Berechnung Streckenabschnitt'!F19,Kraftstoffart!$B$2:$B$7,0)),Treibhausgas_Kennzahlen!$B$2:$C$7,2,FALSE)) ->  | Q19: =IF(G19 = "", "", VLOOKUP(INDEX(Kraftstoffart!$A$2:$A$7, MATCH('Berechnung Streckenabschnitt'!F19,Kraftstoffart!$B$2:$B$7,0)),Treibhausgas_Kennzahlen!$B$8:$C$13,2,FALSE)) -> 
H20: =IF(G20 = "", "", VLOOKUP(INDEX(FahrzeugartID,MATCH('Berechnung Streckenabschnitt'!C20,Fahrzeugart!$B$2:$B$5,0))&"_"&INDEX(GutartID,MATCH('Berechnung Streckenabschnitt'!B20,Gutart!$B$2:$B$4,0)),Frachtgewichte!$C$2:$D$13,2,FALSE)) ->  | I20: =IF(G20 = "", "", VLOOKUP(INDEX(LängsneigungsartID,MATCH('Berechnung Streckenabschnitt'!D20,Längsneigungsart!$B$2:$B$3,0))&"_"&INDEX(GutartID,MATCH('Berechnung Streckenabschnitt'!B20,Gutart!$B$2:$B$4,0))&"_"&INDEX(FahrzeugartID,MATCH('Berechnung Streckenabschnitt'!C20,Fahrzeugart!$B$2:$B$5,0)),Energieverbrauch!$D$2:$E$25,2,FALSE)) ->  | J20: =IF(G20 = "", "", IF(E20="Innerorts",VLOOKUP(INDEX(FahrzeugartID,MATCH('Berechnung Streckenabschnitt'!C20,Fahrzeugart!$B$2:$B$5,0)),Korrekturfaktoren!$A$2:$B$5,2,FALSE),1)) ->  | L20: =IF(G20 = "", "", VLOOKUP(INDEX(Kraftstoffart!$A$2:$A$7, MATCH('Berechnung Streckenabschnitt'!F20,Kraftstoffart!$B$2:$B$7,0)),Energieverbrauch_Kennzahlen!$B$2:$C$7,2,FALSE)) ->  | M20: =IF(G20 = "", "", VLOOKUP(INDEX(Kraftstoffart!$A$2:$A$7, MATCH('Berechnung Streckenabschnitt'!F20,Kraftstoffart!$B$2:$B$7,0)),Energieverbrauch_Kennzahlen!$B$8:$C$13,2,FALSE)) ->  | N20: =IF(G20 = "", "", VLOOKUP(INDEX(Kraftstoffart!$A$2:$A$7, MATCH('Berechnung Streckenabschnitt'!F20,Kraftstoffart!$B$2:$B$7,0)),Kohlendioxid_Kennzahlen!$B$2:$C$7,2,FALSE)) ->  | O20: =IF(G20 = "", "", VLOOKUP(INDEX(Kraftstoffart!$A$2:$A$7, MATCH('Berechnung Streckenabschnitt'!F20,Kraftstoffart!$B$2:$B$7,0)),Kohlendioxid_Kennzahlen!$B$8:$C$13,2,FALSE)) ->  | P20: =IF(G20 = "", "", VLOOKUP(INDEX(Kraftstoffart!$A$2:$A$7, MATCH('Berechnung Streckenabschnitt'!F20,Kraftstoffart!$B$2:$B$7,0)),Treibhausgas_Kennzahlen!$B$2:$C$7,2,FALSE)) ->  | Q20: =IF(G20 = "", "", VLOOKUP(INDEX(Kraftstoffart!$A$2:$A$7, MATCH('Berechnung Streckenabschnitt'!F20,Kraftstoffart!$B$2:$B$7,0)),Treibhausgas_Kennzahlen!$B$8:$C$13,2,FALSE)) -> 
H21: =IF(G21 = "", "", VLOOKUP(INDEX(FahrzeugartID,MATCH('Berechnung Streckenabschnitt'!C21,Fahrzeugart!$B$2:$B$5,0))&"_"&INDEX(GutartID,MATCH('Berechnung Streckenabschnitt'!B21,Gutart!$B$2:$B$4,0)),Frachtgewichte!$C$2:$D$13,2,FALSE)) ->  | I21: =IF(G21 = "", "", VLOOKUP(INDEX(LängsneigungsartID,MATCH('Berechnung Streckenabschnitt'!D21,Längsneigungsart!$B$2:$B$3,0))&"_"&INDEX(GutartID,MATCH('Berechnung Streckenabschnitt'!B21,Gutart!$B$2:$B$4,0))&"_"&INDEX(FahrzeugartID,MATCH('Berechnung Streckenabschnitt'!C21,Fahrzeugart!$B$2:$B$5,0)),Energieverbrauch!$D$2:$E$25,2,FALSE)) ->  | J21: =IF(G21 = "", "", IF(E21="Innerorts",VLOOKUP(INDEX(FahrzeugartID,MATCH('Berechnung Streckenabschnitt'!C21,Fahrzeugart!$B$2:$B$5,0)),Korrekturfaktoren!$A$2:$B$5,2,FALSE),1)) ->  | L21: =IF(G21 = "", "", VLOOKUP(INDEX(Kraftstoffart!$A$2:$A$7, MATCH('Berechnung Streckenabschnitt'!F21,Kraftstoffart!$B$2:$B$7,0)),Energieverbrauch_Kennzahlen!$B$2:$C$7,2,FALSE)) ->  | M21: =IF(G21 = "", "", VLOOKUP(INDEX(Kraftstoffart!$A$2:$A$7, MATCH('Berechnung Streckenabschnitt'!F21,Kraftstoffart!$B$2:$B$7,0)),Energieverbrauch_Kennzahlen!$B$8:$C$13,2,FALSE)) ->  | N21: =IF(G21 = "", "", VLOOKUP(INDEX(Kraftstoffart!$A$2:$A$7, MATCH('Berechnung Streckenabschnitt'!F21,Kraftstoffart!$B$2:$B$7,0)),Kohlendioxid_Kennzahlen!$B$2:$C$7,2,FALSE)) ->  | O21: =IF(G21 = "", "", VLOOKUP(INDEX(Kraftstoffart!$A$2:$A$7, MATCH('Berechnung Streckenabschnitt'!F21,Kraftstoffart!$B$2:$B$7,0)),Kohlendioxid_Kennzahlen!$B$8:$C$13,2,FALSE)) ->  | P21: =IF(G21 = "", "", VLOOKUP(INDEX(Kraftstoffart!$A$2:$A$7, MATCH('Berechnung Streckenabschnitt'!F21,Kraftstoffart!$B$2:$B$7,0)),Treibhausgas_Kennzahlen!$B$2:$C$7,2,FALSE)) ->  | Q21: =IF(G21 = "", "", VLOOKUP(INDEX(Kraftstoffart!$A$2:$A$7, MATCH('Berechnung Streckenabschnitt'!F21,Kraftstoffart!$B$2:$B$7,0)),Treibhausgas_Kennzahlen!$B$8:$C$13,2,FALSE)) -> 
H22: =IF(G22 = "", "", VLOOKUP(INDEX(FahrzeugartID,MATCH('Berechnung Streckenabschnitt'!C22,Fahrzeugart!$B$2:$B$5,0))&"_"&INDEX(GutartID,MATCH('Berechnung Streckenabschnitt'!B22,Gutart!$B$2:$B$4,0)),Frachtgewichte!$C$2:$D$13,2,FALSE)) ->  | I22: =IF(G22 = "", "", VLOOKUP(INDEX(LängsneigungsartID,MATCH('Berechnung Streckenabschnitt'!D22,Längsneigungsart!$B$2:$B$3,0))&"_"&INDEX(GutartID,MATCH('Berechnung Streckenabschnitt'!B22,Gutart!$B$2:$B$4,0))&"_"&INDEX(FahrzeugartID,MATCH('Berechnung Streckenabschnitt'!C22,Fahrzeugart!$B$2:$B$5,0)),Energieverbrauch!$D$2:$E$25,2,FALSE)) ->  | J22: =IF(G22 = "", "", IF(E22="Innerorts",VLOOKUP(INDEX(FahrzeugartID,MATCH('Berechnung Streckenabschnitt'!C22,Fahrzeugart!$B$2:$B$5,0)),Korrekturfaktoren!$A$2:$B$5,2,FALSE),1)) ->  | L22: =IF(G22 = "", "", VLOOKUP(INDEX(Kraftstoffart!$A$2:$A$7, MATCH('Berechnung Streckenabschnitt'!F22,Kraftstoffart!$B$2:$B$7,0)),Energieverbrauch_Kennzahlen!$B$2:$C$7,2,FALSE)) ->  | M22: =IF(G22 = "", "", VLOOKUP(INDEX(Kraftstoffart!$A$2:$A$7, MATCH('Berechnung Streckenabschnitt'!F22,Kraftstoffart!$B$2:$B$7,0)),Energieverbrauch_Kennzahlen!$B$8:$C$13,2,FALSE)) ->  | N22: =IF(G22 = "", "", VLOOKUP(INDEX(Kraftstoffart!$A$2:$A$7, MATCH('Berechnung Streckenabschnitt'!F22,Kraftstoffart!$B$2:$B$7,0)),Kohlendioxid_Kennzahlen!$B$2:$C$7,2,FALSE)) ->  | O22: =IF(G22 = "", "", VLOOKUP(INDEX(Kraftstoffart!$A$2:$A$7, MATCH('Berechnung Streckenabschnitt'!F22,Kraftstoffart!$B$2:$B$7,0)),Kohlendioxid_Kennzahlen!$B$8:$C$13,2,FALSE)) ->  | P22: =IF(G22 = "", "", VLOOKUP(INDEX(Kraftstoffart!$A$2:$A$7, MATCH('Berechnung Streckenabschnitt'!F22,Kraftstoffart!$B$2:$B$7,0)),Treibhausgas_Kennzahlen!$B$2:$C$7,2,FALSE)) ->  | Q22: =IF(G22 = "", "", VLOOKUP(INDEX(Kraftstoffart!$A$2:$A$7, MATCH('Berechnung Streckenabschnitt'!F22,Kraftstoffart!$B$2:$B$7,0)),Treibhausgas_Kennzahlen!$B$8:$C$13,2,FALSE)) -> 
H23: =IF(G23 = "", "", VLOOKUP(INDEX(FahrzeugartID,MATCH('Berechnung Streckenabschnitt'!C23,Fahrzeugart!$B$2:$B$5,0))&"_"&INDEX(GutartID,MATCH('Berechnung Streckenabschnitt'!B23,Gutart!$B$2:$B$4,0)),Frachtgewichte!$C$2:$D$13,2,FALSE)) ->  | I23: =IF(G23 = "", "", VLOOKUP(INDEX(LängsneigungsartID,MATCH('Berechnung Streckenabschnitt'!D23,Längsneigungsart!$B$2:$B$3,0))&"_"&INDEX(GutartID,MATCH('Berechnung Streckenabschnitt'!B23,Gutart!$B$2:$B$4,0))&"_"&INDEX(FahrzeugartID,MATCH('Berechnung Streckenabschnitt'!C23,Fahrzeugart!$B$2:$B$5,0)),Energieverbrauch!$D$2:$E$25,2,FALSE)) ->  | J23: =IF(G23 = "", "", IF(E23="Innerorts",VLOOKUP(INDEX(FahrzeugartID,MATCH('Berechnung Streckenabschnitt'!C23,Fahrzeugart!$B$2:$B$5,0)),Korrekturfaktoren!$A$2:$B$5,2,FALSE),1)) ->  | L23: =IF(G23 = "", "", VLOOKUP(INDEX(Kraftstoffart!$A$2:$A$7, MATCH('Berechnung Streckenabschnitt'!F23,Kraftstoffart!$B$2:$B$7,0)),Energieverbrauch_Kennzahlen!$B$2:$C$7,2,FALSE)) ->  | M23: =IF(G23 = "", "", VLOOKUP(INDEX(Kraftstoffart!$A$2:$A$7, MATCH('Berechnung Streckenabschnitt'!F23,Kraftstoffart!$B$2:$B$7,0)),Energieverbrauch_Kennzahlen!$B$8:$C$13,2,FALSE)) ->  | N23: =IF(G23 = "", "", VLOOKUP(INDEX(Kraftstoffart!$A$2:$A$7, MATCH('Berechnung Streckenabschnitt'!F23,Kraftstoffart!$B$2:$B$7,0)),Kohlendioxid_Kennzahlen!$B$2:$C$7,2,FALSE)) ->  | O23: =IF(G23 = "", "", VLOOKUP(INDEX(Kraftstoffart!$A$2:$A$7, MATCH('Berechnung Streckenabschnitt'!F23,Kraftstoffart!$B$2:$B$7,0)),Kohlendioxid_Kennzahlen!$B$8:$C$13,2,FALSE)) ->  | P23: =IF(G23 = "", "", VLOOKUP(INDEX(Kraftstoffart!$A$2:$A$7, MATCH('Berechnung Streckenabschnitt'!F23,Kraftstoffart!$B$2:$B$7,0)),Treibhausgas_Kennzahlen!$B$2:$C$7,2,FALSE)) ->  | Q23: =IF(G23 = "", "", VLOOKUP(INDEX(Kraftstoffart!$A$2:$A$7, MATCH('Berechnung Streckenabschnitt'!F23,Kraftstoffart!$B$2:$B$7,0)),Treibhausgas_Kennzahlen!$B$8:$C$13,2,FALSE)) -> 
H24: =IF(G24 = "", "", VLOOKUP(INDEX(FahrzeugartID,MATCH('Berechnung Streckenabschnitt'!C24,Fahrzeugart!$B$2:$B$5,0))&"_"&INDEX(GutartID,MATCH('Berechnung Streckenabschnitt'!B24,Gutart!$B$2:$B$4,0)),Frachtgewichte!$C$2:$D$13,2,FALSE)) ->  | I24: =IF(G24 = "", "", VLOOKUP(INDEX(LängsneigungsartID,MATCH('Berechnung Streckenabschnitt'!D24,Längsneigungsart!$B$2:$B$3,0))&"_"&INDEX(GutartID,MATCH('Berechnung Streckenabschnitt'!B24,Gutart!$B$2:$B$4,0))&"_"&INDEX(FahrzeugartID,MATCH('Berechnung Streckenabschnitt'!C24,Fahrzeugart!$B$2:$B$5,0)),Energieverbrauch!$D$2:$E$25,2,FALSE)) ->  | J24: =IF(G24 = "", "", IF(E24="Innerorts",VLOOKUP(INDEX(FahrzeugartID,MATCH('Berechnung Streckenabschnitt'!C24,Fahrzeugart!$B$2:$B$5,0)),Korrekturfaktoren!$A$2:$B$5,2,FALSE),1)) ->  | L24: =IF(G24 = "", "", VLOOKUP(INDEX(Kraftstoffart!$A$2:$A$7, MATCH('Berechnung Streckenabschnitt'!F24,Kraftstoffart!$B$2:$B$7,0)),Energieverbrauch_Kennzahlen!$B$2:$C$7,2,FALSE)) ->  | M24: =IF(G24 = "", "", VLOOKUP(INDEX(Kraftstoffart!$A$2:$A$7, MATCH('Berechnung Streckenabschnitt'!F24,Kraftstoffart!$B$2:$B$7,0)),Energieverbrauch_Kennzahlen!$B$8:$C$13,2,FALSE)) ->  | N24: =IF(G24 = "", "", VLOOKUP(INDEX(Kraftstoffart!$A$2:$A$7, MATCH('Berechnung Streckenabschnitt'!F24,Kraftstoffart!$B$2:$B$7,0)),Kohlendioxid_Kennzahlen!$B$2:$C$7,2,FALSE)) ->  | O24: =IF(G24 = "", "", VLOOKUP(INDEX(Kraftstoffart!$A$2:$A$7, MATCH('Berechnung Streckenabschnitt'!F24,Kraftstoffart!$B$2:$B$7,0)),Kohlendioxid_Kennzahlen!$B$8:$C$13,2,FALSE)) ->  | P24: =IF(G24 = "", "", VLOOKUP(INDEX(Kraftstoffart!$A$2:$A$7, MATCH('Berechnung Streckenabschnitt'!F24,Kraftstoffart!$B$2:$B$7,0)),Treibhausgas_Kennzahlen!$B$2:$C$7,2,FALSE)) ->  | Q24: =IF(G24 = "", "", VLOOKUP(INDEX(Kraftstoffart!$A$2:$A$7, MATCH('Berechnung Streckenabschnitt'!F24,Kraftstoffart!$B$2:$B$7,0)),Treibhausgas_Kennzahlen!$B$8:$C$13,2,FALSE)) -> 
H25: =IF(G25 = "", "", VLOOKUP(INDEX(FahrzeugartID,MATCH('Berechnung Streckenabschnitt'!C25,Fahrzeugart!$B$2:$B$5,0))&"_"&INDEX(GutartID,MATCH('Berechnung Streckenabschnitt'!B25,Gutart!$B$2:$B$4,0)),Frachtgewichte!$C$2:$D$13,2,FALSE)) ->  | I25: =IF(G25 = "", "", VLOOKUP(INDEX(LängsneigungsartID,MATCH('Berechnung Streckenabschnitt'!D25,Längsneigungsart!$B$2:$B$3,0))&"_"&INDEX(GutartID,MATCH('Berechnung Streckenabschnitt'!B25,Gutart!$B$2:$B$4,0))&"_"&INDEX(FahrzeugartID,MATCH('Berechnung Streckenabschnitt'!C25,Fahrzeugart!$B$2:$B$5,0)),Energieverbrauch!$D$2:$E$25,2,FALSE)) ->  | J25: =IF(G25 = "", "", IF(E25="Innerorts",VLOOKUP(INDEX(FahrzeugartID,MATCH('Berechnung Streckenabschnitt'!C25,Fahrzeugart!$B$2:$B$5,0)),Korrekturfaktoren!$A$2:$B$5,2,FALSE),1)) ->  | L25: =IF(G25 = "", "", VLOOKUP(INDEX(Kraftstoffart!$A$2:$A$7, MATCH('Berechnung Streckenabschnitt'!F25,Kraftstoffart!$B$2:$B$7,0)),Energieverbrauch_Kennzahlen!$B$2:$C$7,2,FALSE)) ->  | M25: =IF(G25 = "", "", VLOOKUP(INDEX(Kraftstoffart!$A$2:$A$7, MATCH('Berechnung Streckenabschnitt'!F25,Kraftstoffart!$B$2:$B$7,0)),Energieverbrauch_Kennzahlen!$B$8:$C$13,2,FALSE)) ->  | N25: =IF(G25 = "", "", VLOOKUP(INDEX(Kraftstoffart!$A$2:$A$7, MATCH('Berechnung Streckenabschnitt'!F25,Kraftstoffart!$B$2:$B$7,0)),Kohlendioxid_Kennzahlen!$B$2:$C$7,2,FALSE)) ->  | O25: =IF(G25 = "", "", VLOOKUP(INDEX(Kraftstoffart!$A$2:$A$7, MATCH('Berechnung Streckenabschnitt'!F25,Kraftstoffart!$B$2:$B$7,0)),Kohlendioxid_Kennzahlen!$B$8:$C$13,2,FALSE)) ->  | P25: =IF(G25 = "", "", VLOOKUP(INDEX(Kraftstoffart!$A$2:$A$7, MATCH('Berechnung Streckenabschnitt'!F25,Kraftstoffart!$B$2:$B$7,0)),Treibhausgas_Kennzahlen!$B$2:$C$7,2,FALSE)) ->  | Q25: =IF(G25 = "", "", VLOOKUP(INDEX(Kraftstoffart!$A$2:$A$7, MATCH('Berechnung Streckenabschnitt'!F25,Kraftstoffart!$B$2:$B$7,0)),Treibhausgas_Kennzahlen!$B$8:$C$13,2,FALSE)) -> 
H26: =IF(G26 = "", "", VLOOKUP(INDEX(FahrzeugartID,MATCH('Berechnung Streckenabschnitt'!C26,Fahrzeugart!$B$2:$B$5,0))&"_"&INDEX(GutartID,MATCH('Berechnung Streckenabschnitt'!B26,Gutart!$B$2:$B$4,0)),Frachtgewichte!$C$2:$D$13,2,FALSE)) ->  | I26: =IF(G26 = "", "", VLOOKUP(INDEX(LängsneigungsartID,MATCH('Berechnung Streckenabschnitt'!D26,Längsneigungsart!$B$2:$B$3,0))&"_"&INDEX(GutartID,MATCH('Berechnung Streckenabschnitt'!B26,Gutart!$B$2:$B$4,0))&"_"&INDEX(FahrzeugartID,MATCH('Berechnung Streckenabschnitt'!C26,Fahrzeugart!$B$2:$B$5,0)),Energieverbrauch!$D$2:$E$25,2,FALSE)) ->  | J26: =IF(G26 = "", "", IF(E26="Innerorts",VLOOKUP(INDEX(FahrzeugartID,MATCH('Berechnung Streckenabschnitt'!C26,Fahrzeugart!$B$2:$B$5,0)),Korrekturfaktoren!$A$2:$B$5,2,FALSE),1)) ->  | L26: =IF(G26 = "", "", VLOOKUP(INDEX(Kraftstoffart!$A$2:$A$7, MATCH('Berechnung Streckenabschnitt'!F26,Kraftstoffart!$B$2:$B$7,0)),Energieverbrauch_Kennzahlen!$B$2:$C$7,2,FALSE)) ->  | M26: =IF(G26 = "", "", VLOOKUP(INDEX(Kraftstoffart!$A$2:$A$7, MATCH('Berechnung Streckenabschnitt'!F26,Kraftstoffart!$B$2:$B$7,0)),Energieverbrauch_Kennzahlen!$B$8:$C$13,2,FALSE)) ->  | N26: =IF(G26 = "", "", VLOOKUP(INDEX(Kraftstoffart!$A$2:$A$7, MATCH('Berechnung Streckenabschnitt'!F26,Kraftstoffart!$B$2:$B$7,0)),Kohlendioxid_Kennzahlen!$B$2:$C$7,2,FALSE)) ->  | O26: =IF(G26 = "", "", VLOOKUP(INDEX(Kraftstoffart!$A$2:$A$7, MATCH('Berechnung Streckenabschnitt'!F26,Kraftstoffart!$B$2:$B$7,0)),Kohlendioxid_Kennzahlen!$B$8:$C$13,2,FALSE)) ->  | P26: =IF(G26 = "", "", VLOOKUP(INDEX(Kraftstoffart!$A$2:$A$7, MATCH('Berechnung Streckenabschnitt'!F26,Kraftstoffart!$B$2:$B$7,0)),Treibhausgas_Kennzahlen!$B$2:$C$7,2,FALSE)) ->  | Q26: =IF(G26 = "", "", VLOOKUP(INDEX(Kraftstoffart!$A$2:$A$7, MATCH('Berechnung Streckenabschnitt'!F26,Kraftstoffart!$B$2:$B$7,0)),Treibhausgas_Kennzahlen!$B$8:$C$13,2,FALSE)) -> 
H27: =IF(G27 = "", "", VLOOKUP(INDEX(FahrzeugartID,MATCH('Berechnung Streckenabschnitt'!C27,Fahrzeugart!$B$2:$B$5,0))&"_"&INDEX(GutartID,MATCH('Berechnung Streckenabschnitt'!B27,Gutart!$B$2:$B$4,0)),Frachtgewichte!$C$2:$D$13,2,FALSE)) ->  | I27: =IF(G27 = "", "", VLOOKUP(INDEX(LängsneigungsartID,MATCH('Berechnung Streckenabschnitt'!D27,Längsneigungsart!$B$2:$B$3,0))&"_"&INDEX(GutartID,MATCH('Berechnung Streckenabschnitt'!B27,Gutart!$B$2:$B$4,0))&"_"&INDEX(FahrzeugartID,MATCH('Berechnung Streckenabschnitt'!C27,Fahrzeugart!$B$2:$B$5,0)),Energieverbrauch!$D$2:$E$25,2,FALSE)) ->  | J27: =IF(G27 = "", "", IF(E27="Innerorts",VLOOKUP(INDEX(FahrzeugartID,MATCH('Berechnung Streckenabschnitt'!C27,Fahrzeugart!$B$2:$B$5,0)),Korrekturfaktoren!$A$2:$B$5,2,FALSE),1)) ->  | L27: =IF(G27 = "", "", VLOOKUP(INDEX(Kraftstoffart!$A$2:$A$7, MATCH('Berechnung Streckenabschnitt'!F27,Kraftstoffart!$B$2:$B$7,0)),Energieverbrauch_Kennzahlen!$B$2:$C$7,2,FALSE)) ->  | M27: =IF(G27 = "", "", VLOOKUP(INDEX(Kraftstoffart!$A$2:$A$7, MATCH('Berechnung Streckenabschnitt'!F27,Kraftstoffart!$B$2:$B$7,0)),Energieverbrauch_Kennzahlen!$B$8:$C$13,2,FALSE)) ->  | N27: =IF(G27 = "", "", VLOOKUP(INDEX(Kraftstoffart!$A$2:$A$7, MATCH('Berechnung Streckenabschnitt'!F27,Kraftstoffart!$B$2:$B$7,0)),Kohlendioxid_Kennzahlen!$B$2:$C$7,2,FALSE)) ->  | O27: =IF(G27 = "", "", VLOOKUP(INDEX(Kraftstoffart!$A$2:$A$7, MATCH('Berechnung Streckenabschnitt'!F27,Kraftstoffart!$B$2:$B$7,0)),Kohlendioxid_Kennzahlen!$B$8:$C$13,2,FALSE)) ->  | P27: =IF(G27 = "", "", VLOOKUP(INDEX(Kraftstoffart!$A$2:$A$7, MATCH('Berechnung Streckenabschnitt'!F27,Kraftstoffart!$B$2:$B$7,0)),Treibhausgas_Kennzahlen!$B$2:$C$7,2,FALSE)) ->  | Q27: =IF(G27 = "", "", VLOOKUP(INDEX(Kraftstoffart!$A$2:$A$7, MATCH('Berechnung Streckenabschnitt'!F27,Kraftstoffart!$B$2:$B$7,0)),Treibhausgas_Kennzahlen!$B$8:$C$13,2,FALSE)) -> 
H28: =IF(G28 = "", "", VLOOKUP(INDEX(FahrzeugartID,MATCH('Berechnung Streckenabschnitt'!C28,Fahrzeugart!$B$2:$B$5,0))&"_"&INDEX(GutartID,MATCH('Berechnung Streckenabschnitt'!B28,Gutart!$B$2:$B$4,0)),Frachtgewichte!$C$2:$D$13,2,FALSE)) ->  | I28: =IF(G28 = "", "", VLOOKUP(INDEX(LängsneigungsartID,MATCH('Berechnung Streckenabschnitt'!D28,Längsneigungsart!$B$2:$B$3,0))&"_"&INDEX(GutartID,MATCH('Berechnung Streckenabschnitt'!B28,Gutart!$B$2:$B$4,0))&"_"&INDEX(FahrzeugartID,MATCH('Berechnung Streckenabschnitt'!C28,Fahrzeugart!$B$2:$B$5,0)),Energieverbrauch!$D$2:$E$25,2,FALSE)) ->  | J28: =IF(G28 = "", "", IF(E28="Innerorts",VLOOKUP(INDEX(FahrzeugartID,MATCH('Berechnung Streckenabschnitt'!C28,Fahrzeugart!$B$2:$B$5,0)),Korrekturfaktoren!$A$2:$B$5,2,FALSE),1)) ->  | L28: =IF(G28 = "", "", VLOOKUP(INDEX(Kraftstoffart!$A$2:$A$7, MATCH('Berechnung Streckenabschnitt'!F28,Kraftstoffart!$B$2:$B$7,0)),Energieverbrauch_Kennzahlen!$B$2:$C$7,2,FALSE)) ->  | M28: =IF(G28 = "", "", VLOOKUP(INDEX(Kraftstoffart!$A$2:$A$7, MATCH('Berechnung Streckenabschnitt'!F28,Kraftstoffart!$B$2:$B$7,0)),Energieverbrauch_Kennzahlen!$B$8:$C$13,2,FALSE)) ->  | N28: =IF(G28 = "", "", VLOOKUP(INDEX(Kraftstoffart!$A$2:$A$7, MATCH('Berechnung Streckenabschnitt'!F28,Kraftstoffart!$B$2:$B$7,0)),Kohlendioxid_Kennzahlen!$B$2:$C$7,2,FALSE)) ->  | O28: =IF(G28 = "", "", VLOOKUP(INDEX(Kraftstoffart!$A$2:$A$7, MATCH('Berechnung Streckenabschnitt'!F28,Kraftstoffart!$B$2:$B$7,0)),Kohlendioxid_Kennzahlen!$B$8:$C$13,2,FALSE)) ->  | P28: =IF(G28 = "", "", VLOOKUP(INDEX(Kraftstoffart!$A$2:$A$7, MATCH('Berechnung Streckenabschnitt'!F28,Kraftstoffart!$B$2:$B$7,0)),Treibhausgas_Kennzahlen!$B$2:$C$7,2,FALSE)) ->  | Q28: =IF(G28 = "", "", VLOOKUP(INDEX(Kraftstoffart!$A$2:$A$7, MATCH('Berechnung Streckenabschnitt'!F28,Kraftstoffart!$B$2:$B$7,0)),Treibhausgas_Kennzahlen!$B$8:$C$13,2,FALSE)) -> 
H29: =IF(G29 = "", "", VLOOKUP(INDEX(FahrzeugartID,MATCH('Berechnung Streckenabschnitt'!C29,Fahrzeugart!$B$2:$B$5,0))&"_"&INDEX(GutartID,MATCH('Berechnung Streckenabschnitt'!B29,Gutart!$B$2:$B$4,0)),Frachtgewichte!$C$2:$D$13,2,FALSE)) ->  | I29: =IF(G29 = "", "", VLOOKUP(INDEX(LängsneigungsartID,MATCH('Berechnung Streckenabschnitt'!D29,Längsneigungsart!$B$2:$B$3,0))&"_"&INDEX(GutartID,MATCH('Berechnung Streckenabschnitt'!B29,Gutart!$B$2:$B$4,0))&"_"&INDEX(FahrzeugartID,MATCH('Berechnung Streckenabschnitt'!C29,Fahrzeugart!$B$2:$B$5,0)),Energieverbrauch!$D$2:$E$25,2,FALSE)) ->  | J29: =IF(G29 = "", "", IF(E29="Innerorts",VLOOKUP(INDEX(FahrzeugartID,MATCH('Berechnung Streckenabschnitt'!C29,Fahrzeugart!$B$2:$B$5,0)),Korrekturfaktoren!$A$2:$B$5,2,FALSE),1)) ->  | L29: =IF(G29 = "", "", VLOOKUP(INDEX(Kraftstoffart!$A$2:$A$7, MATCH('Berechnung Streckenabschnitt'!F29,Kraftstoffart!$B$2:$B$7,0)),Energieverbrauch_Kennzahlen!$B$2:$C$7,2,FALSE)) ->  | M29: =IF(G29 = "", "", VLOOKUP(INDEX(Kraftstoffart!$A$2:$A$7, MATCH('Berechnung Streckenabschnitt'!F29,Kraftstoffart!$B$2:$B$7,0)),Energieverbrauch_Kennzahlen!$B$8:$C$13,2,FALSE)) ->  | N29: =IF(G29 = "", "", VLOOKUP(INDEX(Kraftstoffart!$A$2:$A$7, MATCH('Berechnung Streckenabschnitt'!F29,Kraftstoffart!$B$2:$B$7,0)),Kohlendioxid_Kennzahlen!$B$2:$C$7,2,FALSE)) ->  | O29: =IF(G29 = "", "", VLOOKUP(INDEX(Kraftstoffart!$A$2:$A$7, MATCH('Berechnung Streckenabschnitt'!F29,Kraftstoffart!$B$2:$B$7,0)),Kohlendioxid_Kennzahlen!$B$8:$C$13,2,FALSE)) ->  | P29: =IF(G29 = "", "", VLOOKUP(INDEX(Kraftstoffart!$A$2:$A$7, MATCH('Berechnung Streckenabschnitt'!F29,Kraftstoffart!$B$2:$B$7,0)),Treibhausgas_Kennzahlen!$B$2:$C$7,2,FALSE)) ->  | Q29: =IF(G29 = "", "", VLOOKUP(INDEX(Kraftstoffart!$A$2:$A$7, MATCH('Berechnung Streckenabschnitt'!F29,Kraftstoffart!$B$2:$B$7,0)),Treibhausgas_Kennzahlen!$B$8:$C$13,2,FALSE)) -> 
H30: =IF(G30 = "", "", VLOOKUP(INDEX(FahrzeugartID,MATCH('Berechnung Streckenabschnitt'!C30,Fahrzeugart!$B$2:$B$5,0))&"_"&INDEX(GutartID,MATCH('Berechnung Streckenabschnitt'!B30,Gutart!$B$2:$B$4,0)),Frachtgewichte!$C$2:$D$13,2,FALSE)) ->  | I30: =IF(G30 = "", "", VLOOKUP(INDEX(LängsneigungsartID,MATCH('Berechnung Streckenabschnitt'!D30,Längsneigungsart!$B$2:$B$3,0))&"_"&INDEX(GutartID,MATCH('Berechnung Streckenabschnitt'!B30,Gutart!$B$2:$B$4,0))&"_"&INDEX(FahrzeugartID,MATCH('Berechnung Streckenabschnitt'!C30,Fahrzeugart!$B$2:$B$5,0)),Energieverbrauch!$D$2:$E$25,2,FALSE)) ->  | J30: =IF(G30 = "", "", IF(E30="Innerorts",VLOOKUP(INDEX(FahrzeugartID,MATCH('Berechnung Streckenabschnitt'!C30,Fahrzeugart!$B$2:$B$5,0)),Korrekturfaktoren!$A$2:$B$5,2,FALSE),1)) ->  | L30: =IF(G30 = "", "", VLOOKUP(INDEX(Kraftstoffart!$A$2:$A$7, MATCH('Berechnung Streckenabschnitt'!F30,Kraftstoffart!$B$2:$B$7,0)),Energieverbrauch_Kennzahlen!$B$2:$C$7,2,FALSE)) ->  | M30: =IF(G30 = "", "", VLOOKUP(INDEX(Kraftstoffart!$A$2:$A$7, MATCH('Berechnung Streckenabschnitt'!F30,Kraftstoffart!$B$2:$B$7,0)),Energieverbrauch_Kennzahlen!$B$8:$C$13,2,FALSE)) ->  | N30: =IF(G30 = "", "", VLOOKUP(INDEX(Kraftstoffart!$A$2:$A$7, MATCH('Berechnung Streckenabschnitt'!F30,Kraftstoffart!$B$2:$B$7,0)),Kohlendioxid_Kennzahlen!$B$2:$C$7,2,FALSE)) ->  | O30: =IF(G30 = "", "", VLOOKUP(INDEX(Kraftstoffart!$A$2:$A$7, MATCH('Berechnung Streckenabschnitt'!F30,Kraftstoffart!$B$2:$B$7,0)),Kohlendioxid_Kennzahlen!$B$8:$C$13,2,FALSE)) ->  | P30: =IF(G30 = "", "", VLOOKUP(INDEX(Kraftstoffart!$A$2:$A$7, MATCH('Berechnung Streckenabschnitt'!F30,Kraftstoffart!$B$2:$B$7,0)),Treibhausgas_Kennzahlen!$B$2:$C$7,2,FALSE)) ->  | Q30: =IF(G30 = "", "", VLOOKUP(INDEX(Kraftstoffart!$A$2:$A$7, MATCH('Berechnung Streckenabschnitt'!F30,Kraftstoffart!$B$2:$B$7,0)),Treibhausgas_Kennzahlen!$B$8:$C$13,2,FALSE)) -> 
H31: =IF(G31 = "", "", VLOOKUP(INDEX(FahrzeugartID,MATCH('Berechnung Streckenabschnitt'!C31,Fahrzeugart!$B$2:$B$5,0))&"_"&INDEX(GutartID,MATCH('Berechnung Streckenabschnitt'!B31,Gutart!$B$2:$B$4,0)),Frachtgewichte!$C$2:$D$13,2,FALSE)) ->  | I31: =IF(G31 = "", "", VLOOKUP(INDEX(LängsneigungsartID,MATCH('Berechnung Streckenabschnitt'!D31,Längsneigungsart!$B$2:$B$3,0))&"_"&INDEX(GutartID,MATCH('Berechnung Streckenabschnitt'!B31,Gutart!$B$2:$B$4,0))&"_"&INDEX(FahrzeugartID,MATCH('Berechnung Streckenabschnitt'!C31,Fahrzeugart!$B$2:$B$5,0)),Energieverbrauch!$D$2:$E$25,2,FALSE)) ->  | J31: =IF(G31 = "", "", IF(E31="Innerorts",VLOOKUP(INDEX(FahrzeugartID,MATCH('Berechnung Streckenabschnitt'!C31,Fahrzeugart!$B$2:$B$5,0)),Korrekturfaktoren!$A$2:$B$5,2,FALSE),1)) ->  | L31: =IF(G31 = "", "", VLOOKUP(INDEX(Kraftstoffart!$A$2:$A$7, MATCH('Berechnung Streckenabschnitt'!F31,Kraftstoffart!$B$2:$B$7,0)),Energieverbrauch_Kennzahlen!$B$2:$C$7,2,FALSE)) ->  | M31: =IF(G31 = "", "", VLOOKUP(INDEX(Kraftstoffart!$A$2:$A$7, MATCH('Berechnung Streckenabschnitt'!F31,Kraftstoffart!$B$2:$B$7,0)),Energieverbrauch_Kennzahlen!$B$8:$C$13,2,FALSE)) ->  | N31: =IF(G31 = "", "", VLOOKUP(INDEX(Kraftstoffart!$A$2:$A$7, MATCH('Berechnung Streckenabschnitt'!F31,Kraftstoffart!$B$2:$B$7,0)),Kohlendioxid_Kennzahlen!$B$2:$C$7,2,FALSE)) ->  | O31: =IF(G31 = "", "", VLOOKUP(INDEX(Kraftstoffart!$A$2:$A$7, MATCH('Berechnung Streckenabschnitt'!F31,Kraftstoffart!$B$2:$B$7,0)),Kohlendioxid_Kennzahlen!$B$8:$C$13,2,FALSE)) ->  | P31: =IF(G31 = "", "", VLOOKUP(INDEX(Kraftstoffart!$A$2:$A$7, MATCH('Berechnung Streckenabschnitt'!F31,Kraftstoffart!$B$2:$B$7,0)),Treibhausgas_Kennzahlen!$B$2:$C$7,2,FALSE)) ->  | Q31: =IF(G31 = "", "", VLOOKUP(INDEX(Kraftstoffart!$A$2:$A$7, MATCH('Berechnung Streckenabschnitt'!F31,Kraftstoffart!$B$2:$B$7,0)),Treibhausgas_Kennzahlen!$B$8:$C$13,2,FALSE)) -> 
H32: =IF(G32 = "", "", VLOOKUP(INDEX(FahrzeugartID,MATCH('Berechnung Streckenabschnitt'!C32,Fahrzeugart!$B$2:$B$5,0))&"_"&INDEX(GutartID,MATCH('Berechnung Streckenabschnitt'!B32,Gutart!$B$2:$B$4,0)),Frachtgewichte!$C$2:$D$13,2,FALSE)) ->  | I32: =IF(G32 = "", "", VLOOKUP(INDEX(LängsneigungsartID,MATCH('Berechnung Streckenabschnitt'!D32,Längsneigungsart!$B$2:$B$3,0))&"_"&INDEX(GutartID,MATCH('Berechnung Streckenabschnitt'!B32,Gutart!$B$2:$B$4,0))&"_"&INDEX(FahrzeugartID,MATCH('Berechnung Streckenabschnitt'!C32,Fahrzeugart!$B$2:$B$5,0)),Energieverbrauch!$D$2:$E$25,2,FALSE)) ->  | J32: =IF(G32 = "", "", IF(E32="Innerorts",VLOOKUP(INDEX(FahrzeugartID,MATCH('Berechnung Streckenabschnitt'!C32,Fahrzeugart!$B$2:$B$5,0)),Korrekturfaktoren!$A$2:$B$5,2,FALSE),1)) ->  | L32: =IF(G32 = "", "", VLOOKUP(INDEX(Kraftstoffart!$A$2:$A$7, MATCH('Berechnung Streckenabschnitt'!F32,Kraftstoffart!$B$2:$B$7,0)),Energieverbrauch_Kennzahlen!$B$2:$C$7,2,FALSE)) ->  | M32: =IF(G32 = "", "", VLOOKUP(INDEX(Kraftstoffart!$A$2:$A$7, MATCH('Berechnung Streckenabschnitt'!F32,Kraftstoffart!$B$2:$B$7,0)),Energieverbrauch_Kennzahlen!$B$8:$C$13,2,FALSE)) ->  | N32: =IF(G32 = "", "", VLOOKUP(INDEX(Kraftstoffart!$A$2:$A$7, MATCH('Berechnung Streckenabschnitt'!F32,Kraftstoffart!$B$2:$B$7,0)),Kohlendioxid_Kennzahlen!$B$2:$C$7,2,FALSE)) ->  | O32: =IF(G32 = "", "", VLOOKUP(INDEX(Kraftstoffart!$A$2:$A$7, MATCH('Berechnung Streckenabschnitt'!F32,Kraftstoffart!$B$2:$B$7,0)),Kohlendioxid_Kennzahlen!$B$8:$C$13,2,FALSE)) ->  | P32: =IF(G32 = "", "", VLOOKUP(INDEX(Kraftstoffart!$A$2:$A$7, MATCH('Berechnung Streckenabschnitt'!F32,Kraftstoffart!$B$2:$B$7,0)),Treibhausgas_Kennzahlen!$B$2:$C$7,2,FALSE)) ->  | Q32: =IF(G32 = "", "", VLOOKUP(INDEX(Kraftstoffart!$A$2:$A$7, MATCH('Berechnung Streckenabschnitt'!F32,Kraftstoffart!$B$2:$B$7,0)),Treibhausgas_Kennzahlen!$B$8:$C$13,2,FALSE)) -> 
H33: =IF(G33 = "", "", VLOOKUP(INDEX(FahrzeugartID,MATCH('Berechnung Streckenabschnitt'!C33,Fahrzeugart!$B$2:$B$5,0))&"_"&INDEX(GutartID,MATCH('Berechnung Streckenabschnitt'!B33,Gutart!$B$2:$B$4,0)),Frachtgewichte!$C$2:$D$13,2,FALSE)) ->  | I33: =IF(G33 = "", "", VLOOKUP(INDEX(LängsneigungsartID,MATCH('Berechnung Streckenabschnitt'!D33,Längsneigungsart!$B$2:$B$3,0))&"_"&INDEX(GutartID,MATCH('Berechnung Streckenabschnitt'!B33,Gutart!$B$2:$B$4,0))&"_"&INDEX(FahrzeugartID,MATCH('Berechnung Streckenabschnitt'!C33,Fahrzeugart!$B$2:$B$5,0)),Energieverbrauch!$D$2:$E$25,2,FALSE)) ->  | J33: =IF(G33 = "", "", IF(E33="Innerorts",VLOOKUP(INDEX(FahrzeugartID,MATCH('Berechnung Streckenabschnitt'!C33,Fahrzeugart!$B$2:$B$5,0)),Korrekturfaktoren!$A$2:$B$5,2,FALSE),1)) ->  | L33: =IF(G33 = "", "", VLOOKUP(INDEX(Kraftstoffart!$A$2:$A$7, MATCH('Berechnung Streckenabschnitt'!F33,Kraftstoffart!$B$2:$B$7,0)),Energieverbrauch_Kennzahlen!$B$2:$C$7,2,FALSE)) ->  | M33: =IF(G33 = "", "", VLOOKUP(INDEX(Kraftstoffart!$A$2:$A$7, MATCH('Berechnung Streckenabschnitt'!F33,Kraftstoffart!$B$2:$B$7,0)),Energieverbrauch_Kennzahlen!$B$8:$C$13,2,FALSE)) ->  | N33: =IF(G33 = "", "", VLOOKUP(INDEX(Kraftstoffart!$A$2:$A$7, MATCH('Berechnung Streckenabschnitt'!F33,Kraftstoffart!$B$2:$B$7,0)),Kohlendioxid_Kennzahlen!$B$2:$C$7,2,FALSE)) ->  | O33: =IF(G33 = "", "", VLOOKUP(INDEX(Kraftstoffart!$A$2:$A$7, MATCH('Berechnung Streckenabschnitt'!F33,Kraftstoffart!$B$2:$B$7,0)),Kohlendioxid_Kennzahlen!$B$8:$C$13,2,FALSE)) ->  | P33: =IF(G33 = "", "", VLOOKUP(INDEX(Kraftstoffart!$A$2:$A$7, MATCH('Berechnung Streckenabschnitt'!F33,Kraftstoffart!$B$2:$B$7,0)),Treibhausgas_Kennzahlen!$B$2:$C$7,2,FALSE)) ->  | Q33: =IF(G33 = "", "", VLOOKUP(INDEX(Kraftstoffart!$A$2:$A$7, MATCH('Berechnung Streckenabschnitt'!F33,Kraftstoffart!$B$2:$B$7,0)),Treibhausgas_Kennzahlen!$B$8:$C$13,2,FALSE)) -> 
H34: =IF(G34 = "", "", VLOOKUP(INDEX(FahrzeugartID,MATCH('Berechnung Streckenabschnitt'!C34,Fahrzeugart!$B$2:$B$5,0))&"_"&INDEX(GutartID,MATCH('Berechnung Streckenabschnitt'!B34,Gutart!$B$2:$B$4,0)),Frachtgewichte!$C$2:$D$13,2,FALSE)) ->  | I34: =IF(G34 = "", "", VLOOKUP(INDEX(LängsneigungsartID,MATCH('Berechnung Streckenabschnitt'!D34,Längsneigungsart!$B$2:$B$3,0))&"_"&INDEX(GutartID,MATCH('Berechnung Streckenabschnitt'!B34,Gutart!$B$2:$B$4,0))&"_"&INDEX(FahrzeugartID,MATCH('Berechnung Streckenabschnitt'!C34,Fahrzeugart!$B$2:$B$5,0)),Energieverbrauch!$D$2:$E$25,2,FALSE)) ->  | J34: =IF(G34 = "", "", IF(E34="Innerorts",VLOOKUP(INDEX(FahrzeugartID,MATCH('Berechnung Streckenabschnitt'!C34,Fahrzeugart!$B$2:$B$5,0)),Korrekturfaktoren!$A$2:$B$5,2,FALSE),1)) ->  | L34: =IF(G34 = "", "", VLOOKUP(INDEX(Kraftstoffart!$A$2:$A$7, MATCH('Berechnung Streckenabschnitt'!F34,Kraftstoffart!$B$2:$B$7,0)),Energieverbrauch_Kennzahlen!$B$2:$C$7,2,FALSE)) ->  | M34: =IF(G34 = "", "", VLOOKUP(INDEX(Kraftstoffart!$A$2:$A$7, MATCH('Berechnung Streckenabschnitt'!F34,Kraftstoffart!$B$2:$B$7,0)),Energieverbrauch_Kennzahlen!$B$8:$C$13,2,FALSE)) ->  | N34: =IF(G34 = "", "", VLOOKUP(INDEX(Kraftstoffart!$A$2:$A$7, MATCH('Berechnung Streckenabschnitt'!F34,Kraftstoffart!$B$2:$B$7,0)),Kohlendioxid_Kennzahlen!$B$2:$C$7,2,FALSE)) ->  | O34: =IF(G34 = "", "", VLOOKUP(INDEX(Kraftstoffart!$A$2:$A$7, MATCH('Berechnung Streckenabschnitt'!F34,Kraftstoffart!$B$2:$B$7,0)),Kohlendioxid_Kennzahlen!$B$8:$C$13,2,FALSE)) ->  | P34: =IF(G34 = "", "", VLOOKUP(INDEX(Kraftstoffart!$A$2:$A$7, MATCH('Berechnung Streckenabschnitt'!F34,Kraftstoffart!$B$2:$B$7,0)),Treibhausgas_Kennzahlen!$B$2:$C$7,2,FALSE)) ->  | Q34: =IF(G34 = "", "", VLOOKUP(INDEX(Kraftstoffart!$A$2:$A$7, MATCH('Berechnung Streckenabschnitt'!F34,Kraftstoffart!$B$2:$B$7,0)),Treibhausgas_Kennzahlen!$B$8:$C$13,2,FALSE)) -> 
H35: =IF(G35 = "", "", VLOOKUP(INDEX(FahrzeugartID,MATCH('Berechnung Streckenabschnitt'!C35,Fahrzeugart!$B$2:$B$5,0))&"_"&INDEX(GutartID,MATCH('Berechnung Streckenabschnitt'!B35,Gutart!$B$2:$B$4,0)),Frachtgewichte!$C$2:$D$13,2,FALSE)) ->  | I35: =IF(G35 = "", "", VLOOKUP(INDEX(LängsneigungsartID,MATCH('Berechnung Streckenabschnitt'!D35,Längsneigungsart!$B$2:$B$3,0))&"_"&INDEX(GutartID,MATCH('Berechnung Streckenabschnitt'!B35,Gutart!$B$2:$B$4,0))&"_"&INDEX(FahrzeugartID,MATCH('Berechnung Streckenabschnitt'!C35,Fahrzeugart!$B$2:$B$5,0)),Energieverbrauch!$D$2:$E$25,2,FALSE)) ->  | J35: =IF(G35 = "", "", IF(E35="Innerorts",VLOOKUP(INDEX(FahrzeugartID,MATCH('Berechnung Streckenabschnitt'!C35,Fahrzeugart!$B$2:$B$5,0)),Korrekturfaktoren!$A$2:$B$5,2,FALSE),1)) ->  | L35: =IF(G35 = "", "", VLOOKUP(INDEX(Kraftstoffart!$A$2:$A$7, MATCH('Berechnung Streckenabschnitt'!F35,Kraftstoffart!$B$2:$B$7,0)),Energieverbrauch_Kennzahlen!$B$2:$C$7,2,FALSE)) ->  | M35: =IF(G35 = "", "", VLOOKUP(INDEX(Kraftstoffart!$A$2:$A$7, MATCH('Berechnung Streckenabschnitt'!F35,Kraftstoffart!$B$2:$B$7,0)),Energieverbrauch_Kennzahlen!$B$8:$C$13,2,FALSE)) ->  | N35: =IF(G35 = "", "", VLOOKUP(INDEX(Kraftstoffart!$A$2:$A$7, MATCH('Berechnung Streckenabschnitt'!F35,Kraftstoffart!$B$2:$B$7,0)),Kohlendioxid_Kennzahlen!$B$2:$C$7,2,FALSE)) ->  | O35: =IF(G35 = "", "", VLOOKUP(INDEX(Kraftstoffart!$A$2:$A$7, MATCH('Berechnung Streckenabschnitt'!F35,Kraftstoffart!$B$2:$B$7,0)),Kohlendioxid_Kennzahlen!$B$8:$C$13,2,FALSE)) ->  | P35: =IF(G35 = "", "", VLOOKUP(INDEX(Kraftstoffart!$A$2:$A$7, MATCH('Berechnung Streckenabschnitt'!F35,Kraftstoffart!$B$2:$B$7,0)),Treibhausgas_Kennzahlen!$B$2:$C$7,2,FALSE)) ->  | Q35: =IF(G35 = "", "", VLOOKUP(INDEX(Kraftstoffart!$A$2:$A$7, MATCH('Berechnung Streckenabschnitt'!F35,Kraftstoffart!$B$2:$B$7,0)),Treibhausgas_Kennzahlen!$B$8:$C$13,2,FALSE)) -> 
H36: =IF(G36 = "", "", VLOOKUP(INDEX(FahrzeugartID,MATCH('Berechnung Streckenabschnitt'!C36,Fahrzeugart!$B$2:$B$5,0))&"_"&INDEX(GutartID,MATCH('Berechnung Streckenabschnitt'!B36,Gutart!$B$2:$B$4,0)),Frachtgewichte!$C$2:$D$13,2,FALSE)) ->  | I36: =IF(G36 = "", "", VLOOKUP(INDEX(LängsneigungsartID,MATCH('Berechnung Streckenabschnitt'!D36,Längsneigungsart!$B$2:$B$3,0))&"_"&INDEX(GutartID,MATCH('Berechnung Streckenabschnitt'!B36,Gutart!$B$2:$B$4,0))&"_"&INDEX(FahrzeugartID,MATCH('Berechnung Streckenabschnitt'!C36,Fahrzeugart!$B$2:$B$5,0)),Energieverbrauch!$D$2:$E$25,2,FALSE)) ->  | J36: =IF(G36 = "", "", IF(E36="Innerorts",VLOOKUP(INDEX(FahrzeugartID,MATCH('Berechnung Streckenabschnitt'!C36,Fahrzeugart!$B$2:$B$5,0)),Korrekturfaktoren!$A$2:$B$5,2,FALSE),1)) ->  | L36: =IF(G36 = "", "", VLOOKUP(INDEX(Kraftstoffart!$A$2:$A$7, MATCH('Berechnung Streckenabschnitt'!F36,Kraftstoffart!$B$2:$B$7,0)),Energieverbrauch_Kennzahlen!$B$2:$C$7,2,FALSE)) ->  | M36: =IF(G36 = "", "", VLOOKUP(INDEX(Kraftstoffart!$A$2:$A$7, MATCH('Berechnung Streckenabschnitt'!F36,Kraftstoffart!$B$2:$B$7,0)),Energieverbrauch_Kennzahlen!$B$8:$C$13,2,FALSE)) ->  | N36: =IF(G36 = "", "", VLOOKUP(INDEX(Kraftstoffart!$A$2:$A$7, MATCH('Berechnung Streckenabschnitt'!F36,Kraftstoffart!$B$2:$B$7,0)),Kohlendioxid_Kennzahlen!$B$2:$C$7,2,FALSE)) ->  | O36: =IF(G36 = "", "", VLOOKUP(INDEX(Kraftstoffart!$A$2:$A$7, MATCH('Berechnung Streckenabschnitt'!F36,Kraftstoffart!$B$2:$B$7,0)),Kohlendioxid_Kennzahlen!$B$8:$C$13,2,FALSE)) ->  | P36: =IF(G36 = "", "", VLOOKUP(INDEX(Kraftstoffart!$A$2:$A$7, MATCH('Berechnung Streckenabschnitt'!F36,Kraftstoffart!$B$2:$B$7,0)),Treibhausgas_Kennzahlen!$B$2:$C$7,2,FALSE)) ->  | Q36: =IF(G36 = "", "", VLOOKUP(INDEX(Kraftstoffart!$A$2:$A$7, MATCH('Berechnung Streckenabschnitt'!F36,Kraftstoffart!$B$2:$B$7,0)),Treibhausgas_Kennzahlen!$B$8:$C$13,2,FALSE)) -> 
H37: =IF(G37 = "", "", VLOOKUP(INDEX(FahrzeugartID,MATCH('Berechnung Streckenabschnitt'!C37,Fahrzeugart!$B$2:$B$5,0))&"_"&INDEX(GutartID,MATCH('Berechnung Streckenabschnitt'!B37,Gutart!$B$2:$B$4,0)),Frachtgewichte!$C$2:$D$13,2,FALSE)) ->  | I37: =IF(G37 = "", "", VLOOKUP(INDEX(LängsneigungsartID,MATCH('Berechnung Streckenabschnitt'!D37,Längsneigungsart!$B$2:$B$3,0))&"_"&INDEX(GutartID,MATCH('Berechnung Streckenabschnitt'!B37,Gutart!$B$2:$B$4,0))&"_"&INDEX(FahrzeugartID,MATCH('Berechnung Streckenabschnitt'!C37,Fahrzeugart!$B$2:$B$5,0)),Energieverbrauch!$D$2:$E$25,2,FALSE)) ->  | J37: =IF(G37 = "", "", IF(E37="Innerorts",VLOOKUP(INDEX(FahrzeugartID,MATCH('Berechnung Streckenabschnitt'!C37,Fahrzeugart!$B$2:$B$5,0)),Korrekturfaktoren!$A$2:$B$5,2,FALSE),1)) ->  | L37: =IF(G37 = "", "", VLOOKUP(INDEX(Kraftstoffart!$A$2:$A$7, MATCH('Berechnung Streckenabschnitt'!F37,Kraftstoffart!$B$2:$B$7,0)),Energieverbrauch_Kennzahlen!$B$2:$C$7,2,FALSE)) ->  | M37: =IF(G37 = "", "", VLOOKUP(INDEX(Kraftstoffart!$A$2:$A$7, MATCH('Berechnung Streckenabschnitt'!F37,Kraftstoffart!$B$2:$B$7,0)),Energieverbrauch_Kennzahlen!$B$8:$C$13,2,FALSE)) ->  | N37: =IF(G37 = "", "", VLOOKUP(INDEX(Kraftstoffart!$A$2:$A$7, MATCH('Berechnung Streckenabschnitt'!F37,Kraftstoffart!$B$2:$B$7,0)),Kohlendioxid_Kennzahlen!$B$2:$C$7,2,FALSE)) ->  | O37: =IF(G37 = "", "", VLOOKUP(INDEX(Kraftstoffart!$A$2:$A$7, MATCH('Berechnung Streckenabschnitt'!F37,Kraftstoffart!$B$2:$B$7,0)),Kohlendioxid_Kennzahlen!$B$8:$C$13,2,FALSE)) ->  | P37: =IF(G37 = "", "", VLOOKUP(INDEX(Kraftstoffart!$A$2:$A$7, MATCH('Berechnung Streckenabschnitt'!F37,Kraftstoffart!$B$2:$B$7,0)),Treibhausgas_Kennzahlen!$B$2:$C$7,2,FALSE)) ->  | Q37: =IF(G37 = "", "", VLOOKUP(INDEX(Kraftstoffart!$A$2:$A$7, MATCH('Berechnung Streckenabschnitt'!F37,Kraftstoffart!$B$2:$B$7,0)),Treibhausgas_Kennzahlen!$B$8:$C$13,2,FALSE)) -> 
H38: =IF(G38 = "", "", VLOOKUP(INDEX(FahrzeugartID,MATCH('Berechnung Streckenabschnitt'!C38,Fahrzeugart!$B$2:$B$5,0))&"_"&INDEX(GutartID,MATCH('Berechnung Streckenabschnitt'!B38,Gutart!$B$2:$B$4,0)),Frachtgewichte!$C$2:$D$13,2,FALSE)) ->  | I38: =IF(G38 = "", "", VLOOKUP(INDEX(LängsneigungsartID,MATCH('Berechnung Streckenabschnitt'!D38,Längsneigungsart!$B$2:$B$3,0))&"_"&INDEX(GutartID,MATCH('Berechnung Streckenabschnitt'!B38,Gutart!$B$2:$B$4,0))&"_"&INDEX(FahrzeugartID,MATCH('Berechnung Streckenabschnitt'!C38,Fahrzeugart!$B$2:$B$5,0)),Energieverbrauch!$D$2:$E$25,2,FALSE)) ->  | J38: =IF(G38 = "", "", IF(E38="Innerorts",VLOOKUP(INDEX(FahrzeugartID,MATCH('Berechnung Streckenabschnitt'!C38,Fahrzeugart!$B$2:$B$5,0)),Korrekturfaktoren!$A$2:$B$5,2,FALSE),1)) ->  | L38: =IF(G38 = "", "", VLOOKUP(INDEX(Kraftstoffart!$A$2:$A$7, MATCH('Berechnung Streckenabschnitt'!F38,Kraftstoffart!$B$2:$B$7,0)),Energieverbrauch_Kennzahlen!$B$2:$C$7,2,FALSE)) ->  | M38: =IF(G38 = "", "", VLOOKUP(INDEX(Kraftstoffart!$A$2:$A$7, MATCH('Berechnung Streckenabschnitt'!F38,Kraftstoffart!$B$2:$B$7,0)),Energieverbrauch_Kennzahlen!$B$8:$C$13,2,FALSE)) ->  | N38: =IF(G38 = "", "", VLOOKUP(INDEX(Kraftstoffart!$A$2:$A$7, MATCH('Berechnung Streckenabschnitt'!F38,Kraftstoffart!$B$2:$B$7,0)),Kohlendioxid_Kennzahlen!$B$2:$C$7,2,FALSE)) ->  | O38: =IF(G38 = "", "", VLOOKUP(INDEX(Kraftstoffart!$A$2:$A$7, MATCH('Berechnung Streckenabschnitt'!F38,Kraftstoffart!$B$2:$B$7,0)),Kohlendioxid_Kennzahlen!$B$8:$C$13,2,FALSE)) ->  | P38: =IF(G38 = "", "", VLOOKUP(INDEX(Kraftstoffart!$A$2:$A$7, MATCH('Berechnung Streckenabschnitt'!F38,Kraftstoffart!$B$2:$B$7,0)),Treibhausgas_Kennzahlen!$B$2:$C$7,2,FALSE)) ->  | Q38: =IF(G38 = "", "", VLOOKUP(INDEX(Kraftstoffart!$A$2:$A$7, MATCH('Berechnung Streckenabschnitt'!F38,Kraftstoffart!$B$2:$B$7,0)),Treibhausgas_Kennzahlen!$B$8:$C$13,2,FALSE)) -> 
H39: =IF(G39 = "", "", VLOOKUP(INDEX(FahrzeugartID,MATCH('Berechnung Streckenabschnitt'!C39,Fahrzeugart!$B$2:$B$5,0))&"_"&INDEX(GutartID,MATCH('Berechnung Streckenabschnitt'!B39,Gutart!$B$2:$B$4,0)),Frachtgewichte!$C$2:$D$13,2,FALSE)) ->  | I39: =IF(G39 = "", "", VLOOKUP(INDEX(LängsneigungsartID,MATCH('Berechnung Streckenabschnitt'!D39,Längsneigungsart!$B$2:$B$3,0))&"_"&INDEX(GutartID,MATCH('Berechnung Streckenabschnitt'!B39,Gutart!$B$2:$B$4,0))&"_"&INDEX(FahrzeugartID,MATCH('Berechnung Streckenabschnitt'!C39,Fahrzeugart!$B$2:$B$5,0)),Energieverbrauch!$D$2:$E$25,2,FALSE)) ->  | J39: =IF(G39 = "", "", IF(E39="Innerorts",VLOOKUP(INDEX(FahrzeugartID,MATCH('Berechnung Streckenabschnitt'!C39,Fahrzeugart!$B$2:$B$5,0)),Korrekturfaktoren!$A$2:$B$5,2,FALSE),1)) ->  | L39: =IF(G39 = "", "", VLOOKUP(INDEX(Kraftstoffart!$A$2:$A$7, MATCH('Berechnung Streckenabschnitt'!F39,Kraftstoffart!$B$2:$B$7,0)),Energieverbrauch_Kennzahlen!$B$2:$C$7,2,FALSE)) ->  | M39: =IF(G39 = "", "", VLOOKUP(INDEX(Kraftstoffart!$A$2:$A$7, MATCH('Berechnung Streckenabschnitt'!F39,Kraftstoffart!$B$2:$B$7,0)),Energieverbrauch_Kennzahlen!$B$8:$C$13,2,FALSE)) ->  | N39: =IF(G39 = "", "", VLOOKUP(INDEX(Kraftstoffart!$A$2:$A$7, MATCH('Berechnung Streckenabschnitt'!F39,Kraftstoffart!$B$2:$B$7,0)),Kohlendioxid_Kennzahlen!$B$2:$C$7,2,FALSE)) ->  | O39: =IF(G39 = "", "", VLOOKUP(INDEX(Kraftstoffart!$A$2:$A$7, MATCH('Berechnung Streckenabschnitt'!F39,Kraftstoffart!$B$2:$B$7,0)),Kohlendioxid_Kennzahlen!$B$8:$C$13,2,FALSE)) ->  | P39: =IF(G39 = "", "", VLOOKUP(INDEX(Kraftstoffart!$A$2:$A$7, MATCH('Berechnung Streckenabschnitt'!F39,Kraftstoffart!$B$2:$B$7,0)),Treibhausgas_Kennzahlen!$B$2:$C$7,2,FALSE)) ->  | Q39: =IF(G39 = "", "", VLOOKUP(INDEX(Kraftstoffart!$A$2:$A$7, MATCH('Berechnung Streckenabschnitt'!F39,Kraftstoffart!$B$2:$B$7,0)),Treibhausgas_Kennzahlen!$B$8:$C$13,2,FALSE)) -> 
H40: =IF(G40 = "", "", VLOOKUP(INDEX(FahrzeugartID,MATCH('Berechnung Streckenabschnitt'!C40,Fahrzeugart!$B$2:$B$5,0))&"_"&INDEX(GutartID,MATCH('Berechnung Streckenabschnitt'!B40,Gutart!$B$2:$B$4,0)),Frachtgewichte!$C$2:$D$13,2,FALSE)) ->  | I40: =IF(G40 = "", "", VLOOKUP(INDEX(LängsneigungsartID,MATCH('Berechnung Streckenabschnitt'!D40,Längsneigungsart!$B$2:$B$3,0))&"_"&INDEX(GutartID,MATCH('Berechnung Streckenabschnitt'!B40,Gutart!$B$2:$B$4,0))&"_"&INDEX(FahrzeugartID,MATCH('Berechnung Streckenabschnitt'!C40,Fahrzeugart!$B$2:$B$5,0)),Energieverbrauch!$D$2:$E$25,2,FALSE)) ->  | J40: =IF(G40 = "", "", IF(E40="Innerorts",VLOOKUP(INDEX(FahrzeugartID,MATCH('Berechnung Streckenabschnitt'!C40,Fahrzeugart!$B$2:$B$5,0)),Korrekturfaktoren!$A$2:$B$5,2,FALSE),1)) ->  | L40: =IF(G40 = "", "", VLOOKUP(INDEX(Kraftstoffart!$A$2:$A$7, MATCH('Berechnung Streckenabschnitt'!F40,Kraftstoffart!$B$2:$B$7,0)),Energieverbrauch_Kennzahlen!$B$2:$C$7,2,FALSE)) ->  | M40: =IF(G40 = "", "", VLOOKUP(INDEX(Kraftstoffart!$A$2:$A$7, MATCH('Berechnung Streckenabschnitt'!F40,Kraftstoffart!$B$2:$B$7,0)),Energieverbrauch_Kennzahlen!$B$8:$C$13,2,FALSE)) ->  | N40: =IF(G40 = "", "", VLOOKUP(INDEX(Kraftstoffart!$A$2:$A$7, MATCH('Berechnung Streckenabschnitt'!F40,Kraftstoffart!$B$2:$B$7,0)),Kohlendioxid_Kennzahlen!$B$2:$C$7,2,FALSE)) ->  | O40: =IF(G40 = "", "", VLOOKUP(INDEX(Kraftstoffart!$A$2:$A$7, MATCH('Berechnung Streckenabschnitt'!F40,Kraftstoffart!$B$2:$B$7,0)),Kohlendioxid_Kennzahlen!$B$8:$C$13,2,FALSE)) ->  | P40: =IF(G40 = "", "", VLOOKUP(INDEX(Kraftstoffart!$A$2:$A$7, MATCH('Berechnung Streckenabschnitt'!F40,Kraftstoffart!$B$2:$B$7,0)),Treibhausgas_Kennzahlen!$B$2:$C$7,2,FALSE)) ->  | Q40: =IF(G40 = "", "", VLOOKUP(INDEX(Kraftstoffart!$A$2:$A$7, MATCH('Berechnung Streckenabschnitt'!F40,Kraftstoffart!$B$2:$B$7,0)),Treibhausgas_Kennzahlen!$B$8:$C$13,2,FALSE)) -> 
H41: =IF(G41 = "", "", VLOOKUP(INDEX(FahrzeugartID,MATCH('Berechnung Streckenabschnitt'!C41,Fahrzeugart!$B$2:$B$5,0))&"_"&INDEX(GutartID,MATCH('Berechnung Streckenabschnitt'!B41,Gutart!$B$2:$B$4,0)),Frachtgewichte!$C$2:$D$13,2,FALSE)) ->  | I41: =IF(G41 = "", "", VLOOKUP(INDEX(LängsneigungsartID,MATCH('Berechnung Streckenabschnitt'!D41,Längsneigungsart!$B$2:$B$3,0))&"_"&INDEX(GutartID,MATCH('Berechnung Streckenabschnitt'!B41,Gutart!$B$2:$B$4,0))&"_"&INDEX(FahrzeugartID,MATCH('Berechnung Streckenabschnitt'!C41,Fahrzeugart!$B$2:$B$5,0)),Energieverbrauch!$D$2:$E$25,2,FALSE)) ->  | J41: =IF(G41 = "", "", IF(E41="Innerorts",VLOOKUP(INDEX(FahrzeugartID,MATCH('Berechnung Streckenabschnitt'!C41,Fahrzeugart!$B$2:$B$5,0)),Korrekturfaktoren!$A$2:$B$5,2,FALSE),1)) ->  | L41: =IF(G41 = "", "", VLOOKUP(INDEX(Kraftstoffart!$A$2:$A$7, MATCH('Berechnung Streckenabschnitt'!F41,Kraftstoffart!$B$2:$B$7,0)),Energieverbrauch_Kennzahlen!$B$2:$C$7,2,FALSE)) ->  | M41: =IF(G41 = "", "", VLOOKUP(INDEX(Kraftstoffart!$A$2:$A$7, MATCH('Berechnung Streckenabschnitt'!F41,Kraftstoffart!$B$2:$B$7,0)),Energieverbrauch_Kennzahlen!$B$8:$C$13,2,FALSE)) ->  | N41: =IF(G41 = "", "", VLOOKUP(INDEX(Kraftstoffart!$A$2:$A$7, MATCH('Berechnung Streckenabschnitt'!F41,Kraftstoffart!$B$2:$B$7,0)),Kohlendioxid_Kennzahlen!$B$2:$C$7,2,FALSE)) ->  | O41: =IF(G41 = "", "", VLOOKUP(INDEX(Kraftstoffart!$A$2:$A$7, MATCH('Berechnung Streckenabschnitt'!F41,Kraftstoffart!$B$2:$B$7,0)),Kohlendioxid_Kennzahlen!$B$8:$C$13,2,FALSE)) ->  | P41: =IF(G41 = "", "", VLOOKUP(INDEX(Kraftstoffart!$A$2:$A$7, MATCH('Berechnung Streckenabschnitt'!F41,Kraftstoffart!$B$2:$B$7,0)),Treibhausgas_Kennzahlen!$B$2:$C$7,2,FALSE)) ->  | Q41: =IF(G41 = "", "", VLOOKUP(INDEX(Kraftstoffart!$A$2:$A$7, MATCH('Berechnung Streckenabschnitt'!F41,Kraftstoffart!$B$2:$B$7,0)),Treibhausgas_Kennzahlen!$B$8:$C$13,2,FALSE)) -> 
H42: =IF(G42 = "", "", VLOOKUP(INDEX(FahrzeugartID,MATCH('Berechnung Streckenabschnitt'!C42,Fahrzeugart!$B$2:$B$5,0))&"_"&INDEX(GutartID,MATCH('Berechnung Streckenabschnitt'!B42,Gutart!$B$2:$B$4,0)),Frachtgewichte!$C$2:$D$13,2,FALSE)) ->  | I42: =IF(G42 = "", "", VLOOKUP(INDEX(LängsneigungsartID,MATCH('Berechnung Streckenabschnitt'!D42,Längsneigungsart!$B$2:$B$3,0))&"_"&INDEX(GutartID,MATCH('Berechnung Streckenabschnitt'!B42,Gutart!$B$2:$B$4,0))&"_"&INDEX(FahrzeugartID,MATCH('Berechnung Streckenabschnitt'!C42,Fahrzeugart!$B$2:$B$5,0)),Energieverbrauch!$D$2:$E$25,2,FALSE)) ->  | J42: =IF(G42 = "", "", IF(E42="Innerorts",VLOOKUP(INDEX(FahrzeugartID,MATCH('Berechnung Streckenabschnitt'!C42,Fahrzeugart!$B$2:$B$5,0)),Korrekturfaktoren!$A$2:$B$5,2,FALSE),1)) ->  | L42: =IF(G42 = "", "", VLOOKUP(INDEX(Kraftstoffart!$A$2:$A$7, MATCH('Berechnung Streckenabschnitt'!F42,Kraftstoffart!$B$2:$B$7,0)),Energieverbrauch_Kennzahlen!$B$2:$C$7,2,FALSE)) ->  | M42: =IF(G42 = "", "", VLOOKUP(INDEX(Kraftstoffart!$A$2:$A$7, MATCH('Berechnung Streckenabschnitt'!F42,Kraftstoffart!$B$2:$B$7,0)),Energieverbrauch_Kennzahlen!$B$8:$C$13,2,FALSE)) ->  | N42: =IF(G42 = "", "", VLOOKUP(INDEX(Kraftstoffart!$A$2:$A$7, MATCH('Berechnung Streckenabschnitt'!F42,Kraftstoffart!$B$2:$B$7,0)),Kohlendioxid_Kennzahlen!$B$2:$C$7,2,FALSE)) ->  | O42: =IF(G42 = "", "", VLOOKUP(INDEX(Kraftstoffart!$A$2:$A$7, MATCH('Berechnung Streckenabschnitt'!F42,Kraftstoffart!$B$2:$B$7,0)),Kohlendioxid_Kennzahlen!$B$8:$C$13,2,FALSE)) ->  | P42: =IF(G42 = "", "", VLOOKUP(INDEX(Kraftstoffart!$A$2:$A$7, MATCH('Berechnung Streckenabschnitt'!F42,Kraftstoffart!$B$2:$B$7,0)),Treibhausgas_Kennzahlen!$B$2:$C$7,2,FALSE)) ->  | Q42: =IF(G42 = "", "", VLOOKUP(INDEX(Kraftstoffart!$A$2:$A$7, MATCH('Berechnung Streckenabschnitt'!F42,Kraftstoffart!$B$2:$B$7,0)),Treibhausgas_Kennzahlen!$B$8:$C$13,2,FALSE)) -> 
H43: =IF(G43 = "", "", VLOOKUP(INDEX(FahrzeugartID,MATCH('Berechnung Streckenabschnitt'!C43,Fahrzeugart!$B$2:$B$5,0))&"_"&INDEX(GutartID,MATCH('Berechnung Streckenabschnitt'!B43,Gutart!$B$2:$B$4,0)),Frachtgewichte!$C$2:$D$13,2,FALSE)) ->  | I43: =IF(G43 = "", "", VLOOKUP(INDEX(LängsneigungsartID,MATCH('Berechnung Streckenabschnitt'!D43,Längsneigungsart!$B$2:$B$3,0))&"_"&INDEX(GutartID,MATCH('Berechnung Streckenabschnitt'!B43,Gutart!$B$2:$B$4,0))&"_"&INDEX(FahrzeugartID,MATCH('Berechnung Streckenabschnitt'!C43,Fahrzeugart!$B$2:$B$5,0)),Energieverbrauch!$D$2:$E$25,2,FALSE)) ->  | J43: =IF(G43 = "", "", IF(E43="Innerorts",VLOOKUP(INDEX(FahrzeugartID,MATCH('Berechnung Streckenabschnitt'!C43,Fahrzeugart!$B$2:$B$5,0)),Korrekturfaktoren!$A$2:$B$5,2,FALSE),1)) ->  | L43: =IF(G43 = "", "", VLOOKUP(INDEX(Kraftstoffart!$A$2:$A$7, MATCH('Berechnung Streckenabschnitt'!F43,Kraftstoffart!$B$2:$B$7,0)),Energieverbrauch_Kennzahlen!$B$2:$C$7,2,FALSE)) ->  | M43: =IF(G43 = "", "", VLOOKUP(INDEX(Kraftstoffart!$A$2:$A$7, MATCH('Berechnung Streckenabschnitt'!F43,Kraftstoffart!$B$2:$B$7,0)),Energieverbrauch_Kennzahlen!$B$8:$C$13,2,FALSE)) ->  | N43: =IF(G43 = "", "", VLOOKUP(INDEX(Kraftstoffart!$A$2:$A$7, MATCH('Berechnung Streckenabschnitt'!F43,Kraftstoffart!$B$2:$B$7,0)),Kohlendioxid_Kennzahlen!$B$2:$C$7,2,FALSE)) ->  | O43: =IF(G43 = "", "", VLOOKUP(INDEX(Kraftstoffart!$A$2:$A$7, MATCH('Berechnung Streckenabschnitt'!F43,Kraftstoffart!$B$2:$B$7,0)),Kohlendioxid_Kennzahlen!$B$8:$C$13,2,FALSE)) ->  | P43: =IF(G43 = "", "", VLOOKUP(INDEX(Kraftstoffart!$A$2:$A$7, MATCH('Berechnung Streckenabschnitt'!F43,Kraftstoffart!$B$2:$B$7,0)),Treibhausgas_Kennzahlen!$B$2:$C$7,2,FALSE)) ->  | Q43: =IF(G43 = "", "", VLOOKUP(INDEX(Kraftstoffart!$A$2:$A$7, MATCH('Berechnung Streckenabschnitt'!F43,Kraftstoffart!$B$2:$B$7,0)),Treibhausgas_Kennzahlen!$B$8:$C$13,2,FALSE)) -> 
H44: =IF(G44 = "", "", VLOOKUP(INDEX(FahrzeugartID,MATCH('Berechnung Streckenabschnitt'!C44,Fahrzeugart!$B$2:$B$5,0))&"_"&INDEX(GutartID,MATCH('Berechnung Streckenabschnitt'!B44,Gutart!$B$2:$B$4,0)),Frachtgewichte!$C$2:$D$13,2,FALSE)) ->  | I44: =IF(G44 = "", "", VLOOKUP(INDEX(LängsneigungsartID,MATCH('Berechnung Streckenabschnitt'!D44,Längsneigungsart!$B$2:$B$3,0))&"_"&INDEX(GutartID,MATCH('Berechnung Streckenabschnitt'!B44,Gutart!$B$2:$B$4,0))&"_"&INDEX(FahrzeugartID,MATCH('Berechnung Streckenabschnitt'!C44,Fahrzeugart!$B$2:$B$5,0)),Energieverbrauch!$D$2:$E$25,2,FALSE)) ->  | J44: =IF(G44 = "", "", IF(E44="Innerorts",VLOOKUP(INDEX(FahrzeugartID,MATCH('Berechnung Streckenabschnitt'!C44,Fahrzeugart!$B$2:$B$5,0)),Korrekturfaktoren!$A$2:$B$5,2,FALSE),1)) ->  | L44: =IF(G44 = "", "", VLOOKUP(INDEX(Kraftstoffart!$A$2:$A$7, MATCH('Berechnung Streckenabschnitt'!F44,Kraftstoffart!$B$2:$B$7,0)),Energieverbrauch_Kennzahlen!$B$2:$C$7,2,FALSE)) ->  | M44: =IF(G44 = "", "", VLOOKUP(INDEX(Kraftstoffart!$A$2:$A$7, MATCH('Berechnung Streckenabschnitt'!F44,Kraftstoffart!$B$2:$B$7,0)),Energieverbrauch_Kennzahlen!$B$8:$C$13,2,FALSE)) ->  | N44: =IF(G44 = "", "", VLOOKUP(INDEX(Kraftstoffart!$A$2:$A$7, MATCH('Berechnung Streckenabschnitt'!F44,Kraftstoffart!$B$2:$B$7,0)),Kohlendioxid_Kennzahlen!$B$2:$C$7,2,FALSE)) ->  | O44: =IF(G44 = "", "", VLOOKUP(INDEX(Kraftstoffart!$A$2:$A$7, MATCH('Berechnung Streckenabschnitt'!F44,Kraftstoffart!$B$2:$B$7,0)),Kohlendioxid_Kennzahlen!$B$8:$C$13,2,FALSE)) ->  | P44: =IF(G44 = "", "", VLOOKUP(INDEX(Kraftstoffart!$A$2:$A$7, MATCH('Berechnung Streckenabschnitt'!F44,Kraftstoffart!$B$2:$B$7,0)),Treibhausgas_Kennzahlen!$B$2:$C$7,2,FALSE)) ->  | Q44: =IF(G44 = "", "", VLOOKUP(INDEX(Kraftstoffart!$A$2:$A$7, MATCH('Berechnung Streckenabschnitt'!F44,Kraftstoffart!$B$2:$B$7,0)),Treibhausgas_Kennzahlen!$B$8:$C$13,2,FALSE)) -> 
H45: =IF(G45 = "", "", VLOOKUP(INDEX(FahrzeugartID,MATCH('Berechnung Streckenabschnitt'!C45,Fahrzeugart!$B$2:$B$5,0))&"_"&INDEX(GutartID,MATCH('Berechnung Streckenabschnitt'!B45,Gutart!$B$2:$B$4,0)),Frachtgewichte!$C$2:$D$13,2,FALSE)) ->  | I45: =IF(G45 = "", "", VLOOKUP(INDEX(LängsneigungsartID,MATCH('Berechnung Streckenabschnitt'!D45,Längsneigungsart!$B$2:$B$3,0))&"_"&INDEX(GutartID,MATCH('Berechnung Streckenabschnitt'!B45,Gutart!$B$2:$B$4,0))&"_"&INDEX(FahrzeugartID,MATCH('Berechnung Streckenabschnitt'!C45,Fahrzeugart!$B$2:$B$5,0)),Energieverbrauch!$D$2:$E$25,2,FALSE)) ->  | J45: =IF(G45 = "", "", IF(E45="Innerorts",VLOOKUP(INDEX(FahrzeugartID,MATCH('Berechnung Streckenabschnitt'!C45,Fahrzeugart!$B$2:$B$5,0)),Korrekturfaktoren!$A$2:$B$5,2,FALSE),1)) ->  | L45: =IF(G45 = "", "", VLOOKUP(INDEX(Kraftstoffart!$A$2:$A$7, MATCH('Berechnung Streckenabschnitt'!F45,Kraftstoffart!$B$2:$B$7,0)),Energieverbrauch_Kennzahlen!$B$2:$C$7,2,FALSE)) ->  | M45: =IF(G45 = "", "", VLOOKUP(INDEX(Kraftstoffart!$A$2:$A$7, MATCH('Berechnung Streckenabschnitt'!F45,Kraftstoffart!$B$2:$B$7,0)),Energieverbrauch_Kennzahlen!$B$8:$C$13,2,FALSE)) ->  | N45: =IF(G45 = "", "", VLOOKUP(INDEX(Kraftstoffart!$A$2:$A$7, MATCH('Berechnung Streckenabschnitt'!F45,Kraftstoffart!$B$2:$B$7,0)),Kohlendioxid_Kennzahlen!$B$2:$C$7,2,FALSE)) ->  | O45: =IF(G45 = "", "", VLOOKUP(INDEX(Kraftstoffart!$A$2:$A$7, MATCH('Berechnung Streckenabschnitt'!F45,Kraftstoffart!$B$2:$B$7,0)),Kohlendioxid_Kennzahlen!$B$8:$C$13,2,FALSE)) ->  | P45: =IF(G45 = "", "", VLOOKUP(INDEX(Kraftstoffart!$A$2:$A$7, MATCH('Berechnung Streckenabschnitt'!F45,Kraftstoffart!$B$2:$B$7,0)),Treibhausgas_Kennzahlen!$B$2:$C$7,2,FALSE)) ->  | Q45: =IF(G45 = "", "", VLOOKUP(INDEX(Kraftstoffart!$A$2:$A$7, MATCH('Berechnung Streckenabschnitt'!F45,Kraftstoffart!$B$2:$B$7,0)),Treibhausgas_Kennzahlen!$B$8:$C$13,2,FALSE)) -> 
H46: =IF(G46 = "", "", VLOOKUP(INDEX(FahrzeugartID,MATCH('Berechnung Streckenabschnitt'!C46,Fahrzeugart!$B$2:$B$5,0))&"_"&INDEX(GutartID,MATCH('Berechnung Streckenabschnitt'!B46,Gutart!$B$2:$B$4,0)),Frachtgewichte!$C$2:$D$13,2,FALSE)) ->  | I46: =IF(G46 = "", "", VLOOKUP(INDEX(LängsneigungsartID,MATCH('Berechnung Streckenabschnitt'!D46,Längsneigungsart!$B$2:$B$3,0))&"_"&INDEX(GutartID,MATCH('Berechnung Streckenabschnitt'!B46,Gutart!$B$2:$B$4,0))&"_"&INDEX(FahrzeugartID,MATCH('Berechnung Streckenabschnitt'!C46,Fahrzeugart!$B$2:$B$5,0)),Energieverbrauch!$D$2:$E$25,2,FALSE)) ->  | J46: =IF(G46 = "", "", IF(E46="Innerorts",VLOOKUP(INDEX(FahrzeugartID,MATCH('Berechnung Streckenabschnitt'!C46,Fahrzeugart!$B$2:$B$5,0)),Korrekturfaktoren!$A$2:$B$5,2,FALSE),1)) ->  | L46: =IF(G46 = "", "", VLOOKUP(INDEX(Kraftstoffart!$A$2:$A$7, MATCH('Berechnung Streckenabschnitt'!F46,Kraftstoffart!$B$2:$B$7,0)),Energieverbrauch_Kennzahlen!$B$2:$C$7,2,FALSE)) ->  | M46: =IF(G46 = "", "", VLOOKUP(INDEX(Kraftstoffart!$A$2:$A$7, MATCH('Berechnung Streckenabschnitt'!F46,Kraftstoffart!$B$2:$B$7,0)),Energieverbrauch_Kennzahlen!$B$8:$C$13,2,FALSE)) ->  | N46: =IF(G46 = "", "", VLOOKUP(INDEX(Kraftstoffart!$A$2:$A$7, MATCH('Berechnung Streckenabschnitt'!F46,Kraftstoffart!$B$2:$B$7,0)),Kohlendioxid_Kennzahlen!$B$2:$C$7,2,FALSE)) ->  | O46: =IF(G46 = "", "", VLOOKUP(INDEX(Kraftstoffart!$A$2:$A$7, MATCH('Berechnung Streckenabschnitt'!F46,Kraftstoffart!$B$2:$B$7,0)),Kohlendioxid_Kennzahlen!$B$8:$C$13,2,FALSE)) ->  | P46: =IF(G46 = "", "", VLOOKUP(INDEX(Kraftstoffart!$A$2:$A$7, MATCH('Berechnung Streckenabschnitt'!F46,Kraftstoffart!$B$2:$B$7,0)),Treibhausgas_Kennzahlen!$B$2:$C$7,2,FALSE)) ->  | Q46: =IF(G46 = "", "", VLOOKUP(INDEX(Kraftstoffart!$A$2:$A$7, MATCH('Berechnung Streckenabschnitt'!F46,Kraftstoffart!$B$2:$B$7,0)),Treibhausgas_Kennzahlen!$B$8:$C$13,2,FALSE)) -> 
H47: =IF(G47 = "", "", VLOOKUP(INDEX(FahrzeugartID,MATCH('Berechnung Streckenabschnitt'!C47,Fahrzeugart!$B$2:$B$5,0))&"_"&INDEX(GutartID,MATCH('Berechnung Streckenabschnitt'!B47,Gutart!$B$2:$B$4,0)),Frachtgewichte!$C$2:$D$13,2,FALSE)) ->  | I47: =IF(G47 = "", "", VLOOKUP(INDEX(LängsneigungsartID,MATCH('Berechnung Streckenabschnitt'!D47,Längsneigungsart!$B$2:$B$3,0))&"_"&INDEX(GutartID,MATCH('Berechnung Streckenabschnitt'!B47,Gutart!$B$2:$B$4,0))&"_"&INDEX(FahrzeugartID,MATCH('Berechnung Streckenabschnitt'!C47,Fahrzeugart!$B$2:$B$5,0)),Energieverbrauch!$D$2:$E$25,2,FALSE)) ->  | J47: =IF(G47 = "", "", IF(E47="Innerorts",VLOOKUP(INDEX(FahrzeugartID,MATCH('Berechnung Streckenabschnitt'!C47,Fahrzeugart!$B$2:$B$5,0)),Korrekturfaktoren!$A$2:$B$5,2,FALSE),1)) ->  | L47: =IF(G47 = "", "", VLOOKUP(INDEX(Kraftstoffart!$A$2:$A$7, MATCH('Berechnung Streckenabschnitt'!F47,Kraftstoffart!$B$2:$B$7,0)),Energieverbrauch_Kennzahlen!$B$2:$C$7,2,FALSE)) ->  | M47: =IF(G47 = "", "", VLOOKUP(INDEX(Kraftstoffart!$A$2:$A$7, MATCH('Berechnung Streckenabschnitt'!F47,Kraftstoffart!$B$2:$B$7,0)),Energieverbrauch_Kennzahlen!$B$8:$C$13,2,FALSE)) ->  | N47: =IF(G47 = "", "", VLOOKUP(INDEX(Kraftstoffart!$A$2:$A$7, MATCH('Berechnung Streckenabschnitt'!F47,Kraftstoffart!$B$2:$B$7,0)),Kohlendioxid_Kennzahlen!$B$2:$C$7,2,FALSE)) ->  | O47: =IF(G47 = "", "", VLOOKUP(INDEX(Kraftstoffart!$A$2:$A$7, MATCH('Berechnung Streckenabschnitt'!F47,Kraftstoffart!$B$2:$B$7,0)),Kohlendioxid_Kennzahlen!$B$8:$C$13,2,FALSE)) ->  | P47: =IF(G47 = "", "", VLOOKUP(INDEX(Kraftstoffart!$A$2:$A$7, MATCH('Berechnung Streckenabschnitt'!F47,Kraftstoffart!$B$2:$B$7,0)),Treibhausgas_Kennzahlen!$B$2:$C$7,2,FALSE)) ->  | Q47: =IF(G47 = "", "", VLOOKUP(INDEX(Kraftstoffart!$A$2:$A$7, MATCH('Berechnung Streckenabschnitt'!F47,Kraftstoffart!$B$2:$B$7,0)),Treibhausgas_Kennzahlen!$B$8:$C$13,2,FALSE)) -> 
H48: =IF(G48 = "", "", VLOOKUP(INDEX(FahrzeugartID,MATCH('Berechnung Streckenabschnitt'!C48,Fahrzeugart!$B$2:$B$5,0))&"_"&INDEX(GutartID,MATCH('Berechnung Streckenabschnitt'!B48,Gutart!$B$2:$B$4,0)),Frachtgewichte!$C$2:$D$13,2,FALSE)) ->  | I48: =IF(G48 = "", "", VLOOKUP(INDEX(LängsneigungsartID,MATCH('Berechnung Streckenabschnitt'!D48,Längsneigungsart!$B$2:$B$3,0))&"_"&INDEX(GutartID,MATCH('Berechnung Streckenabschnitt'!B48,Gutart!$B$2:$B$4,0))&"_"&INDEX(FahrzeugartID,MATCH('Berechnung Streckenabschnitt'!C48,Fahrzeugart!$B$2:$B$5,0)),Energieverbrauch!$D$2:$E$25,2,FALSE)) ->  | J48: =IF(G48 = "", "", IF(E48="Innerorts",VLOOKUP(INDEX(FahrzeugartID,MATCH('Berechnung Streckenabschnitt'!C48,Fahrzeugart!$B$2:$B$5,0)),Korrekturfaktoren!$A$2:$B$5,2,FALSE),1)) ->  | L48: =IF(G48 = "", "", VLOOKUP(INDEX(Kraftstoffart!$A$2:$A$7, MATCH('Berechnung Streckenabschnitt'!F48,Kraftstoffart!$B$2:$B$7,0)),Energieverbrauch_Kennzahlen!$B$2:$C$7,2,FALSE)) ->  | M48: =IF(G48 = "", "", VLOOKUP(INDEX(Kraftstoffart!$A$2:$A$7, MATCH('Berechnung Streckenabschnitt'!F48,Kraftstoffart!$B$2:$B$7,0)),Energieverbrauch_Kennzahlen!$B$8:$C$13,2,FALSE)) ->  | N48: =IF(G48 = "", "", VLOOKUP(INDEX(Kraftstoffart!$A$2:$A$7, MATCH('Berechnung Streckenabschnitt'!F48,Kraftstoffart!$B$2:$B$7,0)),Kohlendioxid_Kennzahlen!$B$2:$C$7,2,FALSE)) ->  | O48: =IF(G48 = "", "", VLOOKUP(INDEX(Kraftstoffart!$A$2:$A$7, MATCH('Berechnung Streckenabschnitt'!F48,Kraftstoffart!$B$2:$B$7,0)),Kohlendioxid_Kennzahlen!$B$8:$C$13,2,FALSE)) ->  | P48: =IF(G48 = "", "", VLOOKUP(INDEX(Kraftstoffart!$A$2:$A$7, MATCH('Berechnung Streckenabschnitt'!F48,Kraftstoffart!$B$2:$B$7,0)),Treibhausgas_Kennzahlen!$B$2:$C$7,2,FALSE)) ->  | Q48: =IF(G48 = "", "", VLOOKUP(INDEX(Kraftstoffart!$A$2:$A$7, MATCH('Berechnung Streckenabschnitt'!F48,Kraftstoffart!$B$2:$B$7,0)),Treibhausgas_Kennzahlen!$B$8:$C$13,2,FALSE)) -> 
H49: =IF(G49 = "", "", VLOOKUP(INDEX(FahrzeugartID,MATCH('Berechnung Streckenabschnitt'!C49,Fahrzeugart!$B$2:$B$5,0))&"_"&INDEX(GutartID,MATCH('Berechnung Streckenabschnitt'!B49,Gutart!$B$2:$B$4,0)),Frachtgewichte!$C$2:$D$13,2,FALSE)) ->  | I49: =IF(G49 = "", "", VLOOKUP(INDEX(LängsneigungsartID,MATCH('Berechnung Streckenabschnitt'!D49,Längsneigungsart!$B$2:$B$3,0))&"_"&INDEX(GutartID,MATCH('Berechnung Streckenabschnitt'!B49,Gutart!$B$2:$B$4,0))&"_"&INDEX(FahrzeugartID,MATCH('Berechnung Streckenabschnitt'!C49,Fahrzeugart!$B$2:$B$5,0)),Energieverbrauch!$D$2:$E$25,2,FALSE)) ->  | J49: =IF(G49 = "", "", IF(E49="Innerorts",VLOOKUP(INDEX(FahrzeugartID,MATCH('Berechnung Streckenabschnitt'!C49,Fahrzeugart!$B$2:$B$5,0)),Korrekturfaktoren!$A$2:$B$5,2,FALSE),1)) ->  | L49: =IF(G49 = "", "", VLOOKUP(INDEX(Kraftstoffart!$A$2:$A$7, MATCH('Berechnung Streckenabschnitt'!F49,Kraftstoffart!$B$2:$B$7,0)),Energieverbrauch_Kennzahlen!$B$2:$C$7,2,FALSE)) ->  | M49: =IF(G49 = "", "", VLOOKUP(INDEX(Kraftstoffart!$A$2:$A$7, MATCH('Berechnung Streckenabschnitt'!F49,Kraftstoffart!$B$2:$B$7,0)),Energieverbrauch_Kennzahlen!$B$8:$C$13,2,FALSE)) ->  | N49: =IF(G49 = "", "", VLOOKUP(INDEX(Kraftstoffart!$A$2:$A$7, MATCH('Berechnung Streckenabschnitt'!F49,Kraftstoffart!$B$2:$B$7,0)),Kohlendioxid_Kennzahlen!$B$2:$C$7,2,FALSE)) ->  | O49: =IF(G49 = "", "", VLOOKUP(INDEX(Kraftstoffart!$A$2:$A$7, MATCH('Berechnung Streckenabschnitt'!F49,Kraftstoffart!$B$2:$B$7,0)),Kohlendioxid_Kennzahlen!$B$8:$C$13,2,FALSE)) ->  | P49: =IF(G49 = "", "", VLOOKUP(INDEX(Kraftstoffart!$A$2:$A$7, MATCH('Berechnung Streckenabschnitt'!F49,Kraftstoffart!$B$2:$B$7,0)),Treibhausgas_Kennzahlen!$B$2:$C$7,2,FALSE)) ->  | Q49: =IF(G49 = "", "", VLOOKUP(INDEX(Kraftstoffart!$A$2:$A$7, MATCH('Berechnung Streckenabschnitt'!F49,Kraftstoffart!$B$2:$B$7,0)),Treibhausgas_Kennzahlen!$B$8:$C$13,2,FALSE)) -> 
H50: =IF(G50 = "", "", VLOOKUP(INDEX(FahrzeugartID,MATCH('Berechnung Streckenabschnitt'!C50,Fahrzeugart!$B$2:$B$5,0))&"_"&INDEX(GutartID,MATCH('Berechnung Streckenabschnitt'!B50,Gutart!$B$2:$B$4,0)),Frachtgewichte!$C$2:$D$13,2,FALSE)) ->  | I50: =IF(G50 = "", "", VLOOKUP(INDEX(LängsneigungsartID,MATCH('Berechnung Streckenabschnitt'!D50,Längsneigungsart!$B$2:$B$3,0))&"_"&INDEX(GutartID,MATCH('Berechnung Streckenabschnitt'!B50,Gutart!$B$2:$B$4,0))&"_"&INDEX(FahrzeugartID,MATCH('Berechnung Streckenabschnitt'!C50,Fahrzeugart!$B$2:$B$5,0)),Energieverbrauch!$D$2:$E$25,2,FALSE)) ->  | J50: =IF(G50 = "", "", IF(E50="Innerorts",VLOOKUP(INDEX(FahrzeugartID,MATCH('Berechnung Streckenabschnitt'!C50,Fahrzeugart!$B$2:$B$5,0)),Korrekturfaktoren!$A$2:$B$5,2,FALSE),1)) ->  | L50: =IF(G50 = "", "", VLOOKUP(INDEX(Kraftstoffart!$A$2:$A$7, MATCH('Berechnung Streckenabschnitt'!F50,Kraftstoffart!$B$2:$B$7,0)),Energieverbrauch_Kennzahlen!$B$2:$C$7,2,FALSE)) ->  | M50: =IF(G50 = "", "", VLOOKUP(INDEX(Kraftstoffart!$A$2:$A$7, MATCH('Berechnung Streckenabschnitt'!F50,Kraftstoffart!$B$2:$B$7,0)),Energieverbrauch_Kennzahlen!$B$8:$C$13,2,FALSE)) ->  | N50: =IF(G50 = "", "", VLOOKUP(INDEX(Kraftstoffart!$A$2:$A$7, MATCH('Berechnung Streckenabschnitt'!F50,Kraftstoffart!$B$2:$B$7,0)),Kohlendioxid_Kennzahlen!$B$2:$C$7,2,FALSE)) ->  | O50: =IF(G50 = "", "", VLOOKUP(INDEX(Kraftstoffart!$A$2:$A$7, MATCH('Berechnung Streckenabschnitt'!F50,Kraftstoffart!$B$2:$B$7,0)),Kohlendioxid_Kennzahlen!$B$8:$C$13,2,FALSE)) ->  | P50: =IF(G50 = "", "", VLOOKUP(INDEX(Kraftstoffart!$A$2:$A$7, MATCH('Berechnung Streckenabschnitt'!F50,Kraftstoffart!$B$2:$B$7,0)),Treibhausgas_Kennzahlen!$B$2:$C$7,2,FALSE)) ->  | Q50: =IF(G50 = "", "", VLOOKUP(INDEX(Kraftstoffart!$A$2:$A$7, MATCH('Berechnung Streckenabschnitt'!F50,Kraftstoffart!$B$2:$B$7,0)),Treibhausgas_Kennzahlen!$B$8:$C$13,2,FALSE)) -> 
H51: =IF(G51 = "", "", VLOOKUP(INDEX(FahrzeugartID,MATCH('Berechnung Streckenabschnitt'!C51,Fahrzeugart!$B$2:$B$5,0))&"_"&INDEX(GutartID,MATCH('Berechnung Streckenabschnitt'!B51,Gutart!$B$2:$B$4,0)),Frachtgewichte!$C$2:$D$13,2,FALSE)) ->  | I51: =IF(G51 = "", "", VLOOKUP(INDEX(LängsneigungsartID,MATCH('Berechnung Streckenabschnitt'!D51,Längsneigungsart!$B$2:$B$3,0))&"_"&INDEX(GutartID,MATCH('Berechnung Streckenabschnitt'!B51,Gutart!$B$2:$B$4,0))&"_"&INDEX(FahrzeugartID,MATCH('Berechnung Streckenabschnitt'!C51,Fahrzeugart!$B$2:$B$5,0)),Energieverbrauch!$D$2:$E$25,2,FALSE)) ->  | J51: =IF(G51 = "", "", IF(E51="Innerorts",VLOOKUP(INDEX(FahrzeugartID,MATCH('Berechnung Streckenabschnitt'!C51,Fahrzeugart!$B$2:$B$5,0)),Korrekturfaktoren!$A$2:$B$5,2,FALSE),1)) ->  | L51: =IF(G51 = "", "", VLOOKUP(INDEX(Kraftstoffart!$A$2:$A$7, MATCH('Berechnung Streckenabschnitt'!F51,Kraftstoffart!$B$2:$B$7,0)),Energieverbrauch_Kennzahlen!$B$2:$C$7,2,FALSE)) ->  | M51: =IF(G51 = "", "", VLOOKUP(INDEX(Kraftstoffart!$A$2:$A$7, MATCH('Berechnung Streckenabschnitt'!F51,Kraftstoffart!$B$2:$B$7,0)),Energieverbrauch_Kennzahlen!$B$8:$C$13,2,FALSE)) ->  | N51: =IF(G51 = "", "", VLOOKUP(INDEX(Kraftstoffart!$A$2:$A$7, MATCH('Berechnung Streckenabschnitt'!F51,Kraftstoffart!$B$2:$B$7,0)),Kohlendioxid_Kennzahlen!$B$2:$C$7,2,FALSE)) ->  | O51: =IF(G51 = "", "", VLOOKUP(INDEX(Kraftstoffart!$A$2:$A$7, MATCH('Berechnung Streckenabschnitt'!F51,Kraftstoffart!$B$2:$B$7,0)),Kohlendioxid_Kennzahlen!$B$8:$C$13,2,FALSE)) ->  | P51: =IF(G51 = "", "", VLOOKUP(INDEX(Kraftstoffart!$A$2:$A$7, MATCH('Berechnung Streckenabschnitt'!F51,Kraftstoffart!$B$2:$B$7,0)),Treibhausgas_Kennzahlen!$B$2:$C$7,2,FALSE)) ->  | Q51: =IF(G51 = "", "", VLOOKUP(INDEX(Kraftstoffart!$A$2:$A$7, MATCH('Berechnung Streckenabschnitt'!F51,Kraftstoffart!$B$2:$B$7,0)),Treibhausgas_Kennzahlen!$B$8:$C$13,2,FALSE)) -> 
H52: =IF(G52 = "", "", VLOOKUP(INDEX(FahrzeugartID,MATCH('Berechnung Streckenabschnitt'!C52,Fahrzeugart!$B$2:$B$5,0))&"_"&INDEX(GutartID,MATCH('Berechnung Streckenabschnitt'!B52,Gutart!$B$2:$B$4,0)),Frachtgewichte!$C$2:$D$13,2,FALSE)) ->  | I52: =IF(G52 = "", "", VLOOKUP(INDEX(LängsneigungsartID,MATCH('Berechnung Streckenabschnitt'!D52,Längsneigungsart!$B$2:$B$3,0))&"_"&INDEX(GutartID,MATCH('Berechnung Streckenabschnitt'!B52,Gutart!$B$2:$B$4,0))&"_"&INDEX(FahrzeugartID,MATCH('Berechnung Streckenabschnitt'!C52,Fahrzeugart!$B$2:$B$5,0)),Energieverbrauch!$D$2:$E$25,2,FALSE)) ->  | J52: =IF(G52 = "", "", IF(E52="Innerorts",VLOOKUP(INDEX(FahrzeugartID,MATCH('Berechnung Streckenabschnitt'!C52,Fahrzeugart!$B$2:$B$5,0)),Korrekturfaktoren!$A$2:$B$5,2,FALSE),1)) ->  | L52: =IF(G52 = "", "", VLOOKUP(INDEX(Kraftstoffart!$A$2:$A$7, MATCH('Berechnung Streckenabschnitt'!F52,Kraftstoffart!$B$2:$B$7,0)),Energieverbrauch_Kennzahlen!$B$2:$C$7,2,FALSE)) ->  | M52: =IF(G52 = "", "", VLOOKUP(INDEX(Kraftstoffart!$A$2:$A$7, MATCH('Berechnung Streckenabschnitt'!F52,Kraftstoffart!$B$2:$B$7,0)),Energieverbrauch_Kennzahlen!$B$8:$C$13,2,FALSE)) ->  | N52: =IF(G52 = "", "", VLOOKUP(INDEX(Kraftstoffart!$A$2:$A$7, MATCH('Berechnung Streckenabschnitt'!F52,Kraftstoffart!$B$2:$B$7,0)),Kohlendioxid_Kennzahlen!$B$2:$C$7,2,FALSE)) ->  | O52: =IF(G52 = "", "", VLOOKUP(INDEX(Kraftstoffart!$A$2:$A$7, MATCH('Berechnung Streckenabschnitt'!F52,Kraftstoffart!$B$2:$B$7,0)),Kohlendioxid_Kennzahlen!$B$8:$C$13,2,FALSE)) ->  | P52: =IF(G52 = "", "", VLOOKUP(INDEX(Kraftstoffart!$A$2:$A$7, MATCH('Berechnung Streckenabschnitt'!F52,Kraftstoffart!$B$2:$B$7,0)),Treibhausgas_Kennzahlen!$B$2:$C$7,2,FALSE)) ->  | Q52: =IF(G52 = "", "", VLOOKUP(INDEX(Kraftstoffart!$A$2:$A$7, MATCH('Berechnung Streckenabschnitt'!F52,Kraftstoffart!$B$2:$B$7,0)),Treibhausgas_Kennzahlen!$B$8:$C$13,2,FALSE)) -> 
H53: =IF(G53 = "", "", VLOOKUP(INDEX(FahrzeugartID,MATCH('Berechnung Streckenabschnitt'!C53,Fahrzeugart!$B$2:$B$5,0))&"_"&INDEX(GutartID,MATCH('Berechnung Streckenabschnitt'!B53,Gutart!$B$2:$B$4,0)),Frachtgewichte!$C$2:$D$13,2,FALSE)) ->  | I53: =IF(G53 = "", "", VLOOKUP(INDEX(LängsneigungsartID,MATCH('Berechnung Streckenabschnitt'!D53,Längsneigungsart!$B$2:$B$3,0))&"_"&INDEX(GutartID,MATCH('Berechnung Streckenabschnitt'!B53,Gutart!$B$2:$B$4,0))&"_"&INDEX(FahrzeugartID,MATCH('Berechnung Streckenabschnitt'!C53,Fahrzeugart!$B$2:$B$5,0)),Energieverbrauch!$D$2:$E$25,2,FALSE)) ->  | J53: =IF(G53 = "", "", IF(E53="Innerorts",VLOOKUP(INDEX(FahrzeugartID,MATCH('Berechnung Streckenabschnitt'!C53,Fahrzeugart!$B$2:$B$5,0)),Korrekturfaktoren!$A$2:$B$5,2,FALSE),1)) ->  | L53: =IF(G53 = "", "", VLOOKUP(INDEX(Kraftstoffart!$A$2:$A$7, MATCH('Berechnung Streckenabschnitt'!F53,Kraftstoffart!$B$2:$B$7,0)),Energieverbrauch_Kennzahlen!$B$2:$C$7,2,FALSE)) ->  | M53: =IF(G53 = "", "", VLOOKUP(INDEX(Kraftstoffart!$A$2:$A$7, MATCH('Berechnung Streckenabschnitt'!F53,Kraftstoffart!$B$2:$B$7,0)),Energieverbrauch_Kennzahlen!$B$8:$C$13,2,FALSE)) ->  | N53: =IF(G53 = "", "", VLOOKUP(INDEX(Kraftstoffart!$A$2:$A$7, MATCH('Berechnung Streckenabschnitt'!F53,Kraftstoffart!$B$2:$B$7,0)),Kohlendioxid_Kennzahlen!$B$2:$C$7,2,FALSE)) ->  | O53: =IF(G53 = "", "", VLOOKUP(INDEX(Kraftstoffart!$A$2:$A$7, MATCH('Berechnung Streckenabschnitt'!F53,Kraftstoffart!$B$2:$B$7,0)),Kohlendioxid_Kennzahlen!$B$8:$C$13,2,FALSE)) ->  | P53: =IF(G53 = "", "", VLOOKUP(INDEX(Kraftstoffart!$A$2:$A$7, MATCH('Berechnung Streckenabschnitt'!F53,Kraftstoffart!$B$2:$B$7,0)),Treibhausgas_Kennzahlen!$B$2:$C$7,2,FALSE)) ->  | Q53: =IF(G53 = "", "", VLOOKUP(INDEX(Kraftstoffart!$A$2:$A$7, MATCH('Berechnung Streckenabschnitt'!F53,Kraftstoffart!$B$2:$B$7,0)),Treibhausgas_Kennzahlen!$B$8:$C$13,2,FALSE)) -> 
H54: =IF(G54 = "", "", VLOOKUP(INDEX(FahrzeugartID,MATCH('Berechnung Streckenabschnitt'!C54,Fahrzeugart!$B$2:$B$5,0))&"_"&INDEX(GutartID,MATCH('Berechnung Streckenabschnitt'!B54,Gutart!$B$2:$B$4,0)),Frachtgewichte!$C$2:$D$13,2,FALSE)) ->  | I54: =IF(G54 = "", "", VLOOKUP(INDEX(LängsneigungsartID,MATCH('Berechnung Streckenabschnitt'!D54,Längsneigungsart!$B$2:$B$3,0))&"_"&INDEX(GutartID,MATCH('Berechnung Streckenabschnitt'!B54,Gutart!$B$2:$B$4,0))&"_"&INDEX(FahrzeugartID,MATCH('Berechnung Streckenabschnitt'!C54,Fahrzeugart!$B$2:$B$5,0)),Energieverbrauch!$D$2:$E$25,2,FALSE)) ->  | J54: =IF(G54 = "", "", IF(E54="Innerorts",VLOOKUP(INDEX(FahrzeugartID,MATCH('Berechnung Streckenabschnitt'!C54,Fahrzeugart!$B$2:$B$5,0)),Korrekturfaktoren!$A$2:$B$5,2,FALSE),1)) ->  | L54: =IF(G54 = "", "", VLOOKUP(INDEX(Kraftstoffart!$A$2:$A$7, MATCH('Berechnung Streckenabschnitt'!F54,Kraftstoffart!$B$2:$B$7,0)),Energieverbrauch_Kennzahlen!$B$2:$C$7,2,FALSE)) ->  | M54: =IF(G54 = "", "", VLOOKUP(INDEX(Kraftstoffart!$A$2:$A$7, MATCH('Berechnung Streckenabschnitt'!F54,Kraftstoffart!$B$2:$B$7,0)),Energieverbrauch_Kennzahlen!$B$8:$C$13,2,FALSE)) ->  | N54: =IF(G54 = "", "", VLOOKUP(INDEX(Kraftstoffart!$A$2:$A$7, MATCH('Berechnung Streckenabschnitt'!F54,Kraftstoffart!$B$2:$B$7,0)),Kohlendioxid_Kennzahlen!$B$2:$C$7,2,FALSE)) ->  | O54: =IF(G54 = "", "", VLOOKUP(INDEX(Kraftstoffart!$A$2:$A$7, MATCH('Berechnung Streckenabschnitt'!F54,Kraftstoffart!$B$2:$B$7,0)),Kohlendioxid_Kennzahlen!$B$8:$C$13,2,FALSE)) ->  | P54: =IF(G54 = "", "", VLOOKUP(INDEX(Kraftstoffart!$A$2:$A$7, MATCH('Berechnung Streckenabschnitt'!F54,Kraftstoffart!$B$2:$B$7,0)),Treibhausgas_Kennzahlen!$B$2:$C$7,2,FALSE)) ->  | Q54: =IF(G54 = "", "", VLOOKUP(INDEX(Kraftstoffart!$A$2:$A$7, MATCH('Berechnung Streckenabschnitt'!F54,Kraftstoffart!$B$2:$B$7,0)),Treibhausgas_Kennzahlen!$B$8:$C$13,2,FALSE)) -> 
H55: =IF(G55 = "", "", VLOOKUP(INDEX(FahrzeugartID,MATCH('Berechnung Streckenabschnitt'!C55,Fahrzeugart!$B$2:$B$5,0))&"_"&INDEX(GutartID,MATCH('Berechnung Streckenabschnitt'!B55,Gutart!$B$2:$B$4,0)),Frachtgewichte!$C$2:$D$13,2,FALSE)) ->  | I55: =IF(G55 = "", "", VLOOKUP(INDEX(LängsneigungsartID,MATCH('Berechnung Streckenabschnitt'!D55,Längsneigungsart!$B$2:$B$3,0))&"_"&INDEX(GutartID,MATCH('Berechnung Streckenabschnitt'!B55,Gutart!$B$2:$B$4,0))&"_"&INDEX(FahrzeugartID,MATCH('Berechnung Streckenabschnitt'!C55,Fahrzeugart!$B$2:$B$5,0)),Energieverbrauch!$D$2:$E$25,2,FALSE)) ->  | J55: =IF(G55 = "", "", IF(E55="Innerorts",VLOOKUP(INDEX(FahrzeugartID,MATCH('Berechnung Streckenabschnitt'!C55,Fahrzeugart!$B$2:$B$5,0)),Korrekturfaktoren!$A$2:$B$5,2,FALSE),1)) ->  | L55: =IF(G55 = "", "", VLOOKUP(INDEX(Kraftstoffart!$A$2:$A$7, MATCH('Berechnung Streckenabschnitt'!F55,Kraftstoffart!$B$2:$B$7,0)),Energieverbrauch_Kennzahlen!$B$2:$C$7,2,FALSE)) ->  | M55: =IF(G55 = "", "", VLOOKUP(INDEX(Kraftstoffart!$A$2:$A$7, MATCH('Berechnung Streckenabschnitt'!F55,Kraftstoffart!$B$2:$B$7,0)),Energieverbrauch_Kennzahlen!$B$8:$C$13,2,FALSE)) ->  | N55: =IF(G55 = "", "", VLOOKUP(INDEX(Kraftstoffart!$A$2:$A$7, MATCH('Berechnung Streckenabschnitt'!F55,Kraftstoffart!$B$2:$B$7,0)),Kohlendioxid_Kennzahlen!$B$2:$C$7,2,FALSE)) ->  | O55: =IF(G55 = "", "", VLOOKUP(INDEX(Kraftstoffart!$A$2:$A$7, MATCH('Berechnung Streckenabschnitt'!F55,Kraftstoffart!$B$2:$B$7,0)),Kohlendioxid_Kennzahlen!$B$8:$C$13,2,FALSE)) ->  | P55: =IF(G55 = "", "", VLOOKUP(INDEX(Kraftstoffart!$A$2:$A$7, MATCH('Berechnung Streckenabschnitt'!F55,Kraftstoffart!$B$2:$B$7,0)),Treibhausgas_Kennzahlen!$B$2:$C$7,2,FALSE)) ->  | Q55: =IF(G55 = "", "", VLOOKUP(INDEX(Kraftstoffart!$A$2:$A$7, MATCH('Berechnung Streckenabschnitt'!F55,Kraftstoffart!$B$2:$B$7,0)),Treibhausgas_Kennzahlen!$B$8:$C$13,2,FALSE)) -> 
H56: =IF(G56 = "", "", VLOOKUP(INDEX(FahrzeugartID,MATCH('Berechnung Streckenabschnitt'!C56,Fahrzeugart!$B$2:$B$5,0))&"_"&INDEX(GutartID,MATCH('Berechnung Streckenabschnitt'!B56,Gutart!$B$2:$B$4,0)),Frachtgewichte!$C$2:$D$13,2,FALSE)) ->  | I56: =IF(G56 = "", "", VLOOKUP(INDEX(LängsneigungsartID,MATCH('Berechnung Streckenabschnitt'!D56,Längsneigungsart!$B$2:$B$3,0))&"_"&INDEX(GutartID,MATCH('Berechnung Streckenabschnitt'!B56,Gutart!$B$2:$B$4,0))&"_"&INDEX(FahrzeugartID,MATCH('Berechnung Streckenabschnitt'!C56,Fahrzeugart!$B$2:$B$5,0)),Energieverbrauch!$D$2:$E$25,2,FALSE)) ->  | J56: =IF(G56 = "", "", IF(E56="Innerorts",VLOOKUP(INDEX(FahrzeugartID,MATCH('Berechnung Streckenabschnitt'!C56,Fahrzeugart!$B$2:$B$5,0)),Korrekturfaktoren!$A$2:$B$5,2,FALSE),1)) ->  | L56: =IF(G56 = "", "", VLOOKUP(INDEX(Kraftstoffart!$A$2:$A$7, MATCH('Berechnung Streckenabschnitt'!F56,Kraftstoffart!$B$2:$B$7,0)),Energieverbrauch_Kennzahlen!$B$2:$C$7,2,FALSE)) ->  | M56: =IF(G56 = "", "", VLOOKUP(INDEX(Kraftstoffart!$A$2:$A$7, MATCH('Berechnung Streckenabschnitt'!F56,Kraftstoffart!$B$2:$B$7,0)),Energieverbrauch_Kennzahlen!$B$8:$C$13,2,FALSE)) ->  | N56: =IF(G56 = "", "", VLOOKUP(INDEX(Kraftstoffart!$A$2:$A$7, MATCH('Berechnung Streckenabschnitt'!F56,Kraftstoffart!$B$2:$B$7,0)),Kohlendioxid_Kennzahlen!$B$2:$C$7,2,FALSE)) ->  | O56: =IF(G56 = "", "", VLOOKUP(INDEX(Kraftstoffart!$A$2:$A$7, MATCH('Berechnung Streckenabschnitt'!F56,Kraftstoffart!$B$2:$B$7,0)),Kohlendioxid_Kennzahlen!$B$8:$C$13,2,FALSE)) ->  | P56: =IF(G56 = "", "", VLOOKUP(INDEX(Kraftstoffart!$A$2:$A$7, MATCH('Berechnung Streckenabschnitt'!F56,Kraftstoffart!$B$2:$B$7,0)),Treibhausgas_Kennzahlen!$B$2:$C$7,2,FALSE)) ->  | Q56: =IF(G56 = "", "", VLOOKUP(INDEX(Kraftstoffart!$A$2:$A$7, MATCH('Berechnung Streckenabschnitt'!F56,Kraftstoffart!$B$2:$B$7,0)),Treibhausgas_Kennzahlen!$B$8:$C$13,2,FALSE)) -> 
H57: =IF(G57 = "", "", VLOOKUP(INDEX(FahrzeugartID,MATCH('Berechnung Streckenabschnitt'!C57,Fahrzeugart!$B$2:$B$5,0))&"_"&INDEX(GutartID,MATCH('Berechnung Streckenabschnitt'!B57,Gutart!$B$2:$B$4,0)),Frachtgewichte!$C$2:$D$13,2,FALSE)) ->  | I57: =IF(G57 = "", "", VLOOKUP(INDEX(LängsneigungsartID,MATCH('Berechnung Streckenabschnitt'!D57,Längsneigungsart!$B$2:$B$3,0))&"_"&INDEX(GutartID,MATCH('Berechnung Streckenabschnitt'!B57,Gutart!$B$2:$B$4,0))&"_"&INDEX(FahrzeugartID,MATCH('Berechnung Streckenabschnitt'!C57,Fahrzeugart!$B$2:$B$5,0)),Energieverbrauch!$D$2:$E$25,2,FALSE)) ->  | J57: =IF(G57 = "", "", IF(E57="Innerorts",VLOOKUP(INDEX(FahrzeugartID,MATCH('Berechnung Streckenabschnitt'!C57,Fahrzeugart!$B$2:$B$5,0)),Korrekturfaktoren!$A$2:$B$5,2,FALSE),1)) ->  | L57: =IF(G57 = "", "", VLOOKUP(INDEX(Kraftstoffart!$A$2:$A$7, MATCH('Berechnung Streckenabschnitt'!F57,Kraftstoffart!$B$2:$B$7,0)),Energieverbrauch_Kennzahlen!$B$2:$C$7,2,FALSE)) ->  | M57: =IF(G57 = "", "", VLOOKUP(INDEX(Kraftstoffart!$A$2:$A$7, MATCH('Berechnung Streckenabschnitt'!F57,Kraftstoffart!$B$2:$B$7,0)),Energieverbrauch_Kennzahlen!$B$8:$C$13,2,FALSE)) ->  | N57: =IF(G57 = "", "", VLOOKUP(INDEX(Kraftstoffart!$A$2:$A$7, MATCH('Berechnung Streckenabschnitt'!F57,Kraftstoffart!$B$2:$B$7,0)),Kohlendioxid_Kennzahlen!$B$2:$C$7,2,FALSE)) ->  | O57: =IF(G57 = "", "", VLOOKUP(INDEX(Kraftstoffart!$A$2:$A$7, MATCH('Berechnung Streckenabschnitt'!F57,Kraftstoffart!$B$2:$B$7,0)),Kohlendioxid_Kennzahlen!$B$8:$C$13,2,FALSE)) ->  | P57: =IF(G57 = "", "", VLOOKUP(INDEX(Kraftstoffart!$A$2:$A$7, MATCH('Berechnung Streckenabschnitt'!F57,Kraftstoffart!$B$2:$B$7,0)),Treibhausgas_Kennzahlen!$B$2:$C$7,2,FALSE)) ->  | Q57: =IF(G57 = "", "", VLOOKUP(INDEX(Kraftstoffart!$A$2:$A$7, MATCH('Berechnung Streckenabschnitt'!F57,Kraftstoffart!$B$2:$B$7,0)),Treibhausgas_Kennzahlen!$B$8:$C$13,2,FALSE)) -> 
H58: =IF(G58 = "", "", VLOOKUP(INDEX(FahrzeugartID,MATCH('Berechnung Streckenabschnitt'!C58,Fahrzeugart!$B$2:$B$5,0))&"_"&INDEX(GutartID,MATCH('Berechnung Streckenabschnitt'!B58,Gutart!$B$2:$B$4,0)),Frachtgewichte!$C$2:$D$13,2,FALSE)) ->  | I58: =IF(G58 = "", "", VLOOKUP(INDEX(LängsneigungsartID,MATCH('Berechnung Streckenabschnitt'!D58,Längsneigungsart!$B$2:$B$3,0))&"_"&INDEX(GutartID,MATCH('Berechnung Streckenabschnitt'!B58,Gutart!$B$2:$B$4,0))&"_"&INDEX(FahrzeugartID,MATCH('Berechnung Streckenabschnitt'!C58,Fahrzeugart!$B$2:$B$5,0)),Energieverbrauch!$D$2:$E$25,2,FALSE)) ->  | J58: =IF(G58 = "", "", IF(E58="Innerorts",VLOOKUP(INDEX(FahrzeugartID,MATCH('Berechnung Streckenabschnitt'!C58,Fahrzeugart!$B$2:$B$5,0)),Korrekturfaktoren!$A$2:$B$5,2,FALSE),1)) ->  | L58: =IF(G58 = "", "", VLOOKUP(INDEX(Kraftstoffart!$A$2:$A$7, MATCH('Berechnung Streckenabschnitt'!F58,Kraftstoffart!$B$2:$B$7,0)),Energieverbrauch_Kennzahlen!$B$2:$C$7,2,FALSE)) ->  | M58: =IF(G58 = "", "", VLOOKUP(INDEX(Kraftstoffart!$A$2:$A$7, MATCH('Berechnung Streckenabschnitt'!F58,Kraftstoffart!$B$2:$B$7,0)),Energieverbrauch_Kennzahlen!$B$8:$C$13,2,FALSE)) ->  | N58: =IF(G58 = "", "", VLOOKUP(INDEX(Kraftstoffart!$A$2:$A$7, MATCH('Berechnung Streckenabschnitt'!F58,Kraftstoffart!$B$2:$B$7,0)),Kohlendioxid_Kennzahlen!$B$2:$C$7,2,FALSE)) ->  | O58: =IF(G58 = "", "", VLOOKUP(INDEX(Kraftstoffart!$A$2:$A$7, MATCH('Berechnung Streckenabschnitt'!F58,Kraftstoffart!$B$2:$B$7,0)),Kohlendioxid_Kennzahlen!$B$8:$C$13,2,FALSE)) ->  | P58: =IF(G58 = "", "", VLOOKUP(INDEX(Kraftstoffart!$A$2:$A$7, MATCH('Berechnung Streckenabschnitt'!F58,Kraftstoffart!$B$2:$B$7,0)),Treibhausgas_Kennzahlen!$B$2:$C$7,2,FALSE)) ->  | Q58: =IF(G58 = "", "", VLOOKUP(INDEX(Kraftstoffart!$A$2:$A$7, MATCH('Berechnung Streckenabschnitt'!F58,Kraftstoffart!$B$2:$B$7,0)),Treibhausgas_Kennzahlen!$B$8:$C$13,2,FALSE)) -> 
H59: =IF(G59 = "", "", VLOOKUP(INDEX(FahrzeugartID,MATCH('Berechnung Streckenabschnitt'!C59,Fahrzeugart!$B$2:$B$5,0))&"_"&INDEX(GutartID,MATCH('Berechnung Streckenabschnitt'!B59,Gutart!$B$2:$B$4,0)),Frachtgewichte!$C$2:$D$13,2,FALSE)) ->  | I59: =IF(G59 = "", "", VLOOKUP(INDEX(LängsneigungsartID,MATCH('Berechnung Streckenabschnitt'!D59,Längsneigungsart!$B$2:$B$3,0))&"_"&INDEX(GutartID,MATCH('Berechnung Streckenabschnitt'!B59,Gutart!$B$2:$B$4,0))&"_"&INDEX(FahrzeugartID,MATCH('Berechnung Streckenabschnitt'!C59,Fahrzeugart!$B$2:$B$5,0)),Energieverbrauch!$D$2:$E$25,2,FALSE)) ->  | J59: =IF(G59 = "", "", IF(E59="Innerorts",VLOOKUP(INDEX(FahrzeugartID,MATCH('Berechnung Streckenabschnitt'!C59,Fahrzeugart!$B$2:$B$5,0)),Korrekturfaktoren!$A$2:$B$5,2,FALSE),1)) ->  | L59: =IF(G59 = "", "", VLOOKUP(INDEX(Kraftstoffart!$A$2:$A$7, MATCH('Berechnung Streckenabschnitt'!F59,Kraftstoffart!$B$2:$B$7,0)),Energieverbrauch_Kennzahlen!$B$2:$C$7,2,FALSE)) ->  | M59: =IF(G59 = "", "", VLOOKUP(INDEX(Kraftstoffart!$A$2:$A$7, MATCH('Berechnung Streckenabschnitt'!F59,Kraftstoffart!$B$2:$B$7,0)),Energieverbrauch_Kennzahlen!$B$8:$C$13,2,FALSE)) ->  | N59: =IF(G59 = "", "", VLOOKUP(INDEX(Kraftstoffart!$A$2:$A$7, MATCH('Berechnung Streckenabschnitt'!F59,Kraftstoffart!$B$2:$B$7,0)),Kohlendioxid_Kennzahlen!$B$2:$C$7,2,FALSE)) ->  | O59: =IF(G59 = "", "", VLOOKUP(INDEX(Kraftstoffart!$A$2:$A$7, MATCH('Berechnung Streckenabschnitt'!F59,Kraftstoffart!$B$2:$B$7,0)),Kohlendioxid_Kennzahlen!$B$8:$C$13,2,FALSE)) ->  | P59: =IF(G59 = "", "", VLOOKUP(INDEX(Kraftstoffart!$A$2:$A$7, MATCH('Berechnung Streckenabschnitt'!F59,Kraftstoffart!$B$2:$B$7,0)),Treibhausgas_Kennzahlen!$B$2:$C$7,2,FALSE)) ->  | Q59: =IF(G59 = "", "", VLOOKUP(INDEX(Kraftstoffart!$A$2:$A$7, MATCH('Berechnung Streckenabschnitt'!F59,Kraftstoffart!$B$2:$B$7,0)),Treibhausgas_Kennzahlen!$B$8:$C$13,2,FALSE)) -> 
H60: =IF(G60 = "", "", VLOOKUP(INDEX(FahrzeugartID,MATCH('Berechnung Streckenabschnitt'!C60,Fahrzeugart!$B$2:$B$5,0))&"_"&INDEX(GutartID,MATCH('Berechnung Streckenabschnitt'!B60,Gutart!$B$2:$B$4,0)),Frachtgewichte!$C$2:$D$13,2,FALSE)) ->  | I60: =IF(G60 = "", "", VLOOKUP(INDEX(LängsneigungsartID,MATCH('Berechnung Streckenabschnitt'!D60,Längsneigungsart!$B$2:$B$3,0))&"_"&INDEX(GutartID,MATCH('Berechnung Streckenabschnitt'!B60,Gutart!$B$2:$B$4,0))&"_"&INDEX(FahrzeugartID,MATCH('Berechnung Streckenabschnitt'!C60,Fahrzeugart!$B$2:$B$5,0)),Energieverbrauch!$D$2:$E$25,2,FALSE)) ->  | J60: =IF(G60 = "", "", IF(E60="Innerorts",VLOOKUP(INDEX(FahrzeugartID,MATCH('Berechnung Streckenabschnitt'!C60,Fahrzeugart!$B$2:$B$5,0)),Korrekturfaktoren!$A$2:$B$5,2,FALSE),1)) ->  | L60: =IF(G60 = "", "", VLOOKUP(INDEX(Kraftstoffart!$A$2:$A$7, MATCH('Berechnung Streckenabschnitt'!F60,Kraftstoffart!$B$2:$B$7,0)),Energieverbrauch_Kennzahlen!$B$2:$C$7,2,FALSE)) ->  | M60: =IF(G60 = "", "", VLOOKUP(INDEX(Kraftstoffart!$A$2:$A$7, MATCH('Berechnung Streckenabschnitt'!F60,Kraftstoffart!$B$2:$B$7,0)),Energieverbrauch_Kennzahlen!$B$8:$C$13,2,FALSE)) ->  | N60: =IF(G60 = "", "", VLOOKUP(INDEX(Kraftstoffart!$A$2:$A$7, MATCH('Berechnung Streckenabschnitt'!F60,Kraftstoffart!$B$2:$B$7,0)),Kohlendioxid_Kennzahlen!$B$2:$C$7,2,FALSE)) ->  | O60: =IF(G60 = "", "", VLOOKUP(INDEX(Kraftstoffart!$A$2:$A$7, MATCH('Berechnung Streckenabschnitt'!F60,Kraftstoffart!$B$2:$B$7,0)),Kohlendioxid_Kennzahlen!$B$8:$C$13,2,FALSE)) ->  | P60: =IF(G60 = "", "", VLOOKUP(INDEX(Kraftstoffart!$A$2:$A$7, MATCH('Berechnung Streckenabschnitt'!F60,Kraftstoffart!$B$2:$B$7,0)),Treibhausgas_Kennzahlen!$B$2:$C$7,2,FALSE)) ->  | Q60: =IF(G60 = "", "", VLOOKUP(INDEX(Kraftstoffart!$A$2:$A$7, MATCH('Berechnung Streckenabschnitt'!F60,Kraftstoffart!$B$2:$B$7,0)),Treibhausgas_Kennzahlen!$B$8:$C$13,2,FALSE)) -> 
H61: =IF(G61 = "", "", VLOOKUP(INDEX(FahrzeugartID,MATCH('Berechnung Streckenabschnitt'!C61,Fahrzeugart!$B$2:$B$5,0))&"_"&INDEX(GutartID,MATCH('Berechnung Streckenabschnitt'!B61,Gutart!$B$2:$B$4,0)),Frachtgewichte!$C$2:$D$13,2,FALSE)) ->  | I61: =IF(G61 = "", "", VLOOKUP(INDEX(LängsneigungsartID,MATCH('Berechnung Streckenabschnitt'!D61,Längsneigungsart!$B$2:$B$3,0))&"_"&INDEX(GutartID,MATCH('Berechnung Streckenabschnitt'!B61,Gutart!$B$2:$B$4,0))&"_"&INDEX(FahrzeugartID,MATCH('Berechnung Streckenabschnitt'!C61,Fahrzeugart!$B$2:$B$5,0)),Energieverbrauch!$D$2:$E$25,2,FALSE)) ->  | J61: =IF(G61 = "", "", IF(E61="Innerorts",VLOOKUP(INDEX(FahrzeugartID,MATCH('Berechnung Streckenabschnitt'!C61,Fahrzeugart!$B$2:$B$5,0)),Korrekturfaktoren!$A$2:$B$5,2,FALSE),1)) ->  | L61: =IF(G61 = "", "", VLOOKUP(INDEX(Kraftstoffart!$A$2:$A$7, MATCH('Berechnung Streckenabschnitt'!F61,Kraftstoffart!$B$2:$B$7,0)),Energieverbrauch_Kennzahlen!$B$2:$C$7,2,FALSE)) ->  | M61: =IF(G61 = "", "", VLOOKUP(INDEX(Kraftstoffart!$A$2:$A$7, MATCH('Berechnung Streckenabschnitt'!F61,Kraftstoffart!$B$2:$B$7,0)),Energieverbrauch_Kennzahlen!$B$8:$C$13,2,FALSE)) ->  | N61: =IF(G61 = "", "", VLOOKUP(INDEX(Kraftstoffart!$A$2:$A$7, MATCH('Berechnung Streckenabschnitt'!F61,Kraftstoffart!$B$2:$B$7,0)),Kohlendioxid_Kennzahlen!$B$2:$C$7,2,FALSE)) ->  | O61: =IF(G61 = "", "", VLOOKUP(INDEX(Kraftstoffart!$A$2:$A$7, MATCH('Berechnung Streckenabschnitt'!F61,Kraftstoffart!$B$2:$B$7,0)),Kohlendioxid_Kennzahlen!$B$8:$C$13,2,FALSE)) ->  | P61: =IF(G61 = "", "", VLOOKUP(INDEX(Kraftstoffart!$A$2:$A$7, MATCH('Berechnung Streckenabschnitt'!F61,Kraftstoffart!$B$2:$B$7,0)),Treibhausgas_Kennzahlen!$B$2:$C$7,2,FALSE)) ->  | Q61: =IF(G61 = "", "", VLOOKUP(INDEX(Kraftstoffart!$A$2:$A$7, MATCH('Berechnung Streckenabschnitt'!F61,Kraftstoffart!$B$2:$B$7,0)),Treibhausgas_Kennzahlen!$B$8:$C$13,2,FALSE)) -> 
H62: =IF(G62 = "", "", VLOOKUP(INDEX(FahrzeugartID,MATCH('Berechnung Streckenabschnitt'!C62,Fahrzeugart!$B$2:$B$5,0))&"_"&INDEX(GutartID,MATCH('Berechnung Streckenabschnitt'!B62,Gutart!$B$2:$B$4,0)),Frachtgewichte!$C$2:$D$13,2,FALSE)) ->  | I62: =IF(G62 = "", "", VLOOKUP(INDEX(LängsneigungsartID,MATCH('Berechnung Streckenabschnitt'!D62,Längsneigungsart!$B$2:$B$3,0))&"_"&INDEX(GutartID,MATCH('Berechnung Streckenabschnitt'!B62,Gutart!$B$2:$B$4,0))&"_"&INDEX(FahrzeugartID,MATCH('Berechnung Streckenabschnitt'!C62,Fahrzeugart!$B$2:$B$5,0)),Energieverbrauch!$D$2:$E$25,2,FALSE)) ->  | J62: =IF(G62 = "", "", IF(E62="Innerorts",VLOOKUP(INDEX(FahrzeugartID,MATCH('Berechnung Streckenabschnitt'!C62,Fahrzeugart!$B$2:$B$5,0)),Korrekturfaktoren!$A$2:$B$5,2,FALSE),1)) ->  | L62: =IF(G62 = "", "", VLOOKUP(INDEX(Kraftstoffart!$A$2:$A$7, MATCH('Berechnung Streckenabschnitt'!F62,Kraftstoffart!$B$2:$B$7,0)),Energieverbrauch_Kennzahlen!$B$2:$C$7,2,FALSE)) ->  | M62: =IF(G62 = "", "", VLOOKUP(INDEX(Kraftstoffart!$A$2:$A$7, MATCH('Berechnung Streckenabschnitt'!F62,Kraftstoffart!$B$2:$B$7,0)),Energieverbrauch_Kennzahlen!$B$8:$C$13,2,FALSE)) ->  | N62: =IF(G62 = "", "", VLOOKUP(INDEX(Kraftstoffart!$A$2:$A$7, MATCH('Berechnung Streckenabschnitt'!F62,Kraftstoffart!$B$2:$B$7,0)),Kohlendioxid_Kennzahlen!$B$2:$C$7,2,FALSE)) ->  | O62: =IF(G62 = "", "", VLOOKUP(INDEX(Kraftstoffart!$A$2:$A$7, MATCH('Berechnung Streckenabschnitt'!F62,Kraftstoffart!$B$2:$B$7,0)),Kohlendioxid_Kennzahlen!$B$8:$C$13,2,FALSE)) ->  | P62: =IF(G62 = "", "", VLOOKUP(INDEX(Kraftstoffart!$A$2:$A$7, MATCH('Berechnung Streckenabschnitt'!F62,Kraftstoffart!$B$2:$B$7,0)),Treibhausgas_Kennzahlen!$B$2:$C$7,2,FALSE)) ->  | Q62: =IF(G62 = "", "", VLOOKUP(INDEX(Kraftstoffart!$A$2:$A$7, MATCH('Berechnung Streckenabschnitt'!F62,Kraftstoffart!$B$2:$B$7,0)),Treibhausgas_Kennzahlen!$B$8:$C$13,2,FALSE)) -> 
H63: =IF(G63 = "", "", VLOOKUP(INDEX(FahrzeugartID,MATCH('Berechnung Streckenabschnitt'!C63,Fahrzeugart!$B$2:$B$5,0))&"_"&INDEX(GutartID,MATCH('Berechnung Streckenabschnitt'!B63,Gutart!$B$2:$B$4,0)),Frachtgewichte!$C$2:$D$13,2,FALSE)) ->  | I63: =IF(G63 = "", "", VLOOKUP(INDEX(LängsneigungsartID,MATCH('Berechnung Streckenabschnitt'!D63,Längsneigungsart!$B$2:$B$3,0))&"_"&INDEX(GutartID,MATCH('Berechnung Streckenabschnitt'!B63,Gutart!$B$2:$B$4,0))&"_"&INDEX(FahrzeugartID,MATCH('Berechnung Streckenabschnitt'!C63,Fahrzeugart!$B$2:$B$5,0)),Energieverbrauch!$D$2:$E$25,2,FALSE)) ->  | J63: =IF(G63 = "", "", IF(E63="Innerorts",VLOOKUP(INDEX(FahrzeugartID,MATCH('Berechnung Streckenabschnitt'!C63,Fahrzeugart!$B$2:$B$5,0)),Korrekturfaktoren!$A$2:$B$5,2,FALSE),1)) ->  | L63: =IF(G63 = "", "", VLOOKUP(INDEX(Kraftstoffart!$A$2:$A$7, MATCH('Berechnung Streckenabschnitt'!F63,Kraftstoffart!$B$2:$B$7,0)),Energieverbrauch_Kennzahlen!$B$2:$C$7,2,FALSE)) ->  | M63: =IF(G63 = "", "", VLOOKUP(INDEX(Kraftstoffart!$A$2:$A$7, MATCH('Berechnung Streckenabschnitt'!F63,Kraftstoffart!$B$2:$B$7,0)),Energieverbrauch_Kennzahlen!$B$8:$C$13,2,FALSE)) ->  | N63: =IF(G63 = "", "", VLOOKUP(INDEX(Kraftstoffart!$A$2:$A$7, MATCH('Berechnung Streckenabschnitt'!F63,Kraftstoffart!$B$2:$B$7,0)),Kohlendioxid_Kennzahlen!$B$2:$C$7,2,FALSE)) ->  | O63: =IF(G63 = "", "", VLOOKUP(INDEX(Kraftstoffart!$A$2:$A$7, MATCH('Berechnung Streckenabschnitt'!F63,Kraftstoffart!$B$2:$B$7,0)),Kohlendioxid_Kennzahlen!$B$8:$C$13,2,FALSE)) ->  | P63: =IF(G63 = "", "", VLOOKUP(INDEX(Kraftstoffart!$A$2:$A$7, MATCH('Berechnung Streckenabschnitt'!F63,Kraftstoffart!$B$2:$B$7,0)),Treibhausgas_Kennzahlen!$B$2:$C$7,2,FALSE)) ->  | Q63: =IF(G63 = "", "", VLOOKUP(INDEX(Kraftstoffart!$A$2:$A$7, MATCH('Berechnung Streckenabschnitt'!F63,Kraftstoffart!$B$2:$B$7,0)),Treibhausgas_Kennzahlen!$B$8:$C$13,2,FALSE)) -> 
H64: =IF(G64 = "", "", VLOOKUP(INDEX(FahrzeugartID,MATCH('Berechnung Streckenabschnitt'!C64,Fahrzeugart!$B$2:$B$5,0))&"_"&INDEX(GutartID,MATCH('Berechnung Streckenabschnitt'!B64,Gutart!$B$2:$B$4,0)),Frachtgewichte!$C$2:$D$13,2,FALSE)) ->  | I64: =IF(G64 = "", "", VLOOKUP(INDEX(LängsneigungsartID,MATCH('Berechnung Streckenabschnitt'!D64,Längsneigungsart!$B$2:$B$3,0))&"_"&INDEX(GutartID,MATCH('Berechnung Streckenabschnitt'!B64,Gutart!$B$2:$B$4,0))&"_"&INDEX(FahrzeugartID,MATCH('Berechnung Streckenabschnitt'!C64,Fahrzeugart!$B$2:$B$5,0)),Energieverbrauch!$D$2:$E$25,2,FALSE)) ->  | J64: =IF(G64 = "", "", IF(E64="Innerorts",VLOOKUP(INDEX(FahrzeugartID,MATCH('Berechnung Streckenabschnitt'!C64,Fahrzeugart!$B$2:$B$5,0)),Korrekturfaktoren!$A$2:$B$5,2,FALSE),1)) ->  | L64: =IF(G64 = "", "", VLOOKUP(INDEX(Kraftstoffart!$A$2:$A$7, MATCH('Berechnung Streckenabschnitt'!F64,Kraftstoffart!$B$2:$B$7,0)),Energieverbrauch_Kennzahlen!$B$2:$C$7,2,FALSE)) ->  | M64: =IF(G64 = "", "", VLOOKUP(INDEX(Kraftstoffart!$A$2:$A$7, MATCH('Berechnung Streckenabschnitt'!F64,Kraftstoffart!$B$2:$B$7,0)),Energieverbrauch_Kennzahlen!$B$8:$C$13,2,FALSE)) ->  | N64: =IF(G64 = "", "", VLOOKUP(INDEX(Kraftstoffart!$A$2:$A$7, MATCH('Berechnung Streckenabschnitt'!F64,Kraftstoffart!$B$2:$B$7,0)),Kohlendioxid_Kennzahlen!$B$2:$C$7,2,FALSE)) ->  | O64: =IF(G64 = "", "", VLOOKUP(INDEX(Kraftstoffart!$A$2:$A$7, MATCH('Berechnung Streckenabschnitt'!F64,Kraftstoffart!$B$2:$B$7,0)),Kohlendioxid_Kennzahlen!$B$8:$C$13,2,FALSE)) ->  | P64: =IF(G64 = "", "", VLOOKUP(INDEX(Kraftstoffart!$A$2:$A$7, MATCH('Berechnung Streckenabschnitt'!F64,Kraftstoffart!$B$2:$B$7,0)),Treibhausgas_Kennzahlen!$B$2:$C$7,2,FALSE)) ->  | Q64: =IF(G64 = "", "", VLOOKUP(INDEX(Kraftstoffart!$A$2:$A$7, MATCH('Berechnung Streckenabschnitt'!F64,Kraftstoffart!$B$2:$B$7,0)),Treibhausgas_Kennzahlen!$B$8:$C$13,2,FALSE)) -> 
H65: =IF(G65 = "", "", VLOOKUP(INDEX(FahrzeugartID,MATCH('Berechnung Streckenabschnitt'!C65,Fahrzeugart!$B$2:$B$5,0))&"_"&INDEX(GutartID,MATCH('Berechnung Streckenabschnitt'!B65,Gutart!$B$2:$B$4,0)),Frachtgewichte!$C$2:$D$13,2,FALSE)) ->  | I65: =IF(G65 = "", "", VLOOKUP(INDEX(LängsneigungsartID,MATCH('Berechnung Streckenabschnitt'!D65,Längsneigungsart!$B$2:$B$3,0))&"_"&INDEX(GutartID,MATCH('Berechnung Streckenabschnitt'!B65,Gutart!$B$2:$B$4,0))&"_"&INDEX(FahrzeugartID,MATCH('Berechnung Streckenabschnitt'!C65,Fahrzeugart!$B$2:$B$5,0)),Energieverbrauch!$D$2:$E$25,2,FALSE)) ->  | J65: =IF(G65 = "", "", IF(E65="Innerorts",VLOOKUP(INDEX(FahrzeugartID,MATCH('Berechnung Streckenabschnitt'!C65,Fahrzeugart!$B$2:$B$5,0)),Korrekturfaktoren!$A$2:$B$5,2,FALSE),1)) ->  | L65: =IF(G65 = "", "", VLOOKUP(INDEX(Kraftstoffart!$A$2:$A$7, MATCH('Berechnung Streckenabschnitt'!F65,Kraftstoffart!$B$2:$B$7,0)),Energieverbrauch_Kennzahlen!$B$2:$C$7,2,FALSE)) ->  | M65: =IF(G65 = "", "", VLOOKUP(INDEX(Kraftstoffart!$A$2:$A$7, MATCH('Berechnung Streckenabschnitt'!F65,Kraftstoffart!$B$2:$B$7,0)),Energieverbrauch_Kennzahlen!$B$8:$C$13,2,FALSE)) ->  | N65: =IF(G65 = "", "", VLOOKUP(INDEX(Kraftstoffart!$A$2:$A$7, MATCH('Berechnung Streckenabschnitt'!F65,Kraftstoffart!$B$2:$B$7,0)),Kohlendioxid_Kennzahlen!$B$2:$C$7,2,FALSE)) ->  | O65: =IF(G65 = "", "", VLOOKUP(INDEX(Kraftstoffart!$A$2:$A$7, MATCH('Berechnung Streckenabschnitt'!F65,Kraftstoffart!$B$2:$B$7,0)),Kohlendioxid_Kennzahlen!$B$8:$C$13,2,FALSE)) ->  | P65: =IF(G65 = "", "", VLOOKUP(INDEX(Kraftstoffart!$A$2:$A$7, MATCH('Berechnung Streckenabschnitt'!F65,Kraftstoffart!$B$2:$B$7,0)),Treibhausgas_Kennzahlen!$B$2:$C$7,2,FALSE)) ->  | Q65: =IF(G65 = "", "", VLOOKUP(INDEX(Kraftstoffart!$A$2:$A$7, MATCH('Berechnung Streckenabschnitt'!F65,Kraftstoffart!$B$2:$B$7,0)),Treibhausgas_Kennzahlen!$B$8:$C$13,2,FALSE)) -> 
H66: =IF(G66 = "", "", VLOOKUP(INDEX(FahrzeugartID,MATCH('Berechnung Streckenabschnitt'!C66,Fahrzeugart!$B$2:$B$5,0))&"_"&INDEX(GutartID,MATCH('Berechnung Streckenabschnitt'!B66,Gutart!$B$2:$B$4,0)),Frachtgewichte!$C$2:$D$13,2,FALSE)) ->  | I66: =IF(G66 = "", "", VLOOKUP(INDEX(LängsneigungsartID,MATCH('Berechnung Streckenabschnitt'!D66,Längsneigungsart!$B$2:$B$3,0))&"_"&INDEX(GutartID,MATCH('Berechnung Streckenabschnitt'!B66,Gutart!$B$2:$B$4,0))&"_"&INDEX(FahrzeugartID,MATCH('Berechnung Streckenabschnitt'!C66,Fahrzeugart!$B$2:$B$5,0)),Energieverbrauch!$D$2:$E$25,2,FALSE)) ->  | J66: =IF(G66 = "", "", IF(E66="Innerorts",VLOOKUP(INDEX(FahrzeugartID,MATCH('Berechnung Streckenabschnitt'!C66,Fahrzeugart!$B$2:$B$5,0)),Korrekturfaktoren!$A$2:$B$5,2,FALSE),1)) ->  | L66: =IF(G66 = "", "", VLOOKUP(INDEX(Kraftstoffart!$A$2:$A$7, MATCH('Berechnung Streckenabschnitt'!F66,Kraftstoffart!$B$2:$B$7,0)),Energieverbrauch_Kennzahlen!$B$2:$C$7,2,FALSE)) ->  | M66: =IF(G66 = "", "", VLOOKUP(INDEX(Kraftstoffart!$A$2:$A$7, MATCH('Berechnung Streckenabschnitt'!F66,Kraftstoffart!$B$2:$B$7,0)),Energieverbrauch_Kennzahlen!$B$8:$C$13,2,FALSE)) ->  | N66: =IF(G66 = "", "", VLOOKUP(INDEX(Kraftstoffart!$A$2:$A$7, MATCH('Berechnung Streckenabschnitt'!F66,Kraftstoffart!$B$2:$B$7,0)),Kohlendioxid_Kennzahlen!$B$2:$C$7,2,FALSE)) ->  | O66: =IF(G66 = "", "", VLOOKUP(INDEX(Kraftstoffart!$A$2:$A$7, MATCH('Berechnung Streckenabschnitt'!F66,Kraftstoffart!$B$2:$B$7,0)),Kohlendioxid_Kennzahlen!$B$8:$C$13,2,FALSE)) ->  | P66: =IF(G66 = "", "", VLOOKUP(INDEX(Kraftstoffart!$A$2:$A$7, MATCH('Berechnung Streckenabschnitt'!F66,Kraftstoffart!$B$2:$B$7,0)),Treibhausgas_Kennzahlen!$B$2:$C$7,2,FALSE)) ->  | Q66: =IF(G66 = "", "", VLOOKUP(INDEX(Kraftstoffart!$A$2:$A$7, MATCH('Berechnung Streckenabschnitt'!F66,Kraftstoffart!$B$2:$B$7,0)),Treibhausgas_Kennzahlen!$B$8:$C$13,2,FALSE)) -> 
H67: =IF(G67 = "", "", VLOOKUP(INDEX(FahrzeugartID,MATCH('Berechnung Streckenabschnitt'!C67,Fahrzeugart!$B$2:$B$5,0))&"_"&INDEX(GutartID,MATCH('Berechnung Streckenabschnitt'!B67,Gutart!$B$2:$B$4,0)),Frachtgewichte!$C$2:$D$13,2,FALSE)) ->  | I67: =IF(G67 = "", "", VLOOKUP(INDEX(LängsneigungsartID,MATCH('Berechnung Streckenabschnitt'!D67,Längsneigungsart!$B$2:$B$3,0))&"_"&INDEX(GutartID,MATCH('Berechnung Streckenabschnitt'!B67,Gutart!$B$2:$B$4,0))&"_"&INDEX(FahrzeugartID,MATCH('Berechnung Streckenabschnitt'!C67,Fahrzeugart!$B$2:$B$5,0)),Energieverbrauch!$D$2:$E$25,2,FALSE)) ->  | J67: =IF(G67 = "", "", IF(E67="Innerorts",VLOOKUP(INDEX(FahrzeugartID,MATCH('Berechnung Streckenabschnitt'!C67,Fahrzeugart!$B$2:$B$5,0)),Korrekturfaktoren!$A$2:$B$5,2,FALSE),1)) ->  | L67: =IF(G67 = "", "", VLOOKUP(INDEX(Kraftstoffart!$A$2:$A$7, MATCH('Berechnung Streckenabschnitt'!F67,Kraftstoffart!$B$2:$B$7,0)),Energieverbrauch_Kennzahlen!$B$2:$C$7,2,FALSE)) ->  | M67: =IF(G67 = "", "", VLOOKUP(INDEX(Kraftstoffart!$A$2:$A$7, MATCH('Berechnung Streckenabschnitt'!F67,Kraftstoffart!$B$2:$B$7,0)),Energieverbrauch_Kennzahlen!$B$8:$C$13,2,FALSE)) ->  | N67: =IF(G67 = "", "", VLOOKUP(INDEX(Kraftstoffart!$A$2:$A$7, MATCH('Berechnung Streckenabschnitt'!F67,Kraftstoffart!$B$2:$B$7,0)),Kohlendioxid_Kennzahlen!$B$2:$C$7,2,FALSE)) ->  | O67: =IF(G67 = "", "", VLOOKUP(INDEX(Kraftstoffart!$A$2:$A$7, MATCH('Berechnung Streckenabschnitt'!F67,Kraftstoffart!$B$2:$B$7,0)),Kohlendioxid_Kennzahlen!$B$8:$C$13,2,FALSE)) ->  | P67: =IF(G67 = "", "", VLOOKUP(INDEX(Kraftstoffart!$A$2:$A$7, MATCH('Berechnung Streckenabschnitt'!F67,Kraftstoffart!$B$2:$B$7,0)),Treibhausgas_Kennzahlen!$B$2:$C$7,2,FALSE)) ->  | Q67: =IF(G67 = "", "", VLOOKUP(INDEX(Kraftstoffart!$A$2:$A$7, MATCH('Berechnung Streckenabschnitt'!F67,Kraftstoffart!$B$2:$B$7,0)),Treibhausgas_Kennzahlen!$B$8:$C$13,2,FALSE)) -> 
H68: =IF(G68 = "", "", VLOOKUP(INDEX(FahrzeugartID,MATCH('Berechnung Streckenabschnitt'!C68,Fahrzeugart!$B$2:$B$5,0))&"_"&INDEX(GutartID,MATCH('Berechnung Streckenabschnitt'!B68,Gutart!$B$2:$B$4,0)),Frachtgewichte!$C$2:$D$13,2,FALSE)) ->  | I68: =IF(G68 = "", "", VLOOKUP(INDEX(LängsneigungsartID,MATCH('Berechnung Streckenabschnitt'!D68,Längsneigungsart!$B$2:$B$3,0))&"_"&INDEX(GutartID,MATCH('Berechnung Streckenabschnitt'!B68,Gutart!$B$2:$B$4,0))&"_"&INDEX(FahrzeugartID,MATCH('Berechnung Streckenabschnitt'!C68,Fahrzeugart!$B$2:$B$5,0)),Energieverbrauch!$D$2:$E$25,2,FALSE)) ->  | J68: =IF(G68 = "", "", IF(E68="Innerorts",VLOOKUP(INDEX(FahrzeugartID,MATCH('Berechnung Streckenabschnitt'!C68,Fahrzeugart!$B$2:$B$5,0)),Korrekturfaktoren!$A$2:$B$5,2,FALSE),1)) ->  | K68: =IF(G68 = "", "", PRODUCT(J68,H68,G68,I68)) ->  | L68: =IF(G68 = "", "", VLOOKUP(INDEX(Kraftstoffart!$A$2:$A$7, MATCH('Berechnung Streckenabschnitt'!F68,Kraftstoffart!$B$2:$B$7,0)),Energieverbrauch_Kennzahlen!$B$2:$C$7,2,FALSE)) ->  | M68: =IF(G68 = "", "", VLOOKUP(INDEX(Kraftstoffart!$A$2:$A$7, MATCH('Berechnung Streckenabschnitt'!F68,Kraftstoffart!$B$2:$B$7,0)),Energieverbrauch_Kennzahlen!$B$8:$C$13,2,FALSE)) ->  | N68: =IF(G68 = "", "", VLOOKUP(INDEX(Kraftstoffart!$A$2:$A$7, MATCH('Berechnung Streckenabschnitt'!F68,Kraftstoffart!$B$2:$B$7,0)),Kohlendioxid_Kennzahlen!$B$2:$C$7,2,FALSE)) ->  | O68: =IF(G68 = "", "", VLOOKUP(INDEX(Kraftstoffart!$A$2:$A$7, MATCH('Berechnung Streckenabschnitt'!F68,Kraftstoffart!$B$2:$B$7,0)),Kohlendioxid_Kennzahlen!$B$8:$C$13,2,FALSE)) ->  | P68: =IF(G68 = "", "", VLOOKUP(INDEX(Kraftstoffart!$A$2:$A$7, MATCH('Berechnung Streckenabschnitt'!F68,Kraftstoffart!$B$2:$B$7,0)),Treibhausgas_Kennzahlen!$B$2:$C$7,2,FALSE)) ->  | Q68: =IF(G68 = "", "", VLOOKUP(INDEX(Kraftstoffart!$A$2:$A$7, MATCH('Berechnung Streckenabschnitt'!F68,Kraftstoffart!$B$2:$B$7,0)),Treibhausgas_Kennzahlen!$B$8:$C$13,2,FALSE)) ->  | R68: =IF(G68 = "", "", PRODUCT(K68,L68)) ->  | S68: =IF(I68 = "", "", PRODUCT(K68,M68)) ->  | T68: =IF(J68 = "", "", PRODUCT(K68,N68)) ->  | U68: =IF(H68 = "", "", PRODUCT(K68,O68)) -> 
H69: =IF(G69 = "", "", VLOOKUP(INDEX(FahrzeugartID,MATCH('Berechnung Streckenabschnitt'!C69,Fahrzeugart!$B$2:$B$5,0))&"_"&INDEX(GutartID,MATCH('Berechnung Streckenabschnitt'!B69,Gutart!$B$2:$B$4,0)),Frachtgewichte!$C$2:$D$13,2,FALSE)) ->  | I69: =IF(G69 = "", "", VLOOKUP(INDEX(LängsneigungsartID,MATCH('Berechnung Streckenabschnitt'!D69,Längsneigungsart!$B$2:$B$3,0))&"_"&INDEX(GutartID,MATCH('Berechnung Streckenabschnitt'!B69,Gutart!$B$2:$B$4,0))&"_"&INDEX(FahrzeugartID,MATCH('Berechnung Streckenabschnitt'!C69,Fahrzeugart!$B$2:$B$5,0)),Energieverbrauch!$D$2:$E$25,2,FALSE)) ->  | J69: =IF(G69 = "", "", IF(E69="Innerorts",VLOOKUP(INDEX(FahrzeugartID,MATCH('Berechnung Streckenabschnitt'!C69,Fahrzeugart!$B$2:$B$5,0)),Korrekturfaktoren!$A$2:$B$5,2,FALSE),1)) ->  | L69: =IF(G69 = "", "", VLOOKUP(INDEX(Kraftstoffart!$A$2:$A$7, MATCH('Berechnung Streckenabschnitt'!F69,Kraftstoffart!$B$2:$B$7,0)),Energieverbrauch_Kennzahlen!$B$2:$C$7,2,FALSE)) ->  | M69: =IF(G69 = "", "", VLOOKUP(INDEX(Kraftstoffart!$A$2:$A$7, MATCH('Berechnung Streckenabschnitt'!F69,Kraftstoffart!$B$2:$B$7,0)),Energieverbrauch_Kennzahlen!$B$8:$C$13,2,FALSE)) ->  | N69: =IF(G69 = "", "", VLOOKUP(INDEX(Kraftstoffart!$A$2:$A$7, MATCH('Berechnung Streckenabschnitt'!F69,Kraftstoffart!$B$2:$B$7,0)),Kohlendioxid_Kennzahlen!$B$2:$C$7,2,FALSE)) ->  | O69: =IF(G69 = "", "", VLOOKUP(INDEX(Kraftstoffart!$A$2:$A$7, MATCH('Berechnung Streckenabschnitt'!F69,Kraftstoffart!$B$2:$B$7,0)),Kohlendioxid_Kennzahlen!$B$8:$C$13,2,FALSE)) ->  | P69: =IF(G69 = "", "", VLOOKUP(INDEX(Kraftstoffart!$A$2:$A$7, MATCH('Berechnung Streckenabschnitt'!F69,Kraftstoffart!$B$2:$B$7,0)),Treibhausgas_Kennzahlen!$B$2:$C$7,2,FALSE)) ->  | Q69: =IF(G69 = "", "", VLOOKUP(INDEX(Kraftstoffart!$A$2:$A$7, MATCH('Berechnung Streckenabschnitt'!F69,Kraftstoffart!$B$2:$B$7,0)),Treibhausgas_Kennzahlen!$B$8:$C$13,2,FALSE)) ->  | V69: =IF(K69 = "", "", PRODUCT(K69,P69)) ->  | W69: =IF(L69 = "", "", PRODUCT(K69,Q69)) -> 
H70: =IF(G70 = "", "", VLOOKUP(INDEX(FahrzeugartID,MATCH('Berechnung Streckenabschnitt'!C70,Fahrzeugart!$B$2:$B$5,0))&"_"&INDEX(GutartID,MATCH('Berechnung Streckenabschnitt'!B70,Gutart!$B$2:$B$4,0)),Frachtgewichte!$C$2:$D$13,2,FALSE)) ->  | I70: =IF(G70 = "", "", VLOOKUP(INDEX(LängsneigungsartID,MATCH('Berechnung Streckenabschnitt'!D70,Längsneigungsart!$B$2:$B$3,0))&"_"&INDEX(GutartID,MATCH('Berechnung Streckenabschnitt'!B70,Gutart!$B$2:$B$4,0))&"_"&INDEX(FahrzeugartID,MATCH('Berechnung Streckenabschnitt'!C70,Fahrzeugart!$B$2:$B$5,0)),Energieverbrauch!$D$2:$E$25,2,FALSE)) ->  | J70: =IF(G70 = "", "", IF(E70="Innerorts",VLOOKUP(INDEX(FahrzeugartID,MATCH('Berechnung Streckenabschnitt'!C70,Fahrzeugart!$B$2:$B$5,0)),Korrekturfaktoren!$A$2:$B$5,2,FALSE),1)) ->  | L70: =IF(G70 = "", "", VLOOKUP(INDEX(Kraftstoffart!$A$2:$A$7, MATCH('Berechnung Streckenabschnitt'!F70,Kraftstoffart!$B$2:$B$7,0)),Energieverbrauch_Kennzahlen!$B$2:$C$7,2,FALSE)) ->  | M70: =IF(G70 = "", "", VLOOKUP(INDEX(Kraftstoffart!$A$2:$A$7, MATCH('Berechnung Streckenabschnitt'!F70,Kraftstoffart!$B$2:$B$7,0)),Energieverbrauch_Kennzahlen!$B$8:$C$13,2,FALSE)) ->  | N70: =IF(G70 = "", "", VLOOKUP(INDEX(Kraftstoffart!$A$2:$A$7, MATCH('Berechnung Streckenabschnitt'!F70,Kraftstoffart!$B$2:$B$7,0)),Kohlendioxid_Kennzahlen!$B$2:$C$7,2,FALSE)) ->  | O70: =IF(G70 = "", "", VLOOKUP(INDEX(Kraftstoffart!$A$2:$A$7, MATCH('Berechnung Streckenabschnitt'!F70,Kraftstoffart!$B$2:$B$7,0)),Kohlendioxid_Kennzahlen!$B$8:$C$13,2,FALSE)) ->  | P70: =IF(G70 = "", "", VLOOKUP(INDEX(Kraftstoffart!$A$2:$A$7, MATCH('Berechnung Streckenabschnitt'!F70,Kraftstoffart!$B$2:$B$7,0)),Treibhausgas_Kennzahlen!$B$2:$C$7,2,FALSE)) ->  | Q70: =IF(G70 = "", "", VLOOKUP(INDEX(Kraftstoffart!$A$2:$A$7, MATCH('Berechnung Streckenabschnitt'!F70,Kraftstoffart!$B$2:$B$7,0)),Treibhausgas_Kennzahlen!$B$8:$C$13,2,FALSE)) -> 
H71: =IF(G71 = "", "", VLOOKUP(INDEX(FahrzeugartID,MATCH('Berechnung Streckenabschnitt'!C71,Fahrzeugart!$B$2:$B$5,0))&"_"&INDEX(GutartID,MATCH('Berechnung Streckenabschnitt'!B71,Gutart!$B$2:$B$4,0)),Frachtgewichte!$C$2:$D$13,2,FALSE)) ->  | I71: =IF(G71 = "", "", VLOOKUP(INDEX(LängsneigungsartID,MATCH('Berechnung Streckenabschnitt'!D71,Längsneigungsart!$B$2:$B$3,0))&"_"&INDEX(GutartID,MATCH('Berechnung Streckenabschnitt'!B71,Gutart!$B$2:$B$4,0))&"_"&INDEX(FahrzeugartID,MATCH('Berechnung Streckenabschnitt'!C71,Fahrzeugart!$B$2:$B$5,0)),Energieverbrauch!$D$2:$E$25,2,FALSE)) ->  | J71: =IF(G71 = "", "", IF(E71="Innerorts",VLOOKUP(INDEX(FahrzeugartID,MATCH('Berechnung Streckenabschnitt'!C71,Fahrzeugart!$B$2:$B$5,0)),Korrekturfaktoren!$A$2:$B$5,2,FALSE),1)) ->  | L71: =IF(G71 = "", "", VLOOKUP(INDEX(Kraftstoffart!$A$2:$A$7, MATCH('Berechnung Streckenabschnitt'!F71,Kraftstoffart!$B$2:$B$7,0)),Energieverbrauch_Kennzahlen!$B$2:$C$7,2,FALSE)) ->  | M71: =IF(G71 = "", "", VLOOKUP(INDEX(Kraftstoffart!$A$2:$A$7, MATCH('Berechnung Streckenabschnitt'!F71,Kraftstoffart!$B$2:$B$7,0)),Energieverbrauch_Kennzahlen!$B$8:$C$13,2,FALSE)) ->  | N71: =IF(G71 = "", "", VLOOKUP(INDEX(Kraftstoffart!$A$2:$A$7, MATCH('Berechnung Streckenabschnitt'!F71,Kraftstoffart!$B$2:$B$7,0)),Kohlendioxid_Kennzahlen!$B$2:$C$7,2,FALSE)) ->  | O71: =IF(G71 = "", "", VLOOKUP(INDEX(Kraftstoffart!$A$2:$A$7, MATCH('Berechnung Streckenabschnitt'!F71,Kraftstoffart!$B$2:$B$7,0)),Kohlendioxid_Kennzahlen!$B$8:$C$13,2,FALSE)) ->  | P71: =IF(G71 = "", "", VLOOKUP(INDEX(Kraftstoffart!$A$2:$A$7, MATCH('Berechnung Streckenabschnitt'!F71,Kraftstoffart!$B$2:$B$7,0)),Treibhausgas_Kennzahlen!$B$2:$C$7,2,FALSE)) ->  | Q71: =IF(G71 = "", "", VLOOKUP(INDEX(Kraftstoffart!$A$2:$A$7, MATCH('Berechnung Streckenabschnitt'!F71,Kraftstoffart!$B$2:$B$7,0)),Treibhausgas_Kennzahlen!$B$8:$C$13,2,FALSE)) -> 
H72: =IF(G72 = "", "", VLOOKUP(INDEX(FahrzeugartID,MATCH('Berechnung Streckenabschnitt'!C72,Fahrzeugart!$B$2:$B$5,0))&"_"&INDEX(GutartID,MATCH('Berechnung Streckenabschnitt'!B72,Gutart!$B$2:$B$4,0)),Frachtgewichte!$C$2:$D$13,2,FALSE)) ->  | I72: =IF(G72 = "", "", VLOOKUP(INDEX(LängsneigungsartID,MATCH('Berechnung Streckenabschnitt'!D72,Längsneigungsart!$B$2:$B$3,0))&"_"&INDEX(GutartID,MATCH('Berechnung Streckenabschnitt'!B72,Gutart!$B$2:$B$4,0))&"_"&INDEX(FahrzeugartID,MATCH('Berechnung Streckenabschnitt'!C72,Fahrzeugart!$B$2:$B$5,0)),Energieverbrauch!$D$2:$E$25,2,FALSE)) ->  | J72: =IF(G72 = "", "", IF(E72="Innerorts",VLOOKUP(INDEX(FahrzeugartID,MATCH('Berechnung Streckenabschnitt'!C72,Fahrzeugart!$B$2:$B$5,0)),Korrekturfaktoren!$A$2:$B$5,2,FALSE),1)) ->  | L72: =IF(G72 = "", "", VLOOKUP(INDEX(Kraftstoffart!$A$2:$A$7, MATCH('Berechnung Streckenabschnitt'!F72,Kraftstoffart!$B$2:$B$7,0)),Energieverbrauch_Kennzahlen!$B$2:$C$7,2,FALSE)) ->  | M72: =IF(G72 = "", "", VLOOKUP(INDEX(Kraftstoffart!$A$2:$A$7, MATCH('Berechnung Streckenabschnitt'!F72,Kraftstoffart!$B$2:$B$7,0)),Energieverbrauch_Kennzahlen!$B$8:$C$13,2,FALSE)) ->  | N72: =IF(G72 = "", "", VLOOKUP(INDEX(Kraftstoffart!$A$2:$A$7, MATCH('Berechnung Streckenabschnitt'!F72,Kraftstoffart!$B$2:$B$7,0)),Kohlendioxid_Kennzahlen!$B$2:$C$7,2,FALSE)) ->  | O72: =IF(G72 = "", "", VLOOKUP(INDEX(Kraftstoffart!$A$2:$A$7, MATCH('Berechnung Streckenabschnitt'!F72,Kraftstoffart!$B$2:$B$7,0)),Kohlendioxid_Kennzahlen!$B$8:$C$13,2,FALSE)) ->  | P72: =IF(G72 = "", "", VLOOKUP(INDEX(Kraftstoffart!$A$2:$A$7, MATCH('Berechnung Streckenabschnitt'!F72,Kraftstoffart!$B$2:$B$7,0)),Treibhausgas_Kennzahlen!$B$2:$C$7,2,FALSE)) ->  | Q72: =IF(G72 = "", "", VLOOKUP(INDEX(Kraftstoffart!$A$2:$A$7, MATCH('Berechnung Streckenabschnitt'!F72,Kraftstoffart!$B$2:$B$7,0)),Treibhausgas_Kennzahlen!$B$8:$C$13,2,FALSE)) -> 
H73: =IF(G73 = "", "", VLOOKUP(INDEX(FahrzeugartID,MATCH('Berechnung Streckenabschnitt'!C73,Fahrzeugart!$B$2:$B$5,0))&"_"&INDEX(GutartID,MATCH('Berechnung Streckenabschnitt'!B73,Gutart!$B$2:$B$4,0)),Frachtgewichte!$C$2:$D$13,2,FALSE)) ->  | I73: =IF(G73 = "", "", VLOOKUP(INDEX(LängsneigungsartID,MATCH('Berechnung Streckenabschnitt'!D73,Längsneigungsart!$B$2:$B$3,0))&"_"&INDEX(GutartID,MATCH('Berechnung Streckenabschnitt'!B73,Gutart!$B$2:$B$4,0))&"_"&INDEX(FahrzeugartID,MATCH('Berechnung Streckenabschnitt'!C73,Fahrzeugart!$B$2:$B$5,0)),Energieverbrauch!$D$2:$E$25,2,FALSE)) ->  | J73: =IF(G73 = "", "", IF(E73="Innerorts",VLOOKUP(INDEX(FahrzeugartID,MATCH('Berechnung Streckenabschnitt'!C73,Fahrzeugart!$B$2:$B$5,0)),Korrekturfaktoren!$A$2:$B$5,2,FALSE),1)) ->  | L73: =IF(G73 = "", "", VLOOKUP(INDEX(Kraftstoffart!$A$2:$A$7, MATCH('Berechnung Streckenabschnitt'!F73,Kraftstoffart!$B$2:$B$7,0)),Energieverbrauch_Kennzahlen!$B$2:$C$7,2,FALSE)) ->  | M73: =IF(G73 = "", "", VLOOKUP(INDEX(Kraftstoffart!$A$2:$A$7, MATCH('Berechnung Streckenabschnitt'!F73,Kraftstoffart!$B$2:$B$7,0)),Energieverbrauch_Kennzahlen!$B$8:$C$13,2,FALSE)) ->  | N73: =IF(G73 = "", "", VLOOKUP(INDEX(Kraftstoffart!$A$2:$A$7, MATCH('Berechnung Streckenabschnitt'!F73,Kraftstoffart!$B$2:$B$7,0)),Kohlendioxid_Kennzahlen!$B$2:$C$7,2,FALSE)) ->  | O73: =IF(G73 = "", "", VLOOKUP(INDEX(Kraftstoffart!$A$2:$A$7, MATCH('Berechnung Streckenabschnitt'!F73,Kraftstoffart!$B$2:$B$7,0)),Kohlendioxid_Kennzahlen!$B$8:$C$13,2,FALSE)) ->  | P73: =IF(G73 = "", "", VLOOKUP(INDEX(Kraftstoffart!$A$2:$A$7, MATCH('Berechnung Streckenabschnitt'!F73,Kraftstoffart!$B$2:$B$7,0)),Treibhausgas_Kennzahlen!$B$2:$C$7,2,FALSE)) ->  | Q73: =IF(G73 = "", "", VLOOKUP(INDEX(Kraftstoffart!$A$2:$A$7, MATCH('Berechnung Streckenabschnitt'!F73,Kraftstoffart!$B$2:$B$7,0)),Treibhausgas_Kennzahlen!$B$8:$C$13,2,FALSE)) -> 
H74: =IF(G74 = "", "", VLOOKUP(INDEX(FahrzeugartID,MATCH('Berechnung Streckenabschnitt'!C74,Fahrzeugart!$B$2:$B$5,0))&"_"&INDEX(GutartID,MATCH('Berechnung Streckenabschnitt'!B74,Gutart!$B$2:$B$4,0)),Frachtgewichte!$C$2:$D$13,2,FALSE)) ->  | I74: =IF(G74 = "", "", VLOOKUP(INDEX(LängsneigungsartID,MATCH('Berechnung Streckenabschnitt'!D74,Längsneigungsart!$B$2:$B$3,0))&"_"&INDEX(GutartID,MATCH('Berechnung Streckenabschnitt'!B74,Gutart!$B$2:$B$4,0))&"_"&INDEX(FahrzeugartID,MATCH('Berechnung Streckenabschnitt'!C74,Fahrzeugart!$B$2:$B$5,0)),Energieverbrauch!$D$2:$E$25,2,FALSE)) ->  | J74: =IF(G74 = "", "", IF(E74="Innerorts",VLOOKUP(INDEX(FahrzeugartID,MATCH('Berechnung Streckenabschnitt'!C74,Fahrzeugart!$B$2:$B$5,0)),Korrekturfaktoren!$A$2:$B$5,2,FALSE),1)) ->  | L74: =IF(G74 = "", "", VLOOKUP(INDEX(Kraftstoffart!$A$2:$A$7, MATCH('Berechnung Streckenabschnitt'!F74,Kraftstoffart!$B$2:$B$7,0)),Energieverbrauch_Kennzahlen!$B$2:$C$7,2,FALSE)) ->  | M74: =IF(G74 = "", "", VLOOKUP(INDEX(Kraftstoffart!$A$2:$A$7, MATCH('Berechnung Streckenabschnitt'!F74,Kraftstoffart!$B$2:$B$7,0)),Energieverbrauch_Kennzahlen!$B$8:$C$13,2,FALSE)) ->  | N74: =IF(G74 = "", "", VLOOKUP(INDEX(Kraftstoffart!$A$2:$A$7, MATCH('Berechnung Streckenabschnitt'!F74,Kraftstoffart!$B$2:$B$7,0)),Kohlendioxid_Kennzahlen!$B$2:$C$7,2,FALSE)) ->  | O74: =IF(G74 = "", "", VLOOKUP(INDEX(Kraftstoffart!$A$2:$A$7, MATCH('Berechnung Streckenabschnitt'!F74,Kraftstoffart!$B$2:$B$7,0)),Kohlendioxid_Kennzahlen!$B$8:$C$13,2,FALSE)) ->  | P74: =IF(G74 = "", "", VLOOKUP(INDEX(Kraftstoffart!$A$2:$A$7, MATCH('Berechnung Streckenabschnitt'!F74,Kraftstoffart!$B$2:$B$7,0)),Treibhausgas_Kennzahlen!$B$2:$C$7,2,FALSE)) ->  | Q74: =IF(G74 = "", "", VLOOKUP(INDEX(Kraftstoffart!$A$2:$A$7, MATCH('Berechnung Streckenabschnitt'!F74,Kraftstoffart!$B$2:$B$7,0)),Treibhausgas_Kennzahlen!$B$8:$C$13,2,FALSE)) -> 
H75: =IF(G75 = "", "", VLOOKUP(INDEX(FahrzeugartID,MATCH('Berechnung Streckenabschnitt'!C75,Fahrzeugart!$B$2:$B$5,0))&"_"&INDEX(GutartID,MATCH('Berechnung Streckenabschnitt'!B75,Gutart!$B$2:$B$4,0)),Frachtgewichte!$C$2:$D$13,2,FALSE)) ->  | I75: =IF(G75 = "", "", VLOOKUP(INDEX(LängsneigungsartID,MATCH('Berechnung Streckenabschnitt'!D75,Längsneigungsart!$B$2:$B$3,0))&"_"&INDEX(GutartID,MATCH('Berechnung Streckenabschnitt'!B75,Gutart!$B$2:$B$4,0))&"_"&INDEX(FahrzeugartID,MATCH('Berechnung Streckenabschnitt'!C75,Fahrzeugart!$B$2:$B$5,0)),Energieverbrauch!$D$2:$E$25,2,FALSE)) ->  | J75: =IF(G75 = "", "", IF(E75="Innerorts",VLOOKUP(INDEX(FahrzeugartID,MATCH('Berechnung Streckenabschnitt'!C75,Fahrzeugart!$B$2:$B$5,0)),Korrekturfaktoren!$A$2:$B$5,2,FALSE),1)) ->  | L75: =IF(G75 = "", "", VLOOKUP(INDEX(Kraftstoffart!$A$2:$A$7, MATCH('Berechnung Streckenabschnitt'!F75,Kraftstoffart!$B$2:$B$7,0)),Energieverbrauch_Kennzahlen!$B$2:$C$7,2,FALSE)) ->  | M75: =IF(G75 = "", "", VLOOKUP(INDEX(Kraftstoffart!$A$2:$A$7, MATCH('Berechnung Streckenabschnitt'!F75,Kraftstoffart!$B$2:$B$7,0)),Energieverbrauch_Kennzahlen!$B$8:$C$13,2,FALSE)) ->  | N75: =IF(G75 = "", "", VLOOKUP(INDEX(Kraftstoffart!$A$2:$A$7, MATCH('Berechnung Streckenabschnitt'!F75,Kraftstoffart!$B$2:$B$7,0)),Kohlendioxid_Kennzahlen!$B$2:$C$7,2,FALSE)) ->  | O75: =IF(G75 = "", "", VLOOKUP(INDEX(Kraftstoffart!$A$2:$A$7, MATCH('Berechnung Streckenabschnitt'!F75,Kraftstoffart!$B$2:$B$7,0)),Kohlendioxid_Kennzahlen!$B$8:$C$13,2,FALSE)) ->  | P75: =IF(G75 = "", "", VLOOKUP(INDEX(Kraftstoffart!$A$2:$A$7, MATCH('Berechnung Streckenabschnitt'!F75,Kraftstoffart!$B$2:$B$7,0)),Treibhausgas_Kennzahlen!$B$2:$C$7,2,FALSE)) ->  | Q75: =IF(G75 = "", "", VLOOKUP(INDEX(Kraftstoffart!$A$2:$A$7, MATCH('Berechnung Streckenabschnitt'!F75,Kraftstoffart!$B$2:$B$7,0)),Treibhausgas_Kennzahlen!$B$8:$C$13,2,FALSE)) -> 
H76: =IF(G76 = "", "", VLOOKUP(INDEX(FahrzeugartID,MATCH('Berechnung Streckenabschnitt'!C76,Fahrzeugart!$B$2:$B$5,0))&"_"&INDEX(GutartID,MATCH('Berechnung Streckenabschnitt'!B76,Gutart!$B$2:$B$4,0)),Frachtgewichte!$C$2:$D$13,2,FALSE)) ->  | I76: =IF(G76 = "", "", VLOOKUP(INDEX(LängsneigungsartID,MATCH('Berechnung Streckenabschnitt'!D76,Längsneigungsart!$B$2:$B$3,0))&"_"&INDEX(GutartID,MATCH('Berechnung Streckenabschnitt'!B76,Gutart!$B$2:$B$4,0))&"_"&INDEX(FahrzeugartID,MATCH('Berechnung Streckenabschnitt'!C76,Fahrzeugart!$B$2:$B$5,0)),Energieverbrauch!$D$2:$E$25,2,FALSE)) ->  | J76: =IF(G76 = "", "", IF(E76="Innerorts",VLOOKUP(INDEX(FahrzeugartID,MATCH('Berechnung Streckenabschnitt'!C76,Fahrzeugart!$B$2:$B$5,0)),Korrekturfaktoren!$A$2:$B$5,2,FALSE),1)) ->  | L76: =IF(G76 = "", "", VLOOKUP(INDEX(Kraftstoffart!$A$2:$A$7, MATCH('Berechnung Streckenabschnitt'!F76,Kraftstoffart!$B$2:$B$7,0)),Energieverbrauch_Kennzahlen!$B$2:$C$7,2,FALSE)) ->  | M76: =IF(G76 = "", "", VLOOKUP(INDEX(Kraftstoffart!$A$2:$A$7, MATCH('Berechnung Streckenabschnitt'!F76,Kraftstoffart!$B$2:$B$7,0)),Energieverbrauch_Kennzahlen!$B$8:$C$13,2,FALSE)) ->  | N76: =IF(G76 = "", "", VLOOKUP(INDEX(Kraftstoffart!$A$2:$A$7, MATCH('Berechnung Streckenabschnitt'!F76,Kraftstoffart!$B$2:$B$7,0)),Kohlendioxid_Kennzahlen!$B$2:$C$7,2,FALSE)) ->  | O76: =IF(G76 = "", "", VLOOKUP(INDEX(Kraftstoffart!$A$2:$A$7, MATCH('Berechnung Streckenabschnitt'!F76,Kraftstoffart!$B$2:$B$7,0)),Kohlendioxid_Kennzahlen!$B$8:$C$13,2,FALSE)) ->  | P76: =IF(G76 = "", "", VLOOKUP(INDEX(Kraftstoffart!$A$2:$A$7, MATCH('Berechnung Streckenabschnitt'!F76,Kraftstoffart!$B$2:$B$7,0)),Treibhausgas_Kennzahlen!$B$2:$C$7,2,FALSE)) ->  | Q76: =IF(G76 = "", "", VLOOKUP(INDEX(Kraftstoffart!$A$2:$A$7, MATCH('Berechnung Streckenabschnitt'!F76,Kraftstoffart!$B$2:$B$7,0)),Treibhausgas_Kennzahlen!$B$8:$C$13,2,FALSE)) -> 
H77: =IF(G77 = "", "", VLOOKUP(INDEX(FahrzeugartID,MATCH('Berechnung Streckenabschnitt'!C77,Fahrzeugart!$B$2:$B$5,0))&"_"&INDEX(GutartID,MATCH('Berechnung Streckenabschnitt'!B77,Gutart!$B$2:$B$4,0)),Frachtgewichte!$C$2:$D$13,2,FALSE)) ->  | I77: =IF(G77 = "", "", VLOOKUP(INDEX(LängsneigungsartID,MATCH('Berechnung Streckenabschnitt'!D77,Längsneigungsart!$B$2:$B$3,0))&"_"&INDEX(GutartID,MATCH('Berechnung Streckenabschnitt'!B77,Gutart!$B$2:$B$4,0))&"_"&INDEX(FahrzeugartID,MATCH('Berechnung Streckenabschnitt'!C77,Fahrzeugart!$B$2:$B$5,0)),Energieverbrauch!$D$2:$E$25,2,FALSE)) ->  | J77: =IF(G77 = "", "", IF(E77="Innerorts",VLOOKUP(INDEX(FahrzeugartID,MATCH('Berechnung Streckenabschnitt'!C77,Fahrzeugart!$B$2:$B$5,0)),Korrekturfaktoren!$A$2:$B$5,2,FALSE),1)) ->  | L77: =IF(G77 = "", "", VLOOKUP(INDEX(Kraftstoffart!$A$2:$A$7, MATCH('Berechnung Streckenabschnitt'!F77,Kraftstoffart!$B$2:$B$7,0)),Energieverbrauch_Kennzahlen!$B$2:$C$7,2,FALSE)) ->  | M77: =IF(G77 = "", "", VLOOKUP(INDEX(Kraftstoffart!$A$2:$A$7, MATCH('Berechnung Streckenabschnitt'!F77,Kraftstoffart!$B$2:$B$7,0)),Energieverbrauch_Kennzahlen!$B$8:$C$13,2,FALSE)) ->  | N77: =IF(G77 = "", "", VLOOKUP(INDEX(Kraftstoffart!$A$2:$A$7, MATCH('Berechnung Streckenabschnitt'!F77,Kraftstoffart!$B$2:$B$7,0)),Kohlendioxid_Kennzahlen!$B$2:$C$7,2,FALSE)) ->  | O77: =IF(G77 = "", "", VLOOKUP(INDEX(Kraftstoffart!$A$2:$A$7, MATCH('Berechnung Streckenabschnitt'!F77,Kraftstoffart!$B$2:$B$7,0)),Kohlendioxid_Kennzahlen!$B$8:$C$13,2,FALSE)) ->  | P77: =IF(G77 = "", "", VLOOKUP(INDEX(Kraftstoffart!$A$2:$A$7, MATCH('Berechnung Streckenabschnitt'!F77,Kraftstoffart!$B$2:$B$7,0)),Treibhausgas_Kennzahlen!$B$2:$C$7,2,FALSE)) ->  | Q77: =IF(G77 = "", "", VLOOKUP(INDEX(Kraftstoffart!$A$2:$A$7, MATCH('Berechnung Streckenabschnitt'!F77,Kraftstoffart!$B$2:$B$7,0)),Treibhausgas_Kennzahlen!$B$8:$C$13,2,FALSE)) -> 
H78: =IF(G78 = "", "", VLOOKUP(INDEX(FahrzeugartID,MATCH('Berechnung Streckenabschnitt'!C78,Fahrzeugart!$B$2:$B$5,0))&"_"&INDEX(GutartID,MATCH('Berechnung Streckenabschnitt'!B78,Gutart!$B$2:$B$4,0)),Frachtgewichte!$C$2:$D$13,2,FALSE)) ->  | I78: =IF(G78 = "", "", VLOOKUP(INDEX(LängsneigungsartID,MATCH('Berechnung Streckenabschnitt'!D78,Längsneigungsart!$B$2:$B$3,0))&"_"&INDEX(GutartID,MATCH('Berechnung Streckenabschnitt'!B78,Gutart!$B$2:$B$4,0))&"_"&INDEX(FahrzeugartID,MATCH('Berechnung Streckenabschnitt'!C78,Fahrzeugart!$B$2:$B$5,0)),Energieverbrauch!$D$2:$E$25,2,FALSE)) ->  | J78: =IF(G78 = "", "", IF(E78="Innerorts",VLOOKUP(INDEX(FahrzeugartID,MATCH('Berechnung Streckenabschnitt'!C78,Fahrzeugart!$B$2:$B$5,0)),Korrekturfaktoren!$A$2:$B$5,2,FALSE),1)) ->  | L78: =IF(G78 = "", "", VLOOKUP(INDEX(Kraftstoffart!$A$2:$A$7, MATCH('Berechnung Streckenabschnitt'!F78,Kraftstoffart!$B$2:$B$7,0)),Energieverbrauch_Kennzahlen!$B$2:$C$7,2,FALSE)) ->  | M78: =IF(G78 = "", "", VLOOKUP(INDEX(Kraftstoffart!$A$2:$A$7, MATCH('Berechnung Streckenabschnitt'!F78,Kraftstoffart!$B$2:$B$7,0)),Energieverbrauch_Kennzahlen!$B$8:$C$13,2,FALSE)) ->  | N78: =IF(G78 = "", "", VLOOKUP(INDEX(Kraftstoffart!$A$2:$A$7, MATCH('Berechnung Streckenabschnitt'!F78,Kraftstoffart!$B$2:$B$7,0)),Kohlendioxid_Kennzahlen!$B$2:$C$7,2,FALSE)) ->  | O78: =IF(G78 = "", "", VLOOKUP(INDEX(Kraftstoffart!$A$2:$A$7, MATCH('Berechnung Streckenabschnitt'!F78,Kraftstoffart!$B$2:$B$7,0)),Kohlendioxid_Kennzahlen!$B$8:$C$13,2,FALSE)) ->  | P78: =IF(G78 = "", "", VLOOKUP(INDEX(Kraftstoffart!$A$2:$A$7, MATCH('Berechnung Streckenabschnitt'!F78,Kraftstoffart!$B$2:$B$7,0)),Treibhausgas_Kennzahlen!$B$2:$C$7,2,FALSE)) ->  | Q78: =IF(G78 = "", "", VLOOKUP(INDEX(Kraftstoffart!$A$2:$A$7, MATCH('Berechnung Streckenabschnitt'!F78,Kraftstoffart!$B$2:$B$7,0)),Treibhausgas_Kennzahlen!$B$8:$C$13,2,FALSE)) -> 
H79: =IF(G79 = "", "", VLOOKUP(INDEX(FahrzeugartID,MATCH('Berechnung Streckenabschnitt'!C79,Fahrzeugart!$B$2:$B$5,0))&"_"&INDEX(GutartID,MATCH('Berechnung Streckenabschnitt'!B79,Gutart!$B$2:$B$4,0)),Frachtgewichte!$C$2:$D$13,2,FALSE)) ->  | I79: =IF(G79 = "", "", VLOOKUP(INDEX(LängsneigungsartID,MATCH('Berechnung Streckenabschnitt'!D79,Längsneigungsart!$B$2:$B$3,0))&"_"&INDEX(GutartID,MATCH('Berechnung Streckenabschnitt'!B79,Gutart!$B$2:$B$4,0))&"_"&INDEX(FahrzeugartID,MATCH('Berechnung Streckenabschnitt'!C79,Fahrzeugart!$B$2:$B$5,0)),Energieverbrauch!$D$2:$E$25,2,FALSE)) ->  | J79: =IF(G79 = "", "", IF(E79="Innerorts",VLOOKUP(INDEX(FahrzeugartID,MATCH('Berechnung Streckenabschnitt'!C79,Fahrzeugart!$B$2:$B$5,0)),Korrekturfaktoren!$A$2:$B$5,2,FALSE),1)) ->  | L79: =IF(G79 = "", "", VLOOKUP(INDEX(Kraftstoffart!$A$2:$A$7, MATCH('Berechnung Streckenabschnitt'!F79,Kraftstoffart!$B$2:$B$7,0)),Energieverbrauch_Kennzahlen!$B$2:$C$7,2,FALSE)) ->  | M79: =IF(G79 = "", "", VLOOKUP(INDEX(Kraftstoffart!$A$2:$A$7, MATCH('Berechnung Streckenabschnitt'!F79,Kraftstoffart!$B$2:$B$7,0)),Energieverbrauch_Kennzahlen!$B$8:$C$13,2,FALSE)) ->  | N79: =IF(G79 = "", "", VLOOKUP(INDEX(Kraftstoffart!$A$2:$A$7, MATCH('Berechnung Streckenabschnitt'!F79,Kraftstoffart!$B$2:$B$7,0)),Kohlendioxid_Kennzahlen!$B$2:$C$7,2,FALSE)) ->  | O79: =IF(G79 = "", "", VLOOKUP(INDEX(Kraftstoffart!$A$2:$A$7, MATCH('Berechnung Streckenabschnitt'!F79,Kraftstoffart!$B$2:$B$7,0)),Kohlendioxid_Kennzahlen!$B$8:$C$13,2,FALSE)) ->  | P79: =IF(G79 = "", "", VLOOKUP(INDEX(Kraftstoffart!$A$2:$A$7, MATCH('Berechnung Streckenabschnitt'!F79,Kraftstoffart!$B$2:$B$7,0)),Treibhausgas_Kennzahlen!$B$2:$C$7,2,FALSE)) ->  | Q79: =IF(G79 = "", "", VLOOKUP(INDEX(Kraftstoffart!$A$2:$A$7, MATCH('Berechnung Streckenabschnitt'!F79,Kraftstoffart!$B$2:$B$7,0)),Treibhausgas_Kennzahlen!$B$8:$C$13,2,FALSE)) -> 
H80: =IF(G80 = "", "", VLOOKUP(INDEX(FahrzeugartID,MATCH('Berechnung Streckenabschnitt'!C80,Fahrzeugart!$B$2:$B$5,0))&"_"&INDEX(GutartID,MATCH('Berechnung Streckenabschnitt'!B80,Gutart!$B$2:$B$4,0)),Frachtgewichte!$C$2:$D$13,2,FALSE)) ->  | I80: =IF(G80 = "", "", VLOOKUP(INDEX(LängsneigungsartID,MATCH('Berechnung Streckenabschnitt'!D80,Längsneigungsart!$B$2:$B$3,0))&"_"&INDEX(GutartID,MATCH('Berechnung Streckenabschnitt'!B80,Gutart!$B$2:$B$4,0))&"_"&INDEX(FahrzeugartID,MATCH('Berechnung Streckenabschnitt'!C80,Fahrzeugart!$B$2:$B$5,0)),Energieverbrauch!$D$2:$E$25,2,FALSE)) ->  | J80: =IF(G80 = "", "", IF(E80="Innerorts",VLOOKUP(INDEX(FahrzeugartID,MATCH('Berechnung Streckenabschnitt'!C80,Fahrzeugart!$B$2:$B$5,0)),Korrekturfaktoren!$A$2:$B$5,2,FALSE),1)) ->  | L80: =IF(G80 = "", "", VLOOKUP(INDEX(Kraftstoffart!$A$2:$A$7, MATCH('Berechnung Streckenabschnitt'!F80,Kraftstoffart!$B$2:$B$7,0)),Energieverbrauch_Kennzahlen!$B$2:$C$7,2,FALSE)) ->  | M80: =IF(G80 = "", "", VLOOKUP(INDEX(Kraftstoffart!$A$2:$A$7, MATCH('Berechnung Streckenabschnitt'!F80,Kraftstoffart!$B$2:$B$7,0)),Energieverbrauch_Kennzahlen!$B$8:$C$13,2,FALSE)) ->  | N80: =IF(G80 = "", "", VLOOKUP(INDEX(Kraftstoffart!$A$2:$A$7, MATCH('Berechnung Streckenabschnitt'!F80,Kraftstoffart!$B$2:$B$7,0)),Kohlendioxid_Kennzahlen!$B$2:$C$7,2,FALSE)) ->  | O80: =IF(G80 = "", "", VLOOKUP(INDEX(Kraftstoffart!$A$2:$A$7, MATCH('Berechnung Streckenabschnitt'!F80,Kraftstoffart!$B$2:$B$7,0)),Kohlendioxid_Kennzahlen!$B$8:$C$13,2,FALSE)) ->  | P80: =IF(G80 = "", "", VLOOKUP(INDEX(Kraftstoffart!$A$2:$A$7, MATCH('Berechnung Streckenabschnitt'!F80,Kraftstoffart!$B$2:$B$7,0)),Treibhausgas_Kennzahlen!$B$2:$C$7,2,FALSE)) ->  | Q80: =IF(G80 = "", "", VLOOKUP(INDEX(Kraftstoffart!$A$2:$A$7, MATCH('Berechnung Streckenabschnitt'!F80,Kraftstoffart!$B$2:$B$7,0)),Treibhausgas_Kennzahlen!$B$8:$C$13,2,FALSE)) -> 
H81: =IF(G81 = "", "", VLOOKUP(INDEX(FahrzeugartID,MATCH('Berechnung Streckenabschnitt'!C81,Fahrzeugart!$B$2:$B$5,0))&"_"&INDEX(GutartID,MATCH('Berechnung Streckenabschnitt'!B81,Gutart!$B$2:$B$4,0)),Frachtgewichte!$C$2:$D$13,2,FALSE)) ->  | I81: =IF(G81 = "", "", VLOOKUP(INDEX(LängsneigungsartID,MATCH('Berechnung Streckenabschnitt'!D81,Längsneigungsart!$B$2:$B$3,0))&"_"&INDEX(GutartID,MATCH('Berechnung Streckenabschnitt'!B81,Gutart!$B$2:$B$4,0))&"_"&INDEX(FahrzeugartID,MATCH('Berechnung Streckenabschnitt'!C81,Fahrzeugart!$B$2:$B$5,0)),Energieverbrauch!$D$2:$E$25,2,FALSE)) ->  | J81: =IF(G81 = "", "", IF(E81="Innerorts",VLOOKUP(INDEX(FahrzeugartID,MATCH('Berechnung Streckenabschnitt'!C81,Fahrzeugart!$B$2:$B$5,0)),Korrekturfaktoren!$A$2:$B$5,2,FALSE),1)) ->  | L81: =IF(G81 = "", "", VLOOKUP(INDEX(Kraftstoffart!$A$2:$A$7, MATCH('Berechnung Streckenabschnitt'!F81,Kraftstoffart!$B$2:$B$7,0)),Energieverbrauch_Kennzahlen!$B$2:$C$7,2,FALSE)) ->  | M81: =IF(G81 = "", "", VLOOKUP(INDEX(Kraftstoffart!$A$2:$A$7, MATCH('Berechnung Streckenabschnitt'!F81,Kraftstoffart!$B$2:$B$7,0)),Energieverbrauch_Kennzahlen!$B$8:$C$13,2,FALSE)) ->  | N81: =IF(G81 = "", "", VLOOKUP(INDEX(Kraftstoffart!$A$2:$A$7, MATCH('Berechnung Streckenabschnitt'!F81,Kraftstoffart!$B$2:$B$7,0)),Kohlendioxid_Kennzahlen!$B$2:$C$7,2,FALSE)) ->  | O81: =IF(G81 = "", "", VLOOKUP(INDEX(Kraftstoffart!$A$2:$A$7, MATCH('Berechnung Streckenabschnitt'!F81,Kraftstoffart!$B$2:$B$7,0)),Kohlendioxid_Kennzahlen!$B$8:$C$13,2,FALSE)) ->  | P81: =IF(G81 = "", "", VLOOKUP(INDEX(Kraftstoffart!$A$2:$A$7, MATCH('Berechnung Streckenabschnitt'!F81,Kraftstoffart!$B$2:$B$7,0)),Treibhausgas_Kennzahlen!$B$2:$C$7,2,FALSE)) ->  | Q81: =IF(G81 = "", "", VLOOKUP(INDEX(Kraftstoffart!$A$2:$A$7, MATCH('Berechnung Streckenabschnitt'!F81,Kraftstoffart!$B$2:$B$7,0)),Treibhausgas_Kennzahlen!$B$8:$C$13,2,FALSE)) -> 
H82: =IF(G82 = "", "", VLOOKUP(INDEX(FahrzeugartID,MATCH('Berechnung Streckenabschnitt'!C82,Fahrzeugart!$B$2:$B$5,0))&"_"&INDEX(GutartID,MATCH('Berechnung Streckenabschnitt'!B82,Gutart!$B$2:$B$4,0)),Frachtgewichte!$C$2:$D$13,2,FALSE)) ->  | I82: =IF(G82 = "", "", VLOOKUP(INDEX(LängsneigungsartID,MATCH('Berechnung Streckenabschnitt'!D82,Längsneigungsart!$B$2:$B$3,0))&"_"&INDEX(GutartID,MATCH('Berechnung Streckenabschnitt'!B82,Gutart!$B$2:$B$4,0))&"_"&INDEX(FahrzeugartID,MATCH('Berechnung Streckenabschnitt'!C82,Fahrzeugart!$B$2:$B$5,0)),Energieverbrauch!$D$2:$E$25,2,FALSE)) ->  | J82: =IF(G82 = "", "", IF(E82="Innerorts",VLOOKUP(INDEX(FahrzeugartID,MATCH('Berechnung Streckenabschnitt'!C82,Fahrzeugart!$B$2:$B$5,0)),Korrekturfaktoren!$A$2:$B$5,2,FALSE),1)) ->  | L82: =IF(G82 = "", "", VLOOKUP(INDEX(Kraftstoffart!$A$2:$A$7, MATCH('Berechnung Streckenabschnitt'!F82,Kraftstoffart!$B$2:$B$7,0)),Energieverbrauch_Kennzahlen!$B$2:$C$7,2,FALSE)) ->  | M82: =IF(G82 = "", "", VLOOKUP(INDEX(Kraftstoffart!$A$2:$A$7, MATCH('Berechnung Streckenabschnitt'!F82,Kraftstoffart!$B$2:$B$7,0)),Energieverbrauch_Kennzahlen!$B$8:$C$13,2,FALSE)) ->  | N82: =IF(G82 = "", "", VLOOKUP(INDEX(Kraftstoffart!$A$2:$A$7, MATCH('Berechnung Streckenabschnitt'!F82,Kraftstoffart!$B$2:$B$7,0)),Kohlendioxid_Kennzahlen!$B$2:$C$7,2,FALSE)) ->  | O82: =IF(G82 = "", "", VLOOKUP(INDEX(Kraftstoffart!$A$2:$A$7, MATCH('Berechnung Streckenabschnitt'!F82,Kraftstoffart!$B$2:$B$7,0)),Kohlendioxid_Kennzahlen!$B$8:$C$13,2,FALSE)) ->  | P82: =IF(G82 = "", "", VLOOKUP(INDEX(Kraftstoffart!$A$2:$A$7, MATCH('Berechnung Streckenabschnitt'!F82,Kraftstoffart!$B$2:$B$7,0)),Treibhausgas_Kennzahlen!$B$2:$C$7,2,FALSE)) ->  | Q82: =IF(G82 = "", "", VLOOKUP(INDEX(Kraftstoffart!$A$2:$A$7, MATCH('Berechnung Streckenabschnitt'!F82,Kraftstoffart!$B$2:$B$7,0)),Treibhausgas_Kennzahlen!$B$8:$C$13,2,FALSE)) -> 
H83: =IF(G83 = "", "", VLOOKUP(INDEX(FahrzeugartID,MATCH('Berechnung Streckenabschnitt'!C83,Fahrzeugart!$B$2:$B$5,0))&"_"&INDEX(GutartID,MATCH('Berechnung Streckenabschnitt'!B83,Gutart!$B$2:$B$4,0)),Frachtgewichte!$C$2:$D$13,2,FALSE)) ->  | I83: =IF(G83 = "", "", VLOOKUP(INDEX(LängsneigungsartID,MATCH('Berechnung Streckenabschnitt'!D83,Längsneigungsart!$B$2:$B$3,0))&"_"&INDEX(GutartID,MATCH('Berechnung Streckenabschnitt'!B83,Gutart!$B$2:$B$4,0))&"_"&INDEX(FahrzeugartID,MATCH('Berechnung Streckenabschnitt'!C83,Fahrzeugart!$B$2:$B$5,0)),Energieverbrauch!$D$2:$E$25,2,FALSE)) ->  | J83: =IF(G83 = "", "", IF(E83="Innerorts",VLOOKUP(INDEX(FahrzeugartID,MATCH('Berechnung Streckenabschnitt'!C83,Fahrzeugart!$B$2:$B$5,0)),Korrekturfaktoren!$A$2:$B$5,2,FALSE),1)) ->  | L83: =IF(G83 = "", "", VLOOKUP(INDEX(Kraftstoffart!$A$2:$A$7, MATCH('Berechnung Streckenabschnitt'!F83,Kraftstoffart!$B$2:$B$7,0)),Energieverbrauch_Kennzahlen!$B$2:$C$7,2,FALSE)) ->  | M83: =IF(G83 = "", "", VLOOKUP(INDEX(Kraftstoffart!$A$2:$A$7, MATCH('Berechnung Streckenabschnitt'!F83,Kraftstoffart!$B$2:$B$7,0)),Energieverbrauch_Kennzahlen!$B$8:$C$13,2,FALSE)) ->  | N83: =IF(G83 = "", "", VLOOKUP(INDEX(Kraftstoffart!$A$2:$A$7, MATCH('Berechnung Streckenabschnitt'!F83,Kraftstoffart!$B$2:$B$7,0)),Kohlendioxid_Kennzahlen!$B$2:$C$7,2,FALSE)) ->  | O83: =IF(G83 = "", "", VLOOKUP(INDEX(Kraftstoffart!$A$2:$A$7, MATCH('Berechnung Streckenabschnitt'!F83,Kraftstoffart!$B$2:$B$7,0)),Kohlendioxid_Kennzahlen!$B$8:$C$13,2,FALSE)) ->  | P83: =IF(G83 = "", "", VLOOKUP(INDEX(Kraftstoffart!$A$2:$A$7, MATCH('Berechnung Streckenabschnitt'!F83,Kraftstoffart!$B$2:$B$7,0)),Treibhausgas_Kennzahlen!$B$2:$C$7,2,FALSE)) ->  | Q83: =IF(G83 = "", "", VLOOKUP(INDEX(Kraftstoffart!$A$2:$A$7, MATCH('Berechnung Streckenabschnitt'!F83,Kraftstoffart!$B$2:$B$7,0)),Treibhausgas_Kennzahlen!$B$8:$C$13,2,FALSE)) -> 
H84: =IF(G84 = "", "", VLOOKUP(INDEX(FahrzeugartID,MATCH('Berechnung Streckenabschnitt'!C84,Fahrzeugart!$B$2:$B$5,0))&"_"&INDEX(GutartID,MATCH('Berechnung Streckenabschnitt'!B84,Gutart!$B$2:$B$4,0)),Frachtgewichte!$C$2:$D$13,2,FALSE)) ->  | I84: =IF(G84 = "", "", VLOOKUP(INDEX(LängsneigungsartID,MATCH('Berechnung Streckenabschnitt'!D84,Längsneigungsart!$B$2:$B$3,0))&"_"&INDEX(GutartID,MATCH('Berechnung Streckenabschnitt'!B84,Gutart!$B$2:$B$4,0))&"_"&INDEX(FahrzeugartID,MATCH('Berechnung Streckenabschnitt'!C84,Fahrzeugart!$B$2:$B$5,0)),Energieverbrauch!$D$2:$E$25,2,FALSE)) ->  | J84: =IF(G84 = "", "", IF(E84="Innerorts",VLOOKUP(INDEX(FahrzeugartID,MATCH('Berechnung Streckenabschnitt'!C84,Fahrzeugart!$B$2:$B$5,0)),Korrekturfaktoren!$A$2:$B$5,2,FALSE),1)) ->  | L84: =IF(G84 = "", "", VLOOKUP(INDEX(Kraftstoffart!$A$2:$A$7, MATCH('Berechnung Streckenabschnitt'!F84,Kraftstoffart!$B$2:$B$7,0)),Energieverbrauch_Kennzahlen!$B$2:$C$7,2,FALSE)) ->  | M84: =IF(G84 = "", "", VLOOKUP(INDEX(Kraftstoffart!$A$2:$A$7, MATCH('Berechnung Streckenabschnitt'!F84,Kraftstoffart!$B$2:$B$7,0)),Energieverbrauch_Kennzahlen!$B$8:$C$13,2,FALSE)) ->  | N84: =IF(G84 = "", "", VLOOKUP(INDEX(Kraftstoffart!$A$2:$A$7, MATCH('Berechnung Streckenabschnitt'!F84,Kraftstoffart!$B$2:$B$7,0)),Kohlendioxid_Kennzahlen!$B$2:$C$7,2,FALSE)) ->  | O84: =IF(G84 = "", "", VLOOKUP(INDEX(Kraftstoffart!$A$2:$A$7, MATCH('Berechnung Streckenabschnitt'!F84,Kraftstoffart!$B$2:$B$7,0)),Kohlendioxid_Kennzahlen!$B$8:$C$13,2,FALSE)) ->  | P84: =IF(G84 = "", "", VLOOKUP(INDEX(Kraftstoffart!$A$2:$A$7, MATCH('Berechnung Streckenabschnitt'!F84,Kraftstoffart!$B$2:$B$7,0)),Treibhausgas_Kennzahlen!$B$2:$C$7,2,FALSE)) ->  | Q84: =IF(G84 = "", "", VLOOKUP(INDEX(Kraftstoffart!$A$2:$A$7, MATCH('Berechnung Streckenabschnitt'!F84,Kraftstoffart!$B$2:$B$7,0)),Treibhausgas_Kennzahlen!$B$8:$C$13,2,FALSE)) -> 
H85: =IF(G85 = "", "", VLOOKUP(INDEX(FahrzeugartID,MATCH('Berechnung Streckenabschnitt'!C85,Fahrzeugart!$B$2:$B$5,0))&"_"&INDEX(GutartID,MATCH('Berechnung Streckenabschnitt'!B85,Gutart!$B$2:$B$4,0)),Frachtgewichte!$C$2:$D$13,2,FALSE)) ->  | I85: =IF(G85 = "", "", VLOOKUP(INDEX(LängsneigungsartID,MATCH('Berechnung Streckenabschnitt'!D85,Längsneigungsart!$B$2:$B$3,0))&"_"&INDEX(GutartID,MATCH('Berechnung Streckenabschnitt'!B85,Gutart!$B$2:$B$4,0))&"_"&INDEX(FahrzeugartID,MATCH('Berechnung Streckenabschnitt'!C85,Fahrzeugart!$B$2:$B$5,0)),Energieverbrauch!$D$2:$E$25,2,FALSE)) ->  | J85: =IF(G85 = "", "", IF(E85="Innerorts",VLOOKUP(INDEX(FahrzeugartID,MATCH('Berechnung Streckenabschnitt'!C85,Fahrzeugart!$B$2:$B$5,0)),Korrekturfaktoren!$A$2:$B$5,2,FALSE),1)) ->  | L85: =IF(G85 = "", "", VLOOKUP(INDEX(Kraftstoffart!$A$2:$A$7, MATCH('Berechnung Streckenabschnitt'!F85,Kraftstoffart!$B$2:$B$7,0)),Energieverbrauch_Kennzahlen!$B$2:$C$7,2,FALSE)) ->  | M85: =IF(G85 = "", "", VLOOKUP(INDEX(Kraftstoffart!$A$2:$A$7, MATCH('Berechnung Streckenabschnitt'!F85,Kraftstoffart!$B$2:$B$7,0)),Energieverbrauch_Kennzahlen!$B$8:$C$13,2,FALSE)) ->  | N85: =IF(G85 = "", "", VLOOKUP(INDEX(Kraftstoffart!$A$2:$A$7, MATCH('Berechnung Streckenabschnitt'!F85,Kraftstoffart!$B$2:$B$7,0)),Kohlendioxid_Kennzahlen!$B$2:$C$7,2,FALSE)) ->  | O85: =IF(G85 = "", "", VLOOKUP(INDEX(Kraftstoffart!$A$2:$A$7, MATCH('Berechnung Streckenabschnitt'!F85,Kraftstoffart!$B$2:$B$7,0)),Kohlendioxid_Kennzahlen!$B$8:$C$13,2,FALSE)) ->  | P85: =IF(G85 = "", "", VLOOKUP(INDEX(Kraftstoffart!$A$2:$A$7, MATCH('Berechnung Streckenabschnitt'!F85,Kraftstoffart!$B$2:$B$7,0)),Treibhausgas_Kennzahlen!$B$2:$C$7,2,FALSE)) ->  | Q85: =IF(G85 = "", "", VLOOKUP(INDEX(Kraftstoffart!$A$2:$A$7, MATCH('Berechnung Streckenabschnitt'!F85,Kraftstoffart!$B$2:$B$7,0)),Treibhausgas_Kennzahlen!$B$8:$C$13,2,FALSE)) -> 
H86: =IF(G86 = "", "", VLOOKUP(INDEX(FahrzeugartID,MATCH('Berechnung Streckenabschnitt'!C86,Fahrzeugart!$B$2:$B$5,0))&"_"&INDEX(GutartID,MATCH('Berechnung Streckenabschnitt'!B86,Gutart!$B$2:$B$4,0)),Frachtgewichte!$C$2:$D$13,2,FALSE)) ->  | I86: =IF(G86 = "", "", VLOOKUP(INDEX(LängsneigungsartID,MATCH('Berechnung Streckenabschnitt'!D86,Längsneigungsart!$B$2:$B$3,0))&"_"&INDEX(GutartID,MATCH('Berechnung Streckenabschnitt'!B86,Gutart!$B$2:$B$4,0))&"_"&INDEX(FahrzeugartID,MATCH('Berechnung Streckenabschnitt'!C86,Fahrzeugart!$B$2:$B$5,0)),Energieverbrauch!$D$2:$E$25,2,FALSE)) ->  | J86: =IF(G86 = "", "", IF(E86="Innerorts",VLOOKUP(INDEX(FahrzeugartID,MATCH('Berechnung Streckenabschnitt'!C86,Fahrzeugart!$B$2:$B$5,0)),Korrekturfaktoren!$A$2:$B$5,2,FALSE),1)) ->  | L86: =IF(G86 = "", "", VLOOKUP(INDEX(Kraftstoffart!$A$2:$A$7, MATCH('Berechnung Streckenabschnitt'!F86,Kraftstoffart!$B$2:$B$7,0)),Energieverbrauch_Kennzahlen!$B$2:$C$7,2,FALSE)) ->  | M86: =IF(G86 = "", "", VLOOKUP(INDEX(Kraftstoffart!$A$2:$A$7, MATCH('Berechnung Streckenabschnitt'!F86,Kraftstoffart!$B$2:$B$7,0)),Energieverbrauch_Kennzahlen!$B$8:$C$13,2,FALSE)) ->  | N86: =IF(G86 = "", "", VLOOKUP(INDEX(Kraftstoffart!$A$2:$A$7, MATCH('Berechnung Streckenabschnitt'!F86,Kraftstoffart!$B$2:$B$7,0)),Kohlendioxid_Kennzahlen!$B$2:$C$7,2,FALSE)) ->  | O86: =IF(G86 = "", "", VLOOKUP(INDEX(Kraftstoffart!$A$2:$A$7, MATCH('Berechnung Streckenabschnitt'!F86,Kraftstoffart!$B$2:$B$7,0)),Kohlendioxid_Kennzahlen!$B$8:$C$13,2,FALSE)) ->  | P86: =IF(G86 = "", "", VLOOKUP(INDEX(Kraftstoffart!$A$2:$A$7, MATCH('Berechnung Streckenabschnitt'!F86,Kraftstoffart!$B$2:$B$7,0)),Treibhausgas_Kennzahlen!$B$2:$C$7,2,FALSE)) ->  | Q86: =IF(G86 = "", "", VLOOKUP(INDEX(Kraftstoffart!$A$2:$A$7, MATCH('Berechnung Streckenabschnitt'!F86,Kraftstoffart!$B$2:$B$7,0)),Treibhausgas_Kennzahlen!$B$8:$C$13,2,FALSE)) -> 
H87: =IF(G87 = "", "", VLOOKUP(INDEX(FahrzeugartID,MATCH('Berechnung Streckenabschnitt'!C87,Fahrzeugart!$B$2:$B$5,0))&"_"&INDEX(GutartID,MATCH('Berechnung Streckenabschnitt'!B87,Gutart!$B$2:$B$4,0)),Frachtgewichte!$C$2:$D$13,2,FALSE)) ->  | I87: =IF(G87 = "", "", VLOOKUP(INDEX(LängsneigungsartID,MATCH('Berechnung Streckenabschnitt'!D87,Längsneigungsart!$B$2:$B$3,0))&"_"&INDEX(GutartID,MATCH('Berechnung Streckenabschnitt'!B87,Gutart!$B$2:$B$4,0))&"_"&INDEX(FahrzeugartID,MATCH('Berechnung Streckenabschnitt'!C87,Fahrzeugart!$B$2:$B$5,0)),Energieverbrauch!$D$2:$E$25,2,FALSE)) ->  | J87: =IF(G87 = "", "", IF(E87="Innerorts",VLOOKUP(INDEX(FahrzeugartID,MATCH('Berechnung Streckenabschnitt'!C87,Fahrzeugart!$B$2:$B$5,0)),Korrekturfaktoren!$A$2:$B$5,2,FALSE),1)) ->  | L87: =IF(G87 = "", "", VLOOKUP(INDEX(Kraftstoffart!$A$2:$A$7, MATCH('Berechnung Streckenabschnitt'!F87,Kraftstoffart!$B$2:$B$7,0)),Energieverbrauch_Kennzahlen!$B$2:$C$7,2,FALSE)) ->  | M87: =IF(G87 = "", "", VLOOKUP(INDEX(Kraftstoffart!$A$2:$A$7, MATCH('Berechnung Streckenabschnitt'!F87,Kraftstoffart!$B$2:$B$7,0)),Energieverbrauch_Kennzahlen!$B$8:$C$13,2,FALSE)) ->  | N87: =IF(G87 = "", "", VLOOKUP(INDEX(Kraftstoffart!$A$2:$A$7, MATCH('Berechnung Streckenabschnitt'!F87,Kraftstoffart!$B$2:$B$7,0)),Kohlendioxid_Kennzahlen!$B$2:$C$7,2,FALSE)) ->  | O87: =IF(G87 = "", "", VLOOKUP(INDEX(Kraftstoffart!$A$2:$A$7, MATCH('Berechnung Streckenabschnitt'!F87,Kraftstoffart!$B$2:$B$7,0)),Kohlendioxid_Kennzahlen!$B$8:$C$13,2,FALSE)) ->  | P87: =IF(G87 = "", "", VLOOKUP(INDEX(Kraftstoffart!$A$2:$A$7, MATCH('Berechnung Streckenabschnitt'!F87,Kraftstoffart!$B$2:$B$7,0)),Treibhausgas_Kennzahlen!$B$2:$C$7,2,FALSE)) ->  | Q87: =IF(G87 = "", "", VLOOKUP(INDEX(Kraftstoffart!$A$2:$A$7, MATCH('Berechnung Streckenabschnitt'!F87,Kraftstoffart!$B$2:$B$7,0)),Treibhausgas_Kennzahlen!$B$8:$C$13,2,FALSE)) -> 
H88: =IF(G88 = "", "", VLOOKUP(INDEX(FahrzeugartID,MATCH('Berechnung Streckenabschnitt'!C88,Fahrzeugart!$B$2:$B$5,0))&"_"&INDEX(GutartID,MATCH('Berechnung Streckenabschnitt'!B88,Gutart!$B$2:$B$4,0)),Frachtgewichte!$C$2:$D$13,2,FALSE)) ->  | I88: =IF(G88 = "", "", VLOOKUP(INDEX(LängsneigungsartID,MATCH('Berechnung Streckenabschnitt'!D88,Längsneigungsart!$B$2:$B$3,0))&"_"&INDEX(GutartID,MATCH('Berechnung Streckenabschnitt'!B88,Gutart!$B$2:$B$4,0))&"_"&INDEX(FahrzeugartID,MATCH('Berechnung Streckenabschnitt'!C88,Fahrzeugart!$B$2:$B$5,0)),Energieverbrauch!$D$2:$E$25,2,FALSE)) ->  | J88: =IF(G88 = "", "", IF(E88="Innerorts",VLOOKUP(INDEX(FahrzeugartID,MATCH('Berechnung Streckenabschnitt'!C88,Fahrzeugart!$B$2:$B$5,0)),Korrekturfaktoren!$A$2:$B$5,2,FALSE),1)) ->  | L88: =IF(G88 = "", "", VLOOKUP(INDEX(Kraftstoffart!$A$2:$A$7, MATCH('Berechnung Streckenabschnitt'!F88,Kraftstoffart!$B$2:$B$7,0)),Energieverbrauch_Kennzahlen!$B$2:$C$7,2,FALSE)) ->  | M88: =IF(G88 = "", "", VLOOKUP(INDEX(Kraftstoffart!$A$2:$A$7, MATCH('Berechnung Streckenabschnitt'!F88,Kraftstoffart!$B$2:$B$7,0)),Energieverbrauch_Kennzahlen!$B$8:$C$13,2,FALSE)) ->  | N88: =IF(G88 = "", "", VLOOKUP(INDEX(Kraftstoffart!$A$2:$A$7, MATCH('Berechnung Streckenabschnitt'!F88,Kraftstoffart!$B$2:$B$7,0)),Kohlendioxid_Kennzahlen!$B$2:$C$7,2,FALSE)) ->  | O88: =IF(G88 = "", "", VLOOKUP(INDEX(Kraftstoffart!$A$2:$A$7, MATCH('Berechnung Streckenabschnitt'!F88,Kraftstoffart!$B$2:$B$7,0)),Kohlendioxid_Kennzahlen!$B$8:$C$13,2,FALSE)) ->  | P88: =IF(G88 = "", "", VLOOKUP(INDEX(Kraftstoffart!$A$2:$A$7, MATCH('Berechnung Streckenabschnitt'!F88,Kraftstoffart!$B$2:$B$7,0)),Treibhausgas_Kennzahlen!$B$2:$C$7,2,FALSE)) ->  | Q88: =IF(G88 = "", "", VLOOKUP(INDEX(Kraftstoffart!$A$2:$A$7, MATCH('Berechnung Streckenabschnitt'!F88,Kraftstoffart!$B$2:$B$7,0)),Treibhausgas_Kennzahlen!$B$8:$C$13,2,FALSE)) -> 
H89: =IF(G89 = "", "", VLOOKUP(INDEX(FahrzeugartID,MATCH('Berechnung Streckenabschnitt'!C89,Fahrzeugart!$B$2:$B$5,0))&"_"&INDEX(GutartID,MATCH('Berechnung Streckenabschnitt'!B89,Gutart!$B$2:$B$4,0)),Frachtgewichte!$C$2:$D$13,2,FALSE)) ->  | I89: =IF(G89 = "", "", VLOOKUP(INDEX(LängsneigungsartID,MATCH('Berechnung Streckenabschnitt'!D89,Längsneigungsart!$B$2:$B$3,0))&"_"&INDEX(GutartID,MATCH('Berechnung Streckenabschnitt'!B89,Gutart!$B$2:$B$4,0))&"_"&INDEX(FahrzeugartID,MATCH('Berechnung Streckenabschnitt'!C89,Fahrzeugart!$B$2:$B$5,0)),Energieverbrauch!$D$2:$E$25,2,FALSE)) ->  | J89: =IF(G89 = "", "", IF(E89="Innerorts",VLOOKUP(INDEX(FahrzeugartID,MATCH('Berechnung Streckenabschnitt'!C89,Fahrzeugart!$B$2:$B$5,0)),Korrekturfaktoren!$A$2:$B$5,2,FALSE),1)) ->  | L89: =IF(G89 = "", "", VLOOKUP(INDEX(Kraftstoffart!$A$2:$A$7, MATCH('Berechnung Streckenabschnitt'!F89,Kraftstoffart!$B$2:$B$7,0)),Energieverbrauch_Kennzahlen!$B$2:$C$7,2,FALSE)) ->  | M89: =IF(G89 = "", "", VLOOKUP(INDEX(Kraftstoffart!$A$2:$A$7, MATCH('Berechnung Streckenabschnitt'!F89,Kraftstoffart!$B$2:$B$7,0)),Energieverbrauch_Kennzahlen!$B$8:$C$13,2,FALSE)) ->  | N89: =IF(G89 = "", "", VLOOKUP(INDEX(Kraftstoffart!$A$2:$A$7, MATCH('Berechnung Streckenabschnitt'!F89,Kraftstoffart!$B$2:$B$7,0)),Kohlendioxid_Kennzahlen!$B$2:$C$7,2,FALSE)) ->  | O89: =IF(G89 = "", "", VLOOKUP(INDEX(Kraftstoffart!$A$2:$A$7, MATCH('Berechnung Streckenabschnitt'!F89,Kraftstoffart!$B$2:$B$7,0)),Kohlendioxid_Kennzahlen!$B$8:$C$13,2,FALSE)) ->  | P89: =IF(G89 = "", "", VLOOKUP(INDEX(Kraftstoffart!$A$2:$A$7, MATCH('Berechnung Streckenabschnitt'!F89,Kraftstoffart!$B$2:$B$7,0)),Treibhausgas_Kennzahlen!$B$2:$C$7,2,FALSE)) ->  | Q89: =IF(G89 = "", "", VLOOKUP(INDEX(Kraftstoffart!$A$2:$A$7, MATCH('Berechnung Streckenabschnitt'!F89,Kraftstoffart!$B$2:$B$7,0)),Treibhausgas_Kennzahlen!$B$8:$C$13,2,FALSE)) -> 
H90: =IF(G90 = "", "", VLOOKUP(INDEX(FahrzeugartID,MATCH('Berechnung Streckenabschnitt'!C90,Fahrzeugart!$B$2:$B$5,0))&"_"&INDEX(GutartID,MATCH('Berechnung Streckenabschnitt'!B90,Gutart!$B$2:$B$4,0)),Frachtgewichte!$C$2:$D$13,2,FALSE)) ->  | I90: =IF(G90 = "", "", VLOOKUP(INDEX(LängsneigungsartID,MATCH('Berechnung Streckenabschnitt'!D90,Längsneigungsart!$B$2:$B$3,0))&"_"&INDEX(GutartID,MATCH('Berechnung Streckenabschnitt'!B90,Gutart!$B$2:$B$4,0))&"_"&INDEX(FahrzeugartID,MATCH('Berechnung Streckenabschnitt'!C90,Fahrzeugart!$B$2:$B$5,0)),Energieverbrauch!$D$2:$E$25,2,FALSE)) ->  | J90: =IF(G90 = "", "", IF(E90="Innerorts",VLOOKUP(INDEX(FahrzeugartID,MATCH('Berechnung Streckenabschnitt'!C90,Fahrzeugart!$B$2:$B$5,0)),Korrekturfaktoren!$A$2:$B$5,2,FALSE),1)) ->  | L90: =IF(G90 = "", "", VLOOKUP(INDEX(Kraftstoffart!$A$2:$A$7, MATCH('Berechnung Streckenabschnitt'!F90,Kraftstoffart!$B$2:$B$7,0)),Energieverbrauch_Kennzahlen!$B$2:$C$7,2,FALSE)) ->  | M90: =IF(G90 = "", "", VLOOKUP(INDEX(Kraftstoffart!$A$2:$A$7, MATCH('Berechnung Streckenabschnitt'!F90,Kraftstoffart!$B$2:$B$7,0)),Energieverbrauch_Kennzahlen!$B$8:$C$13,2,FALSE)) ->  | N90: =IF(G90 = "", "", VLOOKUP(INDEX(Kraftstoffart!$A$2:$A$7, MATCH('Berechnung Streckenabschnitt'!F90,Kraftstoffart!$B$2:$B$7,0)),Kohlendioxid_Kennzahlen!$B$2:$C$7,2,FALSE)) ->  | O90: =IF(G90 = "", "", VLOOKUP(INDEX(Kraftstoffart!$A$2:$A$7, MATCH('Berechnung Streckenabschnitt'!F90,Kraftstoffart!$B$2:$B$7,0)),Kohlendioxid_Kennzahlen!$B$8:$C$13,2,FALSE)) ->  | P90: =IF(G90 = "", "", VLOOKUP(INDEX(Kraftstoffart!$A$2:$A$7, MATCH('Berechnung Streckenabschnitt'!F90,Kraftstoffart!$B$2:$B$7,0)),Treibhausgas_Kennzahlen!$B$2:$C$7,2,FALSE)) ->  | Q90: =IF(G90 = "", "", VLOOKUP(INDEX(Kraftstoffart!$A$2:$A$7, MATCH('Berechnung Streckenabschnitt'!F90,Kraftstoffart!$B$2:$B$7,0)),Treibhausgas_Kennzahlen!$B$8:$C$13,2,FALSE)) -> 
H91: =IF(G91 = "", "", VLOOKUP(INDEX(FahrzeugartID,MATCH('Berechnung Streckenabschnitt'!C91,Fahrzeugart!$B$2:$B$5,0))&"_"&INDEX(GutartID,MATCH('Berechnung Streckenabschnitt'!B91,Gutart!$B$2:$B$4,0)),Frachtgewichte!$C$2:$D$13,2,FALSE)) ->  | I91: =IF(G91 = "", "", VLOOKUP(INDEX(LängsneigungsartID,MATCH('Berechnung Streckenabschnitt'!D91,Längsneigungsart!$B$2:$B$3,0))&"_"&INDEX(GutartID,MATCH('Berechnung Streckenabschnitt'!B91,Gutart!$B$2:$B$4,0))&"_"&INDEX(FahrzeugartID,MATCH('Berechnung Streckenabschnitt'!C91,Fahrzeugart!$B$2:$B$5,0)),Energieverbrauch!$D$2:$E$25,2,FALSE)) ->  | J91: =IF(G91 = "", "", IF(E91="Innerorts",VLOOKUP(INDEX(FahrzeugartID,MATCH('Berechnung Streckenabschnitt'!C91,Fahrzeugart!$B$2:$B$5,0)),Korrekturfaktoren!$A$2:$B$5,2,FALSE),1)) ->  | L91: =IF(G91 = "", "", VLOOKUP(INDEX(Kraftstoffart!$A$2:$A$7, MATCH('Berechnung Streckenabschnitt'!F91,Kraftstoffart!$B$2:$B$7,0)),Energieverbrauch_Kennzahlen!$B$2:$C$7,2,FALSE)) ->  | M91: =IF(G91 = "", "", VLOOKUP(INDEX(Kraftstoffart!$A$2:$A$7, MATCH('Berechnung Streckenabschnitt'!F91,Kraftstoffart!$B$2:$B$7,0)),Energieverbrauch_Kennzahlen!$B$8:$C$13,2,FALSE)) ->  | N91: =IF(G91 = "", "", VLOOKUP(INDEX(Kraftstoffart!$A$2:$A$7, MATCH('Berechnung Streckenabschnitt'!F91,Kraftstoffart!$B$2:$B$7,0)),Kohlendioxid_Kennzahlen!$B$2:$C$7,2,FALSE)) ->  | O91: =IF(G91 = "", "", VLOOKUP(INDEX(Kraftstoffart!$A$2:$A$7, MATCH('Berechnung Streckenabschnitt'!F91,Kraftstoffart!$B$2:$B$7,0)),Kohlendioxid_Kennzahlen!$B$8:$C$13,2,FALSE)) ->  | P91: =IF(G91 = "", "", VLOOKUP(INDEX(Kraftstoffart!$A$2:$A$7, MATCH('Berechnung Streckenabschnitt'!F91,Kraftstoffart!$B$2:$B$7,0)),Treibhausgas_Kennzahlen!$B$2:$C$7,2,FALSE)) ->  | Q91: =IF(G91 = "", "", VLOOKUP(INDEX(Kraftstoffart!$A$2:$A$7, MATCH('Berechnung Streckenabschnitt'!F91,Kraftstoffart!$B$2:$B$7,0)),Treibhausgas_Kennzahlen!$B$8:$C$13,2,FALSE)) -> 
H92: =IF(G92 = "", "", VLOOKUP(INDEX(FahrzeugartID,MATCH('Berechnung Streckenabschnitt'!C92,Fahrzeugart!$B$2:$B$5,0))&"_"&INDEX(GutartID,MATCH('Berechnung Streckenabschnitt'!B92,Gutart!$B$2:$B$4,0)),Frachtgewichte!$C$2:$D$13,2,FALSE)) ->  | I92: =IF(G92 = "", "", VLOOKUP(INDEX(LängsneigungsartID,MATCH('Berechnung Streckenabschnitt'!D92,Längsneigungsart!$B$2:$B$3,0))&"_"&INDEX(GutartID,MATCH('Berechnung Streckenabschnitt'!B92,Gutart!$B$2:$B$4,0))&"_"&INDEX(FahrzeugartID,MATCH('Berechnung Streckenabschnitt'!C92,Fahrzeugart!$B$2:$B$5,0)),Energieverbrauch!$D$2:$E$25,2,FALSE)) ->  | J92: =IF(G92 = "", "", IF(E92="Innerorts",VLOOKUP(INDEX(FahrzeugartID,MATCH('Berechnung Streckenabschnitt'!C92,Fahrzeugart!$B$2:$B$5,0)),Korrekturfaktoren!$A$2:$B$5,2,FALSE),1)) ->  | L92: =IF(G92 = "", "", VLOOKUP(INDEX(Kraftstoffart!$A$2:$A$7, MATCH('Berechnung Streckenabschnitt'!F92,Kraftstoffart!$B$2:$B$7,0)),Energieverbrauch_Kennzahlen!$B$2:$C$7,2,FALSE)) ->  | M92: =IF(G92 = "", "", VLOOKUP(INDEX(Kraftstoffart!$A$2:$A$7, MATCH('Berechnung Streckenabschnitt'!F92,Kraftstoffart!$B$2:$B$7,0)),Energieverbrauch_Kennzahlen!$B$8:$C$13,2,FALSE)) ->  | N92: =IF(G92 = "", "", VLOOKUP(INDEX(Kraftstoffart!$A$2:$A$7, MATCH('Berechnung Streckenabschnitt'!F92,Kraftstoffart!$B$2:$B$7,0)),Kohlendioxid_Kennzahlen!$B$2:$C$7,2,FALSE)) ->  | O92: =IF(G92 = "", "", VLOOKUP(INDEX(Kraftstoffart!$A$2:$A$7, MATCH('Berechnung Streckenabschnitt'!F92,Kraftstoffart!$B$2:$B$7,0)),Kohlendioxid_Kennzahlen!$B$8:$C$13,2,FALSE)) ->  | P92: =IF(G92 = "", "", VLOOKUP(INDEX(Kraftstoffart!$A$2:$A$7, MATCH('Berechnung Streckenabschnitt'!F92,Kraftstoffart!$B$2:$B$7,0)),Treibhausgas_Kennzahlen!$B$2:$C$7,2,FALSE)) ->  | Q92: =IF(G92 = "", "", VLOOKUP(INDEX(Kraftstoffart!$A$2:$A$7, MATCH('Berechnung Streckenabschnitt'!F92,Kraftstoffart!$B$2:$B$7,0)),Treibhausgas_Kennzahlen!$B$8:$C$13,2,FALSE)) -> 
H93: =IF(G93 = "", "", VLOOKUP(INDEX(FahrzeugartID,MATCH('Berechnung Streckenabschnitt'!C93,Fahrzeugart!$B$2:$B$5,0))&"_"&INDEX(GutartID,MATCH('Berechnung Streckenabschnitt'!B93,Gutart!$B$2:$B$4,0)),Frachtgewichte!$C$2:$D$13,2,FALSE)) ->  | I93: =IF(G93 = "", "", VLOOKUP(INDEX(LängsneigungsartID,MATCH('Berechnung Streckenabschnitt'!D93,Längsneigungsart!$B$2:$B$3,0))&"_"&INDEX(GutartID,MATCH('Berechnung Streckenabschnitt'!B93,Gutart!$B$2:$B$4,0))&"_"&INDEX(FahrzeugartID,MATCH('Berechnung Streckenabschnitt'!C93,Fahrzeugart!$B$2:$B$5,0)),Energieverbrauch!$D$2:$E$25,2,FALSE)) ->  | J93: =IF(G93 = "", "", IF(E93="Innerorts",VLOOKUP(INDEX(FahrzeugartID,MATCH('Berechnung Streckenabschnitt'!C93,Fahrzeugart!$B$2:$B$5,0)),Korrekturfaktoren!$A$2:$B$5,2,FALSE),1)) ->  | L93: =IF(G93 = "", "", VLOOKUP(INDEX(Kraftstoffart!$A$2:$A$7, MATCH('Berechnung Streckenabschnitt'!F93,Kraftstoffart!$B$2:$B$7,0)),Energieverbrauch_Kennzahlen!$B$2:$C$7,2,FALSE)) ->  | M93: =IF(G93 = "", "", VLOOKUP(INDEX(Kraftstoffart!$A$2:$A$7, MATCH('Berechnung Streckenabschnitt'!F93,Kraftstoffart!$B$2:$B$7,0)),Energieverbrauch_Kennzahlen!$B$8:$C$13,2,FALSE)) ->  | N93: =IF(G93 = "", "", VLOOKUP(INDEX(Kraftstoffart!$A$2:$A$7, MATCH('Berechnung Streckenabschnitt'!F93,Kraftstoffart!$B$2:$B$7,0)),Kohlendioxid_Kennzahlen!$B$2:$C$7,2,FALSE)) ->  | O93: =IF(G93 = "", "", VLOOKUP(INDEX(Kraftstoffart!$A$2:$A$7, MATCH('Berechnung Streckenabschnitt'!F93,Kraftstoffart!$B$2:$B$7,0)),Kohlendioxid_Kennzahlen!$B$8:$C$13,2,FALSE)) ->  | P93: =IF(G93 = "", "", VLOOKUP(INDEX(Kraftstoffart!$A$2:$A$7, MATCH('Berechnung Streckenabschnitt'!F93,Kraftstoffart!$B$2:$B$7,0)),Treibhausgas_Kennzahlen!$B$2:$C$7,2,FALSE)) ->  | Q93: =IF(G93 = "", "", VLOOKUP(INDEX(Kraftstoffart!$A$2:$A$7, MATCH('Berechnung Streckenabschnitt'!F93,Kraftstoffart!$B$2:$B$7,0)),Treibhausgas_Kennzahlen!$B$8:$C$13,2,FALSE)) -> 
H94: =IF(G94 = "", "", VLOOKUP(INDEX(FahrzeugartID,MATCH('Berechnung Streckenabschnitt'!C94,Fahrzeugart!$B$2:$B$5,0))&"_"&INDEX(GutartID,MATCH('Berechnung Streckenabschnitt'!B94,Gutart!$B$2:$B$4,0)),Frachtgewichte!$C$2:$D$13,2,FALSE)) ->  | I94: =IF(G94 = "", "", VLOOKUP(INDEX(LängsneigungsartID,MATCH('Berechnung Streckenabschnitt'!D94,Längsneigungsart!$B$2:$B$3,0))&"_"&INDEX(GutartID,MATCH('Berechnung Streckenabschnitt'!B94,Gutart!$B$2:$B$4,0))&"_"&INDEX(FahrzeugartID,MATCH('Berechnung Streckenabschnitt'!C94,Fahrzeugart!$B$2:$B$5,0)),Energieverbrauch!$D$2:$E$25,2,FALSE)) ->  | J94: =IF(G94 = "", "", IF(E94="Innerorts",VLOOKUP(INDEX(FahrzeugartID,MATCH('Berechnung Streckenabschnitt'!C94,Fahrzeugart!$B$2:$B$5,0)),Korrekturfaktoren!$A$2:$B$5,2,FALSE),1)) ->  | L94: =IF(G94 = "", "", VLOOKUP(INDEX(Kraftstoffart!$A$2:$A$7, MATCH('Berechnung Streckenabschnitt'!F94,Kraftstoffart!$B$2:$B$7,0)),Energieverbrauch_Kennzahlen!$B$2:$C$7,2,FALSE)) ->  | M94: =IF(G94 = "", "", VLOOKUP(INDEX(Kraftstoffart!$A$2:$A$7, MATCH('Berechnung Streckenabschnitt'!F94,Kraftstoffart!$B$2:$B$7,0)),Energieverbrauch_Kennzahlen!$B$8:$C$13,2,FALSE)) ->  | N94: =IF(G94 = "", "", VLOOKUP(INDEX(Kraftstoffart!$A$2:$A$7, MATCH('Berechnung Streckenabschnitt'!F94,Kraftstoffart!$B$2:$B$7,0)),Kohlendioxid_Kennzahlen!$B$2:$C$7,2,FALSE)) ->  | O94: =IF(G94 = "", "", VLOOKUP(INDEX(Kraftstoffart!$A$2:$A$7, MATCH('Berechnung Streckenabschnitt'!F94,Kraftstoffart!$B$2:$B$7,0)),Kohlendioxid_Kennzahlen!$B$8:$C$13,2,FALSE)) ->  | P94: =IF(G94 = "", "", VLOOKUP(INDEX(Kraftstoffart!$A$2:$A$7, MATCH('Berechnung Streckenabschnitt'!F94,Kraftstoffart!$B$2:$B$7,0)),Treibhausgas_Kennzahlen!$B$2:$C$7,2,FALSE)) ->  | Q94: =IF(G94 = "", "", VLOOKUP(INDEX(Kraftstoffart!$A$2:$A$7, MATCH('Berechnung Streckenabschnitt'!F94,Kraftstoffart!$B$2:$B$7,0)),Treibhausgas_Kennzahlen!$B$8:$C$13,2,FALSE)) -> 
H95: =IF(G95 = "", "", VLOOKUP(INDEX(FahrzeugartID,MATCH('Berechnung Streckenabschnitt'!C95,Fahrzeugart!$B$2:$B$5,0))&"_"&INDEX(GutartID,MATCH('Berechnung Streckenabschnitt'!B95,Gutart!$B$2:$B$4,0)),Frachtgewichte!$C$2:$D$13,2,FALSE)) ->  | I95: =IF(G95 = "", "", VLOOKUP(INDEX(LängsneigungsartID,MATCH('Berechnung Streckenabschnitt'!D95,Längsneigungsart!$B$2:$B$3,0))&"_"&INDEX(GutartID,MATCH('Berechnung Streckenabschnitt'!B95,Gutart!$B$2:$B$4,0))&"_"&INDEX(FahrzeugartID,MATCH('Berechnung Streckenabschnitt'!C95,Fahrzeugart!$B$2:$B$5,0)),Energieverbrauch!$D$2:$E$25,2,FALSE)) ->  | J95: =IF(G95 = "", "", IF(E95="Innerorts",VLOOKUP(INDEX(FahrzeugartID,MATCH('Berechnung Streckenabschnitt'!C95,Fahrzeugart!$B$2:$B$5,0)),Korrekturfaktoren!$A$2:$B$5,2,FALSE),1)) ->  | L95: =IF(G95 = "", "", VLOOKUP(INDEX(Kraftstoffart!$A$2:$A$7, MATCH('Berechnung Streckenabschnitt'!F95,Kraftstoffart!$B$2:$B$7,0)),Energieverbrauch_Kennzahlen!$B$2:$C$7,2,FALSE)) ->  | M95: =IF(G95 = "", "", VLOOKUP(INDEX(Kraftstoffart!$A$2:$A$7, MATCH('Berechnung Streckenabschnitt'!F95,Kraftstoffart!$B$2:$B$7,0)),Energieverbrauch_Kennzahlen!$B$8:$C$13,2,FALSE)) ->  | N95: =IF(G95 = "", "", VLOOKUP(INDEX(Kraftstoffart!$A$2:$A$7, MATCH('Berechnung Streckenabschnitt'!F95,Kraftstoffart!$B$2:$B$7,0)),Kohlendioxid_Kennzahlen!$B$2:$C$7,2,FALSE)) ->  | O95: =IF(G95 = "", "", VLOOKUP(INDEX(Kraftstoffart!$A$2:$A$7, MATCH('Berechnung Streckenabschnitt'!F95,Kraftstoffart!$B$2:$B$7,0)),Kohlendioxid_Kennzahlen!$B$8:$C$13,2,FALSE)) ->  | P95: =IF(G95 = "", "", VLOOKUP(INDEX(Kraftstoffart!$A$2:$A$7, MATCH('Berechnung Streckenabschnitt'!F95,Kraftstoffart!$B$2:$B$7,0)),Treibhausgas_Kennzahlen!$B$2:$C$7,2,FALSE)) ->  | Q95: =IF(G95 = "", "", VLOOKUP(INDEX(Kraftstoffart!$A$2:$A$7, MATCH('Berechnung Streckenabschnitt'!F95,Kraftstoffart!$B$2:$B$7,0)),Treibhausgas_Kennzahlen!$B$8:$C$13,2,FALSE)) -> 
H96: =IF(G96 = "", "", VLOOKUP(INDEX(FahrzeugartID,MATCH('Berechnung Streckenabschnitt'!C96,Fahrzeugart!$B$2:$B$5,0))&"_"&INDEX(GutartID,MATCH('Berechnung Streckenabschnitt'!B96,Gutart!$B$2:$B$4,0)),Frachtgewichte!$C$2:$D$13,2,FALSE)) ->  | I96: =IF(G96 = "", "", VLOOKUP(INDEX(LängsneigungsartID,MATCH('Berechnung Streckenabschnitt'!D96,Längsneigungsart!$B$2:$B$3,0))&"_"&INDEX(GutartID,MATCH('Berechnung Streckenabschnitt'!B96,Gutart!$B$2:$B$4,0))&"_"&INDEX(FahrzeugartID,MATCH('Berechnung Streckenabschnitt'!C96,Fahrzeugart!$B$2:$B$5,0)),Energieverbrauch!$D$2:$E$25,2,FALSE)) ->  | J96: =IF(G96 = "", "", IF(E96="Innerorts",VLOOKUP(INDEX(FahrzeugartID,MATCH('Berechnung Streckenabschnitt'!C96,Fahrzeugart!$B$2:$B$5,0)),Korrekturfaktoren!$A$2:$B$5,2,FALSE),1)) ->  | L96: =IF(G96 = "", "", VLOOKUP(INDEX(Kraftstoffart!$A$2:$A$7, MATCH('Berechnung Streckenabschnitt'!F96,Kraftstoffart!$B$2:$B$7,0)),Energieverbrauch_Kennzahlen!$B$2:$C$7,2,FALSE)) ->  | M96: =IF(G96 = "", "", VLOOKUP(INDEX(Kraftstoffart!$A$2:$A$7, MATCH('Berechnung Streckenabschnitt'!F96,Kraftstoffart!$B$2:$B$7,0)),Energieverbrauch_Kennzahlen!$B$8:$C$13,2,FALSE)) ->  | N96: =IF(G96 = "", "", VLOOKUP(INDEX(Kraftstoffart!$A$2:$A$7, MATCH('Berechnung Streckenabschnitt'!F96,Kraftstoffart!$B$2:$B$7,0)),Kohlendioxid_Kennzahlen!$B$2:$C$7,2,FALSE)) ->  | O96: =IF(G96 = "", "", VLOOKUP(INDEX(Kraftstoffart!$A$2:$A$7, MATCH('Berechnung Streckenabschnitt'!F96,Kraftstoffart!$B$2:$B$7,0)),Kohlendioxid_Kennzahlen!$B$8:$C$13,2,FALSE)) ->  | P96: =IF(G96 = "", "", VLOOKUP(INDEX(Kraftstoffart!$A$2:$A$7, MATCH('Berechnung Streckenabschnitt'!F96,Kraftstoffart!$B$2:$B$7,0)),Treibhausgas_Kennzahlen!$B$2:$C$7,2,FALSE)) ->  | Q96: =IF(G96 = "", "", VLOOKUP(INDEX(Kraftstoffart!$A$2:$A$7, MATCH('Berechnung Streckenabschnitt'!F96,Kraftstoffart!$B$2:$B$7,0)),Treibhausgas_Kennzahlen!$B$8:$C$13,2,FALSE)) -> 
H97: =IF(G97 = "", "", VLOOKUP(INDEX(FahrzeugartID,MATCH('Berechnung Streckenabschnitt'!C97,Fahrzeugart!$B$2:$B$5,0))&"_"&INDEX(GutartID,MATCH('Berechnung Streckenabschnitt'!B97,Gutart!$B$2:$B$4,0)),Frachtgewichte!$C$2:$D$13,2,FALSE)) ->  | I97: =IF(G97 = "", "", VLOOKUP(INDEX(LängsneigungsartID,MATCH('Berechnung Streckenabschnitt'!D97,Längsneigungsart!$B$2:$B$3,0))&"_"&INDEX(GutartID,MATCH('Berechnung Streckenabschnitt'!B97,Gutart!$B$2:$B$4,0))&"_"&INDEX(FahrzeugartID,MATCH('Berechnung Streckenabschnitt'!C97,Fahrzeugart!$B$2:$B$5,0)),Energieverbrauch!$D$2:$E$25,2,FALSE)) ->  | J97: =IF(G97 = "", "", IF(E97="Innerorts",VLOOKUP(INDEX(FahrzeugartID,MATCH('Berechnung Streckenabschnitt'!C97,Fahrzeugart!$B$2:$B$5,0)),Korrekturfaktoren!$A$2:$B$5,2,FALSE),1)) ->  | L97: =IF(G97 = "", "", VLOOKUP(INDEX(Kraftstoffart!$A$2:$A$7, MATCH('Berechnung Streckenabschnitt'!F97,Kraftstoffart!$B$2:$B$7,0)),Energieverbrauch_Kennzahlen!$B$2:$C$7,2,FALSE)) ->  | M97: =IF(G97 = "", "", VLOOKUP(INDEX(Kraftstoffart!$A$2:$A$7, MATCH('Berechnung Streckenabschnitt'!F97,Kraftstoffart!$B$2:$B$7,0)),Energieverbrauch_Kennzahlen!$B$8:$C$13,2,FALSE)) ->  | N97: =IF(G97 = "", "", VLOOKUP(INDEX(Kraftstoffart!$A$2:$A$7, MATCH('Berechnung Streckenabschnitt'!F97,Kraftstoffart!$B$2:$B$7,0)),Kohlendioxid_Kennzahlen!$B$2:$C$7,2,FALSE)) ->  | O97: =IF(G97 = "", "", VLOOKUP(INDEX(Kraftstoffart!$A$2:$A$7, MATCH('Berechnung Streckenabschnitt'!F97,Kraftstoffart!$B$2:$B$7,0)),Kohlendioxid_Kennzahlen!$B$8:$C$13,2,FALSE)) ->  | P97: =IF(G97 = "", "", VLOOKUP(INDEX(Kraftstoffart!$A$2:$A$7, MATCH('Berechnung Streckenabschnitt'!F97,Kraftstoffart!$B$2:$B$7,0)),Treibhausgas_Kennzahlen!$B$2:$C$7,2,FALSE)) ->  | Q97: =IF(G97 = "", "", VLOOKUP(INDEX(Kraftstoffart!$A$2:$A$7, MATCH('Berechnung Streckenabschnitt'!F97,Kraftstoffart!$B$2:$B$7,0)),Treibhausgas_Kennzahlen!$B$8:$C$13,2,FALSE)) -> 
H98: =IF(G98 = "", "", VLOOKUP(INDEX(FahrzeugartID,MATCH('Berechnung Streckenabschnitt'!C98,Fahrzeugart!$B$2:$B$5,0))&"_"&INDEX(GutartID,MATCH('Berechnung Streckenabschnitt'!B98,Gutart!$B$2:$B$4,0)),Frachtgewichte!$C$2:$D$13,2,FALSE)) ->  | I98: =IF(G98 = "", "", VLOOKUP(INDEX(LängsneigungsartID,MATCH('Berechnung Streckenabschnitt'!D98,Längsneigungsart!$B$2:$B$3,0))&"_"&INDEX(GutartID,MATCH('Berechnung Streckenabschnitt'!B98,Gutart!$B$2:$B$4,0))&"_"&INDEX(FahrzeugartID,MATCH('Berechnung Streckenabschnitt'!C98,Fahrzeugart!$B$2:$B$5,0)),Energieverbrauch!$D$2:$E$25,2,FALSE)) ->  | J98: =IF(G98 = "", "", IF(E98="Innerorts",VLOOKUP(INDEX(FahrzeugartID,MATCH('Berechnung Streckenabschnitt'!C98,Fahrzeugart!$B$2:$B$5,0)),Korrekturfaktoren!$A$2:$B$5,2,FALSE),1)) ->  | L98: =IF(G98 = "", "", VLOOKUP(INDEX(Kraftstoffart!$A$2:$A$7, MATCH('Berechnung Streckenabschnitt'!F98,Kraftstoffart!$B$2:$B$7,0)),Energieverbrauch_Kennzahlen!$B$2:$C$7,2,FALSE)) ->  | M98: =IF(G98 = "", "", VLOOKUP(INDEX(Kraftstoffart!$A$2:$A$7, MATCH('Berechnung Streckenabschnitt'!F98,Kraftstoffart!$B$2:$B$7,0)),Energieverbrauch_Kennzahlen!$B$8:$C$13,2,FALSE)) ->  | N98: =IF(G98 = "", "", VLOOKUP(INDEX(Kraftstoffart!$A$2:$A$7, MATCH('Berechnung Streckenabschnitt'!F98,Kraftstoffart!$B$2:$B$7,0)),Kohlendioxid_Kennzahlen!$B$2:$C$7,2,FALSE)) ->  | O98: =IF(G98 = "", "", VLOOKUP(INDEX(Kraftstoffart!$A$2:$A$7, MATCH('Berechnung Streckenabschnitt'!F98,Kraftstoffart!$B$2:$B$7,0)),Kohlendioxid_Kennzahlen!$B$8:$C$13,2,FALSE)) ->  | P98: =IF(G98 = "", "", VLOOKUP(INDEX(Kraftstoffart!$A$2:$A$7, MATCH('Berechnung Streckenabschnitt'!F98,Kraftstoffart!$B$2:$B$7,0)),Treibhausgas_Kennzahlen!$B$2:$C$7,2,FALSE)) ->  | Q98: =IF(G98 = "", "", VLOOKUP(INDEX(Kraftstoffart!$A$2:$A$7, MATCH('Berechnung Streckenabschnitt'!F98,Kraftstoffart!$B$2:$B$7,0)),Treibhausgas_Kennzahlen!$B$8:$C$13,2,FALSE)) -> 
H99: =IF(G99 = "", "", VLOOKUP(INDEX(FahrzeugartID,MATCH('Berechnung Streckenabschnitt'!C99,Fahrzeugart!$B$2:$B$5,0))&"_"&INDEX(GutartID,MATCH('Berechnung Streckenabschnitt'!B99,Gutart!$B$2:$B$4,0)),Frachtgewichte!$C$2:$D$13,2,FALSE)) ->  | I99: =IF(G99 = "", "", VLOOKUP(INDEX(LängsneigungsartID,MATCH('Berechnung Streckenabschnitt'!D99,Längsneigungsart!$B$2:$B$3,0))&"_"&INDEX(GutartID,MATCH('Berechnung Streckenabschnitt'!B99,Gutart!$B$2:$B$4,0))&"_"&INDEX(FahrzeugartID,MATCH('Berechnung Streckenabschnitt'!C99,Fahrzeugart!$B$2:$B$5,0)),Energieverbrauch!$D$2:$E$25,2,FALSE)) ->  | J99: =IF(G99 = "", "", IF(E99="Innerorts",VLOOKUP(INDEX(FahrzeugartID,MATCH('Berechnung Streckenabschnitt'!C99,Fahrzeugart!$B$2:$B$5,0)),Korrekturfaktoren!$A$2:$B$5,2,FALSE),1)) ->  | L99: =IF(G99 = "", "", VLOOKUP(INDEX(Kraftstoffart!$A$2:$A$7, MATCH('Berechnung Streckenabschnitt'!F99,Kraftstoffart!$B$2:$B$7,0)),Energieverbrauch_Kennzahlen!$B$2:$C$7,2,FALSE)) ->  | M99: =IF(G99 = "", "", VLOOKUP(INDEX(Kraftstoffart!$A$2:$A$7, MATCH('Berechnung Streckenabschnitt'!F99,Kraftstoffart!$B$2:$B$7,0)),Energieverbrauch_Kennzahlen!$B$8:$C$13,2,FALSE)) ->  | N99: =IF(G99 = "", "", VLOOKUP(INDEX(Kraftstoffart!$A$2:$A$7, MATCH('Berechnung Streckenabschnitt'!F99,Kraftstoffart!$B$2:$B$7,0)),Kohlendioxid_Kennzahlen!$B$2:$C$7,2,FALSE)) ->  | O99: =IF(G99 = "", "", VLOOKUP(INDEX(Kraftstoffart!$A$2:$A$7, MATCH('Berechnung Streckenabschnitt'!F99,Kraftstoffart!$B$2:$B$7,0)),Kohlendioxid_Kennzahlen!$B$8:$C$13,2,FALSE)) ->  | P99: =IF(G99 = "", "", VLOOKUP(INDEX(Kraftstoffart!$A$2:$A$7, MATCH('Berechnung Streckenabschnitt'!F99,Kraftstoffart!$B$2:$B$7,0)),Treibhausgas_Kennzahlen!$B$2:$C$7,2,FALSE)) ->  | Q99: =IF(G99 = "", "", VLOOKUP(INDEX(Kraftstoffart!$A$2:$A$7, MATCH('Berechnung Streckenabschnitt'!F99,Kraftstoffart!$B$2:$B$7,0)),Treibhausgas_Kennzahlen!$B$8:$C$13,2,FALSE)) -> 
H100: =IF(G100 = "", "", VLOOKUP(INDEX(FahrzeugartID,MATCH('Berechnung Streckenabschnitt'!C100,Fahrzeugart!$B$2:$B$5,0))&"_"&INDEX(GutartID,MATCH('Berechnung Streckenabschnitt'!B100,Gutart!$B$2:$B$4,0)),Frachtgewichte!$C$2:$D$13,2,FALSE)) ->  | I100: =IF(G100 = "", "", VLOOKUP(INDEX(LängsneigungsartID,MATCH('Berechnung Streckenabschnitt'!D100,Längsneigungsart!$B$2:$B$3,0))&"_"&INDEX(GutartID,MATCH('Berechnung Streckenabschnitt'!B100,Gutart!$B$2:$B$4,0))&"_"&INDEX(FahrzeugartID,MATCH('Berechnung Streckenabschnitt'!C100,Fahrzeugart!$B$2:$B$5,0)),Energieverbrauch!$D$2:$E$25,2,FALSE)) ->  | J100: =IF(G100 = "", "", IF(E100="Innerorts",VLOOKUP(INDEX(FahrzeugartID,MATCH('Berechnung Streckenabschnitt'!C100,Fahrzeugart!$B$2:$B$5,0)),Korrekturfaktoren!$A$2:$B$5,2,FALSE),1)) ->  | L100: =IF(G100 = "", "", VLOOKUP(INDEX(Kraftstoffart!$A$2:$A$7, MATCH('Berechnung Streckenabschnitt'!F100,Kraftstoffart!$B$2:$B$7,0)),Energieverbrauch_Kennzahlen!$B$2:$C$7,2,FALSE)) ->  | M100: =IF(G100 = "", "", VLOOKUP(INDEX(Kraftstoffart!$A$2:$A$7, MATCH('Berechnung Streckenabschnitt'!F100,Kraftstoffart!$B$2:$B$7,0)),Energieverbrauch_Kennzahlen!$B$8:$C$13,2,FALSE)) ->  | N100: =IF(G100 = "", "", VLOOKUP(INDEX(Kraftstoffart!$A$2:$A$7, MATCH('Berechnung Streckenabschnitt'!F100,Kraftstoffart!$B$2:$B$7,0)),Kohlendioxid_Kennzahlen!$B$2:$C$7,2,FALSE)) ->  | O100: =IF(G100 = "", "", VLOOKUP(INDEX(Kraftstoffart!$A$2:$A$7, MATCH('Berechnung Streckenabschnitt'!F100,Kraftstoffart!$B$2:$B$7,0)),Kohlendioxid_Kennzahlen!$B$8:$C$13,2,FALSE)) ->  | P100: =IF(G100 = "", "", VLOOKUP(INDEX(Kraftstoffart!$A$2:$A$7, MATCH('Berechnung Streckenabschnitt'!F100,Kraftstoffart!$B$2:$B$7,0)),Treibhausgas_Kennzahlen!$B$2:$C$7,2,FALSE)) ->  | Q100: =IF(G100 = "", "", VLOOKUP(INDEX(Kraftstoffart!$A$2:$A$7, MATCH('Berechnung Streckenabschnitt'!F100,Kraftstoffart!$B$2:$B$7,0)),Treibhausgas_Kennzahlen!$B$8:$C$13,2,FALSE)) -> 
H101: =IF(G101 = "", "", VLOOKUP(INDEX(FahrzeugartID,MATCH('Berechnung Streckenabschnitt'!C101,Fahrzeugart!$B$2:$B$5,0))&"_"&INDEX(GutartID,MATCH('Berechnung Streckenabschnitt'!B101,Gutart!$B$2:$B$4,0)),Frachtgewichte!$C$2:$D$13,2,FALSE)) ->  | I101: =IF(G101 = "", "", VLOOKUP(INDEX(LängsneigungsartID,MATCH('Berechnung Streckenabschnitt'!D101,Längsneigungsart!$B$2:$B$3,0))&"_"&INDEX(GutartID,MATCH('Berechnung Streckenabschnitt'!B101,Gutart!$B$2:$B$4,0))&"_"&INDEX(FahrzeugartID,MATCH('Berechnung Streckenabschnitt'!C101,Fahrzeugart!$B$2:$B$5,0)),Energieverbrauch!$D$2:$E$25,2,FALSE)) ->  | J101: =IF(G101 = "", "", IF(E101="Innerorts",VLOOKUP(INDEX(FahrzeugartID,MATCH('Berechnung Streckenabschnitt'!C101,Fahrzeugart!$B$2:$B$5,0)),Korrekturfaktoren!$A$2:$B$5,2,FALSE),1)) ->  | L101: =IF(G101 = "", "", VLOOKUP(INDEX(Kraftstoffart!$A$2:$A$7, MATCH('Berechnung Streckenabschnitt'!F101,Kraftstoffart!$B$2:$B$7,0)),Energieverbrauch_Kennzahlen!$B$2:$C$7,2,FALSE)) ->  | M101: =IF(G101 = "", "", VLOOKUP(INDEX(Kraftstoffart!$A$2:$A$7, MATCH('Berechnung Streckenabschnitt'!F101,Kraftstoffart!$B$2:$B$7,0)),Energieverbrauch_Kennzahlen!$B$8:$C$13,2,FALSE)) ->  | N101: =IF(G101 = "", "", VLOOKUP(INDEX(Kraftstoffart!$A$2:$A$7, MATCH('Berechnung Streckenabschnitt'!F101,Kraftstoffart!$B$2:$B$7,0)),Kohlendioxid_Kennzahlen!$B$2:$C$7,2,FALSE)) ->  | O101: =IF(G101 = "", "", VLOOKUP(INDEX(Kraftstoffart!$A$2:$A$7, MATCH('Berechnung Streckenabschnitt'!F101,Kraftstoffart!$B$2:$B$7,0)),Kohlendioxid_Kennzahlen!$B$8:$C$13,2,FALSE)) ->  | P101: =IF(G101 = "", "", VLOOKUP(INDEX(Kraftstoffart!$A$2:$A$7, MATCH('Berechnung Streckenabschnitt'!F101,Kraftstoffart!$B$2:$B$7,0)),Treibhausgas_Kennzahlen!$B$2:$C$7,2,FALSE)) ->  | Q101: =IF(G101 = "", "", VLOOKUP(INDEX(Kraftstoffart!$A$2:$A$7, MATCH('Berechnung Streckenabschnitt'!F101,Kraftstoffart!$B$2:$B$7,0)),Treibhausgas_Kennzahlen!$B$8:$C$13,2,FALSE)) -> 
H102: =IF(G102 = "", "", VLOOKUP(INDEX(FahrzeugartID,MATCH('Berechnung Streckenabschnitt'!C102,Fahrzeugart!$B$2:$B$5,0))&"_"&INDEX(GutartID,MATCH('Berechnung Streckenabschnitt'!B102,Gutart!$B$2:$B$4,0)),Frachtgewichte!$C$2:$D$13,2,FALSE)) ->  | I102: =IF(G102 = "", "", VLOOKUP(INDEX(LängsneigungsartID,MATCH('Berechnung Streckenabschnitt'!D102,Längsneigungsart!$B$2:$B$3,0))&"_"&INDEX(GutartID,MATCH('Berechnung Streckenabschnitt'!B102,Gutart!$B$2:$B$4,0))&"_"&INDEX(FahrzeugartID,MATCH('Berechnung Streckenabschnitt'!C102,Fahrzeugart!$B$2:$B$5,0)),Energieverbrauch!$D$2:$E$25,2,FALSE)) ->  | J102: =IF(G102 = "", "", IF(E102="Innerorts",VLOOKUP(INDEX(FahrzeugartID,MATCH('Berechnung Streckenabschnitt'!C102,Fahrzeugart!$B$2:$B$5,0)),Korrekturfaktoren!$A$2:$B$5,2,FALSE),1)) ->  | L102: =IF(G102 = "", "", VLOOKUP(INDEX(Kraftstoffart!$A$2:$A$7, MATCH('Berechnung Streckenabschnitt'!F102,Kraftstoffart!$B$2:$B$7,0)),Energieverbrauch_Kennzahlen!$B$2:$C$7,2,FALSE)) ->  | M102: =IF(G102 = "", "", VLOOKUP(INDEX(Kraftstoffart!$A$2:$A$7, MATCH('Berechnung Streckenabschnitt'!F102,Kraftstoffart!$B$2:$B$7,0)),Energieverbrauch_Kennzahlen!$B$8:$C$13,2,FALSE)) ->  | N102: =IF(G102 = "", "", VLOOKUP(INDEX(Kraftstoffart!$A$2:$A$7, MATCH('Berechnung Streckenabschnitt'!F102,Kraftstoffart!$B$2:$B$7,0)),Kohlendioxid_Kennzahlen!$B$2:$C$7,2,FALSE)) ->  | O102: =IF(G102 = "", "", VLOOKUP(INDEX(Kraftstoffart!$A$2:$A$7, MATCH('Berechnung Streckenabschnitt'!F102,Kraftstoffart!$B$2:$B$7,0)),Kohlendioxid_Kennzahlen!$B$8:$C$13,2,FALSE)) ->  | P102: =IF(G102 = "", "", VLOOKUP(INDEX(Kraftstoffart!$A$2:$A$7, MATCH('Berechnung Streckenabschnitt'!F102,Kraftstoffart!$B$2:$B$7,0)),Treibhausgas_Kennzahlen!$B$2:$C$7,2,FALSE)) ->  | Q102: =IF(G102 = "", "", VLOOKUP(INDEX(Kraftstoffart!$A$2:$A$7, MATCH('Berechnung Streckenabschnitt'!F102,Kraftstoffart!$B$2:$B$7,0)),Treibhausgas_Kennzahlen!$B$8:$C$13,2,FALSE)) -> 
H103: =IF(G103 = "", "", VLOOKUP(INDEX(FahrzeugartID,MATCH('Berechnung Streckenabschnitt'!C103,Fahrzeugart!$B$2:$B$5,0))&"_"&INDEX(GutartID,MATCH('Berechnung Streckenabschnitt'!B103,Gutart!$B$2:$B$4,0)),Frachtgewichte!$C$2:$D$13,2,FALSE)) ->  | I103: =IF(G103 = "", "", VLOOKUP(INDEX(LängsneigungsartID,MATCH('Berechnung Streckenabschnitt'!D103,Längsneigungsart!$B$2:$B$3,0))&"_"&INDEX(GutartID,MATCH('Berechnung Streckenabschnitt'!B103,Gutart!$B$2:$B$4,0))&"_"&INDEX(FahrzeugartID,MATCH('Berechnung Streckenabschnitt'!C103,Fahrzeugart!$B$2:$B$5,0)),Energieverbrauch!$D$2:$E$25,2,FALSE)) ->  | J103: =IF(G103 = "", "", IF(E103="Innerorts",VLOOKUP(INDEX(FahrzeugartID,MATCH('Berechnung Streckenabschnitt'!C103,Fahrzeugart!$B$2:$B$5,0)),Korrekturfaktoren!$A$2:$B$5,2,FALSE),1)) ->  | L103: =IF(G103 = "", "", VLOOKUP(INDEX(Kraftstoffart!$A$2:$A$7, MATCH('Berechnung Streckenabschnitt'!F103,Kraftstoffart!$B$2:$B$7,0)),Energieverbrauch_Kennzahlen!$B$2:$C$7,2,FALSE)) ->  | M103: =IF(G103 = "", "", VLOOKUP(INDEX(Kraftstoffart!$A$2:$A$7, MATCH('Berechnung Streckenabschnitt'!F103,Kraftstoffart!$B$2:$B$7,0)),Energieverbrauch_Kennzahlen!$B$8:$C$13,2,FALSE)) ->  | N103: =IF(G103 = "", "", VLOOKUP(INDEX(Kraftstoffart!$A$2:$A$7, MATCH('Berechnung Streckenabschnitt'!F103,Kraftstoffart!$B$2:$B$7,0)),Kohlendioxid_Kennzahlen!$B$2:$C$7,2,FALSE)) ->  | O103: =IF(G103 = "", "", VLOOKUP(INDEX(Kraftstoffart!$A$2:$A$7, MATCH('Berechnung Streckenabschnitt'!F103,Kraftstoffart!$B$2:$B$7,0)),Kohlendioxid_Kennzahlen!$B$8:$C$13,2,FALSE)) ->  | P103: =IF(G103 = "", "", VLOOKUP(INDEX(Kraftstoffart!$A$2:$A$7, MATCH('Berechnung Streckenabschnitt'!F103,Kraftstoffart!$B$2:$B$7,0)),Treibhausgas_Kennzahlen!$B$2:$C$7,2,FALSE)) ->  | Q103: =IF(G103 = "", "", VLOOKUP(INDEX(Kraftstoffart!$A$2:$A$7, MATCH('Berechnung Streckenabschnitt'!F103,Kraftstoffart!$B$2:$B$7,0)),Treibhausgas_Kennzahlen!$B$8:$C$13,2,FALSE)) -> 
H104: =IF(G104 = "", "", VLOOKUP(INDEX(FahrzeugartID,MATCH('Berechnung Streckenabschnitt'!C104,Fahrzeugart!$B$2:$B$5,0))&"_"&INDEX(GutartID,MATCH('Berechnung Streckenabschnitt'!B104,Gutart!$B$2:$B$4,0)),Frachtgewichte!$C$2:$D$13,2,FALSE)) ->  | I104: =IF(G104 = "", "", VLOOKUP(INDEX(LängsneigungsartID,MATCH('Berechnung Streckenabschnitt'!D104,Längsneigungsart!$B$2:$B$3,0))&"_"&INDEX(GutartID,MATCH('Berechnung Streckenabschnitt'!B104,Gutart!$B$2:$B$4,0))&"_"&INDEX(FahrzeugartID,MATCH('Berechnung Streckenabschnitt'!C104,Fahrzeugart!$B$2:$B$5,0)),Energieverbrauch!$D$2:$E$25,2,FALSE)) ->  | J104: =IF(G104 = "", "", IF(E104="Innerorts",VLOOKUP(INDEX(FahrzeugartID,MATCH('Berechnung Streckenabschnitt'!C104,Fahrzeugart!$B$2:$B$5,0)),Korrekturfaktoren!$A$2:$B$5,2,FALSE),1)) ->  | L104: =IF(G104 = "", "", VLOOKUP(INDEX(Kraftstoffart!$A$2:$A$7, MATCH('Berechnung Streckenabschnitt'!F104,Kraftstoffart!$B$2:$B$7,0)),Energieverbrauch_Kennzahlen!$B$2:$C$7,2,FALSE)) ->  | M104: =IF(G104 = "", "", VLOOKUP(INDEX(Kraftstoffart!$A$2:$A$7, MATCH('Berechnung Streckenabschnitt'!F104,Kraftstoffart!$B$2:$B$7,0)),Energieverbrauch_Kennzahlen!$B$8:$C$13,2,FALSE)) ->  | N104: =IF(G104 = "", "", VLOOKUP(INDEX(Kraftstoffart!$A$2:$A$7, MATCH('Berechnung Streckenabschnitt'!F104,Kraftstoffart!$B$2:$B$7,0)),Kohlendioxid_Kennzahlen!$B$2:$C$7,2,FALSE)) ->  | O104: =IF(G104 = "", "", VLOOKUP(INDEX(Kraftstoffart!$A$2:$A$7, MATCH('Berechnung Streckenabschnitt'!F104,Kraftstoffart!$B$2:$B$7,0)),Kohlendioxid_Kennzahlen!$B$8:$C$13,2,FALSE)) ->  | P104: =IF(G104 = "", "", VLOOKUP(INDEX(Kraftstoffart!$A$2:$A$7, MATCH('Berechnung Streckenabschnitt'!F104,Kraftstoffart!$B$2:$B$7,0)),Treibhausgas_Kennzahlen!$B$2:$C$7,2,FALSE)) ->  | Q104: =IF(G104 = "", "", VLOOKUP(INDEX(Kraftstoffart!$A$2:$A$7, MATCH('Berechnung Streckenabschnitt'!F104,Kraftstoffart!$B$2:$B$7,0)),Treibhausgas_Kennzahlen!$B$8:$C$13,2,FALSE)) -> 
H105: =IF(G105 = "", "", VLOOKUP(INDEX(FahrzeugartID,MATCH('Berechnung Streckenabschnitt'!C105,Fahrzeugart!$B$2:$B$5,0))&"_"&INDEX(GutartID,MATCH('Berechnung Streckenabschnitt'!B105,Gutart!$B$2:$B$4,0)),Frachtgewichte!$C$2:$D$13,2,FALSE)) ->  | I105: =IF(G105 = "", "", VLOOKUP(INDEX(LängsneigungsartID,MATCH('Berechnung Streckenabschnitt'!D105,Längsneigungsart!$B$2:$B$3,0))&"_"&INDEX(GutartID,MATCH('Berechnung Streckenabschnitt'!B105,Gutart!$B$2:$B$4,0))&"_"&INDEX(FahrzeugartID,MATCH('Berechnung Streckenabschnitt'!C105,Fahrzeugart!$B$2:$B$5,0)),Energieverbrauch!$D$2:$E$25,2,FALSE)) ->  | J105: =IF(G105 = "", "", IF(E105="Innerorts",VLOOKUP(INDEX(FahrzeugartID,MATCH('Berechnung Streckenabschnitt'!C105,Fahrzeugart!$B$2:$B$5,0)),Korrekturfaktoren!$A$2:$B$5,2,FALSE),1)) ->  | L105: =IF(G105 = "", "", VLOOKUP(INDEX(Kraftstoffart!$A$2:$A$7, MATCH('Berechnung Streckenabschnitt'!F105,Kraftstoffart!$B$2:$B$7,0)),Energieverbrauch_Kennzahlen!$B$2:$C$7,2,FALSE)) ->  | M105: =IF(G105 = "", "", VLOOKUP(INDEX(Kraftstoffart!$A$2:$A$7, MATCH('Berechnung Streckenabschnitt'!F105,Kraftstoffart!$B$2:$B$7,0)),Energieverbrauch_Kennzahlen!$B$8:$C$13,2,FALSE)) ->  | N105: =IF(G105 = "", "", VLOOKUP(INDEX(Kraftstoffart!$A$2:$A$7, MATCH('Berechnung Streckenabschnitt'!F105,Kraftstoffart!$B$2:$B$7,0)),Kohlendioxid_Kennzahlen!$B$2:$C$7,2,FALSE)) ->  | O105: =IF(G105 = "", "", VLOOKUP(INDEX(Kraftstoffart!$A$2:$A$7, MATCH('Berechnung Streckenabschnitt'!F105,Kraftstoffart!$B$2:$B$7,0)),Kohlendioxid_Kennzahlen!$B$8:$C$13,2,FALSE)) ->  | P105: =IF(G105 = "", "", VLOOKUP(INDEX(Kraftstoffart!$A$2:$A$7, MATCH('Berechnung Streckenabschnitt'!F105,Kraftstoffart!$B$2:$B$7,0)),Treibhausgas_Kennzahlen!$B$2:$C$7,2,FALSE)) ->  | Q105: =IF(G105 = "", "", VLOOKUP(INDEX(Kraftstoffart!$A$2:$A$7, MATCH('Berechnung Streckenabschnitt'!F105,Kraftstoffart!$B$2:$B$7,0)),Treibhausgas_Kennzahlen!$B$8:$C$13,2,FALSE)) -> 
H106: =IF(G106 = "", "", VLOOKUP(INDEX(FahrzeugartID,MATCH('Berechnung Streckenabschnitt'!C106,Fahrzeugart!$B$2:$B$5,0))&"_"&INDEX(GutartID,MATCH('Berechnung Streckenabschnitt'!B106,Gutart!$B$2:$B$4,0)),Frachtgewichte!$C$2:$D$13,2,FALSE)) ->  | I106: =IF(G106 = "", "", VLOOKUP(INDEX(LängsneigungsartID,MATCH('Berechnung Streckenabschnitt'!D106,Längsneigungsart!$B$2:$B$3,0))&"_"&INDEX(GutartID,MATCH('Berechnung Streckenabschnitt'!B106,Gutart!$B$2:$B$4,0))&"_"&INDEX(FahrzeugartID,MATCH('Berechnung Streckenabschnitt'!C106,Fahrzeugart!$B$2:$B$5,0)),Energieverbrauch!$D$2:$E$25,2,FALSE)) ->  | J106: =IF(G106 = "", "", IF(E106="Innerorts",VLOOKUP(INDEX(FahrzeugartID,MATCH('Berechnung Streckenabschnitt'!C106,Fahrzeugart!$B$2:$B$5,0)),Korrekturfaktoren!$A$2:$B$5,2,FALSE),1)) ->  | L106: =IF(G106 = "", "", VLOOKUP(INDEX(Kraftstoffart!$A$2:$A$7, MATCH('Berechnung Streckenabschnitt'!F106,Kraftstoffart!$B$2:$B$7,0)),Energieverbrauch_Kennzahlen!$B$2:$C$7,2,FALSE)) ->  | M106: =IF(G106 = "", "", VLOOKUP(INDEX(Kraftstoffart!$A$2:$A$7, MATCH('Berechnung Streckenabschnitt'!F106,Kraftstoffart!$B$2:$B$7,0)),Energieverbrauch_Kennzahlen!$B$8:$C$13,2,FALSE)) ->  | N106: =IF(G106 = "", "", VLOOKUP(INDEX(Kraftstoffart!$A$2:$A$7, MATCH('Berechnung Streckenabschnitt'!F106,Kraftstoffart!$B$2:$B$7,0)),Kohlendioxid_Kennzahlen!$B$2:$C$7,2,FALSE)) ->  | O106: =IF(G106 = "", "", VLOOKUP(INDEX(Kraftstoffart!$A$2:$A$7, MATCH('Berechnung Streckenabschnitt'!F106,Kraftstoffart!$B$2:$B$7,0)),Kohlendioxid_Kennzahlen!$B$8:$C$13,2,FALSE)) ->  | P106: =IF(G106 = "", "", VLOOKUP(INDEX(Kraftstoffart!$A$2:$A$7, MATCH('Berechnung Streckenabschnitt'!F106,Kraftstoffart!$B$2:$B$7,0)),Treibhausgas_Kennzahlen!$B$2:$C$7,2,FALSE)) ->  | Q106: =IF(G106 = "", "", VLOOKUP(INDEX(Kraftstoffart!$A$2:$A$7, MATCH('Berechnung Streckenabschnitt'!F106,Kraftstoffart!$B$2:$B$7,0)),Treibhausgas_Kennzahlen!$B$8:$C$13,2,FALSE)) -> 
H107: =IF(G107 = "", "", VLOOKUP(INDEX(FahrzeugartID,MATCH('Berechnung Streckenabschnitt'!C107,Fahrzeugart!$B$2:$B$5,0))&"_"&INDEX(GutartID,MATCH('Berechnung Streckenabschnitt'!B107,Gutart!$B$2:$B$4,0)),Frachtgewichte!$C$2:$D$13,2,FALSE)) ->  | I107: =IF(G107 = "", "", VLOOKUP(INDEX(LängsneigungsartID,MATCH('Berechnung Streckenabschnitt'!D107,Längsneigungsart!$B$2:$B$3,0))&"_"&INDEX(GutartID,MATCH('Berechnung Streckenabschnitt'!B107,Gutart!$B$2:$B$4,0))&"_"&INDEX(FahrzeugartID,MATCH('Berechnung Streckenabschnitt'!C107,Fahrzeugart!$B$2:$B$5,0)),Energieverbrauch!$D$2:$E$25,2,FALSE)) ->  | J107: =IF(G107 = "", "", IF(E107="Innerorts",VLOOKUP(INDEX(FahrzeugartID,MATCH('Berechnung Streckenabschnitt'!C107,Fahrzeugart!$B$2:$B$5,0)),Korrekturfaktoren!$A$2:$B$5,2,FALSE),1)) ->  | L107: =IF(G107 = "", "", VLOOKUP(INDEX(Kraftstoffart!$A$2:$A$7, MATCH('Berechnung Streckenabschnitt'!F107,Kraftstoffart!$B$2:$B$7,0)),Energieverbrauch_Kennzahlen!$B$2:$C$7,2,FALSE)) ->  | M107: =IF(G107 = "", "", VLOOKUP(INDEX(Kraftstoffart!$A$2:$A$7, MATCH('Berechnung Streckenabschnitt'!F107,Kraftstoffart!$B$2:$B$7,0)),Energieverbrauch_Kennzahlen!$B$8:$C$13,2,FALSE)) ->  | N107: =IF(G107 = "", "", VLOOKUP(INDEX(Kraftstoffart!$A$2:$A$7, MATCH('Berechnung Streckenabschnitt'!F107,Kraftstoffart!$B$2:$B$7,0)),Kohlendioxid_Kennzahlen!$B$2:$C$7,2,FALSE)) ->  | O107: =IF(G107 = "", "", VLOOKUP(INDEX(Kraftstoffart!$A$2:$A$7, MATCH('Berechnung Streckenabschnitt'!F107,Kraftstoffart!$B$2:$B$7,0)),Kohlendioxid_Kennzahlen!$B$8:$C$13,2,FALSE)) ->  | P107: =IF(G107 = "", "", VLOOKUP(INDEX(Kraftstoffart!$A$2:$A$7, MATCH('Berechnung Streckenabschnitt'!F107,Kraftstoffart!$B$2:$B$7,0)),Treibhausgas_Kennzahlen!$B$2:$C$7,2,FALSE)) ->  | Q107: =IF(G107 = "", "", VLOOKUP(INDEX(Kraftstoffart!$A$2:$A$7, MATCH('Berechnung Streckenabschnitt'!F107,Kraftstoffart!$B$2:$B$7,0)),Treibhausgas_Kennzahlen!$B$8:$C$13,2,FALSE)) -> 
H108: =IF(G108 = "", "", VLOOKUP(INDEX(FahrzeugartID,MATCH('Berechnung Streckenabschnitt'!C108,Fahrzeugart!$B$2:$B$5,0))&"_"&INDEX(GutartID,MATCH('Berechnung Streckenabschnitt'!B108,Gutart!$B$2:$B$4,0)),Frachtgewichte!$C$2:$D$13,2,FALSE)) ->  | I108: =IF(G108 = "", "", VLOOKUP(INDEX(LängsneigungsartID,MATCH('Berechnung Streckenabschnitt'!D108,Längsneigungsart!$B$2:$B$3,0))&"_"&INDEX(GutartID,MATCH('Berechnung Streckenabschnitt'!B108,Gutart!$B$2:$B$4,0))&"_"&INDEX(FahrzeugartID,MATCH('Berechnung Streckenabschnitt'!C108,Fahrzeugart!$B$2:$B$5,0)),Energieverbrauch!$D$2:$E$25,2,FALSE)) ->  | J108: =IF(G108 = "", "", IF(E108="Innerorts",VLOOKUP(INDEX(FahrzeugartID,MATCH('Berechnung Streckenabschnitt'!C108,Fahrzeugart!$B$2:$B$5,0)),Korrekturfaktoren!$A$2:$B$5,2,FALSE),1)) ->  | L108: =IF(G108 = "", "", VLOOKUP(INDEX(Kraftstoffart!$A$2:$A$7, MATCH('Berechnung Streckenabschnitt'!F108,Kraftstoffart!$B$2:$B$7,0)),Energieverbrauch_Kennzahlen!$B$2:$C$7,2,FALSE)) ->  | M108: =IF(G108 = "", "", VLOOKUP(INDEX(Kraftstoffart!$A$2:$A$7, MATCH('Berechnung Streckenabschnitt'!F108,Kraftstoffart!$B$2:$B$7,0)),Energieverbrauch_Kennzahlen!$B$8:$C$13,2,FALSE)) ->  | N108: =IF(G108 = "", "", VLOOKUP(INDEX(Kraftstoffart!$A$2:$A$7, MATCH('Berechnung Streckenabschnitt'!F108,Kraftstoffart!$B$2:$B$7,0)),Kohlendioxid_Kennzahlen!$B$2:$C$7,2,FALSE)) ->  | O108: =IF(G108 = "", "", VLOOKUP(INDEX(Kraftstoffart!$A$2:$A$7, MATCH('Berechnung Streckenabschnitt'!F108,Kraftstoffart!$B$2:$B$7,0)),Kohlendioxid_Kennzahlen!$B$8:$C$13,2,FALSE)) ->  | P108: =IF(G108 = "", "", VLOOKUP(INDEX(Kraftstoffart!$A$2:$A$7, MATCH('Berechnung Streckenabschnitt'!F108,Kraftstoffart!$B$2:$B$7,0)),Treibhausgas_Kennzahlen!$B$2:$C$7,2,FALSE)) ->  | Q108: =IF(G108 = "", "", VLOOKUP(INDEX(Kraftstoffart!$A$2:$A$7, MATCH('Berechnung Streckenabschnitt'!F108,Kraftstoffart!$B$2:$B$7,0)),Treibhausgas_Kennzahlen!$B$8:$C$13,2,FALSE)) -> 
H109: =IF(G109 = "", "", VLOOKUP(INDEX(FahrzeugartID,MATCH('Berechnung Streckenabschnitt'!C109,Fahrzeugart!$B$2:$B$5,0))&"_"&INDEX(GutartID,MATCH('Berechnung Streckenabschnitt'!B109,Gutart!$B$2:$B$4,0)),Frachtgewichte!$C$2:$D$13,2,FALSE)) ->  | I109: =IF(G109 = "", "", VLOOKUP(INDEX(LängsneigungsartID,MATCH('Berechnung Streckenabschnitt'!D109,Längsneigungsart!$B$2:$B$3,0))&"_"&INDEX(GutartID,MATCH('Berechnung Streckenabschnitt'!B109,Gutart!$B$2:$B$4,0))&"_"&INDEX(FahrzeugartID,MATCH('Berechnung Streckenabschnitt'!C109,Fahrzeugart!$B$2:$B$5,0)),Energieverbrauch!$D$2:$E$25,2,FALSE)) ->  | J109: =IF(G109 = "", "", IF(E109="Innerorts",VLOOKUP(INDEX(FahrzeugartID,MATCH('Berechnung Streckenabschnitt'!C109,Fahrzeugart!$B$2:$B$5,0)),Korrekturfaktoren!$A$2:$B$5,2,FALSE),1)) ->  | L109: =IF(G109 = "", "", VLOOKUP(INDEX(Kraftstoffart!$A$2:$A$7, MATCH('Berechnung Streckenabschnitt'!F109,Kraftstoffart!$B$2:$B$7,0)),Energieverbrauch_Kennzahlen!$B$2:$C$7,2,FALSE)) ->  | M109: =IF(G109 = "", "", VLOOKUP(INDEX(Kraftstoffart!$A$2:$A$7, MATCH('Berechnung Streckenabschnitt'!F109,Kraftstoffart!$B$2:$B$7,0)),Energieverbrauch_Kennzahlen!$B$8:$C$13,2,FALSE)) ->  | N109: =IF(G109 = "", "", VLOOKUP(INDEX(Kraftstoffart!$A$2:$A$7, MATCH('Berechnung Streckenabschnitt'!F109,Kraftstoffart!$B$2:$B$7,0)),Kohlendioxid_Kennzahlen!$B$2:$C$7,2,FALSE)) ->  | O109: =IF(G109 = "", "", VLOOKUP(INDEX(Kraftstoffart!$A$2:$A$7, MATCH('Berechnung Streckenabschnitt'!F109,Kraftstoffart!$B$2:$B$7,0)),Kohlendioxid_Kennzahlen!$B$8:$C$13,2,FALSE)) ->  | P109: =IF(G109 = "", "", VLOOKUP(INDEX(Kraftstoffart!$A$2:$A$7, MATCH('Berechnung Streckenabschnitt'!F109,Kraftstoffart!$B$2:$B$7,0)),Treibhausgas_Kennzahlen!$B$2:$C$7,2,FALSE)) ->  | Q109: =IF(G109 = "", "", VLOOKUP(INDEX(Kraftstoffart!$A$2:$A$7, MATCH('Berechnung Streckenabschnitt'!F109,Kraftstoffart!$B$2:$B$7,0)),Treibhausgas_Kennzahlen!$B$8:$C$13,2,FALSE)) -> 
H110: =IF(G110 = "", "", VLOOKUP(INDEX(FahrzeugartID,MATCH('Berechnung Streckenabschnitt'!C110,Fahrzeugart!$B$2:$B$5,0))&"_"&INDEX(GutartID,MATCH('Berechnung Streckenabschnitt'!B110,Gutart!$B$2:$B$4,0)),Frachtgewichte!$C$2:$D$13,2,FALSE)) ->  | I110: =IF(G110 = "", "", VLOOKUP(INDEX(LängsneigungsartID,MATCH('Berechnung Streckenabschnitt'!D110,Längsneigungsart!$B$2:$B$3,0))&"_"&INDEX(GutartID,MATCH('Berechnung Streckenabschnitt'!B110,Gutart!$B$2:$B$4,0))&"_"&INDEX(FahrzeugartID,MATCH('Berechnung Streckenabschnitt'!C110,Fahrzeugart!$B$2:$B$5,0)),Energieverbrauch!$D$2:$E$25,2,FALSE)) ->  | J110: =IF(G110 = "", "", IF(E110="Innerorts",VLOOKUP(INDEX(FahrzeugartID,MATCH('Berechnung Streckenabschnitt'!C110,Fahrzeugart!$B$2:$B$5,0)),Korrekturfaktoren!$A$2:$B$5,2,FALSE),1)) ->  | L110: =IF(G110 = "", "", VLOOKUP(INDEX(Kraftstoffart!$A$2:$A$7, MATCH('Berechnung Streckenabschnitt'!F110,Kraftstoffart!$B$2:$B$7,0)),Energieverbrauch_Kennzahlen!$B$2:$C$7,2,FALSE)) ->  | M110: =IF(G110 = "", "", VLOOKUP(INDEX(Kraftstoffart!$A$2:$A$7, MATCH('Berechnung Streckenabschnitt'!F110,Kraftstoffart!$B$2:$B$7,0)),Energieverbrauch_Kennzahlen!$B$8:$C$13,2,FALSE)) ->  | N110: =IF(G110 = "", "", VLOOKUP(INDEX(Kraftstoffart!$A$2:$A$7, MATCH('Berechnung Streckenabschnitt'!F110,Kraftstoffart!$B$2:$B$7,0)),Kohlendioxid_Kennzahlen!$B$2:$C$7,2,FALSE)) ->  | O110: =IF(G110 = "", "", VLOOKUP(INDEX(Kraftstoffart!$A$2:$A$7, MATCH('Berechnung Streckenabschnitt'!F110,Kraftstoffart!$B$2:$B$7,0)),Kohlendioxid_Kennzahlen!$B$8:$C$13,2,FALSE)) ->  | P110: =IF(G110 = "", "", VLOOKUP(INDEX(Kraftstoffart!$A$2:$A$7, MATCH('Berechnung Streckenabschnitt'!F110,Kraftstoffart!$B$2:$B$7,0)),Treibhausgas_Kennzahlen!$B$2:$C$7,2,FALSE)) ->  | Q110: =IF(G110 = "", "", VLOOKUP(INDEX(Kraftstoffart!$A$2:$A$7, MATCH('Berechnung Streckenabschnitt'!F110,Kraftstoffart!$B$2:$B$7,0)),Treibhausgas_Kennzahlen!$B$8:$C$13,2,FALSE)) -> 
H111: =IF(G111 = "", "", VLOOKUP(INDEX(FahrzeugartID,MATCH('Berechnung Streckenabschnitt'!C111,Fahrzeugart!$B$2:$B$5,0))&"_"&INDEX(GutartID,MATCH('Berechnung Streckenabschnitt'!B111,Gutart!$B$2:$B$4,0)),Frachtgewichte!$C$2:$D$13,2,FALSE)) ->  | I111: =IF(G111 = "", "", VLOOKUP(INDEX(LängsneigungsartID,MATCH('Berechnung Streckenabschnitt'!D111,Längsneigungsart!$B$2:$B$3,0))&"_"&INDEX(GutartID,MATCH('Berechnung Streckenabschnitt'!B111,Gutart!$B$2:$B$4,0))&"_"&INDEX(FahrzeugartID,MATCH('Berechnung Streckenabschnitt'!C111,Fahrzeugart!$B$2:$B$5,0)),Energieverbrauch!$D$2:$E$25,2,FALSE)) ->  | J111: =IF(G111 = "", "", IF(E111="Innerorts",VLOOKUP(INDEX(FahrzeugartID,MATCH('Berechnung Streckenabschnitt'!C111,Fahrzeugart!$B$2:$B$5,0)),Korrekturfaktoren!$A$2:$B$5,2,FALSE),1)) ->  | L111: =IF(G111 = "", "", VLOOKUP(INDEX(Kraftstoffart!$A$2:$A$7, MATCH('Berechnung Streckenabschnitt'!F111,Kraftstoffart!$B$2:$B$7,0)),Energieverbrauch_Kennzahlen!$B$2:$C$7,2,FALSE)) ->  | M111: =IF(G111 = "", "", VLOOKUP(INDEX(Kraftstoffart!$A$2:$A$7, MATCH('Berechnung Streckenabschnitt'!F111,Kraftstoffart!$B$2:$B$7,0)),Energieverbrauch_Kennzahlen!$B$8:$C$13,2,FALSE)) ->  | N111: =IF(G111 = "", "", VLOOKUP(INDEX(Kraftstoffart!$A$2:$A$7, MATCH('Berechnung Streckenabschnitt'!F111,Kraftstoffart!$B$2:$B$7,0)),Kohlendioxid_Kennzahlen!$B$2:$C$7,2,FALSE)) ->  | O111: =IF(G111 = "", "", VLOOKUP(INDEX(Kraftstoffart!$A$2:$A$7, MATCH('Berechnung Streckenabschnitt'!F111,Kraftstoffart!$B$2:$B$7,0)),Kohlendioxid_Kennzahlen!$B$8:$C$13,2,FALSE)) ->  | P111: =IF(G111 = "", "", VLOOKUP(INDEX(Kraftstoffart!$A$2:$A$7, MATCH('Berechnung Streckenabschnitt'!F111,Kraftstoffart!$B$2:$B$7,0)),Treibhausgas_Kennzahlen!$B$2:$C$7,2,FALSE)) ->  | Q111: =IF(G111 = "", "", VLOOKUP(INDEX(Kraftstoffart!$A$2:$A$7, MATCH('Berechnung Streckenabschnitt'!F111,Kraftstoffart!$B$2:$B$7,0)),Treibhausgas_Kennzahlen!$B$8:$C$13,2,FALSE)) -> 
H112: =IF(G112 = "", "", VLOOKUP(INDEX(FahrzeugartID,MATCH('Berechnung Streckenabschnitt'!C112,Fahrzeugart!$B$2:$B$5,0))&"_"&INDEX(GutartID,MATCH('Berechnung Streckenabschnitt'!B112,Gutart!$B$2:$B$4,0)),Frachtgewichte!$C$2:$D$13,2,FALSE)) ->  | I112: =IF(G112 = "", "", VLOOKUP(INDEX(LängsneigungsartID,MATCH('Berechnung Streckenabschnitt'!D112,Längsneigungsart!$B$2:$B$3,0))&"_"&INDEX(GutartID,MATCH('Berechnung Streckenabschnitt'!B112,Gutart!$B$2:$B$4,0))&"_"&INDEX(FahrzeugartID,MATCH('Berechnung Streckenabschnitt'!C112,Fahrzeugart!$B$2:$B$5,0)),Energieverbrauch!$D$2:$E$25,2,FALSE)) ->  | J112: =IF(G112 = "", "", IF(E112="Innerorts",VLOOKUP(INDEX(FahrzeugartID,MATCH('Berechnung Streckenabschnitt'!C112,Fahrzeugart!$B$2:$B$5,0)),Korrekturfaktoren!$A$2:$B$5,2,FALSE),1)) ->  | L112: =IF(G112 = "", "", VLOOKUP(INDEX(Kraftstoffart!$A$2:$A$7, MATCH('Berechnung Streckenabschnitt'!F112,Kraftstoffart!$B$2:$B$7,0)),Energieverbrauch_Kennzahlen!$B$2:$C$7,2,FALSE)) ->  | M112: =IF(G112 = "", "", VLOOKUP(INDEX(Kraftstoffart!$A$2:$A$7, MATCH('Berechnung Streckenabschnitt'!F112,Kraftstoffart!$B$2:$B$7,0)),Energieverbrauch_Kennzahlen!$B$8:$C$13,2,FALSE)) ->  | N112: =IF(G112 = "", "", VLOOKUP(INDEX(Kraftstoffart!$A$2:$A$7, MATCH('Berechnung Streckenabschnitt'!F112,Kraftstoffart!$B$2:$B$7,0)),Kohlendioxid_Kennzahlen!$B$2:$C$7,2,FALSE)) ->  | O112: =IF(G112 = "", "", VLOOKUP(INDEX(Kraftstoffart!$A$2:$A$7, MATCH('Berechnung Streckenabschnitt'!F112,Kraftstoffart!$B$2:$B$7,0)),Kohlendioxid_Kennzahlen!$B$8:$C$13,2,FALSE)) ->  | P112: =IF(G112 = "", "", VLOOKUP(INDEX(Kraftstoffart!$A$2:$A$7, MATCH('Berechnung Streckenabschnitt'!F112,Kraftstoffart!$B$2:$B$7,0)),Treibhausgas_Kennzahlen!$B$2:$C$7,2,FALSE)) ->  | Q112: =IF(G112 = "", "", VLOOKUP(INDEX(Kraftstoffart!$A$2:$A$7, MATCH('Berechnung Streckenabschnitt'!F112,Kraftstoffart!$B$2:$B$7,0)),Treibhausgas_Kennzahlen!$B$8:$C$13,2,FALSE)) -> 
H113: =IF(G113 = "", "", VLOOKUP(INDEX(FahrzeugartID,MATCH('Berechnung Streckenabschnitt'!C113,Fahrzeugart!$B$2:$B$5,0))&"_"&INDEX(GutartID,MATCH('Berechnung Streckenabschnitt'!B113,Gutart!$B$2:$B$4,0)),Frachtgewichte!$C$2:$D$13,2,FALSE)) ->  | I113: =IF(G113 = "", "", VLOOKUP(INDEX(LängsneigungsartID,MATCH('Berechnung Streckenabschnitt'!D113,Längsneigungsart!$B$2:$B$3,0))&"_"&INDEX(GutartID,MATCH('Berechnung Streckenabschnitt'!B113,Gutart!$B$2:$B$4,0))&"_"&INDEX(FahrzeugartID,MATCH('Berechnung Streckenabschnitt'!C113,Fahrzeugart!$B$2:$B$5,0)),Energieverbrauch!$D$2:$E$25,2,FALSE)) ->  | J113: =IF(G113 = "", "", IF(E113="Innerorts",VLOOKUP(INDEX(FahrzeugartID,MATCH('Berechnung Streckenabschnitt'!C113,Fahrzeugart!$B$2:$B$5,0)),Korrekturfaktoren!$A$2:$B$5,2,FALSE),1)) ->  | L113: =IF(G113 = "", "", VLOOKUP(INDEX(Kraftstoffart!$A$2:$A$7, MATCH('Berechnung Streckenabschnitt'!F113,Kraftstoffart!$B$2:$B$7,0)),Energieverbrauch_Kennzahlen!$B$2:$C$7,2,FALSE)) ->  | M113: =IF(G113 = "", "", VLOOKUP(INDEX(Kraftstoffart!$A$2:$A$7, MATCH('Berechnung Streckenabschnitt'!F113,Kraftstoffart!$B$2:$B$7,0)),Energieverbrauch_Kennzahlen!$B$8:$C$13,2,FALSE)) ->  | N113: =IF(G113 = "", "", VLOOKUP(INDEX(Kraftstoffart!$A$2:$A$7, MATCH('Berechnung Streckenabschnitt'!F113,Kraftstoffart!$B$2:$B$7,0)),Kohlendioxid_Kennzahlen!$B$2:$C$7,2,FALSE)) ->  | O113: =IF(G113 = "", "", VLOOKUP(INDEX(Kraftstoffart!$A$2:$A$7, MATCH('Berechnung Streckenabschnitt'!F113,Kraftstoffart!$B$2:$B$7,0)),Kohlendioxid_Kennzahlen!$B$8:$C$13,2,FALSE)) ->  | P113: =IF(G113 = "", "", VLOOKUP(INDEX(Kraftstoffart!$A$2:$A$7, MATCH('Berechnung Streckenabschnitt'!F113,Kraftstoffart!$B$2:$B$7,0)),Treibhausgas_Kennzahlen!$B$2:$C$7,2,FALSE)) ->  | Q113: =IF(G113 = "", "", VLOOKUP(INDEX(Kraftstoffart!$A$2:$A$7, MATCH('Berechnung Streckenabschnitt'!F113,Kraftstoffart!$B$2:$B$7,0)),Treibhausgas_Kennzahlen!$B$8:$C$13,2,FALSE)) -> 
H114: =IF(G114 = "", "", VLOOKUP(INDEX(FahrzeugartID,MATCH('Berechnung Streckenabschnitt'!C114,Fahrzeugart!$B$2:$B$5,0))&"_"&INDEX(GutartID,MATCH('Berechnung Streckenabschnitt'!B114,Gutart!$B$2:$B$4,0)),Frachtgewichte!$C$2:$D$13,2,FALSE)) ->  | I114: =IF(G114 = "", "", VLOOKUP(INDEX(LängsneigungsartID,MATCH('Berechnung Streckenabschnitt'!D114,Längsneigungsart!$B$2:$B$3,0))&"_"&INDEX(GutartID,MATCH('Berechnung Streckenabschnitt'!B114,Gutart!$B$2:$B$4,0))&"_"&INDEX(FahrzeugartID,MATCH('Berechnung Streckenabschnitt'!C114,Fahrzeugart!$B$2:$B$5,0)),Energieverbrauch!$D$2:$E$25,2,FALSE)) ->  | J114: =IF(G114 = "", "", IF(E114="Innerorts",VLOOKUP(INDEX(FahrzeugartID,MATCH('Berechnung Streckenabschnitt'!C114,Fahrzeugart!$B$2:$B$5,0)),Korrekturfaktoren!$A$2:$B$5,2,FALSE),1)) ->  | L114: =IF(G114 = "", "", VLOOKUP(INDEX(Kraftstoffart!$A$2:$A$7, MATCH('Berechnung Streckenabschnitt'!F114,Kraftstoffart!$B$2:$B$7,0)),Energieverbrauch_Kennzahlen!$B$2:$C$7,2,FALSE)) ->  | M114: =IF(G114 = "", "", VLOOKUP(INDEX(Kraftstoffart!$A$2:$A$7, MATCH('Berechnung Streckenabschnitt'!F114,Kraftstoffart!$B$2:$B$7,0)),Energieverbrauch_Kennzahlen!$B$8:$C$13,2,FALSE)) ->  | N114: =IF(G114 = "", "", VLOOKUP(INDEX(Kraftstoffart!$A$2:$A$7, MATCH('Berechnung Streckenabschnitt'!F114,Kraftstoffart!$B$2:$B$7,0)),Kohlendioxid_Kennzahlen!$B$2:$C$7,2,FALSE)) ->  | O114: =IF(G114 = "", "", VLOOKUP(INDEX(Kraftstoffart!$A$2:$A$7, MATCH('Berechnung Streckenabschnitt'!F114,Kraftstoffart!$B$2:$B$7,0)),Kohlendioxid_Kennzahlen!$B$8:$C$13,2,FALSE)) ->  | P114: =IF(G114 = "", "", VLOOKUP(INDEX(Kraftstoffart!$A$2:$A$7, MATCH('Berechnung Streckenabschnitt'!F114,Kraftstoffart!$B$2:$B$7,0)),Treibhausgas_Kennzahlen!$B$2:$C$7,2,FALSE)) ->  | Q114: =IF(G114 = "", "", VLOOKUP(INDEX(Kraftstoffart!$A$2:$A$7, MATCH('Berechnung Streckenabschnitt'!F114,Kraftstoffart!$B$2:$B$7,0)),Treibhausgas_Kennzahlen!$B$8:$C$13,2,FALSE)) -> 
H115: =IF(G115 = "", "", VLOOKUP(INDEX(FahrzeugartID,MATCH('Berechnung Streckenabschnitt'!C115,Fahrzeugart!$B$2:$B$5,0))&"_"&INDEX(GutartID,MATCH('Berechnung Streckenabschnitt'!B115,Gutart!$B$2:$B$4,0)),Frachtgewichte!$C$2:$D$13,2,FALSE)) ->  | I115: =IF(G115 = "", "", VLOOKUP(INDEX(LängsneigungsartID,MATCH('Berechnung Streckenabschnitt'!D115,Längsneigungsart!$B$2:$B$3,0))&"_"&INDEX(GutartID,MATCH('Berechnung Streckenabschnitt'!B115,Gutart!$B$2:$B$4,0))&"_"&INDEX(FahrzeugartID,MATCH('Berechnung Streckenabschnitt'!C115,Fahrzeugart!$B$2:$B$5,0)),Energieverbrauch!$D$2:$E$25,2,FALSE)) ->  | J115: =IF(G115 = "", "", IF(E115="Innerorts",VLOOKUP(INDEX(FahrzeugartID,MATCH('Berechnung Streckenabschnitt'!C115,Fahrzeugart!$B$2:$B$5,0)),Korrekturfaktoren!$A$2:$B$5,2,FALSE),1)) ->  | L115: =IF(G115 = "", "", VLOOKUP(INDEX(Kraftstoffart!$A$2:$A$7, MATCH('Berechnung Streckenabschnitt'!F115,Kraftstoffart!$B$2:$B$7,0)),Energieverbrauch_Kennzahlen!$B$2:$C$7,2,FALSE)) ->  | M115: =IF(G115 = "", "", VLOOKUP(INDEX(Kraftstoffart!$A$2:$A$7, MATCH('Berechnung Streckenabschnitt'!F115,Kraftstoffart!$B$2:$B$7,0)),Energieverbrauch_Kennzahlen!$B$8:$C$13,2,FALSE)) ->  | N115: =IF(G115 = "", "", VLOOKUP(INDEX(Kraftstoffart!$A$2:$A$7, MATCH('Berechnung Streckenabschnitt'!F115,Kraftstoffart!$B$2:$B$7,0)),Kohlendioxid_Kennzahlen!$B$2:$C$7,2,FALSE)) ->  | O115: =IF(G115 = "", "", VLOOKUP(INDEX(Kraftstoffart!$A$2:$A$7, MATCH('Berechnung Streckenabschnitt'!F115,Kraftstoffart!$B$2:$B$7,0)),Kohlendioxid_Kennzahlen!$B$8:$C$13,2,FALSE)) ->  | P115: =IF(G115 = "", "", VLOOKUP(INDEX(Kraftstoffart!$A$2:$A$7, MATCH('Berechnung Streckenabschnitt'!F115,Kraftstoffart!$B$2:$B$7,0)),Treibhausgas_Kennzahlen!$B$2:$C$7,2,FALSE)) ->  | Q115: =IF(G115 = "", "", VLOOKUP(INDEX(Kraftstoffart!$A$2:$A$7, MATCH('Berechnung Streckenabschnitt'!F115,Kraftstoffart!$B$2:$B$7,0)),Treibhausgas_Kennzahlen!$B$8:$C$13,2,FALSE)) -> 
H116: =IF(G116 = "", "", VLOOKUP(INDEX(FahrzeugartID,MATCH('Berechnung Streckenabschnitt'!C116,Fahrzeugart!$B$2:$B$5,0))&"_"&INDEX(GutartID,MATCH('Berechnung Streckenabschnitt'!B116,Gutart!$B$2:$B$4,0)),Frachtgewichte!$C$2:$D$13,2,FALSE)) ->  | I116: =IF(G116 = "", "", VLOOKUP(INDEX(LängsneigungsartID,MATCH('Berechnung Streckenabschnitt'!D116,Längsneigungsart!$B$2:$B$3,0))&"_"&INDEX(GutartID,MATCH('Berechnung Streckenabschnitt'!B116,Gutart!$B$2:$B$4,0))&"_"&INDEX(FahrzeugartID,MATCH('Berechnung Streckenabschnitt'!C116,Fahrzeugart!$B$2:$B$5,0)),Energieverbrauch!$D$2:$E$25,2,FALSE)) ->  | J116: =IF(G116 = "", "", IF(E116="Innerorts",VLOOKUP(INDEX(FahrzeugartID,MATCH('Berechnung Streckenabschnitt'!C116,Fahrzeugart!$B$2:$B$5,0)),Korrekturfaktoren!$A$2:$B$5,2,FALSE),1)) ->  | L116: =IF(G116 = "", "", VLOOKUP(INDEX(Kraftstoffart!$A$2:$A$7, MATCH('Berechnung Streckenabschnitt'!F116,Kraftstoffart!$B$2:$B$7,0)),Energieverbrauch_Kennzahlen!$B$2:$C$7,2,FALSE)) ->  | M116: =IF(G116 = "", "", VLOOKUP(INDEX(Kraftstoffart!$A$2:$A$7, MATCH('Berechnung Streckenabschnitt'!F116,Kraftstoffart!$B$2:$B$7,0)),Energieverbrauch_Kennzahlen!$B$8:$C$13,2,FALSE)) ->  | N116: =IF(G116 = "", "", VLOOKUP(INDEX(Kraftstoffart!$A$2:$A$7, MATCH('Berechnung Streckenabschnitt'!F116,Kraftstoffart!$B$2:$B$7,0)),Kohlendioxid_Kennzahlen!$B$2:$C$7,2,FALSE)) ->  | O116: =IF(G116 = "", "", VLOOKUP(INDEX(Kraftstoffart!$A$2:$A$7, MATCH('Berechnung Streckenabschnitt'!F116,Kraftstoffart!$B$2:$B$7,0)),Kohlendioxid_Kennzahlen!$B$8:$C$13,2,FALSE)) ->  | P116: =IF(G116 = "", "", VLOOKUP(INDEX(Kraftstoffart!$A$2:$A$7, MATCH('Berechnung Streckenabschnitt'!F116,Kraftstoffart!$B$2:$B$7,0)),Treibhausgas_Kennzahlen!$B$2:$C$7,2,FALSE)) ->  | Q116: =IF(G116 = "", "", VLOOKUP(INDEX(Kraftstoffart!$A$2:$A$7, MATCH('Berechnung Streckenabschnitt'!F116,Kraftstoffart!$B$2:$B$7,0)),Treibhausgas_Kennzahlen!$B$8:$C$13,2,FALSE)) -> 
H117: =IF(G117 = "", "", VLOOKUP(INDEX(FahrzeugartID,MATCH('Berechnung Streckenabschnitt'!C117,Fahrzeugart!$B$2:$B$5,0))&"_"&INDEX(GutartID,MATCH('Berechnung Streckenabschnitt'!B117,Gutart!$B$2:$B$4,0)),Frachtgewichte!$C$2:$D$13,2,FALSE)) ->  | I117: =IF(G117 = "", "", VLOOKUP(INDEX(LängsneigungsartID,MATCH('Berechnung Streckenabschnitt'!D117,Längsneigungsart!$B$2:$B$3,0))&"_"&INDEX(GutartID,MATCH('Berechnung Streckenabschnitt'!B117,Gutart!$B$2:$B$4,0))&"_"&INDEX(FahrzeugartID,MATCH('Berechnung Streckenabschnitt'!C117,Fahrzeugart!$B$2:$B$5,0)),Energieverbrauch!$D$2:$E$25,2,FALSE)) ->  | J117: =IF(G117 = "", "", IF(E117="Innerorts",VLOOKUP(INDEX(FahrzeugartID,MATCH('Berechnung Streckenabschnitt'!C117,Fahrzeugart!$B$2:$B$5,0)),Korrekturfaktoren!$A$2:$B$5,2,FALSE),1)) ->  | L117: =IF(G117 = "", "", VLOOKUP(INDEX(Kraftstoffart!$A$2:$A$7, MATCH('Berechnung Streckenabschnitt'!F117,Kraftstoffart!$B$2:$B$7,0)),Energieverbrauch_Kennzahlen!$B$2:$C$7,2,FALSE)) ->  | M117: =IF(G117 = "", "", VLOOKUP(INDEX(Kraftstoffart!$A$2:$A$7, MATCH('Berechnung Streckenabschnitt'!F117,Kraftstoffart!$B$2:$B$7,0)),Energieverbrauch_Kennzahlen!$B$8:$C$13,2,FALSE)) ->  | N117: =IF(G117 = "", "", VLOOKUP(INDEX(Kraftstoffart!$A$2:$A$7, MATCH('Berechnung Streckenabschnitt'!F117,Kraftstoffart!$B$2:$B$7,0)),Kohlendioxid_Kennzahlen!$B$2:$C$7,2,FALSE)) ->  | O117: =IF(G117 = "", "", VLOOKUP(INDEX(Kraftstoffart!$A$2:$A$7, MATCH('Berechnung Streckenabschnitt'!F117,Kraftstoffart!$B$2:$B$7,0)),Kohlendioxid_Kennzahlen!$B$8:$C$13,2,FALSE)) ->  | P117: =IF(G117 = "", "", VLOOKUP(INDEX(Kraftstoffart!$A$2:$A$7, MATCH('Berechnung Streckenabschnitt'!F117,Kraftstoffart!$B$2:$B$7,0)),Treibhausgas_Kennzahlen!$B$2:$C$7,2,FALSE)) ->  | Q117: =IF(G117 = "", "", VLOOKUP(INDEX(Kraftstoffart!$A$2:$A$7, MATCH('Berechnung Streckenabschnitt'!F117,Kraftstoffart!$B$2:$B$7,0)),Treibhausgas_Kennzahlen!$B$8:$C$13,2,FALSE)) -> 
H118: =IF(G118 = "", "", VLOOKUP(INDEX(FahrzeugartID,MATCH('Berechnung Streckenabschnitt'!C118,Fahrzeugart!$B$2:$B$5,0))&"_"&INDEX(GutartID,MATCH('Berechnung Streckenabschnitt'!B118,Gutart!$B$2:$B$4,0)),Frachtgewichte!$C$2:$D$13,2,FALSE)) ->  | I118: =IF(G118 = "", "", VLOOKUP(INDEX(LängsneigungsartID,MATCH('Berechnung Streckenabschnitt'!D118,Längsneigungsart!$B$2:$B$3,0))&"_"&INDEX(GutartID,MATCH('Berechnung Streckenabschnitt'!B118,Gutart!$B$2:$B$4,0))&"_"&INDEX(FahrzeugartID,MATCH('Berechnung Streckenabschnitt'!C118,Fahrzeugart!$B$2:$B$5,0)),Energieverbrauch!$D$2:$E$25,2,FALSE)) ->  | J118: =IF(G118 = "", "", IF(E118="Innerorts",VLOOKUP(INDEX(FahrzeugartID,MATCH('Berechnung Streckenabschnitt'!C118,Fahrzeugart!$B$2:$B$5,0)),Korrekturfaktoren!$A$2:$B$5,2,FALSE),1)) ->  | L118: =IF(G118 = "", "", VLOOKUP(INDEX(Kraftstoffart!$A$2:$A$7, MATCH('Berechnung Streckenabschnitt'!F118,Kraftstoffart!$B$2:$B$7,0)),Energieverbrauch_Kennzahlen!$B$2:$C$7,2,FALSE)) ->  | M118: =IF(G118 = "", "", VLOOKUP(INDEX(Kraftstoffart!$A$2:$A$7, MATCH('Berechnung Streckenabschnitt'!F118,Kraftstoffart!$B$2:$B$7,0)),Energieverbrauch_Kennzahlen!$B$8:$C$13,2,FALSE)) ->  | N118: =IF(G118 = "", "", VLOOKUP(INDEX(Kraftstoffart!$A$2:$A$7, MATCH('Berechnung Streckenabschnitt'!F118,Kraftstoffart!$B$2:$B$7,0)),Kohlendioxid_Kennzahlen!$B$2:$C$7,2,FALSE)) ->  | O118: =IF(G118 = "", "", VLOOKUP(INDEX(Kraftstoffart!$A$2:$A$7, MATCH('Berechnung Streckenabschnitt'!F118,Kraftstoffart!$B$2:$B$7,0)),Kohlendioxid_Kennzahlen!$B$8:$C$13,2,FALSE)) ->  | P118: =IF(G118 = "", "", VLOOKUP(INDEX(Kraftstoffart!$A$2:$A$7, MATCH('Berechnung Streckenabschnitt'!F118,Kraftstoffart!$B$2:$B$7,0)),Treibhausgas_Kennzahlen!$B$2:$C$7,2,FALSE)) ->  | Q118: =IF(G118 = "", "", VLOOKUP(INDEX(Kraftstoffart!$A$2:$A$7, MATCH('Berechnung Streckenabschnitt'!F118,Kraftstoffart!$B$2:$B$7,0)),Treibhausgas_Kennzahlen!$B$8:$C$13,2,FALSE)) -> 
H119: =IF(G119 = "", "", VLOOKUP(INDEX(FahrzeugartID,MATCH('Berechnung Streckenabschnitt'!C119,Fahrzeugart!$B$2:$B$5,0))&"_"&INDEX(GutartID,MATCH('Berechnung Streckenabschnitt'!B119,Gutart!$B$2:$B$4,0)),Frachtgewichte!$C$2:$D$13,2,FALSE)) ->  | I119: =IF(G119 = "", "", VLOOKUP(INDEX(LängsneigungsartID,MATCH('Berechnung Streckenabschnitt'!D119,Längsneigungsart!$B$2:$B$3,0))&"_"&INDEX(GutartID,MATCH('Berechnung Streckenabschnitt'!B119,Gutart!$B$2:$B$4,0))&"_"&INDEX(FahrzeugartID,MATCH('Berechnung Streckenabschnitt'!C119,Fahrzeugart!$B$2:$B$5,0)),Energieverbrauch!$D$2:$E$25,2,FALSE)) ->  | J119: =IF(G119 = "", "", IF(E119="Innerorts",VLOOKUP(INDEX(FahrzeugartID,MATCH('Berechnung Streckenabschnitt'!C119,Fahrzeugart!$B$2:$B$5,0)),Korrekturfaktoren!$A$2:$B$5,2,FALSE),1)) ->  | L119: =IF(G119 = "", "", VLOOKUP(INDEX(Kraftstoffart!$A$2:$A$7, MATCH('Berechnung Streckenabschnitt'!F119,Kraftstoffart!$B$2:$B$7,0)),Energieverbrauch_Kennzahlen!$B$2:$C$7,2,FALSE)) ->  | M119: =IF(G119 = "", "", VLOOKUP(INDEX(Kraftstoffart!$A$2:$A$7, MATCH('Berechnung Streckenabschnitt'!F119,Kraftstoffart!$B$2:$B$7,0)),Energieverbrauch_Kennzahlen!$B$8:$C$13,2,FALSE)) ->  | N119: =IF(G119 = "", "", VLOOKUP(INDEX(Kraftstoffart!$A$2:$A$7, MATCH('Berechnung Streckenabschnitt'!F119,Kraftstoffart!$B$2:$B$7,0)),Kohlendioxid_Kennzahlen!$B$2:$C$7,2,FALSE)) ->  | O119: =IF(G119 = "", "", VLOOKUP(INDEX(Kraftstoffart!$A$2:$A$7, MATCH('Berechnung Streckenabschnitt'!F119,Kraftstoffart!$B$2:$B$7,0)),Kohlendioxid_Kennzahlen!$B$8:$C$13,2,FALSE)) ->  | P119: =IF(G119 = "", "", VLOOKUP(INDEX(Kraftstoffart!$A$2:$A$7, MATCH('Berechnung Streckenabschnitt'!F119,Kraftstoffart!$B$2:$B$7,0)),Treibhausgas_Kennzahlen!$B$2:$C$7,2,FALSE)) ->  | Q119: =IF(G119 = "", "", VLOOKUP(INDEX(Kraftstoffart!$A$2:$A$7, MATCH('Berechnung Streckenabschnitt'!F119,Kraftstoffart!$B$2:$B$7,0)),Treibhausgas_Kennzahlen!$B$8:$C$13,2,FALSE)) -> 
H120: =IF(G120 = "", "", VLOOKUP(INDEX(FahrzeugartID,MATCH('Berechnung Streckenabschnitt'!C120,Fahrzeugart!$B$2:$B$5,0))&"_"&INDEX(GutartID,MATCH('Berechnung Streckenabschnitt'!B120,Gutart!$B$2:$B$4,0)),Frachtgewichte!$C$2:$D$13,2,FALSE)) ->  | I120: =IF(G120 = "", "", VLOOKUP(INDEX(LängsneigungsartID,MATCH('Berechnung Streckenabschnitt'!D120,Längsneigungsart!$B$2:$B$3,0))&"_"&INDEX(GutartID,MATCH('Berechnung Streckenabschnitt'!B120,Gutart!$B$2:$B$4,0))&"_"&INDEX(FahrzeugartID,MATCH('Berechnung Streckenabschnitt'!C120,Fahrzeugart!$B$2:$B$5,0)),Energieverbrauch!$D$2:$E$25,2,FALSE)) ->  | J120: =IF(G120 = "", "", IF(E120="Innerorts",VLOOKUP(INDEX(FahrzeugartID,MATCH('Berechnung Streckenabschnitt'!C120,Fahrzeugart!$B$2:$B$5,0)),Korrekturfaktoren!$A$2:$B$5,2,FALSE),1)) ->  | L120: =IF(G120 = "", "", VLOOKUP(INDEX(Kraftstoffart!$A$2:$A$7, MATCH('Berechnung Streckenabschnitt'!F120,Kraftstoffart!$B$2:$B$7,0)),Energieverbrauch_Kennzahlen!$B$2:$C$7,2,FALSE)) ->  | M120: =IF(G120 = "", "", VLOOKUP(INDEX(Kraftstoffart!$A$2:$A$7, MATCH('Berechnung Streckenabschnitt'!F120,Kraftstoffart!$B$2:$B$7,0)),Energieverbrauch_Kennzahlen!$B$8:$C$13,2,FALSE)) ->  | N120: =IF(G120 = "", "", VLOOKUP(INDEX(Kraftstoffart!$A$2:$A$7, MATCH('Berechnung Streckenabschnitt'!F120,Kraftstoffart!$B$2:$B$7,0)),Kohlendioxid_Kennzahlen!$B$2:$C$7,2,FALSE)) ->  | O120: =IF(G120 = "", "", VLOOKUP(INDEX(Kraftstoffart!$A$2:$A$7, MATCH('Berechnung Streckenabschnitt'!F120,Kraftstoffart!$B$2:$B$7,0)),Kohlendioxid_Kennzahlen!$B$8:$C$13,2,FALSE)) ->  | P120: =IF(G120 = "", "", VLOOKUP(INDEX(Kraftstoffart!$A$2:$A$7, MATCH('Berechnung Streckenabschnitt'!F120,Kraftstoffart!$B$2:$B$7,0)),Treibhausgas_Kennzahlen!$B$2:$C$7,2,FALSE)) ->  | Q120: =IF(G120 = "", "", VLOOKUP(INDEX(Kraftstoffart!$A$2:$A$7, MATCH('Berechnung Streckenabschnitt'!F120,Kraftstoffart!$B$2:$B$7,0)),Treibhausgas_Kennzahlen!$B$8:$C$13,2,FALSE)) -> 
H121: =IF(G121 = "", "", VLOOKUP(INDEX(FahrzeugartID,MATCH('Berechnung Streckenabschnitt'!C121,Fahrzeugart!$B$2:$B$5,0))&"_"&INDEX(GutartID,MATCH('Berechnung Streckenabschnitt'!B121,Gutart!$B$2:$B$4,0)),Frachtgewichte!$C$2:$D$13,2,FALSE)) ->  | I121: =IF(G121 = "", "", VLOOKUP(INDEX(LängsneigungsartID,MATCH('Berechnung Streckenabschnitt'!D121,Längsneigungsart!$B$2:$B$3,0))&"_"&INDEX(GutartID,MATCH('Berechnung Streckenabschnitt'!B121,Gutart!$B$2:$B$4,0))&"_"&INDEX(FahrzeugartID,MATCH('Berechnung Streckenabschnitt'!C121,Fahrzeugart!$B$2:$B$5,0)),Energieverbrauch!$D$2:$E$25,2,FALSE)) ->  | J121: =IF(G121 = "", "", IF(E121="Innerorts",VLOOKUP(INDEX(FahrzeugartID,MATCH('Berechnung Streckenabschnitt'!C121,Fahrzeugart!$B$2:$B$5,0)),Korrekturfaktoren!$A$2:$B$5,2,FALSE),1)) ->  | L121: =IF(G121 = "", "", VLOOKUP(INDEX(Kraftstoffart!$A$2:$A$7, MATCH('Berechnung Streckenabschnitt'!F121,Kraftstoffart!$B$2:$B$7,0)),Energieverbrauch_Kennzahlen!$B$2:$C$7,2,FALSE)) ->  | M121: =IF(G121 = "", "", VLOOKUP(INDEX(Kraftstoffart!$A$2:$A$7, MATCH('Berechnung Streckenabschnitt'!F121,Kraftstoffart!$B$2:$B$7,0)),Energieverbrauch_Kennzahlen!$B$8:$C$13,2,FALSE)) ->  | N121: =IF(G121 = "", "", VLOOKUP(INDEX(Kraftstoffart!$A$2:$A$7, MATCH('Berechnung Streckenabschnitt'!F121,Kraftstoffart!$B$2:$B$7,0)),Kohlendioxid_Kennzahlen!$B$2:$C$7,2,FALSE)) ->  | O121: =IF(G121 = "", "", VLOOKUP(INDEX(Kraftstoffart!$A$2:$A$7, MATCH('Berechnung Streckenabschnitt'!F121,Kraftstoffart!$B$2:$B$7,0)),Kohlendioxid_Kennzahlen!$B$8:$C$13,2,FALSE)) ->  | P121: =IF(G121 = "", "", VLOOKUP(INDEX(Kraftstoffart!$A$2:$A$7, MATCH('Berechnung Streckenabschnitt'!F121,Kraftstoffart!$B$2:$B$7,0)),Treibhausgas_Kennzahlen!$B$2:$C$7,2,FALSE)) ->  | Q121: =IF(G121 = "", "", VLOOKUP(INDEX(Kraftstoffart!$A$2:$A$7, MATCH('Berechnung Streckenabschnitt'!F121,Kraftstoffart!$B$2:$B$7,0)),Treibhausgas_Kennzahlen!$B$8:$C$13,2,FALSE)) -> 
H122: =IF(G122 = "", "", VLOOKUP(INDEX(FahrzeugartID,MATCH('Berechnung Streckenabschnitt'!C122,Fahrzeugart!$B$2:$B$5,0))&"_"&INDEX(GutartID,MATCH('Berechnung Streckenabschnitt'!B122,Gutart!$B$2:$B$4,0)),Frachtgewichte!$C$2:$D$13,2,FALSE)) ->  | I122: =IF(G122 = "", "", VLOOKUP(INDEX(LängsneigungsartID,MATCH('Berechnung Streckenabschnitt'!D122,Längsneigungsart!$B$2:$B$3,0))&"_"&INDEX(GutartID,MATCH('Berechnung Streckenabschnitt'!B122,Gutart!$B$2:$B$4,0))&"_"&INDEX(FahrzeugartID,MATCH('Berechnung Streckenabschnitt'!C122,Fahrzeugart!$B$2:$B$5,0)),Energieverbrauch!$D$2:$E$25,2,FALSE)) ->  | J122: =IF(G122 = "", "", IF(E122="Innerorts",VLOOKUP(INDEX(FahrzeugartID,MATCH('Berechnung Streckenabschnitt'!C122,Fahrzeugart!$B$2:$B$5,0)),Korrekturfaktoren!$A$2:$B$5,2,FALSE),1)) ->  | L122: =IF(G122 = "", "", VLOOKUP(INDEX(Kraftstoffart!$A$2:$A$7, MATCH('Berechnung Streckenabschnitt'!F122,Kraftstoffart!$B$2:$B$7,0)),Energieverbrauch_Kennzahlen!$B$2:$C$7,2,FALSE)) ->  | M122: =IF(G122 = "", "", VLOOKUP(INDEX(Kraftstoffart!$A$2:$A$7, MATCH('Berechnung Streckenabschnitt'!F122,Kraftstoffart!$B$2:$B$7,0)),Energieverbrauch_Kennzahlen!$B$8:$C$13,2,FALSE)) ->  | N122: =IF(G122 = "", "", VLOOKUP(INDEX(Kraftstoffart!$A$2:$A$7, MATCH('Berechnung Streckenabschnitt'!F122,Kraftstoffart!$B$2:$B$7,0)),Kohlendioxid_Kennzahlen!$B$2:$C$7,2,FALSE)) ->  | O122: =IF(G122 = "", "", VLOOKUP(INDEX(Kraftstoffart!$A$2:$A$7, MATCH('Berechnung Streckenabschnitt'!F122,Kraftstoffart!$B$2:$B$7,0)),Kohlendioxid_Kennzahlen!$B$8:$C$13,2,FALSE)) ->  | P122: =IF(G122 = "", "", VLOOKUP(INDEX(Kraftstoffart!$A$2:$A$7, MATCH('Berechnung Streckenabschnitt'!F122,Kraftstoffart!$B$2:$B$7,0)),Treibhausgas_Kennzahlen!$B$2:$C$7,2,FALSE)) ->  | Q122: =IF(G122 = "", "", VLOOKUP(INDEX(Kraftstoffart!$A$2:$A$7, MATCH('Berechnung Streckenabschnitt'!F122,Kraftstoffart!$B$2:$B$7,0)),Treibhausgas_Kennzahlen!$B$8:$C$13,2,FALSE)) -> 
H123: =IF(G123 = "", "", VLOOKUP(INDEX(FahrzeugartID,MATCH('Berechnung Streckenabschnitt'!C123,Fahrzeugart!$B$2:$B$5,0))&"_"&INDEX(GutartID,MATCH('Berechnung Streckenabschnitt'!B123,Gutart!$B$2:$B$4,0)),Frachtgewichte!$C$2:$D$13,2,FALSE)) ->  | I123: =IF(G123 = "", "", VLOOKUP(INDEX(LängsneigungsartID,MATCH('Berechnung Streckenabschnitt'!D123,Längsneigungsart!$B$2:$B$3,0))&"_"&INDEX(GutartID,MATCH('Berechnung Streckenabschnitt'!B123,Gutart!$B$2:$B$4,0))&"_"&INDEX(FahrzeugartID,MATCH('Berechnung Streckenabschnitt'!C123,Fahrzeugart!$B$2:$B$5,0)),Energieverbrauch!$D$2:$E$25,2,FALSE)) ->  | J123: =IF(G123 = "", "", IF(E123="Innerorts",VLOOKUP(INDEX(FahrzeugartID,MATCH('Berechnung Streckenabschnitt'!C123,Fahrzeugart!$B$2:$B$5,0)),Korrekturfaktoren!$A$2:$B$5,2,FALSE),1)) ->  | L123: =IF(G123 = "", "", VLOOKUP(INDEX(Kraftstoffart!$A$2:$A$7, MATCH('Berechnung Streckenabschnitt'!F123,Kraftstoffart!$B$2:$B$7,0)),Energieverbrauch_Kennzahlen!$B$2:$C$7,2,FALSE)) ->  | M123: =IF(G123 = "", "", VLOOKUP(INDEX(Kraftstoffart!$A$2:$A$7, MATCH('Berechnung Streckenabschnitt'!F123,Kraftstoffart!$B$2:$B$7,0)),Energieverbrauch_Kennzahlen!$B$8:$C$13,2,FALSE)) ->  | N123: =IF(G123 = "", "", VLOOKUP(INDEX(Kraftstoffart!$A$2:$A$7, MATCH('Berechnung Streckenabschnitt'!F123,Kraftstoffart!$B$2:$B$7,0)),Kohlendioxid_Kennzahlen!$B$2:$C$7,2,FALSE)) ->  | O123: =IF(G123 = "", "", VLOOKUP(INDEX(Kraftstoffart!$A$2:$A$7, MATCH('Berechnung Streckenabschnitt'!F123,Kraftstoffart!$B$2:$B$7,0)),Kohlendioxid_Kennzahlen!$B$8:$C$13,2,FALSE)) ->  | P123: =IF(G123 = "", "", VLOOKUP(INDEX(Kraftstoffart!$A$2:$A$7, MATCH('Berechnung Streckenabschnitt'!F123,Kraftstoffart!$B$2:$B$7,0)),Treibhausgas_Kennzahlen!$B$2:$C$7,2,FALSE)) ->  | Q123: =IF(G123 = "", "", VLOOKUP(INDEX(Kraftstoffart!$A$2:$A$7, MATCH('Berechnung Streckenabschnitt'!F123,Kraftstoffart!$B$2:$B$7,0)),Treibhausgas_Kennzahlen!$B$8:$C$13,2,FALSE)) -> 
H124: =IF(G124 = "", "", VLOOKUP(INDEX(FahrzeugartID,MATCH('Berechnung Streckenabschnitt'!C124,Fahrzeugart!$B$2:$B$5,0))&"_"&INDEX(GutartID,MATCH('Berechnung Streckenabschnitt'!B124,Gutart!$B$2:$B$4,0)),Frachtgewichte!$C$2:$D$13,2,FALSE)) ->  | I124: =IF(G124 = "", "", VLOOKUP(INDEX(LängsneigungsartID,MATCH('Berechnung Streckenabschnitt'!D124,Längsneigungsart!$B$2:$B$3,0))&"_"&INDEX(GutartID,MATCH('Berechnung Streckenabschnitt'!B124,Gutart!$B$2:$B$4,0))&"_"&INDEX(FahrzeugartID,MATCH('Berechnung Streckenabschnitt'!C124,Fahrzeugart!$B$2:$B$5,0)),Energieverbrauch!$D$2:$E$25,2,FALSE)) ->  | J124: =IF(G124 = "", "", IF(E124="Innerorts",VLOOKUP(INDEX(FahrzeugartID,MATCH('Berechnung Streckenabschnitt'!C124,Fahrzeugart!$B$2:$B$5,0)),Korrekturfaktoren!$A$2:$B$5,2,FALSE),1)) ->  | L124: =IF(G124 = "", "", VLOOKUP(INDEX(Kraftstoffart!$A$2:$A$7, MATCH('Berechnung Streckenabschnitt'!F124,Kraftstoffart!$B$2:$B$7,0)),Energieverbrauch_Kennzahlen!$B$2:$C$7,2,FALSE)) ->  | M124: =IF(G124 = "", "", VLOOKUP(INDEX(Kraftstoffart!$A$2:$A$7, MATCH('Berechnung Streckenabschnitt'!F124,Kraftstoffart!$B$2:$B$7,0)),Energieverbrauch_Kennzahlen!$B$8:$C$13,2,FALSE)) ->  | N124: =IF(G124 = "", "", VLOOKUP(INDEX(Kraftstoffart!$A$2:$A$7, MATCH('Berechnung Streckenabschnitt'!F124,Kraftstoffart!$B$2:$B$7,0)),Kohlendioxid_Kennzahlen!$B$2:$C$7,2,FALSE)) ->  | O124: =IF(G124 = "", "", VLOOKUP(INDEX(Kraftstoffart!$A$2:$A$7, MATCH('Berechnung Streckenabschnitt'!F124,Kraftstoffart!$B$2:$B$7,0)),Kohlendioxid_Kennzahlen!$B$8:$C$13,2,FALSE)) ->  | P124: =IF(G124 = "", "", VLOOKUP(INDEX(Kraftstoffart!$A$2:$A$7, MATCH('Berechnung Streckenabschnitt'!F124,Kraftstoffart!$B$2:$B$7,0)),Treibhausgas_Kennzahlen!$B$2:$C$7,2,FALSE)) ->  | Q124: =IF(G124 = "", "", VLOOKUP(INDEX(Kraftstoffart!$A$2:$A$7, MATCH('Berechnung Streckenabschnitt'!F124,Kraftstoffart!$B$2:$B$7,0)),Treibhausgas_Kennzahlen!$B$8:$C$13,2,FALSE)) -> 
H125: =IF(G125 = "", "", VLOOKUP(INDEX(FahrzeugartID,MATCH('Berechnung Streckenabschnitt'!C125,Fahrzeugart!$B$2:$B$5,0))&"_"&INDEX(GutartID,MATCH('Berechnung Streckenabschnitt'!B125,Gutart!$B$2:$B$4,0)),Frachtgewichte!$C$2:$D$13,2,FALSE)) ->  | I125: =IF(G125 = "", "", VLOOKUP(INDEX(LängsneigungsartID,MATCH('Berechnung Streckenabschnitt'!D125,Längsneigungsart!$B$2:$B$3,0))&"_"&INDEX(GutartID,MATCH('Berechnung Streckenabschnitt'!B125,Gutart!$B$2:$B$4,0))&"_"&INDEX(FahrzeugartID,MATCH('Berechnung Streckenabschnitt'!C125,Fahrzeugart!$B$2:$B$5,0)),Energieverbrauch!$D$2:$E$25,2,FALSE)) ->  | J125: =IF(G125 = "", "", IF(E125="Innerorts",VLOOKUP(INDEX(FahrzeugartID,MATCH('Berechnung Streckenabschnitt'!C125,Fahrzeugart!$B$2:$B$5,0)),Korrekturfaktoren!$A$2:$B$5,2,FALSE),1)) ->  | L125: =IF(G125 = "", "", VLOOKUP(INDEX(Kraftstoffart!$A$2:$A$7, MATCH('Berechnung Streckenabschnitt'!F125,Kraftstoffart!$B$2:$B$7,0)),Energieverbrauch_Kennzahlen!$B$2:$C$7,2,FALSE)) ->  | M125: =IF(G125 = "", "", VLOOKUP(INDEX(Kraftstoffart!$A$2:$A$7, MATCH('Berechnung Streckenabschnitt'!F125,Kraftstoffart!$B$2:$B$7,0)),Energieverbrauch_Kennzahlen!$B$8:$C$13,2,FALSE)) ->  | N125: =IF(G125 = "", "", VLOOKUP(INDEX(Kraftstoffart!$A$2:$A$7, MATCH('Berechnung Streckenabschnitt'!F125,Kraftstoffart!$B$2:$B$7,0)),Kohlendioxid_Kennzahlen!$B$2:$C$7,2,FALSE)) ->  | O125: =IF(G125 = "", "", VLOOKUP(INDEX(Kraftstoffart!$A$2:$A$7, MATCH('Berechnung Streckenabschnitt'!F125,Kraftstoffart!$B$2:$B$7,0)),Kohlendioxid_Kennzahlen!$B$8:$C$13,2,FALSE)) ->  | P125: =IF(G125 = "", "", VLOOKUP(INDEX(Kraftstoffart!$A$2:$A$7, MATCH('Berechnung Streckenabschnitt'!F125,Kraftstoffart!$B$2:$B$7,0)),Treibhausgas_Kennzahlen!$B$2:$C$7,2,FALSE)) ->  | Q125: =IF(G125 = "", "", VLOOKUP(INDEX(Kraftstoffart!$A$2:$A$7, MATCH('Berechnung Streckenabschnitt'!F125,Kraftstoffart!$B$2:$B$7,0)),Treibhausgas_Kennzahlen!$B$8:$C$13,2,FALSE)) -> 
H126: =IF(G126 = "", "", VLOOKUP(INDEX(FahrzeugartID,MATCH('Berechnung Streckenabschnitt'!C126,Fahrzeugart!$B$2:$B$5,0))&"_"&INDEX(GutartID,MATCH('Berechnung Streckenabschnitt'!B126,Gutart!$B$2:$B$4,0)),Frachtgewichte!$C$2:$D$13,2,FALSE)) ->  | I126: =IF(G126 = "", "", VLOOKUP(INDEX(LängsneigungsartID,MATCH('Berechnung Streckenabschnitt'!D126,Längsneigungsart!$B$2:$B$3,0))&"_"&INDEX(GutartID,MATCH('Berechnung Streckenabschnitt'!B126,Gutart!$B$2:$B$4,0))&"_"&INDEX(FahrzeugartID,MATCH('Berechnung Streckenabschnitt'!C126,Fahrzeugart!$B$2:$B$5,0)),Energieverbrauch!$D$2:$E$25,2,FALSE)) ->  | J126: =IF(G126 = "", "", IF(E126="Innerorts",VLOOKUP(INDEX(FahrzeugartID,MATCH('Berechnung Streckenabschnitt'!C126,Fahrzeugart!$B$2:$B$5,0)),Korrekturfaktoren!$A$2:$B$5,2,FALSE),1)) ->  | L126: =IF(G126 = "", "", VLOOKUP(INDEX(Kraftstoffart!$A$2:$A$7, MATCH('Berechnung Streckenabschnitt'!F126,Kraftstoffart!$B$2:$B$7,0)),Energieverbrauch_Kennzahlen!$B$2:$C$7,2,FALSE)) ->  | M126: =IF(G126 = "", "", VLOOKUP(INDEX(Kraftstoffart!$A$2:$A$7, MATCH('Berechnung Streckenabschnitt'!F126,Kraftstoffart!$B$2:$B$7,0)),Energieverbrauch_Kennzahlen!$B$8:$C$13,2,FALSE)) ->  | N126: =IF(G126 = "", "", VLOOKUP(INDEX(Kraftstoffart!$A$2:$A$7, MATCH('Berechnung Streckenabschnitt'!F126,Kraftstoffart!$B$2:$B$7,0)),Kohlendioxid_Kennzahlen!$B$2:$C$7,2,FALSE)) ->  | O126: =IF(G126 = "", "", VLOOKUP(INDEX(Kraftstoffart!$A$2:$A$7, MATCH('Berechnung Streckenabschnitt'!F126,Kraftstoffart!$B$2:$B$7,0)),Kohlendioxid_Kennzahlen!$B$8:$C$13,2,FALSE)) ->  | P126: =IF(G126 = "", "", VLOOKUP(INDEX(Kraftstoffart!$A$2:$A$7, MATCH('Berechnung Streckenabschnitt'!F126,Kraftstoffart!$B$2:$B$7,0)),Treibhausgas_Kennzahlen!$B$2:$C$7,2,FALSE)) ->  | Q126: =IF(G126 = "", "", VLOOKUP(INDEX(Kraftstoffart!$A$2:$A$7, MATCH('Berechnung Streckenabschnitt'!F126,Kraftstoffart!$B$2:$B$7,0)),Treibhausgas_Kennzahlen!$B$8:$C$13,2,FALSE)) -> 
H127: =IF(G127 = "", "", VLOOKUP(INDEX(FahrzeugartID,MATCH('Berechnung Streckenabschnitt'!C127,Fahrzeugart!$B$2:$B$5,0))&"_"&INDEX(GutartID,MATCH('Berechnung Streckenabschnitt'!B127,Gutart!$B$2:$B$4,0)),Frachtgewichte!$C$2:$D$13,2,FALSE)) ->  | I127: =IF(G127 = "", "", VLOOKUP(INDEX(LängsneigungsartID,MATCH('Berechnung Streckenabschnitt'!D127,Längsneigungsart!$B$2:$B$3,0))&"_"&INDEX(GutartID,MATCH('Berechnung Streckenabschnitt'!B127,Gutart!$B$2:$B$4,0))&"_"&INDEX(FahrzeugartID,MATCH('Berechnung Streckenabschnitt'!C127,Fahrzeugart!$B$2:$B$5,0)),Energieverbrauch!$D$2:$E$25,2,FALSE)) ->  | J127: =IF(G127 = "", "", IF(E127="Innerorts",VLOOKUP(INDEX(FahrzeugartID,MATCH('Berechnung Streckenabschnitt'!C127,Fahrzeugart!$B$2:$B$5,0)),Korrekturfaktoren!$A$2:$B$5,2,FALSE),1)) ->  | L127: =IF(G127 = "", "", VLOOKUP(INDEX(Kraftstoffart!$A$2:$A$7, MATCH('Berechnung Streckenabschnitt'!F127,Kraftstoffart!$B$2:$B$7,0)),Energieverbrauch_Kennzahlen!$B$2:$C$7,2,FALSE)) ->  | M127: =IF(G127 = "", "", VLOOKUP(INDEX(Kraftstoffart!$A$2:$A$7, MATCH('Berechnung Streckenabschnitt'!F127,Kraftstoffart!$B$2:$B$7,0)),Energieverbrauch_Kennzahlen!$B$8:$C$13,2,FALSE)) ->  | N127: =IF(G127 = "", "", VLOOKUP(INDEX(Kraftstoffart!$A$2:$A$7, MATCH('Berechnung Streckenabschnitt'!F127,Kraftstoffart!$B$2:$B$7,0)),Kohlendioxid_Kennzahlen!$B$2:$C$7,2,FALSE)) ->  | O127: =IF(G127 = "", "", VLOOKUP(INDEX(Kraftstoffart!$A$2:$A$7, MATCH('Berechnung Streckenabschnitt'!F127,Kraftstoffart!$B$2:$B$7,0)),Kohlendioxid_Kennzahlen!$B$8:$C$13,2,FALSE)) ->  | P127: =IF(G127 = "", "", VLOOKUP(INDEX(Kraftstoffart!$A$2:$A$7, MATCH('Berechnung Streckenabschnitt'!F127,Kraftstoffart!$B$2:$B$7,0)),Treibhausgas_Kennzahlen!$B$2:$C$7,2,FALSE)) ->  | Q127: =IF(G127 = "", "", VLOOKUP(INDEX(Kraftstoffart!$A$2:$A$7, MATCH('Berechnung Streckenabschnitt'!F127,Kraftstoffart!$B$2:$B$7,0)),Treibhausgas_Kennzahlen!$B$8:$C$13,2,FALSE)) -> 
H128: =IF(G128 = "", "", VLOOKUP(INDEX(FahrzeugartID,MATCH('Berechnung Streckenabschnitt'!C128,Fahrzeugart!$B$2:$B$5,0))&"_"&INDEX(GutartID,MATCH('Berechnung Streckenabschnitt'!B128,Gutart!$B$2:$B$4,0)),Frachtgewichte!$C$2:$D$13,2,FALSE)) ->  | I128: =IF(G128 = "", "", VLOOKUP(INDEX(LängsneigungsartID,MATCH('Berechnung Streckenabschnitt'!D128,Längsneigungsart!$B$2:$B$3,0))&"_"&INDEX(GutartID,MATCH('Berechnung Streckenabschnitt'!B128,Gutart!$B$2:$B$4,0))&"_"&INDEX(FahrzeugartID,MATCH('Berechnung Streckenabschnitt'!C128,Fahrzeugart!$B$2:$B$5,0)),Energieverbrauch!$D$2:$E$25,2,FALSE)) ->  | J128: =IF(G128 = "", "", IF(E128="Innerorts",VLOOKUP(INDEX(FahrzeugartID,MATCH('Berechnung Streckenabschnitt'!C128,Fahrzeugart!$B$2:$B$5,0)),Korrekturfaktoren!$A$2:$B$5,2,FALSE),1)) ->  | L128: =IF(G128 = "", "", VLOOKUP(INDEX(Kraftstoffart!$A$2:$A$7, MATCH('Berechnung Streckenabschnitt'!F128,Kraftstoffart!$B$2:$B$7,0)),Energieverbrauch_Kennzahlen!$B$2:$C$7,2,FALSE)) ->  | M128: =IF(G128 = "", "", VLOOKUP(INDEX(Kraftstoffart!$A$2:$A$7, MATCH('Berechnung Streckenabschnitt'!F128,Kraftstoffart!$B$2:$B$7,0)),Energieverbrauch_Kennzahlen!$B$8:$C$13,2,FALSE)) ->  | N128: =IF(G128 = "", "", VLOOKUP(INDEX(Kraftstoffart!$A$2:$A$7, MATCH('Berechnung Streckenabschnitt'!F128,Kraftstoffart!$B$2:$B$7,0)),Kohlendioxid_Kennzahlen!$B$2:$C$7,2,FALSE)) ->  | O128: =IF(G128 = "", "", VLOOKUP(INDEX(Kraftstoffart!$A$2:$A$7, MATCH('Berechnung Streckenabschnitt'!F128,Kraftstoffart!$B$2:$B$7,0)),Kohlendioxid_Kennzahlen!$B$8:$C$13,2,FALSE)) ->  | P128: =IF(G128 = "", "", VLOOKUP(INDEX(Kraftstoffart!$A$2:$A$7, MATCH('Berechnung Streckenabschnitt'!F128,Kraftstoffart!$B$2:$B$7,0)),Treibhausgas_Kennzahlen!$B$2:$C$7,2,FALSE)) ->  | Q128: =IF(G128 = "", "", VLOOKUP(INDEX(Kraftstoffart!$A$2:$A$7, MATCH('Berechnung Streckenabschnitt'!F128,Kraftstoffart!$B$2:$B$7,0)),Treibhausgas_Kennzahlen!$B$8:$C$13,2,FALSE)) -> 
H129: =IF(G129 = "", "", VLOOKUP(INDEX(FahrzeugartID,MATCH('Berechnung Streckenabschnitt'!C129,Fahrzeugart!$B$2:$B$5,0))&"_"&INDEX(GutartID,MATCH('Berechnung Streckenabschnitt'!B129,Gutart!$B$2:$B$4,0)),Frachtgewichte!$C$2:$D$13,2,FALSE)) ->  | I129: =IF(G129 = "", "", VLOOKUP(INDEX(LängsneigungsartID,MATCH('Berechnung Streckenabschnitt'!D129,Längsneigungsart!$B$2:$B$3,0))&"_"&INDEX(GutartID,MATCH('Berechnung Streckenabschnitt'!B129,Gutart!$B$2:$B$4,0))&"_"&INDEX(FahrzeugartID,MATCH('Berechnung Streckenabschnitt'!C129,Fahrzeugart!$B$2:$B$5,0)),Energieverbrauch!$D$2:$E$25,2,FALSE)) ->  | J129: =IF(G129 = "", "", IF(E129="Innerorts",VLOOKUP(INDEX(FahrzeugartID,MATCH('Berechnung Streckenabschnitt'!C129,Fahrzeugart!$B$2:$B$5,0)),Korrekturfaktoren!$A$2:$B$5,2,FALSE),1)) ->  | L129: =IF(G129 = "", "", VLOOKUP(INDEX(Kraftstoffart!$A$2:$A$7, MATCH('Berechnung Streckenabschnitt'!F129,Kraftstoffart!$B$2:$B$7,0)),Energieverbrauch_Kennzahlen!$B$2:$C$7,2,FALSE)) ->  | M129: =IF(G129 = "", "", VLOOKUP(INDEX(Kraftstoffart!$A$2:$A$7, MATCH('Berechnung Streckenabschnitt'!F129,Kraftstoffart!$B$2:$B$7,0)),Energieverbrauch_Kennzahlen!$B$8:$C$13,2,FALSE)) ->  | N129: =IF(G129 = "", "", VLOOKUP(INDEX(Kraftstoffart!$A$2:$A$7, MATCH('Berechnung Streckenabschnitt'!F129,Kraftstoffart!$B$2:$B$7,0)),Kohlendioxid_Kennzahlen!$B$2:$C$7,2,FALSE)) ->  | O129: =IF(G129 = "", "", VLOOKUP(INDEX(Kraftstoffart!$A$2:$A$7, MATCH('Berechnung Streckenabschnitt'!F129,Kraftstoffart!$B$2:$B$7,0)),Kohlendioxid_Kennzahlen!$B$8:$C$13,2,FALSE)) ->  | P129: =IF(G129 = "", "", VLOOKUP(INDEX(Kraftstoffart!$A$2:$A$7, MATCH('Berechnung Streckenabschnitt'!F129,Kraftstoffart!$B$2:$B$7,0)),Treibhausgas_Kennzahlen!$B$2:$C$7,2,FALSE)) ->  | Q129: =IF(G129 = "", "", VLOOKUP(INDEX(Kraftstoffart!$A$2:$A$7, MATCH('Berechnung Streckenabschnitt'!F129,Kraftstoffart!$B$2:$B$7,0)),Treibhausgas_Kennzahlen!$B$8:$C$13,2,FALSE)) -> 
H130: =IF(G130 = "", "", VLOOKUP(INDEX(FahrzeugartID,MATCH('Berechnung Streckenabschnitt'!C130,Fahrzeugart!$B$2:$B$5,0))&"_"&INDEX(GutartID,MATCH('Berechnung Streckenabschnitt'!B130,Gutart!$B$2:$B$4,0)),Frachtgewichte!$C$2:$D$13,2,FALSE)) ->  | I130: =IF(G130 = "", "", VLOOKUP(INDEX(LängsneigungsartID,MATCH('Berechnung Streckenabschnitt'!D130,Längsneigungsart!$B$2:$B$3,0))&"_"&INDEX(GutartID,MATCH('Berechnung Streckenabschnitt'!B130,Gutart!$B$2:$B$4,0))&"_"&INDEX(FahrzeugartID,MATCH('Berechnung Streckenabschnitt'!C130,Fahrzeugart!$B$2:$B$5,0)),Energieverbrauch!$D$2:$E$25,2,FALSE)) ->  | J130: =IF(G130 = "", "", IF(E130="Innerorts",VLOOKUP(INDEX(FahrzeugartID,MATCH('Berechnung Streckenabschnitt'!C130,Fahrzeugart!$B$2:$B$5,0)),Korrekturfaktoren!$A$2:$B$5,2,FALSE),1)) ->  | L130: =IF(G130 = "", "", VLOOKUP(INDEX(Kraftstoffart!$A$2:$A$7, MATCH('Berechnung Streckenabschnitt'!F130,Kraftstoffart!$B$2:$B$7,0)),Energieverbrauch_Kennzahlen!$B$2:$C$7,2,FALSE)) ->  | M130: =IF(G130 = "", "", VLOOKUP(INDEX(Kraftstoffart!$A$2:$A$7, MATCH('Berechnung Streckenabschnitt'!F130,Kraftstoffart!$B$2:$B$7,0)),Energieverbrauch_Kennzahlen!$B$8:$C$13,2,FALSE)) ->  | N130: =IF(G130 = "", "", VLOOKUP(INDEX(Kraftstoffart!$A$2:$A$7, MATCH('Berechnung Streckenabschnitt'!F130,Kraftstoffart!$B$2:$B$7,0)),Kohlendioxid_Kennzahlen!$B$2:$C$7,2,FALSE)) ->  | O130: =IF(G130 = "", "", VLOOKUP(INDEX(Kraftstoffart!$A$2:$A$7, MATCH('Berechnung Streckenabschnitt'!F130,Kraftstoffart!$B$2:$B$7,0)),Kohlendioxid_Kennzahlen!$B$8:$C$13,2,FALSE)) ->  | P130: =IF(G130 = "", "", VLOOKUP(INDEX(Kraftstoffart!$A$2:$A$7, MATCH('Berechnung Streckenabschnitt'!F130,Kraftstoffart!$B$2:$B$7,0)),Treibhausgas_Kennzahlen!$B$2:$C$7,2,FALSE)) ->  | Q130: =IF(G130 = "", "", VLOOKUP(INDEX(Kraftstoffart!$A$2:$A$7, MATCH('Berechnung Streckenabschnitt'!F130,Kraftstoffart!$B$2:$B$7,0)),Treibhausgas_Kennzahlen!$B$8:$C$13,2,FALSE)) -> 
H131: =IF(G131 = "", "", VLOOKUP(INDEX(FahrzeugartID,MATCH('Berechnung Streckenabschnitt'!C131,Fahrzeugart!$B$2:$B$5,0))&"_"&INDEX(GutartID,MATCH('Berechnung Streckenabschnitt'!B131,Gutart!$B$2:$B$4,0)),Frachtgewichte!$C$2:$D$13,2,FALSE)) ->  | I131: =IF(G131 = "", "", VLOOKUP(INDEX(LängsneigungsartID,MATCH('Berechnung Streckenabschnitt'!D131,Längsneigungsart!$B$2:$B$3,0))&"_"&INDEX(GutartID,MATCH('Berechnung Streckenabschnitt'!B131,Gutart!$B$2:$B$4,0))&"_"&INDEX(FahrzeugartID,MATCH('Berechnung Streckenabschnitt'!C131,Fahrzeugart!$B$2:$B$5,0)),Energieverbrauch!$D$2:$E$25,2,FALSE)) ->  | J131: =IF(G131 = "", "", IF(E131="Innerorts",VLOOKUP(INDEX(FahrzeugartID,MATCH('Berechnung Streckenabschnitt'!C131,Fahrzeugart!$B$2:$B$5,0)),Korrekturfaktoren!$A$2:$B$5,2,FALSE),1)) ->  | L131: =IF(G131 = "", "", VLOOKUP(INDEX(Kraftstoffart!$A$2:$A$7, MATCH('Berechnung Streckenabschnitt'!F131,Kraftstoffart!$B$2:$B$7,0)),Energieverbrauch_Kennzahlen!$B$2:$C$7,2,FALSE)) ->  | M131: =IF(G131 = "", "", VLOOKUP(INDEX(Kraftstoffart!$A$2:$A$7, MATCH('Berechnung Streckenabschnitt'!F131,Kraftstoffart!$B$2:$B$7,0)),Energieverbrauch_Kennzahlen!$B$8:$C$13,2,FALSE)) ->  | N131: =IF(G131 = "", "", VLOOKUP(INDEX(Kraftstoffart!$A$2:$A$7, MATCH('Berechnung Streckenabschnitt'!F131,Kraftstoffart!$B$2:$B$7,0)),Kohlendioxid_Kennzahlen!$B$2:$C$7,2,FALSE)) ->  | O131: =IF(G131 = "", "", VLOOKUP(INDEX(Kraftstoffart!$A$2:$A$7, MATCH('Berechnung Streckenabschnitt'!F131,Kraftstoffart!$B$2:$B$7,0)),Kohlendioxid_Kennzahlen!$B$8:$C$13,2,FALSE)) ->  | P131: =IF(G131 = "", "", VLOOKUP(INDEX(Kraftstoffart!$A$2:$A$7, MATCH('Berechnung Streckenabschnitt'!F131,Kraftstoffart!$B$2:$B$7,0)),Treibhausgas_Kennzahlen!$B$2:$C$7,2,FALSE)) ->  | Q131: =IF(G131 = "", "", VLOOKUP(INDEX(Kraftstoffart!$A$2:$A$7, MATCH('Berechnung Streckenabschnitt'!F131,Kraftstoffart!$B$2:$B$7,0)),Treibhausgas_Kennzahlen!$B$8:$C$13,2,FALSE)) -> 
H132: =IF(G132 = "", "", VLOOKUP(INDEX(FahrzeugartID,MATCH('Berechnung Streckenabschnitt'!C132,Fahrzeugart!$B$2:$B$5,0))&"_"&INDEX(GutartID,MATCH('Berechnung Streckenabschnitt'!B132,Gutart!$B$2:$B$4,0)),Frachtgewichte!$C$2:$D$13,2,FALSE)) ->  | I132: =IF(G132 = "", "", VLOOKUP(INDEX(LängsneigungsartID,MATCH('Berechnung Streckenabschnitt'!D132,Längsneigungsart!$B$2:$B$3,0))&"_"&INDEX(GutartID,MATCH('Berechnung Streckenabschnitt'!B132,Gutart!$B$2:$B$4,0))&"_"&INDEX(FahrzeugartID,MATCH('Berechnung Streckenabschnitt'!C132,Fahrzeugart!$B$2:$B$5,0)),Energieverbrauch!$D$2:$E$25,2,FALSE)) ->  | J132: =IF(G132 = "", "", IF(E132="Innerorts",VLOOKUP(INDEX(FahrzeugartID,MATCH('Berechnung Streckenabschnitt'!C132,Fahrzeugart!$B$2:$B$5,0)),Korrekturfaktoren!$A$2:$B$5,2,FALSE),1)) ->  | K132: =IF(G132 = "", "", PRODUCT(J132,H132,G132,I132)) ->  | L132: =IF(G132 = "", "", VLOOKUP(INDEX(Kraftstoffart!$A$2:$A$7, MATCH('Berechnung Streckenabschnitt'!F132,Kraftstoffart!$B$2:$B$7,0)),Energieverbrauch_Kennzahlen!$B$2:$C$7,2,FALSE)) ->  | M132: =IF(G132 = "", "", VLOOKUP(INDEX(Kraftstoffart!$A$2:$A$7, MATCH('Berechnung Streckenabschnitt'!F132,Kraftstoffart!$B$2:$B$7,0)),Energieverbrauch_Kennzahlen!$B$8:$C$13,2,FALSE)) ->  | N132: =IF(G132 = "", "", VLOOKUP(INDEX(Kraftstoffart!$A$2:$A$7, MATCH('Berechnung Streckenabschnitt'!F132,Kraftstoffart!$B$2:$B$7,0)),Kohlendioxid_Kennzahlen!$B$2:$C$7,2,FALSE)) ->  | O132: =IF(G132 = "", "", VLOOKUP(INDEX(Kraftstoffart!$A$2:$A$7, MATCH('Berechnung Streckenabschnitt'!F132,Kraftstoffart!$B$2:$B$7,0)),Kohlendioxid_Kennzahlen!$B$8:$C$13,2,FALSE)) ->  | P132: =IF(G132 = "", "", VLOOKUP(INDEX(Kraftstoffart!$A$2:$A$7, MATCH('Berechnung Streckenabschnitt'!F132,Kraftstoffart!$B$2:$B$7,0)),Treibhausgas_Kennzahlen!$B$2:$C$7,2,FALSE)) ->  | Q132: =IF(G132 = "", "", VLOOKUP(INDEX(Kraftstoffart!$A$2:$A$7, MATCH('Berechnung Streckenabschnitt'!F132,Kraftstoffart!$B$2:$B$7,0)),Treibhausgas_Kennzahlen!$B$8:$C$13,2,FALSE)) ->  | R132: =IF(G132 = "", "", PRODUCT(K132,L132)) ->  | S132: =IF(I132 = "", "", PRODUCT(K132,M132)) ->  | T132: =IF(J132 = "", "", PRODUCT(K132,N132)) ->  | U132: =IF(H132 = "", "", PRODUCT(K132,O132)) -> 
H133: =IF(G133 = "", "", VLOOKUP(INDEX(FahrzeugartID,MATCH('Berechnung Streckenabschnitt'!C133,Fahrzeugart!$B$2:$B$5,0))&"_"&INDEX(GutartID,MATCH('Berechnung Streckenabschnitt'!B133,Gutart!$B$2:$B$4,0)),Frachtgewichte!$C$2:$D$13,2,FALSE)) ->  | I133: =IF(G133 = "", "", VLOOKUP(INDEX(LängsneigungsartID,MATCH('Berechnung Streckenabschnitt'!D133,Längsneigungsart!$B$2:$B$3,0))&"_"&INDEX(GutartID,MATCH('Berechnung Streckenabschnitt'!B133,Gutart!$B$2:$B$4,0))&"_"&INDEX(FahrzeugartID,MATCH('Berechnung Streckenabschnitt'!C133,Fahrzeugart!$B$2:$B$5,0)),Energieverbrauch!$D$2:$E$25,2,FALSE)) ->  | J133: =IF(G133 = "", "", IF(E133="Innerorts",VLOOKUP(INDEX(FahrzeugartID,MATCH('Berechnung Streckenabschnitt'!C133,Fahrzeugart!$B$2:$B$5,0)),Korrekturfaktoren!$A$2:$B$5,2,FALSE),1)) ->  | L133: =IF(G133 = "", "", VLOOKUP(INDEX(Kraftstoffart!$A$2:$A$7, MATCH('Berechnung Streckenabschnitt'!F133,Kraftstoffart!$B$2:$B$7,0)),Energieverbrauch_Kennzahlen!$B$2:$C$7,2,FALSE)) ->  | M133: =IF(G133 = "", "", VLOOKUP(INDEX(Kraftstoffart!$A$2:$A$7, MATCH('Berechnung Streckenabschnitt'!F133,Kraftstoffart!$B$2:$B$7,0)),Energieverbrauch_Kennzahlen!$B$8:$C$13,2,FALSE)) ->  | N133: =IF(G133 = "", "", VLOOKUP(INDEX(Kraftstoffart!$A$2:$A$7, MATCH('Berechnung Streckenabschnitt'!F133,Kraftstoffart!$B$2:$B$7,0)),Kohlendioxid_Kennzahlen!$B$2:$C$7,2,FALSE)) ->  | O133: =IF(G133 = "", "", VLOOKUP(INDEX(Kraftstoffart!$A$2:$A$7, MATCH('Berechnung Streckenabschnitt'!F133,Kraftstoffart!$B$2:$B$7,0)),Kohlendioxid_Kennzahlen!$B$8:$C$13,2,FALSE)) ->  | P133: =IF(G133 = "", "", VLOOKUP(INDEX(Kraftstoffart!$A$2:$A$7, MATCH('Berechnung Streckenabschnitt'!F133,Kraftstoffart!$B$2:$B$7,0)),Treibhausgas_Kennzahlen!$B$2:$C$7,2,FALSE)) ->  | Q133: =IF(G133 = "", "", VLOOKUP(INDEX(Kraftstoffart!$A$2:$A$7, MATCH('Berechnung Streckenabschnitt'!F133,Kraftstoffart!$B$2:$B$7,0)),Treibhausgas_Kennzahlen!$B$8:$C$13,2,FALSE)) ->  | V133: =IF(K133 = "", "", PRODUCT(K133,P133)) ->  | W133: =IF(L133 = "", "", PRODUCT(K133,Q133)) -> 
H134: =IF(G134 = "", "", VLOOKUP(INDEX(FahrzeugartID,MATCH('Berechnung Streckenabschnitt'!C134,Fahrzeugart!$B$2:$B$5,0))&"_"&INDEX(GutartID,MATCH('Berechnung Streckenabschnitt'!B134,Gutart!$B$2:$B$4,0)),Frachtgewichte!$C$2:$D$13,2,FALSE)) ->  | I134: =IF(G134 = "", "", VLOOKUP(INDEX(LängsneigungsartID,MATCH('Berechnung Streckenabschnitt'!D134,Längsneigungsart!$B$2:$B$3,0))&"_"&INDEX(GutartID,MATCH('Berechnung Streckenabschnitt'!B134,Gutart!$B$2:$B$4,0))&"_"&INDEX(FahrzeugartID,MATCH('Berechnung Streckenabschnitt'!C134,Fahrzeugart!$B$2:$B$5,0)),Energieverbrauch!$D$2:$E$25,2,FALSE)) ->  | J134: =IF(G134 = "", "", IF(E134="Innerorts",VLOOKUP(INDEX(FahrzeugartID,MATCH('Berechnung Streckenabschnitt'!C134,Fahrzeugart!$B$2:$B$5,0)),Korrekturfaktoren!$A$2:$B$5,2,FALSE),1)) ->  | L134: =IF(G134 = "", "", VLOOKUP(INDEX(Kraftstoffart!$A$2:$A$7, MATCH('Berechnung Streckenabschnitt'!F134,Kraftstoffart!$B$2:$B$7,0)),Energieverbrauch_Kennzahlen!$B$2:$C$7,2,FALSE)) ->  | M134: =IF(G134 = "", "", VLOOKUP(INDEX(Kraftstoffart!$A$2:$A$7, MATCH('Berechnung Streckenabschnitt'!F134,Kraftstoffart!$B$2:$B$7,0)),Energieverbrauch_Kennzahlen!$B$8:$C$13,2,FALSE)) ->  | N134: =IF(G134 = "", "", VLOOKUP(INDEX(Kraftstoffart!$A$2:$A$7, MATCH('Berechnung Streckenabschnitt'!F134,Kraftstoffart!$B$2:$B$7,0)),Kohlendioxid_Kennzahlen!$B$2:$C$7,2,FALSE)) ->  | O134: =IF(G134 = "", "", VLOOKUP(INDEX(Kraftstoffart!$A$2:$A$7, MATCH('Berechnung Streckenabschnitt'!F134,Kraftstoffart!$B$2:$B$7,0)),Kohlendioxid_Kennzahlen!$B$8:$C$13,2,FALSE)) ->  | P134: =IF(G134 = "", "", VLOOKUP(INDEX(Kraftstoffart!$A$2:$A$7, MATCH('Berechnung Streckenabschnitt'!F134,Kraftstoffart!$B$2:$B$7,0)),Treibhausgas_Kennzahlen!$B$2:$C$7,2,FALSE)) ->  | Q134: =IF(G134 = "", "", VLOOKUP(INDEX(Kraftstoffart!$A$2:$A$7, MATCH('Berechnung Streckenabschnitt'!F134,Kraftstoffart!$B$2:$B$7,0)),Treibhausgas_Kennzahlen!$B$8:$C$13,2,FALSE)) -> 
H135: =IF(G135 = "", "", VLOOKUP(INDEX(FahrzeugartID,MATCH('Berechnung Streckenabschnitt'!C135,Fahrzeugart!$B$2:$B$5,0))&"_"&INDEX(GutartID,MATCH('Berechnung Streckenabschnitt'!B135,Gutart!$B$2:$B$4,0)),Frachtgewichte!$C$2:$D$13,2,FALSE)) ->  | I135: =IF(G135 = "", "", VLOOKUP(INDEX(LängsneigungsartID,MATCH('Berechnung Streckenabschnitt'!D135,Längsneigungsart!$B$2:$B$3,0))&"_"&INDEX(GutartID,MATCH('Berechnung Streckenabschnitt'!B135,Gutart!$B$2:$B$4,0))&"_"&INDEX(FahrzeugartID,MATCH('Berechnung Streckenabschnitt'!C135,Fahrzeugart!$B$2:$B$5,0)),Energieverbrauch!$D$2:$E$25,2,FALSE)) ->  | J135: =IF(G135 = "", "", IF(E135="Innerorts",VLOOKUP(INDEX(FahrzeugartID,MATCH('Berechnung Streckenabschnitt'!C135,Fahrzeugart!$B$2:$B$5,0)),Korrekturfaktoren!$A$2:$B$5,2,FALSE),1)) ->  | L135: =IF(G135 = "", "", VLOOKUP(INDEX(Kraftstoffart!$A$2:$A$7, MATCH('Berechnung Streckenabschnitt'!F135,Kraftstoffart!$B$2:$B$7,0)),Energieverbrauch_Kennzahlen!$B$2:$C$7,2,FALSE)) ->  | M135: =IF(G135 = "", "", VLOOKUP(INDEX(Kraftstoffart!$A$2:$A$7, MATCH('Berechnung Streckenabschnitt'!F135,Kraftstoffart!$B$2:$B$7,0)),Energieverbrauch_Kennzahlen!$B$8:$C$13,2,FALSE)) ->  | N135: =IF(G135 = "", "", VLOOKUP(INDEX(Kraftstoffart!$A$2:$A$7, MATCH('Berechnung Streckenabschnitt'!F135,Kraftstoffart!$B$2:$B$7,0)),Kohlendioxid_Kennzahlen!$B$2:$C$7,2,FALSE)) ->  | O135: =IF(G135 = "", "", VLOOKUP(INDEX(Kraftstoffart!$A$2:$A$7, MATCH('Berechnung Streckenabschnitt'!F135,Kraftstoffart!$B$2:$B$7,0)),Kohlendioxid_Kennzahlen!$B$8:$C$13,2,FALSE)) ->  | P135: =IF(G135 = "", "", VLOOKUP(INDEX(Kraftstoffart!$A$2:$A$7, MATCH('Berechnung Streckenabschnitt'!F135,Kraftstoffart!$B$2:$B$7,0)),Treibhausgas_Kennzahlen!$B$2:$C$7,2,FALSE)) ->  | Q135: =IF(G135 = "", "", VLOOKUP(INDEX(Kraftstoffart!$A$2:$A$7, MATCH('Berechnung Streckenabschnitt'!F135,Kraftstoffart!$B$2:$B$7,0)),Treibhausgas_Kennzahlen!$B$8:$C$13,2,FALSE)) -> 
H136: =IF(G136 = "", "", VLOOKUP(INDEX(FahrzeugartID,MATCH('Berechnung Streckenabschnitt'!C136,Fahrzeugart!$B$2:$B$5,0))&"_"&INDEX(GutartID,MATCH('Berechnung Streckenabschnitt'!B136,Gutart!$B$2:$B$4,0)),Frachtgewichte!$C$2:$D$13,2,FALSE)) ->  | I136: =IF(G136 = "", "", VLOOKUP(INDEX(LängsneigungsartID,MATCH('Berechnung Streckenabschnitt'!D136,Längsneigungsart!$B$2:$B$3,0))&"_"&INDEX(GutartID,MATCH('Berechnung Streckenabschnitt'!B136,Gutart!$B$2:$B$4,0))&"_"&INDEX(FahrzeugartID,MATCH('Berechnung Streckenabschnitt'!C136,Fahrzeugart!$B$2:$B$5,0)),Energieverbrauch!$D$2:$E$25,2,FALSE)) ->  | J136: =IF(G136 = "", "", IF(E136="Innerorts",VLOOKUP(INDEX(FahrzeugartID,MATCH('Berechnung Streckenabschnitt'!C136,Fahrzeugart!$B$2:$B$5,0)),Korrekturfaktoren!$A$2:$B$5,2,FALSE),1)) ->  | L136: =IF(G136 = "", "", VLOOKUP(INDEX(Kraftstoffart!$A$2:$A$7, MATCH('Berechnung Streckenabschnitt'!F136,Kraftstoffart!$B$2:$B$7,0)),Energieverbrauch_Kennzahlen!$B$2:$C$7,2,FALSE)) ->  | M136: =IF(G136 = "", "", VLOOKUP(INDEX(Kraftstoffart!$A$2:$A$7, MATCH('Berechnung Streckenabschnitt'!F136,Kraftstoffart!$B$2:$B$7,0)),Energieverbrauch_Kennzahlen!$B$8:$C$13,2,FALSE)) ->  | N136: =IF(G136 = "", "", VLOOKUP(INDEX(Kraftstoffart!$A$2:$A$7, MATCH('Berechnung Streckenabschnitt'!F136,Kraftstoffart!$B$2:$B$7,0)),Kohlendioxid_Kennzahlen!$B$2:$C$7,2,FALSE)) ->  | O136: =IF(G136 = "", "", VLOOKUP(INDEX(Kraftstoffart!$A$2:$A$7, MATCH('Berechnung Streckenabschnitt'!F136,Kraftstoffart!$B$2:$B$7,0)),Kohlendioxid_Kennzahlen!$B$8:$C$13,2,FALSE)) ->  | P136: =IF(G136 = "", "", VLOOKUP(INDEX(Kraftstoffart!$A$2:$A$7, MATCH('Berechnung Streckenabschnitt'!F136,Kraftstoffart!$B$2:$B$7,0)),Treibhausgas_Kennzahlen!$B$2:$C$7,2,FALSE)) ->  | Q136: =IF(G136 = "", "", VLOOKUP(INDEX(Kraftstoffart!$A$2:$A$7, MATCH('Berechnung Streckenabschnitt'!F136,Kraftstoffart!$B$2:$B$7,0)),Treibhausgas_Kennzahlen!$B$8:$C$13,2,FALSE)) -> 
H137: =IF(G137 = "", "", VLOOKUP(INDEX(FahrzeugartID,MATCH('Berechnung Streckenabschnitt'!C137,Fahrzeugart!$B$2:$B$5,0))&"_"&INDEX(GutartID,MATCH('Berechnung Streckenabschnitt'!B137,Gutart!$B$2:$B$4,0)),Frachtgewichte!$C$2:$D$13,2,FALSE)) ->  | I137: =IF(G137 = "", "", VLOOKUP(INDEX(LängsneigungsartID,MATCH('Berechnung Streckenabschnitt'!D137,Längsneigungsart!$B$2:$B$3,0))&"_"&INDEX(GutartID,MATCH('Berechnung Streckenabschnitt'!B137,Gutart!$B$2:$B$4,0))&"_"&INDEX(FahrzeugartID,MATCH('Berechnung Streckenabschnitt'!C137,Fahrzeugart!$B$2:$B$5,0)),Energieverbrauch!$D$2:$E$25,2,FALSE)) ->  | J137: =IF(G137 = "", "", IF(E137="Innerorts",VLOOKUP(INDEX(FahrzeugartID,MATCH('Berechnung Streckenabschnitt'!C137,Fahrzeugart!$B$2:$B$5,0)),Korrekturfaktoren!$A$2:$B$5,2,FALSE),1)) ->  | L137: =IF(G137 = "", "", VLOOKUP(INDEX(Kraftstoffart!$A$2:$A$7, MATCH('Berechnung Streckenabschnitt'!F137,Kraftstoffart!$B$2:$B$7,0)),Energieverbrauch_Kennzahlen!$B$2:$C$7,2,FALSE)) ->  | M137: =IF(G137 = "", "", VLOOKUP(INDEX(Kraftstoffart!$A$2:$A$7, MATCH('Berechnung Streckenabschnitt'!F137,Kraftstoffart!$B$2:$B$7,0)),Energieverbrauch_Kennzahlen!$B$8:$C$13,2,FALSE)) ->  | N137: =IF(G137 = "", "", VLOOKUP(INDEX(Kraftstoffart!$A$2:$A$7, MATCH('Berechnung Streckenabschnitt'!F137,Kraftstoffart!$B$2:$B$7,0)),Kohlendioxid_Kennzahlen!$B$2:$C$7,2,FALSE)) ->  | O137: =IF(G137 = "", "", VLOOKUP(INDEX(Kraftstoffart!$A$2:$A$7, MATCH('Berechnung Streckenabschnitt'!F137,Kraftstoffart!$B$2:$B$7,0)),Kohlendioxid_Kennzahlen!$B$8:$C$13,2,FALSE)) ->  | P137: =IF(G137 = "", "", VLOOKUP(INDEX(Kraftstoffart!$A$2:$A$7, MATCH('Berechnung Streckenabschnitt'!F137,Kraftstoffart!$B$2:$B$7,0)),Treibhausgas_Kennzahlen!$B$2:$C$7,2,FALSE)) ->  | Q137: =IF(G137 = "", "", VLOOKUP(INDEX(Kraftstoffart!$A$2:$A$7, MATCH('Berechnung Streckenabschnitt'!F137,Kraftstoffart!$B$2:$B$7,0)),Treibhausgas_Kennzahlen!$B$8:$C$13,2,FALSE)) -> 
H138: =IF(G138 = "", "", VLOOKUP(INDEX(FahrzeugartID,MATCH('Berechnung Streckenabschnitt'!C138,Fahrzeugart!$B$2:$B$5,0))&"_"&INDEX(GutartID,MATCH('Berechnung Streckenabschnitt'!B138,Gutart!$B$2:$B$4,0)),Frachtgewichte!$C$2:$D$13,2,FALSE)) ->  | I138: =IF(G138 = "", "", VLOOKUP(INDEX(LängsneigungsartID,MATCH('Berechnung Streckenabschnitt'!D138,Längsneigungsart!$B$2:$B$3,0))&"_"&INDEX(GutartID,MATCH('Berechnung Streckenabschnitt'!B138,Gutart!$B$2:$B$4,0))&"_"&INDEX(FahrzeugartID,MATCH('Berechnung Streckenabschnitt'!C138,Fahrzeugart!$B$2:$B$5,0)),Energieverbrauch!$D$2:$E$25,2,FALSE)) ->  | J138: =IF(G138 = "", "", IF(E138="Innerorts",VLOOKUP(INDEX(FahrzeugartID,MATCH('Berechnung Streckenabschnitt'!C138,Fahrzeugart!$B$2:$B$5,0)),Korrekturfaktoren!$A$2:$B$5,2,FALSE),1)) ->  | L138: =IF(G138 = "", "", VLOOKUP(INDEX(Kraftstoffart!$A$2:$A$7, MATCH('Berechnung Streckenabschnitt'!F138,Kraftstoffart!$B$2:$B$7,0)),Energieverbrauch_Kennzahlen!$B$2:$C$7,2,FALSE)) ->  | M138: =IF(G138 = "", "", VLOOKUP(INDEX(Kraftstoffart!$A$2:$A$7, MATCH('Berechnung Streckenabschnitt'!F138,Kraftstoffart!$B$2:$B$7,0)),Energieverbrauch_Kennzahlen!$B$8:$C$13,2,FALSE)) ->  | N138: =IF(G138 = "", "", VLOOKUP(INDEX(Kraftstoffart!$A$2:$A$7, MATCH('Berechnung Streckenabschnitt'!F138,Kraftstoffart!$B$2:$B$7,0)),Kohlendioxid_Kennzahlen!$B$2:$C$7,2,FALSE)) ->  | O138: =IF(G138 = "", "", VLOOKUP(INDEX(Kraftstoffart!$A$2:$A$7, MATCH('Berechnung Streckenabschnitt'!F138,Kraftstoffart!$B$2:$B$7,0)),Kohlendioxid_Kennzahlen!$B$8:$C$13,2,FALSE)) ->  | P138: =IF(G138 = "", "", VLOOKUP(INDEX(Kraftstoffart!$A$2:$A$7, MATCH('Berechnung Streckenabschnitt'!F138,Kraftstoffart!$B$2:$B$7,0)),Treibhausgas_Kennzahlen!$B$2:$C$7,2,FALSE)) ->  | Q138: =IF(G138 = "", "", VLOOKUP(INDEX(Kraftstoffart!$A$2:$A$7, MATCH('Berechnung Streckenabschnitt'!F138,Kraftstoffart!$B$2:$B$7,0)),Treibhausgas_Kennzahlen!$B$8:$C$13,2,FALSE)) -> 
H139: =IF(G139 = "", "", VLOOKUP(INDEX(FahrzeugartID,MATCH('Berechnung Streckenabschnitt'!C139,Fahrzeugart!$B$2:$B$5,0))&"_"&INDEX(GutartID,MATCH('Berechnung Streckenabschnitt'!B139,Gutart!$B$2:$B$4,0)),Frachtgewichte!$C$2:$D$13,2,FALSE)) ->  | I139: =IF(G139 = "", "", VLOOKUP(INDEX(LängsneigungsartID,MATCH('Berechnung Streckenabschnitt'!D139,Längsneigungsart!$B$2:$B$3,0))&"_"&INDEX(GutartID,MATCH('Berechnung Streckenabschnitt'!B139,Gutart!$B$2:$B$4,0))&"_"&INDEX(FahrzeugartID,MATCH('Berechnung Streckenabschnitt'!C139,Fahrzeugart!$B$2:$B$5,0)),Energieverbrauch!$D$2:$E$25,2,FALSE)) ->  | J139: =IF(G139 = "", "", IF(E139="Innerorts",VLOOKUP(INDEX(FahrzeugartID,MATCH('Berechnung Streckenabschnitt'!C139,Fahrzeugart!$B$2:$B$5,0)),Korrekturfaktoren!$A$2:$B$5,2,FALSE),1)) ->  | L139: =IF(G139 = "", "", VLOOKUP(INDEX(Kraftstoffart!$A$2:$A$7, MATCH('Berechnung Streckenabschnitt'!F139,Kraftstoffart!$B$2:$B$7,0)),Energieverbrauch_Kennzahlen!$B$2:$C$7,2,FALSE)) ->  | M139: =IF(G139 = "", "", VLOOKUP(INDEX(Kraftstoffart!$A$2:$A$7, MATCH('Berechnung Streckenabschnitt'!F139,Kraftstoffart!$B$2:$B$7,0)),Energieverbrauch_Kennzahlen!$B$8:$C$13,2,FALSE)) ->  | N139: =IF(G139 = "", "", VLOOKUP(INDEX(Kraftstoffart!$A$2:$A$7, MATCH('Berechnung Streckenabschnitt'!F139,Kraftstoffart!$B$2:$B$7,0)),Kohlendioxid_Kennzahlen!$B$2:$C$7,2,FALSE)) ->  | O139: =IF(G139 = "", "", VLOOKUP(INDEX(Kraftstoffart!$A$2:$A$7, MATCH('Berechnung Streckenabschnitt'!F139,Kraftstoffart!$B$2:$B$7,0)),Kohlendioxid_Kennzahlen!$B$8:$C$13,2,FALSE)) ->  | P139: =IF(G139 = "", "", VLOOKUP(INDEX(Kraftstoffart!$A$2:$A$7, MATCH('Berechnung Streckenabschnitt'!F139,Kraftstoffart!$B$2:$B$7,0)),Treibhausgas_Kennzahlen!$B$2:$C$7,2,FALSE)) ->  | Q139: =IF(G139 = "", "", VLOOKUP(INDEX(Kraftstoffart!$A$2:$A$7, MATCH('Berechnung Streckenabschnitt'!F139,Kraftstoffart!$B$2:$B$7,0)),Treibhausgas_Kennzahlen!$B$8:$C$13,2,FALSE)) -> 
H140: =IF(G140 = "", "", VLOOKUP(INDEX(FahrzeugartID,MATCH('Berechnung Streckenabschnitt'!C140,Fahrzeugart!$B$2:$B$5,0))&"_"&INDEX(GutartID,MATCH('Berechnung Streckenabschnitt'!B140,Gutart!$B$2:$B$4,0)),Frachtgewichte!$C$2:$D$13,2,FALSE)) ->  | I140: =IF(G140 = "", "", VLOOKUP(INDEX(LängsneigungsartID,MATCH('Berechnung Streckenabschnitt'!D140,Längsneigungsart!$B$2:$B$3,0))&"_"&INDEX(GutartID,MATCH('Berechnung Streckenabschnitt'!B140,Gutart!$B$2:$B$4,0))&"_"&INDEX(FahrzeugartID,MATCH('Berechnung Streckenabschnitt'!C140,Fahrzeugart!$B$2:$B$5,0)),Energieverbrauch!$D$2:$E$25,2,FALSE)) ->  | J140: =IF(G140 = "", "", IF(E140="Innerorts",VLOOKUP(INDEX(FahrzeugartID,MATCH('Berechnung Streckenabschnitt'!C140,Fahrzeugart!$B$2:$B$5,0)),Korrekturfaktoren!$A$2:$B$5,2,FALSE),1)) ->  | L140: =IF(G140 = "", "", VLOOKUP(INDEX(Kraftstoffart!$A$2:$A$7, MATCH('Berechnung Streckenabschnitt'!F140,Kraftstoffart!$B$2:$B$7,0)),Energieverbrauch_Kennzahlen!$B$2:$C$7,2,FALSE)) ->  | M140: =IF(G140 = "", "", VLOOKUP(INDEX(Kraftstoffart!$A$2:$A$7, MATCH('Berechnung Streckenabschnitt'!F140,Kraftstoffart!$B$2:$B$7,0)),Energieverbrauch_Kennzahlen!$B$8:$C$13,2,FALSE)) ->  | N140: =IF(G140 = "", "", VLOOKUP(INDEX(Kraftstoffart!$A$2:$A$7, MATCH('Berechnung Streckenabschnitt'!F140,Kraftstoffart!$B$2:$B$7,0)),Kohlendioxid_Kennzahlen!$B$2:$C$7,2,FALSE)) ->  | O140: =IF(G140 = "", "", VLOOKUP(INDEX(Kraftstoffart!$A$2:$A$7, MATCH('Berechnung Streckenabschnitt'!F140,Kraftstoffart!$B$2:$B$7,0)),Kohlendioxid_Kennzahlen!$B$8:$C$13,2,FALSE)) ->  | P140: =IF(G140 = "", "", VLOOKUP(INDEX(Kraftstoffart!$A$2:$A$7, MATCH('Berechnung Streckenabschnitt'!F140,Kraftstoffart!$B$2:$B$7,0)),Treibhausgas_Kennzahlen!$B$2:$C$7,2,FALSE)) ->  | Q140: =IF(G140 = "", "", VLOOKUP(INDEX(Kraftstoffart!$A$2:$A$7, MATCH('Berechnung Streckenabschnitt'!F140,Kraftstoffart!$B$2:$B$7,0)),Treibhausgas_Kennzahlen!$B$8:$C$13,2,FALSE)) -> 
H141: =IF(G141 = "", "", VLOOKUP(INDEX(FahrzeugartID,MATCH('Berechnung Streckenabschnitt'!C141,Fahrzeugart!$B$2:$B$5,0))&"_"&INDEX(GutartID,MATCH('Berechnung Streckenabschnitt'!B141,Gutart!$B$2:$B$4,0)),Frachtgewichte!$C$2:$D$13,2,FALSE)) ->  | I141: =IF(G141 = "", "", VLOOKUP(INDEX(LängsneigungsartID,MATCH('Berechnung Streckenabschnitt'!D141,Längsneigungsart!$B$2:$B$3,0))&"_"&INDEX(GutartID,MATCH('Berechnung Streckenabschnitt'!B141,Gutart!$B$2:$B$4,0))&"_"&INDEX(FahrzeugartID,MATCH('Berechnung Streckenabschnitt'!C141,Fahrzeugart!$B$2:$B$5,0)),Energieverbrauch!$D$2:$E$25,2,FALSE)) ->  | J141: =IF(G141 = "", "", IF(E141="Innerorts",VLOOKUP(INDEX(FahrzeugartID,MATCH('Berechnung Streckenabschnitt'!C141,Fahrzeugart!$B$2:$B$5,0)),Korrekturfaktoren!$A$2:$B$5,2,FALSE),1)) ->  | L141: =IF(G141 = "", "", VLOOKUP(INDEX(Kraftstoffart!$A$2:$A$7, MATCH('Berechnung Streckenabschnitt'!F141,Kraftstoffart!$B$2:$B$7,0)),Energieverbrauch_Kennzahlen!$B$2:$C$7,2,FALSE)) ->  | M141: =IF(G141 = "", "", VLOOKUP(INDEX(Kraftstoffart!$A$2:$A$7, MATCH('Berechnung Streckenabschnitt'!F141,Kraftstoffart!$B$2:$B$7,0)),Energieverbrauch_Kennzahlen!$B$8:$C$13,2,FALSE)) ->  | N141: =IF(G141 = "", "", VLOOKUP(INDEX(Kraftstoffart!$A$2:$A$7, MATCH('Berechnung Streckenabschnitt'!F141,Kraftstoffart!$B$2:$B$7,0)),Kohlendioxid_Kennzahlen!$B$2:$C$7,2,FALSE)) ->  | O141: =IF(G141 = "", "", VLOOKUP(INDEX(Kraftstoffart!$A$2:$A$7, MATCH('Berechnung Streckenabschnitt'!F141,Kraftstoffart!$B$2:$B$7,0)),Kohlendioxid_Kennzahlen!$B$8:$C$13,2,FALSE)) ->  | P141: =IF(G141 = "", "", VLOOKUP(INDEX(Kraftstoffart!$A$2:$A$7, MATCH('Berechnung Streckenabschnitt'!F141,Kraftstoffart!$B$2:$B$7,0)),Treibhausgas_Kennzahlen!$B$2:$C$7,2,FALSE)) ->  | Q141: =IF(G141 = "", "", VLOOKUP(INDEX(Kraftstoffart!$A$2:$A$7, MATCH('Berechnung Streckenabschnitt'!F141,Kraftstoffart!$B$2:$B$7,0)),Treibhausgas_Kennzahlen!$B$8:$C$13,2,FALSE)) -> 
H142: =IF(G142 = "", "", VLOOKUP(INDEX(FahrzeugartID,MATCH('Berechnung Streckenabschnitt'!C142,Fahrzeugart!$B$2:$B$5,0))&"_"&INDEX(GutartID,MATCH('Berechnung Streckenabschnitt'!B142,Gutart!$B$2:$B$4,0)),Frachtgewichte!$C$2:$D$13,2,FALSE)) ->  | I142: =IF(G142 = "", "", VLOOKUP(INDEX(LängsneigungsartID,MATCH('Berechnung Streckenabschnitt'!D142,Längsneigungsart!$B$2:$B$3,0))&"_"&INDEX(GutartID,MATCH('Berechnung Streckenabschnitt'!B142,Gutart!$B$2:$B$4,0))&"_"&INDEX(FahrzeugartID,MATCH('Berechnung Streckenabschnitt'!C142,Fahrzeugart!$B$2:$B$5,0)),Energieverbrauch!$D$2:$E$25,2,FALSE)) ->  | J142: =IF(G142 = "", "", IF(E142="Innerorts",VLOOKUP(INDEX(FahrzeugartID,MATCH('Berechnung Streckenabschnitt'!C142,Fahrzeugart!$B$2:$B$5,0)),Korrekturfaktoren!$A$2:$B$5,2,FALSE),1)) ->  | L142: =IF(G142 = "", "", VLOOKUP(INDEX(Kraftstoffart!$A$2:$A$7, MATCH('Berechnung Streckenabschnitt'!F142,Kraftstoffart!$B$2:$B$7,0)),Energieverbrauch_Kennzahlen!$B$2:$C$7,2,FALSE)) ->  | M142: =IF(G142 = "", "", VLOOKUP(INDEX(Kraftstoffart!$A$2:$A$7, MATCH('Berechnung Streckenabschnitt'!F142,Kraftstoffart!$B$2:$B$7,0)),Energieverbrauch_Kennzahlen!$B$8:$C$13,2,FALSE)) ->  | N142: =IF(G142 = "", "", VLOOKUP(INDEX(Kraftstoffart!$A$2:$A$7, MATCH('Berechnung Streckenabschnitt'!F142,Kraftstoffart!$B$2:$B$7,0)),Kohlendioxid_Kennzahlen!$B$2:$C$7,2,FALSE)) ->  | O142: =IF(G142 = "", "", VLOOKUP(INDEX(Kraftstoffart!$A$2:$A$7, MATCH('Berechnung Streckenabschnitt'!F142,Kraftstoffart!$B$2:$B$7,0)),Kohlendioxid_Kennzahlen!$B$8:$C$13,2,FALSE)) ->  | P142: =IF(G142 = "", "", VLOOKUP(INDEX(Kraftstoffart!$A$2:$A$7, MATCH('Berechnung Streckenabschnitt'!F142,Kraftstoffart!$B$2:$B$7,0)),Treibhausgas_Kennzahlen!$B$2:$C$7,2,FALSE)) ->  | Q142: =IF(G142 = "", "", VLOOKUP(INDEX(Kraftstoffart!$A$2:$A$7, MATCH('Berechnung Streckenabschnitt'!F142,Kraftstoffart!$B$2:$B$7,0)),Treibhausgas_Kennzahlen!$B$8:$C$13,2,FALSE)) -> 
H143: =IF(G143 = "", "", VLOOKUP(INDEX(FahrzeugartID,MATCH('Berechnung Streckenabschnitt'!C143,Fahrzeugart!$B$2:$B$5,0))&"_"&INDEX(GutartID,MATCH('Berechnung Streckenabschnitt'!B143,Gutart!$B$2:$B$4,0)),Frachtgewichte!$C$2:$D$13,2,FALSE)) ->  | I143: =IF(G143 = "", "", VLOOKUP(INDEX(LängsneigungsartID,MATCH('Berechnung Streckenabschnitt'!D143,Längsneigungsart!$B$2:$B$3,0))&"_"&INDEX(GutartID,MATCH('Berechnung Streckenabschnitt'!B143,Gutart!$B$2:$B$4,0))&"_"&INDEX(FahrzeugartID,MATCH('Berechnung Streckenabschnitt'!C143,Fahrzeugart!$B$2:$B$5,0)),Energieverbrauch!$D$2:$E$25,2,FALSE)) ->  | J143: =IF(G143 = "", "", IF(E143="Innerorts",VLOOKUP(INDEX(FahrzeugartID,MATCH('Berechnung Streckenabschnitt'!C143,Fahrzeugart!$B$2:$B$5,0)),Korrekturfaktoren!$A$2:$B$5,2,FALSE),1)) ->  | L143: =IF(G143 = "", "", VLOOKUP(INDEX(Kraftstoffart!$A$2:$A$7, MATCH('Berechnung Streckenabschnitt'!F143,Kraftstoffart!$B$2:$B$7,0)),Energieverbrauch_Kennzahlen!$B$2:$C$7,2,FALSE)) ->  | M143: =IF(G143 = "", "", VLOOKUP(INDEX(Kraftstoffart!$A$2:$A$7, MATCH('Berechnung Streckenabschnitt'!F143,Kraftstoffart!$B$2:$B$7,0)),Energieverbrauch_Kennzahlen!$B$8:$C$13,2,FALSE)) ->  | N143: =IF(G143 = "", "", VLOOKUP(INDEX(Kraftstoffart!$A$2:$A$7, MATCH('Berechnung Streckenabschnitt'!F143,Kraftstoffart!$B$2:$B$7,0)),Kohlendioxid_Kennzahlen!$B$2:$C$7,2,FALSE)) ->  | O143: =IF(G143 = "", "", VLOOKUP(INDEX(Kraftstoffart!$A$2:$A$7, MATCH('Berechnung Streckenabschnitt'!F143,Kraftstoffart!$B$2:$B$7,0)),Kohlendioxid_Kennzahlen!$B$8:$C$13,2,FALSE)) ->  | P143: =IF(G143 = "", "", VLOOKUP(INDEX(Kraftstoffart!$A$2:$A$7, MATCH('Berechnung Streckenabschnitt'!F143,Kraftstoffart!$B$2:$B$7,0)),Treibhausgas_Kennzahlen!$B$2:$C$7,2,FALSE)) ->  | Q143: =IF(G143 = "", "", VLOOKUP(INDEX(Kraftstoffart!$A$2:$A$7, MATCH('Berechnung Streckenabschnitt'!F143,Kraftstoffart!$B$2:$B$7,0)),Treibhausgas_Kennzahlen!$B$8:$C$13,2,FALSE)) -> 
H144: =IF(G144 = "", "", VLOOKUP(INDEX(FahrzeugartID,MATCH('Berechnung Streckenabschnitt'!C144,Fahrzeugart!$B$2:$B$5,0))&"_"&INDEX(GutartID,MATCH('Berechnung Streckenabschnitt'!B144,Gutart!$B$2:$B$4,0)),Frachtgewichte!$C$2:$D$13,2,FALSE)) ->  | I144: =IF(G144 = "", "", VLOOKUP(INDEX(LängsneigungsartID,MATCH('Berechnung Streckenabschnitt'!D144,Längsneigungsart!$B$2:$B$3,0))&"_"&INDEX(GutartID,MATCH('Berechnung Streckenabschnitt'!B144,Gutart!$B$2:$B$4,0))&"_"&INDEX(FahrzeugartID,MATCH('Berechnung Streckenabschnitt'!C144,Fahrzeugart!$B$2:$B$5,0)),Energieverbrauch!$D$2:$E$25,2,FALSE)) ->  | J144: =IF(G144 = "", "", IF(E144="Innerorts",VLOOKUP(INDEX(FahrzeugartID,MATCH('Berechnung Streckenabschnitt'!C144,Fahrzeugart!$B$2:$B$5,0)),Korrekturfaktoren!$A$2:$B$5,2,FALSE),1)) ->  | L144: =IF(G144 = "", "", VLOOKUP(INDEX(Kraftstoffart!$A$2:$A$7, MATCH('Berechnung Streckenabschnitt'!F144,Kraftstoffart!$B$2:$B$7,0)),Energieverbrauch_Kennzahlen!$B$2:$C$7,2,FALSE)) ->  | M144: =IF(G144 = "", "", VLOOKUP(INDEX(Kraftstoffart!$A$2:$A$7, MATCH('Berechnung Streckenabschnitt'!F144,Kraftstoffart!$B$2:$B$7,0)),Energieverbrauch_Kennzahlen!$B$8:$C$13,2,FALSE)) ->  | N144: =IF(G144 = "", "", VLOOKUP(INDEX(Kraftstoffart!$A$2:$A$7, MATCH('Berechnung Streckenabschnitt'!F144,Kraftstoffart!$B$2:$B$7,0)),Kohlendioxid_Kennzahlen!$B$2:$C$7,2,FALSE)) ->  | O144: =IF(G144 = "", "", VLOOKUP(INDEX(Kraftstoffart!$A$2:$A$7, MATCH('Berechnung Streckenabschnitt'!F144,Kraftstoffart!$B$2:$B$7,0)),Kohlendioxid_Kennzahlen!$B$8:$C$13,2,FALSE)) ->  | P144: =IF(G144 = "", "", VLOOKUP(INDEX(Kraftstoffart!$A$2:$A$7, MATCH('Berechnung Streckenabschnitt'!F144,Kraftstoffart!$B$2:$B$7,0)),Treibhausgas_Kennzahlen!$B$2:$C$7,2,FALSE)) ->  | Q144: =IF(G144 = "", "", VLOOKUP(INDEX(Kraftstoffart!$A$2:$A$7, MATCH('Berechnung Streckenabschnitt'!F144,Kraftstoffart!$B$2:$B$7,0)),Treibhausgas_Kennzahlen!$B$8:$C$13,2,FALSE)) -> 
H145: =IF(G145 = "", "", VLOOKUP(INDEX(FahrzeugartID,MATCH('Berechnung Streckenabschnitt'!C145,Fahrzeugart!$B$2:$B$5,0))&"_"&INDEX(GutartID,MATCH('Berechnung Streckenabschnitt'!B145,Gutart!$B$2:$B$4,0)),Frachtgewichte!$C$2:$D$13,2,FALSE)) ->  | I145: =IF(G145 = "", "", VLOOKUP(INDEX(LängsneigungsartID,MATCH('Berechnung Streckenabschnitt'!D145,Längsneigungsart!$B$2:$B$3,0))&"_"&INDEX(GutartID,MATCH('Berechnung Streckenabschnitt'!B145,Gutart!$B$2:$B$4,0))&"_"&INDEX(FahrzeugartID,MATCH('Berechnung Streckenabschnitt'!C145,Fahrzeugart!$B$2:$B$5,0)),Energieverbrauch!$D$2:$E$25,2,FALSE)) ->  | J145: =IF(G145 = "", "", IF(E145="Innerorts",VLOOKUP(INDEX(FahrzeugartID,MATCH('Berechnung Streckenabschnitt'!C145,Fahrzeugart!$B$2:$B$5,0)),Korrekturfaktoren!$A$2:$B$5,2,FALSE),1)) ->  | L145: =IF(G145 = "", "", VLOOKUP(INDEX(Kraftstoffart!$A$2:$A$7, MATCH('Berechnung Streckenabschnitt'!F145,Kraftstoffart!$B$2:$B$7,0)),Energieverbrauch_Kennzahlen!$B$2:$C$7,2,FALSE)) ->  | M145: =IF(G145 = "", "", VLOOKUP(INDEX(Kraftstoffart!$A$2:$A$7, MATCH('Berechnung Streckenabschnitt'!F145,Kraftstoffart!$B$2:$B$7,0)),Energieverbrauch_Kennzahlen!$B$8:$C$13,2,FALSE)) ->  | N145: =IF(G145 = "", "", VLOOKUP(INDEX(Kraftstoffart!$A$2:$A$7, MATCH('Berechnung Streckenabschnitt'!F145,Kraftstoffart!$B$2:$B$7,0)),Kohlendioxid_Kennzahlen!$B$2:$C$7,2,FALSE)) ->  | O145: =IF(G145 = "", "", VLOOKUP(INDEX(Kraftstoffart!$A$2:$A$7, MATCH('Berechnung Streckenabschnitt'!F145,Kraftstoffart!$B$2:$B$7,0)),Kohlendioxid_Kennzahlen!$B$8:$C$13,2,FALSE)) ->  | P145: =IF(G145 = "", "", VLOOKUP(INDEX(Kraftstoffart!$A$2:$A$7, MATCH('Berechnung Streckenabschnitt'!F145,Kraftstoffart!$B$2:$B$7,0)),Treibhausgas_Kennzahlen!$B$2:$C$7,2,FALSE)) ->  | Q145: =IF(G145 = "", "", VLOOKUP(INDEX(Kraftstoffart!$A$2:$A$7, MATCH('Berechnung Streckenabschnitt'!F145,Kraftstoffart!$B$2:$B$7,0)),Treibhausgas_Kennzahlen!$B$8:$C$13,2,FALSE)) -> 
H146: =IF(G146 = "", "", VLOOKUP(INDEX(FahrzeugartID,MATCH('Berechnung Streckenabschnitt'!C146,Fahrzeugart!$B$2:$B$5,0))&"_"&INDEX(GutartID,MATCH('Berechnung Streckenabschnitt'!B146,Gutart!$B$2:$B$4,0)),Frachtgewichte!$C$2:$D$13,2,FALSE)) ->  | I146: =IF(G146 = "", "", VLOOKUP(INDEX(LängsneigungsartID,MATCH('Berechnung Streckenabschnitt'!D146,Längsneigungsart!$B$2:$B$3,0))&"_"&INDEX(GutartID,MATCH('Berechnung Streckenabschnitt'!B146,Gutart!$B$2:$B$4,0))&"_"&INDEX(FahrzeugartID,MATCH('Berechnung Streckenabschnitt'!C146,Fahrzeugart!$B$2:$B$5,0)),Energieverbrauch!$D$2:$E$25,2,FALSE)) ->  | J146: =IF(G146 = "", "", IF(E146="Innerorts",VLOOKUP(INDEX(FahrzeugartID,MATCH('Berechnung Streckenabschnitt'!C146,Fahrzeugart!$B$2:$B$5,0)),Korrekturfaktoren!$A$2:$B$5,2,FALSE),1)) ->  | L146: =IF(G146 = "", "", VLOOKUP(INDEX(Kraftstoffart!$A$2:$A$7, MATCH('Berechnung Streckenabschnitt'!F146,Kraftstoffart!$B$2:$B$7,0)),Energieverbrauch_Kennzahlen!$B$2:$C$7,2,FALSE)) ->  | M146: =IF(G146 = "", "", VLOOKUP(INDEX(Kraftstoffart!$A$2:$A$7, MATCH('Berechnung Streckenabschnitt'!F146,Kraftstoffart!$B$2:$B$7,0)),Energieverbrauch_Kennzahlen!$B$8:$C$13,2,FALSE)) ->  | N146: =IF(G146 = "", "", VLOOKUP(INDEX(Kraftstoffart!$A$2:$A$7, MATCH('Berechnung Streckenabschnitt'!F146,Kraftstoffart!$B$2:$B$7,0)),Kohlendioxid_Kennzahlen!$B$2:$C$7,2,FALSE)) ->  | O146: =IF(G146 = "", "", VLOOKUP(INDEX(Kraftstoffart!$A$2:$A$7, MATCH('Berechnung Streckenabschnitt'!F146,Kraftstoffart!$B$2:$B$7,0)),Kohlendioxid_Kennzahlen!$B$8:$C$13,2,FALSE)) ->  | P146: =IF(G146 = "", "", VLOOKUP(INDEX(Kraftstoffart!$A$2:$A$7, MATCH('Berechnung Streckenabschnitt'!F146,Kraftstoffart!$B$2:$B$7,0)),Treibhausgas_Kennzahlen!$B$2:$C$7,2,FALSE)) ->  | Q146: =IF(G146 = "", "", VLOOKUP(INDEX(Kraftstoffart!$A$2:$A$7, MATCH('Berechnung Streckenabschnitt'!F146,Kraftstoffart!$B$2:$B$7,0)),Treibhausgas_Kennzahlen!$B$8:$C$13,2,FALSE)) -> 
H147: =IF(G147 = "", "", VLOOKUP(INDEX(FahrzeugartID,MATCH('Berechnung Streckenabschnitt'!C147,Fahrzeugart!$B$2:$B$5,0))&"_"&INDEX(GutartID,MATCH('Berechnung Streckenabschnitt'!B147,Gutart!$B$2:$B$4,0)),Frachtgewichte!$C$2:$D$13,2,FALSE)) ->  | I147: =IF(G147 = "", "", VLOOKUP(INDEX(LängsneigungsartID,MATCH('Berechnung Streckenabschnitt'!D147,Längsneigungsart!$B$2:$B$3,0))&"_"&INDEX(GutartID,MATCH('Berechnung Streckenabschnitt'!B147,Gutart!$B$2:$B$4,0))&"_"&INDEX(FahrzeugartID,MATCH('Berechnung Streckenabschnitt'!C147,Fahrzeugart!$B$2:$B$5,0)),Energieverbrauch!$D$2:$E$25,2,FALSE)) ->  | J147: =IF(G147 = "", "", IF(E147="Innerorts",VLOOKUP(INDEX(FahrzeugartID,MATCH('Berechnung Streckenabschnitt'!C147,Fahrzeugart!$B$2:$B$5,0)),Korrekturfaktoren!$A$2:$B$5,2,FALSE),1)) ->  | L147: =IF(G147 = "", "", VLOOKUP(INDEX(Kraftstoffart!$A$2:$A$7, MATCH('Berechnung Streckenabschnitt'!F147,Kraftstoffart!$B$2:$B$7,0)),Energieverbrauch_Kennzahlen!$B$2:$C$7,2,FALSE)) ->  | M147: =IF(G147 = "", "", VLOOKUP(INDEX(Kraftstoffart!$A$2:$A$7, MATCH('Berechnung Streckenabschnitt'!F147,Kraftstoffart!$B$2:$B$7,0)),Energieverbrauch_Kennzahlen!$B$8:$C$13,2,FALSE)) ->  | N147: =IF(G147 = "", "", VLOOKUP(INDEX(Kraftstoffart!$A$2:$A$7, MATCH('Berechnung Streckenabschnitt'!F147,Kraftstoffart!$B$2:$B$7,0)),Kohlendioxid_Kennzahlen!$B$2:$C$7,2,FALSE)) ->  | O147: =IF(G147 = "", "", VLOOKUP(INDEX(Kraftstoffart!$A$2:$A$7, MATCH('Berechnung Streckenabschnitt'!F147,Kraftstoffart!$B$2:$B$7,0)),Kohlendioxid_Kennzahlen!$B$8:$C$13,2,FALSE)) ->  | P147: =IF(G147 = "", "", VLOOKUP(INDEX(Kraftstoffart!$A$2:$A$7, MATCH('Berechnung Streckenabschnitt'!F147,Kraftstoffart!$B$2:$B$7,0)),Treibhausgas_Kennzahlen!$B$2:$C$7,2,FALSE)) ->  | Q147: =IF(G147 = "", "", VLOOKUP(INDEX(Kraftstoffart!$A$2:$A$7, MATCH('Berechnung Streckenabschnitt'!F147,Kraftstoffart!$B$2:$B$7,0)),Treibhausgas_Kennzahlen!$B$8:$C$13,2,FALSE)) -> 
H148: =IF(G148 = "", "", VLOOKUP(INDEX(FahrzeugartID,MATCH('Berechnung Streckenabschnitt'!C148,Fahrzeugart!$B$2:$B$5,0))&"_"&INDEX(GutartID,MATCH('Berechnung Streckenabschnitt'!B148,Gutart!$B$2:$B$4,0)),Frachtgewichte!$C$2:$D$13,2,FALSE)) ->  | I148: =IF(G148 = "", "", VLOOKUP(INDEX(LängsneigungsartID,MATCH('Berechnung Streckenabschnitt'!D148,Längsneigungsart!$B$2:$B$3,0))&"_"&INDEX(GutartID,MATCH('Berechnung Streckenabschnitt'!B148,Gutart!$B$2:$B$4,0))&"_"&INDEX(FahrzeugartID,MATCH('Berechnung Streckenabschnitt'!C148,Fahrzeugart!$B$2:$B$5,0)),Energieverbrauch!$D$2:$E$25,2,FALSE)) ->  | J148: =IF(G148 = "", "", IF(E148="Innerorts",VLOOKUP(INDEX(FahrzeugartID,MATCH('Berechnung Streckenabschnitt'!C148,Fahrzeugart!$B$2:$B$5,0)),Korrekturfaktoren!$A$2:$B$5,2,FALSE),1)) ->  | L148: =IF(G148 = "", "", VLOOKUP(INDEX(Kraftstoffart!$A$2:$A$7, MATCH('Berechnung Streckenabschnitt'!F148,Kraftstoffart!$B$2:$B$7,0)),Energieverbrauch_Kennzahlen!$B$2:$C$7,2,FALSE)) ->  | M148: =IF(G148 = "", "", VLOOKUP(INDEX(Kraftstoffart!$A$2:$A$7, MATCH('Berechnung Streckenabschnitt'!F148,Kraftstoffart!$B$2:$B$7,0)),Energieverbrauch_Kennzahlen!$B$8:$C$13,2,FALSE)) ->  | N148: =IF(G148 = "", "", VLOOKUP(INDEX(Kraftstoffart!$A$2:$A$7, MATCH('Berechnung Streckenabschnitt'!F148,Kraftstoffart!$B$2:$B$7,0)),Kohlendioxid_Kennzahlen!$B$2:$C$7,2,FALSE)) ->  | O148: =IF(G148 = "", "", VLOOKUP(INDEX(Kraftstoffart!$A$2:$A$7, MATCH('Berechnung Streckenabschnitt'!F148,Kraftstoffart!$B$2:$B$7,0)),Kohlendioxid_Kennzahlen!$B$8:$C$13,2,FALSE)) ->  | P148: =IF(G148 = "", "", VLOOKUP(INDEX(Kraftstoffart!$A$2:$A$7, MATCH('Berechnung Streckenabschnitt'!F148,Kraftstoffart!$B$2:$B$7,0)),Treibhausgas_Kennzahlen!$B$2:$C$7,2,FALSE)) ->  | Q148: =IF(G148 = "", "", VLOOKUP(INDEX(Kraftstoffart!$A$2:$A$7, MATCH('Berechnung Streckenabschnitt'!F148,Kraftstoffart!$B$2:$B$7,0)),Treibhausgas_Kennzahlen!$B$8:$C$13,2,FALSE)) -> 
H149: =IF(G149 = "", "", VLOOKUP(INDEX(FahrzeugartID,MATCH('Berechnung Streckenabschnitt'!C149,Fahrzeugart!$B$2:$B$5,0))&"_"&INDEX(GutartID,MATCH('Berechnung Streckenabschnitt'!B149,Gutart!$B$2:$B$4,0)),Frachtgewichte!$C$2:$D$13,2,FALSE)) ->  | I149: =IF(G149 = "", "", VLOOKUP(INDEX(LängsneigungsartID,MATCH('Berechnung Streckenabschnitt'!D149,Längsneigungsart!$B$2:$B$3,0))&"_"&INDEX(GutartID,MATCH('Berechnung Streckenabschnitt'!B149,Gutart!$B$2:$B$4,0))&"_"&INDEX(FahrzeugartID,MATCH('Berechnung Streckenabschnitt'!C149,Fahrzeugart!$B$2:$B$5,0)),Energieverbrauch!$D$2:$E$25,2,FALSE)) ->  | J149: =IF(G149 = "", "", IF(E149="Innerorts",VLOOKUP(INDEX(FahrzeugartID,MATCH('Berechnung Streckenabschnitt'!C149,Fahrzeugart!$B$2:$B$5,0)),Korrekturfaktoren!$A$2:$B$5,2,FALSE),1)) ->  | L149: =IF(G149 = "", "", VLOOKUP(INDEX(Kraftstoffart!$A$2:$A$7, MATCH('Berechnung Streckenabschnitt'!F149,Kraftstoffart!$B$2:$B$7,0)),Energieverbrauch_Kennzahlen!$B$2:$C$7,2,FALSE)) ->  | M149: =IF(G149 = "", "", VLOOKUP(INDEX(Kraftstoffart!$A$2:$A$7, MATCH('Berechnung Streckenabschnitt'!F149,Kraftstoffart!$B$2:$B$7,0)),Energieverbrauch_Kennzahlen!$B$8:$C$13,2,FALSE)) ->  | N149: =IF(G149 = "", "", VLOOKUP(INDEX(Kraftstoffart!$A$2:$A$7, MATCH('Berechnung Streckenabschnitt'!F149,Kraftstoffart!$B$2:$B$7,0)),Kohlendioxid_Kennzahlen!$B$2:$C$7,2,FALSE)) ->  | O149: =IF(G149 = "", "", VLOOKUP(INDEX(Kraftstoffart!$A$2:$A$7, MATCH('Berechnung Streckenabschnitt'!F149,Kraftstoffart!$B$2:$B$7,0)),Kohlendioxid_Kennzahlen!$B$8:$C$13,2,FALSE)) ->  | P149: =IF(G149 = "", "", VLOOKUP(INDEX(Kraftstoffart!$A$2:$A$7, MATCH('Berechnung Streckenabschnitt'!F149,Kraftstoffart!$B$2:$B$7,0)),Treibhausgas_Kennzahlen!$B$2:$C$7,2,FALSE)) ->  | Q149: =IF(G149 = "", "", VLOOKUP(INDEX(Kraftstoffart!$A$2:$A$7, MATCH('Berechnung Streckenabschnitt'!F149,Kraftstoffart!$B$2:$B$7,0)),Treibhausgas_Kennzahlen!$B$8:$C$13,2,FALSE)) -> 
H150: =IF(G150 = "", "", VLOOKUP(INDEX(FahrzeugartID,MATCH('Berechnung Streckenabschnitt'!C150,Fahrzeugart!$B$2:$B$5,0))&"_"&INDEX(GutartID,MATCH('Berechnung Streckenabschnitt'!B150,Gutart!$B$2:$B$4,0)),Frachtgewichte!$C$2:$D$13,2,FALSE)) ->  | I150: =IF(G150 = "", "", VLOOKUP(INDEX(LängsneigungsartID,MATCH('Berechnung Streckenabschnitt'!D150,Längsneigungsart!$B$2:$B$3,0))&"_"&INDEX(GutartID,MATCH('Berechnung Streckenabschnitt'!B150,Gutart!$B$2:$B$4,0))&"_"&INDEX(FahrzeugartID,MATCH('Berechnung Streckenabschnitt'!C150,Fahrzeugart!$B$2:$B$5,0)),Energieverbrauch!$D$2:$E$25,2,FALSE)) ->  | J150: =IF(G150 = "", "", IF(E150="Innerorts",VLOOKUP(INDEX(FahrzeugartID,MATCH('Berechnung Streckenabschnitt'!C150,Fahrzeugart!$B$2:$B$5,0)),Korrekturfaktoren!$A$2:$B$5,2,FALSE),1)) ->  | L150: =IF(G150 = "", "", VLOOKUP(INDEX(Kraftstoffart!$A$2:$A$7, MATCH('Berechnung Streckenabschnitt'!F150,Kraftstoffart!$B$2:$B$7,0)),Energieverbrauch_Kennzahlen!$B$2:$C$7,2,FALSE)) ->  | M150: =IF(G150 = "", "", VLOOKUP(INDEX(Kraftstoffart!$A$2:$A$7, MATCH('Berechnung Streckenabschnitt'!F150,Kraftstoffart!$B$2:$B$7,0)),Energieverbrauch_Kennzahlen!$B$8:$C$13,2,FALSE)) ->  | N150: =IF(G150 = "", "", VLOOKUP(INDEX(Kraftstoffart!$A$2:$A$7, MATCH('Berechnung Streckenabschnitt'!F150,Kraftstoffart!$B$2:$B$7,0)),Kohlendioxid_Kennzahlen!$B$2:$C$7,2,FALSE)) ->  | O150: =IF(G150 = "", "", VLOOKUP(INDEX(Kraftstoffart!$A$2:$A$7, MATCH('Berechnung Streckenabschnitt'!F150,Kraftstoffart!$B$2:$B$7,0)),Kohlendioxid_Kennzahlen!$B$8:$C$13,2,FALSE)) ->  | P150: =IF(G150 = "", "", VLOOKUP(INDEX(Kraftstoffart!$A$2:$A$7, MATCH('Berechnung Streckenabschnitt'!F150,Kraftstoffart!$B$2:$B$7,0)),Treibhausgas_Kennzahlen!$B$2:$C$7,2,FALSE)) ->  | Q150: =IF(G150 = "", "", VLOOKUP(INDEX(Kraftstoffart!$A$2:$A$7, MATCH('Berechnung Streckenabschnitt'!F150,Kraftstoffart!$B$2:$B$7,0)),Treibhausgas_Kennzahlen!$B$8:$C$13,2,FALSE)) -> 
H151: =IF(G151 = "", "", VLOOKUP(INDEX(FahrzeugartID,MATCH('Berechnung Streckenabschnitt'!C151,Fahrzeugart!$B$2:$B$5,0))&"_"&INDEX(GutartID,MATCH('Berechnung Streckenabschnitt'!B151,Gutart!$B$2:$B$4,0)),Frachtgewichte!$C$2:$D$13,2,FALSE)) ->  | I151: =IF(G151 = "", "", VLOOKUP(INDEX(LängsneigungsartID,MATCH('Berechnung Streckenabschnitt'!D151,Längsneigungsart!$B$2:$B$3,0))&"_"&INDEX(GutartID,MATCH('Berechnung Streckenabschnitt'!B151,Gutart!$B$2:$B$4,0))&"_"&INDEX(FahrzeugartID,MATCH('Berechnung Streckenabschnitt'!C151,Fahrzeugart!$B$2:$B$5,0)),Energieverbrauch!$D$2:$E$25,2,FALSE)) ->  | J151: =IF(G151 = "", "", IF(E151="Innerorts",VLOOKUP(INDEX(FahrzeugartID,MATCH('Berechnung Streckenabschnitt'!C151,Fahrzeugart!$B$2:$B$5,0)),Korrekturfaktoren!$A$2:$B$5,2,FALSE),1)) ->  | L151: =IF(G151 = "", "", VLOOKUP(INDEX(Kraftstoffart!$A$2:$A$7, MATCH('Berechnung Streckenabschnitt'!F151,Kraftstoffart!$B$2:$B$7,0)),Energieverbrauch_Kennzahlen!$B$2:$C$7,2,FALSE)) ->  | M151: =IF(G151 = "", "", VLOOKUP(INDEX(Kraftstoffart!$A$2:$A$7, MATCH('Berechnung Streckenabschnitt'!F151,Kraftstoffart!$B$2:$B$7,0)),Energieverbrauch_Kennzahlen!$B$8:$C$13,2,FALSE)) ->  | N151: =IF(G151 = "", "", VLOOKUP(INDEX(Kraftstoffart!$A$2:$A$7, MATCH('Berechnung Streckenabschnitt'!F151,Kraftstoffart!$B$2:$B$7,0)),Kohlendioxid_Kennzahlen!$B$2:$C$7,2,FALSE)) ->  | O151: =IF(G151 = "", "", VLOOKUP(INDEX(Kraftstoffart!$A$2:$A$7, MATCH('Berechnung Streckenabschnitt'!F151,Kraftstoffart!$B$2:$B$7,0)),Kohlendioxid_Kennzahlen!$B$8:$C$13,2,FALSE)) ->  | P151: =IF(G151 = "", "", VLOOKUP(INDEX(Kraftstoffart!$A$2:$A$7, MATCH('Berechnung Streckenabschnitt'!F151,Kraftstoffart!$B$2:$B$7,0)),Treibhausgas_Kennzahlen!$B$2:$C$7,2,FALSE)) ->  | Q151: =IF(G151 = "", "", VLOOKUP(INDEX(Kraftstoffart!$A$2:$A$7, MATCH('Berechnung Streckenabschnitt'!F151,Kraftstoffart!$B$2:$B$7,0)),Treibhausgas_Kennzahlen!$B$8:$C$13,2,FALSE)) -> 
H152: =IF(G152 = "", "", VLOOKUP(INDEX(FahrzeugartID,MATCH('Berechnung Streckenabschnitt'!C152,Fahrzeugart!$B$2:$B$5,0))&"_"&INDEX(GutartID,MATCH('Berechnung Streckenabschnitt'!B152,Gutart!$B$2:$B$4,0)),Frachtgewichte!$C$2:$D$13,2,FALSE)) ->  | I152: =IF(G152 = "", "", VLOOKUP(INDEX(LängsneigungsartID,MATCH('Berechnung Streckenabschnitt'!D152,Längsneigungsart!$B$2:$B$3,0))&"_"&INDEX(GutartID,MATCH('Berechnung Streckenabschnitt'!B152,Gutart!$B$2:$B$4,0))&"_"&INDEX(FahrzeugartID,MATCH('Berechnung Streckenabschnitt'!C152,Fahrzeugart!$B$2:$B$5,0)),Energieverbrauch!$D$2:$E$25,2,FALSE)) ->  | J152: =IF(G152 = "", "", IF(E152="Innerorts",VLOOKUP(INDEX(FahrzeugartID,MATCH('Berechnung Streckenabschnitt'!C152,Fahrzeugart!$B$2:$B$5,0)),Korrekturfaktoren!$A$2:$B$5,2,FALSE),1)) ->  | L152: =IF(G152 = "", "", VLOOKUP(INDEX(Kraftstoffart!$A$2:$A$7, MATCH('Berechnung Streckenabschnitt'!F152,Kraftstoffart!$B$2:$B$7,0)),Energieverbrauch_Kennzahlen!$B$2:$C$7,2,FALSE)) ->  | M152: =IF(G152 = "", "", VLOOKUP(INDEX(Kraftstoffart!$A$2:$A$7, MATCH('Berechnung Streckenabschnitt'!F152,Kraftstoffart!$B$2:$B$7,0)),Energieverbrauch_Kennzahlen!$B$8:$C$13,2,FALSE)) ->  | N152: =IF(G152 = "", "", VLOOKUP(INDEX(Kraftstoffart!$A$2:$A$7, MATCH('Berechnung Streckenabschnitt'!F152,Kraftstoffart!$B$2:$B$7,0)),Kohlendioxid_Kennzahlen!$B$2:$C$7,2,FALSE)) ->  | O152: =IF(G152 = "", "", VLOOKUP(INDEX(Kraftstoffart!$A$2:$A$7, MATCH('Berechnung Streckenabschnitt'!F152,Kraftstoffart!$B$2:$B$7,0)),Kohlendioxid_Kennzahlen!$B$8:$C$13,2,FALSE)) ->  | P152: =IF(G152 = "", "", VLOOKUP(INDEX(Kraftstoffart!$A$2:$A$7, MATCH('Berechnung Streckenabschnitt'!F152,Kraftstoffart!$B$2:$B$7,0)),Treibhausgas_Kennzahlen!$B$2:$C$7,2,FALSE)) ->  | Q152: =IF(G152 = "", "", VLOOKUP(INDEX(Kraftstoffart!$A$2:$A$7, MATCH('Berechnung Streckenabschnitt'!F152,Kraftstoffart!$B$2:$B$7,0)),Treibhausgas_Kennzahlen!$B$8:$C$13,2,FALSE)) -> 
H153: =IF(G153 = "", "", VLOOKUP(INDEX(FahrzeugartID,MATCH('Berechnung Streckenabschnitt'!C153,Fahrzeugart!$B$2:$B$5,0))&"_"&INDEX(GutartID,MATCH('Berechnung Streckenabschnitt'!B153,Gutart!$B$2:$B$4,0)),Frachtgewichte!$C$2:$D$13,2,FALSE)) ->  | I153: =IF(G153 = "", "", VLOOKUP(INDEX(LängsneigungsartID,MATCH('Berechnung Streckenabschnitt'!D153,Längsneigungsart!$B$2:$B$3,0))&"_"&INDEX(GutartID,MATCH('Berechnung Streckenabschnitt'!B153,Gutart!$B$2:$B$4,0))&"_"&INDEX(FahrzeugartID,MATCH('Berechnung Streckenabschnitt'!C153,Fahrzeugart!$B$2:$B$5,0)),Energieverbrauch!$D$2:$E$25,2,FALSE)) ->  | J153: =IF(G153 = "", "", IF(E153="Innerorts",VLOOKUP(INDEX(FahrzeugartID,MATCH('Berechnung Streckenabschnitt'!C153,Fahrzeugart!$B$2:$B$5,0)),Korrekturfaktoren!$A$2:$B$5,2,FALSE),1)) ->  | L153: =IF(G153 = "", "", VLOOKUP(INDEX(Kraftstoffart!$A$2:$A$7, MATCH('Berechnung Streckenabschnitt'!F153,Kraftstoffart!$B$2:$B$7,0)),Energieverbrauch_Kennzahlen!$B$2:$C$7,2,FALSE)) ->  | M153: =IF(G153 = "", "", VLOOKUP(INDEX(Kraftstoffart!$A$2:$A$7, MATCH('Berechnung Streckenabschnitt'!F153,Kraftstoffart!$B$2:$B$7,0)),Energieverbrauch_Kennzahlen!$B$8:$C$13,2,FALSE)) ->  | N153: =IF(G153 = "", "", VLOOKUP(INDEX(Kraftstoffart!$A$2:$A$7, MATCH('Berechnung Streckenabschnitt'!F153,Kraftstoffart!$B$2:$B$7,0)),Kohlendioxid_Kennzahlen!$B$2:$C$7,2,FALSE)) ->  | O153: =IF(G153 = "", "", VLOOKUP(INDEX(Kraftstoffart!$A$2:$A$7, MATCH('Berechnung Streckenabschnitt'!F153,Kraftstoffart!$B$2:$B$7,0)),Kohlendioxid_Kennzahlen!$B$8:$C$13,2,FALSE)) ->  | P153: =IF(G153 = "", "", VLOOKUP(INDEX(Kraftstoffart!$A$2:$A$7, MATCH('Berechnung Streckenabschnitt'!F153,Kraftstoffart!$B$2:$B$7,0)),Treibhausgas_Kennzahlen!$B$2:$C$7,2,FALSE)) ->  | Q153: =IF(G153 = "", "", VLOOKUP(INDEX(Kraftstoffart!$A$2:$A$7, MATCH('Berechnung Streckenabschnitt'!F153,Kraftstoffart!$B$2:$B$7,0)),Treibhausgas_Kennzahlen!$B$8:$C$13,2,FALSE)) -> 
H154: =IF(G154 = "", "", VLOOKUP(INDEX(FahrzeugartID,MATCH('Berechnung Streckenabschnitt'!C154,Fahrzeugart!$B$2:$B$5,0))&"_"&INDEX(GutartID,MATCH('Berechnung Streckenabschnitt'!B154,Gutart!$B$2:$B$4,0)),Frachtgewichte!$C$2:$D$13,2,FALSE)) ->  | I154: =IF(G154 = "", "", VLOOKUP(INDEX(LängsneigungsartID,MATCH('Berechnung Streckenabschnitt'!D154,Längsneigungsart!$B$2:$B$3,0))&"_"&INDEX(GutartID,MATCH('Berechnung Streckenabschnitt'!B154,Gutart!$B$2:$B$4,0))&"_"&INDEX(FahrzeugartID,MATCH('Berechnung Streckenabschnitt'!C154,Fahrzeugart!$B$2:$B$5,0)),Energieverbrauch!$D$2:$E$25,2,FALSE)) ->  | J154: =IF(G154 = "", "", IF(E154="Innerorts",VLOOKUP(INDEX(FahrzeugartID,MATCH('Berechnung Streckenabschnitt'!C154,Fahrzeugart!$B$2:$B$5,0)),Korrekturfaktoren!$A$2:$B$5,2,FALSE),1)) ->  | L154: =IF(G154 = "", "", VLOOKUP(INDEX(Kraftstoffart!$A$2:$A$7, MATCH('Berechnung Streckenabschnitt'!F154,Kraftstoffart!$B$2:$B$7,0)),Energieverbrauch_Kennzahlen!$B$2:$C$7,2,FALSE)) ->  | M154: =IF(G154 = "", "", VLOOKUP(INDEX(Kraftstoffart!$A$2:$A$7, MATCH('Berechnung Streckenabschnitt'!F154,Kraftstoffart!$B$2:$B$7,0)),Energieverbrauch_Kennzahlen!$B$8:$C$13,2,FALSE)) ->  | N154: =IF(G154 = "", "", VLOOKUP(INDEX(Kraftstoffart!$A$2:$A$7, MATCH('Berechnung Streckenabschnitt'!F154,Kraftstoffart!$B$2:$B$7,0)),Kohlendioxid_Kennzahlen!$B$2:$C$7,2,FALSE)) ->  | O154: =IF(G154 = "", "", VLOOKUP(INDEX(Kraftstoffart!$A$2:$A$7, MATCH('Berechnung Streckenabschnitt'!F154,Kraftstoffart!$B$2:$B$7,0)),Kohlendioxid_Kennzahlen!$B$8:$C$13,2,FALSE)) ->  | P154: =IF(G154 = "", "", VLOOKUP(INDEX(Kraftstoffart!$A$2:$A$7, MATCH('Berechnung Streckenabschnitt'!F154,Kraftstoffart!$B$2:$B$7,0)),Treibhausgas_Kennzahlen!$B$2:$C$7,2,FALSE)) ->  | Q154: =IF(G154 = "", "", VLOOKUP(INDEX(Kraftstoffart!$A$2:$A$7, MATCH('Berechnung Streckenabschnitt'!F154,Kraftstoffart!$B$2:$B$7,0)),Treibhausgas_Kennzahlen!$B$8:$C$13,2,FALSE)) -> 
H155: =IF(G155 = "", "", VLOOKUP(INDEX(FahrzeugartID,MATCH('Berechnung Streckenabschnitt'!C155,Fahrzeugart!$B$2:$B$5,0))&"_"&INDEX(GutartID,MATCH('Berechnung Streckenabschnitt'!B155,Gutart!$B$2:$B$4,0)),Frachtgewichte!$C$2:$D$13,2,FALSE)) ->  | I155: =IF(G155 = "", "", VLOOKUP(INDEX(LängsneigungsartID,MATCH('Berechnung Streckenabschnitt'!D155,Längsneigungsart!$B$2:$B$3,0))&"_"&INDEX(GutartID,MATCH('Berechnung Streckenabschnitt'!B155,Gutart!$B$2:$B$4,0))&"_"&INDEX(FahrzeugartID,MATCH('Berechnung Streckenabschnitt'!C155,Fahrzeugart!$B$2:$B$5,0)),Energieverbrauch!$D$2:$E$25,2,FALSE)) ->  | J155: =IF(G155 = "", "", IF(E155="Innerorts",VLOOKUP(INDEX(FahrzeugartID,MATCH('Berechnung Streckenabschnitt'!C155,Fahrzeugart!$B$2:$B$5,0)),Korrekturfaktoren!$A$2:$B$5,2,FALSE),1)) ->  | L155: =IF(G155 = "", "", VLOOKUP(INDEX(Kraftstoffart!$A$2:$A$7, MATCH('Berechnung Streckenabschnitt'!F155,Kraftstoffart!$B$2:$B$7,0)),Energieverbrauch_Kennzahlen!$B$2:$C$7,2,FALSE)) ->  | M155: =IF(G155 = "", "", VLOOKUP(INDEX(Kraftstoffart!$A$2:$A$7, MATCH('Berechnung Streckenabschnitt'!F155,Kraftstoffart!$B$2:$B$7,0)),Energieverbrauch_Kennzahlen!$B$8:$C$13,2,FALSE)) ->  | N155: =IF(G155 = "", "", VLOOKUP(INDEX(Kraftstoffart!$A$2:$A$7, MATCH('Berechnung Streckenabschnitt'!F155,Kraftstoffart!$B$2:$B$7,0)),Kohlendioxid_Kennzahlen!$B$2:$C$7,2,FALSE)) ->  | O155: =IF(G155 = "", "", VLOOKUP(INDEX(Kraftstoffart!$A$2:$A$7, MATCH('Berechnung Streckenabschnitt'!F155,Kraftstoffart!$B$2:$B$7,0)),Kohlendioxid_Kennzahlen!$B$8:$C$13,2,FALSE)) ->  | P155: =IF(G155 = "", "", VLOOKUP(INDEX(Kraftstoffart!$A$2:$A$7, MATCH('Berechnung Streckenabschnitt'!F155,Kraftstoffart!$B$2:$B$7,0)),Treibhausgas_Kennzahlen!$B$2:$C$7,2,FALSE)) ->  | Q155: =IF(G155 = "", "", VLOOKUP(INDEX(Kraftstoffart!$A$2:$A$7, MATCH('Berechnung Streckenabschnitt'!F155,Kraftstoffart!$B$2:$B$7,0)),Treibhausgas_Kennzahlen!$B$8:$C$13,2,FALSE)) -> 
H156: =IF(G156 = "", "", VLOOKUP(INDEX(FahrzeugartID,MATCH('Berechnung Streckenabschnitt'!C156,Fahrzeugart!$B$2:$B$5,0))&"_"&INDEX(GutartID,MATCH('Berechnung Streckenabschnitt'!B156,Gutart!$B$2:$B$4,0)),Frachtgewichte!$C$2:$D$13,2,FALSE)) ->  | I156: =IF(G156 = "", "", VLOOKUP(INDEX(LängsneigungsartID,MATCH('Berechnung Streckenabschnitt'!D156,Längsneigungsart!$B$2:$B$3,0))&"_"&INDEX(GutartID,MATCH('Berechnung Streckenabschnitt'!B156,Gutart!$B$2:$B$4,0))&"_"&INDEX(FahrzeugartID,MATCH('Berechnung Streckenabschnitt'!C156,Fahrzeugart!$B$2:$B$5,0)),Energieverbrauch!$D$2:$E$25,2,FALSE)) ->  | J156: =IF(G156 = "", "", IF(E156="Innerorts",VLOOKUP(INDEX(FahrzeugartID,MATCH('Berechnung Streckenabschnitt'!C156,Fahrzeugart!$B$2:$B$5,0)),Korrekturfaktoren!$A$2:$B$5,2,FALSE),1)) ->  | L156: =IF(G156 = "", "", VLOOKUP(INDEX(Kraftstoffart!$A$2:$A$7, MATCH('Berechnung Streckenabschnitt'!F156,Kraftstoffart!$B$2:$B$7,0)),Energieverbrauch_Kennzahlen!$B$2:$C$7,2,FALSE)) ->  | M156: =IF(G156 = "", "", VLOOKUP(INDEX(Kraftstoffart!$A$2:$A$7, MATCH('Berechnung Streckenabschnitt'!F156,Kraftstoffart!$B$2:$B$7,0)),Energieverbrauch_Kennzahlen!$B$8:$C$13,2,FALSE)) ->  | N156: =IF(G156 = "", "", VLOOKUP(INDEX(Kraftstoffart!$A$2:$A$7, MATCH('Berechnung Streckenabschnitt'!F156,Kraftstoffart!$B$2:$B$7,0)),Kohlendioxid_Kennzahlen!$B$2:$C$7,2,FALSE)) ->  | O156: =IF(G156 = "", "", VLOOKUP(INDEX(Kraftstoffart!$A$2:$A$7, MATCH('Berechnung Streckenabschnitt'!F156,Kraftstoffart!$B$2:$B$7,0)),Kohlendioxid_Kennzahlen!$B$8:$C$13,2,FALSE)) ->  | P156: =IF(G156 = "", "", VLOOKUP(INDEX(Kraftstoffart!$A$2:$A$7, MATCH('Berechnung Streckenabschnitt'!F156,Kraftstoffart!$B$2:$B$7,0)),Treibhausgas_Kennzahlen!$B$2:$C$7,2,FALSE)) ->  | Q156: =IF(G156 = "", "", VLOOKUP(INDEX(Kraftstoffart!$A$2:$A$7, MATCH('Berechnung Streckenabschnitt'!F156,Kraftstoffart!$B$2:$B$7,0)),Treibhausgas_Kennzahlen!$B$8:$C$13,2,FALSE)) -> 
H157: =IF(G157 = "", "", VLOOKUP(INDEX(FahrzeugartID,MATCH('Berechnung Streckenabschnitt'!C157,Fahrzeugart!$B$2:$B$5,0))&"_"&INDEX(GutartID,MATCH('Berechnung Streckenabschnitt'!B157,Gutart!$B$2:$B$4,0)),Frachtgewichte!$C$2:$D$13,2,FALSE)) ->  | I157: =IF(G157 = "", "", VLOOKUP(INDEX(LängsneigungsartID,MATCH('Berechnung Streckenabschnitt'!D157,Längsneigungsart!$B$2:$B$3,0))&"_"&INDEX(GutartID,MATCH('Berechnung Streckenabschnitt'!B157,Gutart!$B$2:$B$4,0))&"_"&INDEX(FahrzeugartID,MATCH('Berechnung Streckenabschnitt'!C157,Fahrzeugart!$B$2:$B$5,0)),Energieverbrauch!$D$2:$E$25,2,FALSE)) ->  | J157: =IF(G157 = "", "", IF(E157="Innerorts",VLOOKUP(INDEX(FahrzeugartID,MATCH('Berechnung Streckenabschnitt'!C157,Fahrzeugart!$B$2:$B$5,0)),Korrekturfaktoren!$A$2:$B$5,2,FALSE),1)) ->  | L157: =IF(G157 = "", "", VLOOKUP(INDEX(Kraftstoffart!$A$2:$A$7, MATCH('Berechnung Streckenabschnitt'!F157,Kraftstoffart!$B$2:$B$7,0)),Energieverbrauch_Kennzahlen!$B$2:$C$7,2,FALSE)) ->  | M157: =IF(G157 = "", "", VLOOKUP(INDEX(Kraftstoffart!$A$2:$A$7, MATCH('Berechnung Streckenabschnitt'!F157,Kraftstoffart!$B$2:$B$7,0)),Energieverbrauch_Kennzahlen!$B$8:$C$13,2,FALSE)) ->  | N157: =IF(G157 = "", "", VLOOKUP(INDEX(Kraftstoffart!$A$2:$A$7, MATCH('Berechnung Streckenabschnitt'!F157,Kraftstoffart!$B$2:$B$7,0)),Kohlendioxid_Kennzahlen!$B$2:$C$7,2,FALSE)) ->  | O157: =IF(G157 = "", "", VLOOKUP(INDEX(Kraftstoffart!$A$2:$A$7, MATCH('Berechnung Streckenabschnitt'!F157,Kraftstoffart!$B$2:$B$7,0)),Kohlendioxid_Kennzahlen!$B$8:$C$13,2,FALSE)) ->  | P157: =IF(G157 = "", "", VLOOKUP(INDEX(Kraftstoffart!$A$2:$A$7, MATCH('Berechnung Streckenabschnitt'!F157,Kraftstoffart!$B$2:$B$7,0)),Treibhausgas_Kennzahlen!$B$2:$C$7,2,FALSE)) ->  | Q157: =IF(G157 = "", "", VLOOKUP(INDEX(Kraftstoffart!$A$2:$A$7, MATCH('Berechnung Streckenabschnitt'!F157,Kraftstoffart!$B$2:$B$7,0)),Treibhausgas_Kennzahlen!$B$8:$C$13,2,FALSE)) -> 
H158: =IF(G158 = "", "", VLOOKUP(INDEX(FahrzeugartID,MATCH('Berechnung Streckenabschnitt'!C158,Fahrzeugart!$B$2:$B$5,0))&"_"&INDEX(GutartID,MATCH('Berechnung Streckenabschnitt'!B158,Gutart!$B$2:$B$4,0)),Frachtgewichte!$C$2:$D$13,2,FALSE)) ->  | I158: =IF(G158 = "", "", VLOOKUP(INDEX(LängsneigungsartID,MATCH('Berechnung Streckenabschnitt'!D158,Längsneigungsart!$B$2:$B$3,0))&"_"&INDEX(GutartID,MATCH('Berechnung Streckenabschnitt'!B158,Gutart!$B$2:$B$4,0))&"_"&INDEX(FahrzeugartID,MATCH('Berechnung Streckenabschnitt'!C158,Fahrzeugart!$B$2:$B$5,0)),Energieverbrauch!$D$2:$E$25,2,FALSE)) ->  | J158: =IF(G158 = "", "", IF(E158="Innerorts",VLOOKUP(INDEX(FahrzeugartID,MATCH('Berechnung Streckenabschnitt'!C158,Fahrzeugart!$B$2:$B$5,0)),Korrekturfaktoren!$A$2:$B$5,2,FALSE),1)) ->  | L158: =IF(G158 = "", "", VLOOKUP(INDEX(Kraftstoffart!$A$2:$A$7, MATCH('Berechnung Streckenabschnitt'!F158,Kraftstoffart!$B$2:$B$7,0)),Energieverbrauch_Kennzahlen!$B$2:$C$7,2,FALSE)) ->  | M158: =IF(G158 = "", "", VLOOKUP(INDEX(Kraftstoffart!$A$2:$A$7, MATCH('Berechnung Streckenabschnitt'!F158,Kraftstoffart!$B$2:$B$7,0)),Energieverbrauch_Kennzahlen!$B$8:$C$13,2,FALSE)) ->  | N158: =IF(G158 = "", "", VLOOKUP(INDEX(Kraftstoffart!$A$2:$A$7, MATCH('Berechnung Streckenabschnitt'!F158,Kraftstoffart!$B$2:$B$7,0)),Kohlendioxid_Kennzahlen!$B$2:$C$7,2,FALSE)) ->  | O158: =IF(G158 = "", "", VLOOKUP(INDEX(Kraftstoffart!$A$2:$A$7, MATCH('Berechnung Streckenabschnitt'!F158,Kraftstoffart!$B$2:$B$7,0)),Kohlendioxid_Kennzahlen!$B$8:$C$13,2,FALSE)) ->  | P158: =IF(G158 = "", "", VLOOKUP(INDEX(Kraftstoffart!$A$2:$A$7, MATCH('Berechnung Streckenabschnitt'!F158,Kraftstoffart!$B$2:$B$7,0)),Treibhausgas_Kennzahlen!$B$2:$C$7,2,FALSE)) ->  | Q158: =IF(G158 = "", "", VLOOKUP(INDEX(Kraftstoffart!$A$2:$A$7, MATCH('Berechnung Streckenabschnitt'!F158,Kraftstoffart!$B$2:$B$7,0)),Treibhausgas_Kennzahlen!$B$8:$C$13,2,FALSE)) -> 
H159: =IF(G159 = "", "", VLOOKUP(INDEX(FahrzeugartID,MATCH('Berechnung Streckenabschnitt'!C159,Fahrzeugart!$B$2:$B$5,0))&"_"&INDEX(GutartID,MATCH('Berechnung Streckenabschnitt'!B159,Gutart!$B$2:$B$4,0)),Frachtgewichte!$C$2:$D$13,2,FALSE)) ->  | I159: =IF(G159 = "", "", VLOOKUP(INDEX(LängsneigungsartID,MATCH('Berechnung Streckenabschnitt'!D159,Längsneigungsart!$B$2:$B$3,0))&"_"&INDEX(GutartID,MATCH('Berechnung Streckenabschnitt'!B159,Gutart!$B$2:$B$4,0))&"_"&INDEX(FahrzeugartID,MATCH('Berechnung Streckenabschnitt'!C159,Fahrzeugart!$B$2:$B$5,0)),Energieverbrauch!$D$2:$E$25,2,FALSE)) ->  | J159: =IF(G159 = "", "", IF(E159="Innerorts",VLOOKUP(INDEX(FahrzeugartID,MATCH('Berechnung Streckenabschnitt'!C159,Fahrzeugart!$B$2:$B$5,0)),Korrekturfaktoren!$A$2:$B$5,2,FALSE),1)) ->  | L159: =IF(G159 = "", "", VLOOKUP(INDEX(Kraftstoffart!$A$2:$A$7, MATCH('Berechnung Streckenabschnitt'!F159,Kraftstoffart!$B$2:$B$7,0)),Energieverbrauch_Kennzahlen!$B$2:$C$7,2,FALSE)) ->  | M159: =IF(G159 = "", "", VLOOKUP(INDEX(Kraftstoffart!$A$2:$A$7, MATCH('Berechnung Streckenabschnitt'!F159,Kraftstoffart!$B$2:$B$7,0)),Energieverbrauch_Kennzahlen!$B$8:$C$13,2,FALSE)) ->  | N159: =IF(G159 = "", "", VLOOKUP(INDEX(Kraftstoffart!$A$2:$A$7, MATCH('Berechnung Streckenabschnitt'!F159,Kraftstoffart!$B$2:$B$7,0)),Kohlendioxid_Kennzahlen!$B$2:$C$7,2,FALSE)) ->  | O159: =IF(G159 = "", "", VLOOKUP(INDEX(Kraftstoffart!$A$2:$A$7, MATCH('Berechnung Streckenabschnitt'!F159,Kraftstoffart!$B$2:$B$7,0)),Kohlendioxid_Kennzahlen!$B$8:$C$13,2,FALSE)) ->  | P159: =IF(G159 = "", "", VLOOKUP(INDEX(Kraftstoffart!$A$2:$A$7, MATCH('Berechnung Streckenabschnitt'!F159,Kraftstoffart!$B$2:$B$7,0)),Treibhausgas_Kennzahlen!$B$2:$C$7,2,FALSE)) ->  | Q159: =IF(G159 = "", "", VLOOKUP(INDEX(Kraftstoffart!$A$2:$A$7, MATCH('Berechnung Streckenabschnitt'!F159,Kraftstoffart!$B$2:$B$7,0)),Treibhausgas_Kennzahlen!$B$8:$C$13,2,FALSE)) -> 
H160: =IF(G160 = "", "", VLOOKUP(INDEX(FahrzeugartID,MATCH('Berechnung Streckenabschnitt'!C160,Fahrzeugart!$B$2:$B$5,0))&"_"&INDEX(GutartID,MATCH('Berechnung Streckenabschnitt'!B160,Gutart!$B$2:$B$4,0)),Frachtgewichte!$C$2:$D$13,2,FALSE)) ->  | I160: =IF(G160 = "", "", VLOOKUP(INDEX(LängsneigungsartID,MATCH('Berechnung Streckenabschnitt'!D160,Längsneigungsart!$B$2:$B$3,0))&"_"&INDEX(GutartID,MATCH('Berechnung Streckenabschnitt'!B160,Gutart!$B$2:$B$4,0))&"_"&INDEX(FahrzeugartID,MATCH('Berechnung Streckenabschnitt'!C160,Fahrzeugart!$B$2:$B$5,0)),Energieverbrauch!$D$2:$E$25,2,FALSE)) ->  | J160: =IF(G160 = "", "", IF(E160="Innerorts",VLOOKUP(INDEX(FahrzeugartID,MATCH('Berechnung Streckenabschnitt'!C160,Fahrzeugart!$B$2:$B$5,0)),Korrekturfaktoren!$A$2:$B$5,2,FALSE),1)) ->  | L160: =IF(G160 = "", "", VLOOKUP(INDEX(Kraftstoffart!$A$2:$A$7, MATCH('Berechnung Streckenabschnitt'!F160,Kraftstoffart!$B$2:$B$7,0)),Energieverbrauch_Kennzahlen!$B$2:$C$7,2,FALSE)) ->  | M160: =IF(G160 = "", "", VLOOKUP(INDEX(Kraftstoffart!$A$2:$A$7, MATCH('Berechnung Streckenabschnitt'!F160,Kraftstoffart!$B$2:$B$7,0)),Energieverbrauch_Kennzahlen!$B$8:$C$13,2,FALSE)) ->  | N160: =IF(G160 = "", "", VLOOKUP(INDEX(Kraftstoffart!$A$2:$A$7, MATCH('Berechnung Streckenabschnitt'!F160,Kraftstoffart!$B$2:$B$7,0)),Kohlendioxid_Kennzahlen!$B$2:$C$7,2,FALSE)) ->  | O160: =IF(G160 = "", "", VLOOKUP(INDEX(Kraftstoffart!$A$2:$A$7, MATCH('Berechnung Streckenabschnitt'!F160,Kraftstoffart!$B$2:$B$7,0)),Kohlendioxid_Kennzahlen!$B$8:$C$13,2,FALSE)) ->  | P160: =IF(G160 = "", "", VLOOKUP(INDEX(Kraftstoffart!$A$2:$A$7, MATCH('Berechnung Streckenabschnitt'!F160,Kraftstoffart!$B$2:$B$7,0)),Treibhausgas_Kennzahlen!$B$2:$C$7,2,FALSE)) ->  | Q160: =IF(G160 = "", "", VLOOKUP(INDEX(Kraftstoffart!$A$2:$A$7, MATCH('Berechnung Streckenabschnitt'!F160,Kraftstoffart!$B$2:$B$7,0)),Treibhausgas_Kennzahlen!$B$8:$C$13,2,FALSE)) -> 
H161: =IF(G161 = "", "", VLOOKUP(INDEX(FahrzeugartID,MATCH('Berechnung Streckenabschnitt'!C161,Fahrzeugart!$B$2:$B$5,0))&"_"&INDEX(GutartID,MATCH('Berechnung Streckenabschnitt'!B161,Gutart!$B$2:$B$4,0)),Frachtgewichte!$C$2:$D$13,2,FALSE)) ->  | I161: =IF(G161 = "", "", VLOOKUP(INDEX(LängsneigungsartID,MATCH('Berechnung Streckenabschnitt'!D161,Längsneigungsart!$B$2:$B$3,0))&"_"&INDEX(GutartID,MATCH('Berechnung Streckenabschnitt'!B161,Gutart!$B$2:$B$4,0))&"_"&INDEX(FahrzeugartID,MATCH('Berechnung Streckenabschnitt'!C161,Fahrzeugart!$B$2:$B$5,0)),Energieverbrauch!$D$2:$E$25,2,FALSE)) ->  | J161: =IF(G161 = "", "", IF(E161="Innerorts",VLOOKUP(INDEX(FahrzeugartID,MATCH('Berechnung Streckenabschnitt'!C161,Fahrzeugart!$B$2:$B$5,0)),Korrekturfaktoren!$A$2:$B$5,2,FALSE),1)) ->  | L161: =IF(G161 = "", "", VLOOKUP(INDEX(Kraftstoffart!$A$2:$A$7, MATCH('Berechnung Streckenabschnitt'!F161,Kraftstoffart!$B$2:$B$7,0)),Energieverbrauch_Kennzahlen!$B$2:$C$7,2,FALSE)) ->  | M161: =IF(G161 = "", "", VLOOKUP(INDEX(Kraftstoffart!$A$2:$A$7, MATCH('Berechnung Streckenabschnitt'!F161,Kraftstoffart!$B$2:$B$7,0)),Energieverbrauch_Kennzahlen!$B$8:$C$13,2,FALSE)) ->  | N161: =IF(G161 = "", "", VLOOKUP(INDEX(Kraftstoffart!$A$2:$A$7, MATCH('Berechnung Streckenabschnitt'!F161,Kraftstoffart!$B$2:$B$7,0)),Kohlendioxid_Kennzahlen!$B$2:$C$7,2,FALSE)) ->  | O161: =IF(G161 = "", "", VLOOKUP(INDEX(Kraftstoffart!$A$2:$A$7, MATCH('Berechnung Streckenabschnitt'!F161,Kraftstoffart!$B$2:$B$7,0)),Kohlendioxid_Kennzahlen!$B$8:$C$13,2,FALSE)) ->  | P161: =IF(G161 = "", "", VLOOKUP(INDEX(Kraftstoffart!$A$2:$A$7, MATCH('Berechnung Streckenabschnitt'!F161,Kraftstoffart!$B$2:$B$7,0)),Treibhausgas_Kennzahlen!$B$2:$C$7,2,FALSE)) ->  | Q161: =IF(G161 = "", "", VLOOKUP(INDEX(Kraftstoffart!$A$2:$A$7, MATCH('Berechnung Streckenabschnitt'!F161,Kraftstoffart!$B$2:$B$7,0)),Treibhausgas_Kennzahlen!$B$8:$C$13,2,FALSE)) -> 
